Workbook

Sheet START
A1: =muni -> EC136 Emalahleni (Ec)

Sheet Instructions
D2: 2020
X4: Yes
X5: No
W7: Type of Entities Range: | X7: Parent Municipality
X8: Consolidated Information
W10: Date linked | X10: 12
W11: Date | X11: =VLOOKUP(X10,W39:X55,2) -> M12 June | Y11: 2013-08-01
W19: MTREF Range: | X19: 2008
X20: 2009
X21: 2010
X22: 2011
X23: 2012
X24: 2013
X25: 2014
X26: 2015
X27: 2016
X28: 2017
X29: 2018
X30: 2019
X31: 2020
X32: 2021
X33: 2022
W34: MTREF Linked:
W35: MTREF: | X35: 11
X36: =INDEX(X19:X33,X35,1) -> 2018
W37: Fin Year:
X38: =MTREF&"/"&RIGHT(MTREF,2)+1 -> 2018/19
V39: Date/type of report | W39: 1 | X39: M01 July
W40: 2 | X40: M02 August
W41: 3 | X41: M03 September
W42: 4 | X42: M04 October
W43: 5 | X43: M05 November
W44: 6 | X44: M06 December
W45: 7 | X45: M07 January
W46: 8 | X46: M08 February
W47: 9 | X47: M09 March
W48: 10 | X48: M10 April
W49: 11 | X49: M11 May
W50: 12 | X50: M12 June
W51: 13 | X51: Q1 First Quarter
W52: 14 | X52: Q2 Second Quarter
W53: 15 | X53: Q3 Third Quarter
W54: 16 | X54: Q4 Fourth Quarter
W55: 17 | X55: Mid-Year Assessment

Sheet Template names (hidden)
A1: Common sheet headings
A2: Head1 | B2: =HLOOKUP(MTREF,Headings,2) -> 2017/18 | C2: Prior year -1
A3: Head2 | B3: =HLOOKUP(MTREF,Headings,5) -> Budget Year 2018/19 | C3: Year of approved budget
A4: Head2A | B4: =HLOOKUP(MTREF,Headings,4) -> 2018/19 | C4: Approved budget year
A5: Head3 | B5: =HLOOKUP(MTREF,Headings,3) -> 2018/19 Medium Term Revenue & Expenditure Framework | C5: MTREF header name
A6: Head5 | B6: Audited Outcome
A7: Head5A | B7: Outcome
A8: Head5B | B8: Pre-audit outcome
A9: Head6 | B9: Original Budget
A10: Head7 | B10: Adjusted Budget
A11: Head8 | B11: Full Year Forecast
A12: Head9 | B12: =HLOOKUP(MTREF,Headings,5) -> Budget Year 2018/19 | C12: 1st year of MTREF | D12: Year1
A13: Head10 | B13: =HLOOKUP(MTREF,Headings,6) -> Budget Year +1 2019/20 | C13: 2nd year of MTREF | D13: Year2
A14: Head11 | B14: =HLOOKUP(MTREF,Headings,7) -> Budget Year +2 2020/21 | C14: 3rd year of MTREF | D14: Year3
A15: Head12 | B15: Forecast 2010/11 | D15: Year4
A16: Head13 | B16: Forecast 2011/12 | D16: Year5
A17: Head14 | B17: Forecast 2012/13 | D17: Year6
A18: Head15 | B18: Forecast 2013/14 | D18: Year7
A19: Head16 | B19: Forecast 2014/15 | D19: Year8
A20: Head17 | B20: Forecast 2015/16 | D20: Year9
A21: Head18 | B21: Forecast 2016/17 | D21: Year10
A22: Head19 | B22: Forecast 2017/18 | D22: Year11
A23: Head20 | B23: Forecast 2018/19 | D23: Year12
A24: Head21 | B24: Forecast 2019/20 | D24: Year13
A25: Head22 | B25: Forecast 2020/21 | D25: Year14
A26: Head23 | B26: Forecast 2021/22 | D26: Year15
A27: Head24 | B27: Description | D27: Desc
A28: Head25 | B28: Schedule of funding diligence | D28: fdil
A29: Head26 | B29: Vote Description | D29: VDesc
A30: Head27 | B30: Ref
A31: Head27a | B31: References
A32: Head28 | B32: Surplus/ (Deficit) for the year | D32: Result
A33: Head29 | B33: Annual target 2007/08
A34: Head30 | B34: Revised target 2007/08
A35: Head31 | B35: Quarter ended 30 September
A36: Head32 | B36: Quarter ended 31 December
A37: Head33 | B37: Quarter ended 31 March
A38: Head34 | B38: Quarter ended 30 June
A39: Head35 | B39: Variance explanation
A40: Head36 | B40: YTD Actual 31 Dec
A41: Head37 | B41: YTD Budget 31 Dec
A42: Head38 | B42: Monthly actual
A43: Head39 | B43: YearTD actual
A44: Head40 | B44: YearTD budget
A45: Head41 | B45: YTD variance
A46: Head42 | B46: Surplus/ (Deficit) for the yr/period
A47: Head43 | B47: =Head3&" Summary" -> 2018/19 Medium Term Revenue & Expenditure Framework Summary
A48: Head44 | B48: 1996 Census
A49: Head45 | B49: 2001 Census
A50: Head46 | B50: - Adjustments Budget - Month YYYY
A51: Head47 | B51: Previous target year to complete
A52: Head48 | B52: Present value
A53: Head49 | B53: Virement
A54: Head50 | B54: Other Adjusts.
A55: Head51 | B55: Accum. Funds
A56: Head52 | B56: Multi-year capital
A57: Head53 | B57: Unfore. Unavoid.
A58: Head54 | B58: Prior Adjusted
A59: Head55 | B59: Nat. or Prov. Govt
A60: Head56 | B60: Total Adjusts.
A61: Head57 | B61: =date -> M12 June
A62: Head58 | B62: Parent muni.
A63: Head59 | B63: Downward adjusts
A64: Head60 | B64: Month | C64: Report header part name | D64: =MONTH(date) -> 
A65: SFPerf1 | B65: Budgeted Financial Performance
A66: SFPerf2 | B66: Forecast Financial Performance
A67: SFPos1 | B67: Budgeted Financial Position
A68: SFPos2 | B68: Forecast Financial Position
A69: Cash1 | B69: Budget Cash Flow
A70: Cash2 | B70: Forecast Cash Flow
A71: RandM | B71: Expenditure includes repairs & maintenance of R'000
A72: Standard nomenclature
A73: Muni | B73: ='Lookup and lists'!B27 -> EC136 Emalahleni (Ec)
A74: Municipal Entities | B74: 2 | C74: Type of report: | D74: 3
A75: =IF((MuniEntities=1)*(MuniType=2),"YES","NO") -> NO | B75: Does this municipality have entities (consolidated budget and entity budgets required)? YES/NO
A76: s71 (Monthly Mayor report) schedules and charts
A77: S71sum | B77: =IF(Consolques="YES",E77,F77) -> Table C1 Monthly Budget Statement Summary | D77: Table C1 | E77: =D77&"Consolidated Monthly Budget Statement Summary" -> Table C1 Consolidated Monthly Budget Statement Summary | F77: =D77&"Monthly Budget Statement Summary" -> Table C1 Monthly Budget Statement Summary
A78: S71C | B78: Table C3 Monthly Budget Statement - Financial Performance (revenue and expenditure by municipal vote) | D78: Table C3 | E78: =D78&"Consolidated Monthly Budget Statement - Financial Performance (revenue and expenditure by municipal vote) " -> Table C3 Consolidated Monthly Budget Statement - Financial Performance (revenue and expenditure by municipal vote) | F78: =D78&"Monthly Budget Statement - Financial Performance (revenue and expenditure by municipal vote)" -> Table C3 Monthly Budget Statement - Financial Performance (revenue and expenditure by municipal vote)
A79: S71A | B79: =IF(Consolques="YES",E79,F79) -> Table C2 Monthly Budget Statement - Financial Performance (functional classification) | D79: Table C2 | E79: =D79&"Consolidated Monthly Budget Statement - Financial Performance (functional classification) " -> Table C2 Consolidated Monthly Budget Statement - Financial Performance (functional classification) | F79: =D79&"Monthly Budget Statement - Financial Performance (functional classification)" -> Table C2 Monthly Budget Statement - Financial Performance (functional classification)
A80: S71B | B80: =IF(Consolques="YES",E80,F80) -> Table C4 Monthly Budget Statement - Financial Performance (revenue and expenditure) | D80: Table C4 | E80: =D80&"Consolidated Monthly Budget Statement - Financial Performance (revenue and expenditure) " -> Table C4 Consolidated Monthly Budget Statement - Financial Performance (revenue and expenditure) | F80: =D80&"Monthly Budget Statement - Financial Performance (revenue and expenditure)" -> Table C4 Monthly Budget Statement - Financial Performance (revenue and expenditure)
A81: S71D | B81: =IF(Consolques="YES",E81,F81) -> Table C5 Monthly Budget Statement - Capital Expenditure (municipal vote, functional classification and funding) | D81: Table C5 | E81: =D81&"Consolidated Monthly Budget Statement - Capital Expenditure (municipal vote, functional classification and funding " -> Table C5 Consolidated Monthly Budget Statement - Capital Expenditure (municipal vote, functional classification and funding | F81: =D81&"Monthly Budget Statement - Capital Expenditure (municipal vote, functional classification and funding)" -> Table C5 Monthly Budget Statement - Capital Expenditure (municipal vote, functional classification and funding)
A82: S71E | B82: Table C6 Monthly Budget Statement - Financial Position | D82: Table C6 | E82: =D82&"Consolidated Monthly Budget Statement - Financial Position " -> Table C6 Consolidated Monthly Budget Statement - Financial Position | F82: =D82&"Monthly Budget Statement - Financial Position" -> Table C6 Monthly Budget Statement - Financial Position
A83: S71F | B83: Table C7 Monthly Budget Statement - Cash Flow | D83: Table C7 | E83: =D83&"Consolidated Monthly Budget Statement - Cash Flow " -> Table C7 Consolidated Monthly Budget Statement - Cash Flow | F83: =D83&"Monthly Budget Statement - Cash Flow " -> Table C7 Monthly Budget Statement - Cash Flow
A84: S71G | B84: =D84&"Material variance explanations " -> Supporting Table SC1 Material variance explanations | D84: Supporting Table SC1
A85: S71H | B85: =D85&"Monthly Budget Statement - performance indicators " -> Supporting Table SC2 Monthly Budget Statement - performance indicators | D85: Supporting Table SC2
A86: S71I | B86: =D86&"Monthly Budget Statement - aged debtors" -> Supporting Table SC3 Monthly Budget Statement - aged debtors | D86: Supporting Table SC3
A87: S71J | B87: =D87&"Monthly Budget Statement - aged creditors " -> Supporting Table SC4 Monthly Budget Statement - aged creditors | D87: Supporting Table SC4
A88: S71K | B88: =D88&"Monthly Budget Statement - investment portfolio " -> Supporting Table SC5 Monthly Budget Statement - investment portfolio | D88: Supporting Table SC5
A89: S71L | B89: =D89&"Monthly Budget Statement - transfers and grant receipts " -> Supporting Table SC6 Monthly Budget Statement - transfers and grant receipts | D89: Supporting Table SC6
A90: S71M | B90: =D90&" Monthly Budget Statement - transfers and grant expenditure " -> Supporting Table SC7(1) Monthly Budget Statement - transfers and grant expenditure | D90: Supporting Table SC7(1)
A91: S71N | B91: =D91&"Monthly Budget Statement - councillor and staff benefits " -> Supporting Table SC8 Monthly Budget Statement - councillor and staff benefits | D91: Supporting Table SC8
A92: S71O | B92: =D92&"Monthly Budget Statement - actuals and revised targets for cash receipts" -> Supporting Table SC9 Monthly Budget Statement - actuals and revised targets for cash receipts | D92: Supporting Table SC9
A93: S71P | B93: =IF(Consolques="YES",E93,F93) -> NOT REQUIRED - municipality does not have entities or this is the parent municipality's budget | D93: Supporting Table SC10 | E93: =D93&"Monthly Budget Statement - Parent Municipality Financial Performance (revenue and expenditure) " -> Supporting Table SC10 Monthly Budget Statement - Parent Municipality Financial Performance (revenue and expenditure) | F93: NOT REQUIRED - municipality does not have entities or this is the parent municipality's budget
A94: S71Q | B94: NOT REQUIRED - municipality does not have entities or this is the parent municipality's budget | D94: Supporting Table SC11 | E94: =D94&"Monthly Budget Statement - summary of municipal entities" -> Supporting Table SC11 Monthly Budget Statement - summary of municipal entities | F94: NOT REQUIRED - municipality does not have entities or this is the parent municipality's budget
A95: S71R | B95: Supporting Table SC12 Monthly Budget Statement - capital expenditure trend | D95: Supporting Table SC12 | E95: =D95&"Consolidated Monthly Budget Statement - capital expenditure trend " -> Supporting Table SC12 Consolidated Monthly Budget Statement - capital expenditure trend | F95: =D95&"Monthly Budget Statement - capital expenditure trend" -> Supporting Table SC12 Monthly Budget Statement - capital expenditure trend
A96: S71Sa | B96: Supporting Table SC13a Monthly Budget Statement - capital expenditure on new assets by asset class | D96: Supporting Table SC13a | E96: =D96&"Consolidated Monthly Budget Statement - capital expenditure on new assets by asset class" -> Supporting Table SC13a Consolidated Monthly Budget Statement - capital expenditure on new assets by asset class | F96: =D96&"Monthly Budget Statement - capital expenditure on new assets by asset class" -> Supporting Table SC13a Monthly Budget Statement - capital expenditure on new assets by asset class
A97: S71Sb | B97: Supporting Table SC13b Monthly Budget Statement - capital expenditure on renewal of existing assets by asset class | D97: Supporting Table SC13b | E97: =D97&"Consolidated Monthly Budget Statement - capital expenditure on renewal of existing assets by asset class" -> Supporting Table SC13b Consolidated Monthly Budget Statement - capital expenditure on renewal of existing assets by asset class | F97: =D97&"Monthly Budget Statement - capital expenditure on renewal of existing assets by asset class" -> Supporting Table SC13b Monthly Budget Statement - capital expenditure on renewal of existing assets by asset class
A98: S71Sc | B98: Supporting Table SC13c Monthly Budget Statement - expenditure on repairs and maintenance by asset class | D98: Supporting Table SC13c | E98: =D98&"Consolidated Monthly Budget Statement - expenditure on repairs and maintenance by asset class" -> Supporting Table SC13c Consolidated Monthly Budget Statement - expenditure on repairs and maintenance by asset class | F98: =D98&"Monthly Budget Statement - expenditure on repairs and maintenance by asset class" -> Supporting Table SC13c Monthly Budget Statement - expenditure on repairs and maintenance by asset class
A99: S71Sd | B99: Supporting Table SC13d Monthly Budget Statement - depreciation by asset class | D99: Supporting Table SC13d | E99: =D99&"Consolidated Monthly Budget Statement - depreciation by asset class" -> Supporting Table SC13d Consolidated Monthly Budget Statement - depreciation by asset class | F99: =D99&"Monthly Budget Statement - depreciation by asset class" -> Supporting Table SC13d Monthly Budget Statement - depreciation by asset class
A100: S71Se | B100: =IF(Consolques="YES",E100,F100) -> Supporting Table SC13e Monthly Budget Statement - capital expenditure on upgrading of existing assets by asset class | D100: Supporting Table SC13e | E100: =D100&"Consolidated Monthly Budget Statement - capital expenditure on upgrading of existing assets by asset class" -> Supporting Table SC13e Consolidated Monthly Budget Statement - capital expenditure on upgrading of existing assets by asset class | F100: =D100&"Monthly Budget Statement - capital expenditure on upgrading of existing assets by asset class" -> Supporting Table SC13e Monthly Budget Statement - capital expenditure on upgrading of existing assets by asset class
B101: s71 charts listing
B102: =D102&Head2A&" Capital Expenditure Monthly Trend: actual v target" -> Chart C1 2018/19 Capital Expenditure Monthly Trend: actual v target | D102: Chart C1
B103: =D103&Head2A&" Capital Expenditure: YTD actual v YTD target" -> Chart C2 2018/19 Capital Expenditure: YTD actual v YTD target | D103: Chart C2
B104: =D104&"Aged Consumer Debtors Analysis" -> Chart C3 Aged Consumer Debtors Analysis | D104: Chart C3
B105: =D105&"Consumer Debtors (total by Debtor Customer Category)" -> Chart C4 Consumer Debtors (total by Debtor Customer Category) | D105: Chart C4
B106: =D106&"Aged Creditors Analysis" -> Chart C5 Aged Creditors Analysis | D106: Chart C5
A107: S71T | B107: =D107&" Monthly Budget Statement - Expenditure against approved rollovers" -> Supporting Table SC7(2) Monthly Budget Statement - Expenditure against approved rollovers | D107: Supporting Table SC7(2)

Sheet Lookup and lists (hidden)
A1: Description | B1: 2007 | C1: 2008 | D1: 2009 | E1: 2010 | F1: 2011 | G1: 2012 | H1: 2013 | I1: 2014 | J1: 2015 | K1: 2016 | L1: 2017 | M1: 2018 | N1: 2019 | O1: 2020 | Q1: Grants: | R1: National - opex | S1: Provincial - opex | T1: National - capex | U1: Provincial - capex | V1: YESNO
A2: ='Template names'!C2 -> Prior year -1 | B2: 2006/07 | C2: 2007/08 | D2: 2008/09 | E2: =E1-1&"/"&RIGHT(E1,2)-0 -> 2009/10 | F2: =F1-1&"/"&RIGHT(F1,2)-0 -> 2010/11 | G2: 2011/12 | H2: 2012/13 | I2: 2013/14 | J2: 2014/15 | K2: 2015/16 | L2: 2016/17 | M2: 2017/18 | N2: 2018/19 | O2: 2019/20 | R2: Local Government Equitable Share | S2: Health subsidy | T2: Municipal Infrastructure Grant (MIG) | U2: Agriculture | V2: Yes
A3: ='Template names'!C5 -> MTREF header name | B3: 2007/08 Medium Term Revenue & Expenditure Framework | C3: 2008/09 Medium Term Revenue & Expenditure Framework | D3: 2009/10 Medium Term Revenue & Expenditure Framework | E3: =E1&"/"&RIGHT(E1,2)+1&" Medium Term Revenue & Expenditure Framework" -> 2010/11 Medium Term Revenue & Expenditure Framework | F3: =F1&"/"&RIGHT(F1,2)+1&" Medium Term Revenue & Expenditure Framework" -> 2011/12 Medium Term Revenue & Expenditure Framework | G3: 2012/13 Medium Term Revenue & Expenditure Framework | H3: 2013/14 Medium Term Revenue & Expenditure Framework | I3: 2014/15 Medium Term Revenue & Expenditure Framework | J3: 2015/16 Medium Term Revenue & Expenditure Framework | K3: 2016/17 Medium Term Revenue & Expenditure Framework | L3: 2017/18 Medium Term Revenue & Expenditure Framework | M3: 2018/19 Medium Term Revenue & Expenditure Framework | N3: 2019/20 Medium Term Revenue & Expenditure Framework | O3: 2020/21 Medium Term Revenue & Expenditure Framework | R3: RSC Levy Replacement | S3: Ambulance subsidy | T3: Public Transport and Systems | U3: Education | V3: No
A4: ='Template names'!C4 -> Approved budget year | B4: 2007/08 | C4: 2008/09 | D4: 2009/10 | E4: =E1&"/"&RIGHT(E1,2)+1 -> 2010/11 | F4: =F1&"/"&RIGHT(F1,2)+1 -> 2011/12 | G4: 2012/13 | H4: 2013/14 | I4: 2014/15 | J4: 2015/16 | K4: 2016/17 | L4: 2017/18 | M4: 2018/19 | N4: 2019/20 | O4: 2020/21 | R4: Finance Management | S4: Housing | T4: Rural Transport Services and Infrastructure | U4: Health
A5: ='Template names'!C12 -> 1st year of MTREF | B5: Budget Year 2007/08 | C5: Budget Year 2008/09 | D5: Budget Year 2009/10 | E5: ="Budget Year "&E1&"/"&RIGHT(E1,2)+1 -> Budget Year 2010/11 | F5: ="Budget Year "&F1&"/"&RIGHT(F1,2)+1 -> Budget Year 2011/12 | G5: Budget Year 2012/13 | H5: Budget Year 2013/14 | I5: Budget Year 2014/15 | J5: Budget Year 2015/16 | K5: Budget Year 2016/17 | L5: Budget Year 2017/18 | M5: Budget Year 2018/19 | N5: Budget Year 2019/20 | O5: Budget Year 2020/21 | R5: Municipal Systems Improvement | S5: Sport and Recreation | T5: Regional Bulk Infrastructure | U5: Housing and Local Government
A6: ='Template names'!C13 -> 2nd year of MTREF | B6: Budget Year +1 2008/09 | C6: Budget Year +1 2009/10 | D6: Budget Year +1 2010/11 | E6: ="Budget Year +1 "&E1+1&"/"&RIGHT(E1,2)+2 -> Budget Year +1 2011/12 | F6: ="Budget Year +1 "&F1+1&"/"&RIGHT(F1,2)+2 -> Budget Year +1 2012/13 | G6: Budget Year +1 2013/14 | H6: Budget Year +1 2014/15 | I6: Budget Year +1 2015/16 | J6: Budget Year +1 2016/17 | K6: Budget Year +1 2017/18 | L6: Budget Year +1 2018/19 | M6: Budget Year +1 2019/20 | N6: Budget Year +1 2020/21 | O6: Budget Year +1 2021/22 | R6: Water Services Operating Subsidy | T6: Rural Households Infrastructure | U6: Other Departments
A7: ='Template names'!C14 -> 3rd year of MTREF | B7: Budget Year +2 2009/10 | C7: Budget Year +2 2010/11 | D7: Budget Year +2 2011/12 | E7: ="Budget Year +2 "&E1+2&"/"&RIGHT(E1,2)+3 -> Budget Year +2 2012/13 | F7: ="Budget Year +2 "&F1+2&"/"&RIGHT(F1,2)+3 -> Budget Year +2 2013/14 | G7: Budget Year +2 2014/15 | H7: Budget Year +2 2015/16 | I7: Budget Year +2 2016/17 | J7: Budget Year +2 2017/18 | K7: Budget Year +2 2018/19 | L7: Budget Year +2 2019/20 | M7: Budget Year +2 2020/21 | N7: Budget Year +2 2021/22 | O7: Budget Year +2 2022/23 | R7: Energy Efficiency and Demand Management | T7: Neighbourhood Development Partnership | U7: Public Works, Roads, Transport
A8: NOTE: This sheet should not be directly amended - select headings from sheet 'S' | R8: Integrated National Electrification Programme | T8: 2010 FIFA World Cup Stadiums Development | U8: Sport and Recreation
R9: Municipal Drought Relief
R10: 2010 FIFA World Cup Operating
R11: Electricity Demand Side Management
R12: EPWP Incentive
A26: Name link | B26: 21
A27: Name of Muni | B27: =INDEX(B28:B311,B26,1) -> EC136 Emalahleni (Ec)
B28: Choose name from list | C28: Set name on 'Instructions' sheet
B29: BUF Buffalo City | C29: Eastern Cape
B30: NMA Nelson Mandela Bay | C30: Eastern Cape
B31: EC101 Dr. Beyers Naude | C31: Eastern Cape
B32: EC102 Blue Crane Route | C32: Eastern Cape
B33: EC104 Makana | C33: Eastern Cape
B34: EC105 Ndlambe | C34: Eastern Cape
B35: EC106 Sundays River Valley | C35: Eastern Cape
B36: EC108 Kouga | C36: Eastern Cape
B37: EC109 Kou-Kamma | C37: Eastern Cape
B38: DC10 Sarah Baartman | C38: Eastern Cape
B39: EC121 Mbhashe | C39: Eastern Cape
B40: EC122 Mnquma | C40: Eastern Cape
B41: EC123 Great Kei | C41: Eastern Cape
B42: EC124 Amahlathi | C42: Eastern Cape
B43: EC126 Ngqushwa | C43: Eastern Cape
B44: EC129 Raymond Mhlaba | C44: Eastern Cape
B45: DC12 Amathole | C45: Eastern Cape
B46: EC131 Inxuba Yethemba | C46: Eastern Cape
B47: EC135 Intsika Yethu | C47: Eastern Cape
B48: EC136 Emalahleni (Ec) | C48: Eastern Cape
B49: EC137 Engcobo | C49: Eastern Cape
B50: EC138 Sakhisizwe | C50: Eastern Cape
B51: EC139 Enoch Mgijima | C51: Eastern Cape
B52: DC13 Chris Hani | C52: Eastern Cape
B53: EC141 Elundini | C53: Eastern Cape
B54: EC142 Senqu | C54: Eastern Cape
B55: EC145 Walter Sisulu | C55: Eastern Cape
B56: DC14 Joe Gqabi | C56: Eastern Cape
B57: EC153 Ngquza Hills | C57: Eastern Cape
B58: EC154 Port St Johns | C58: Eastern Cape
B59: EC155 Nyandeni | C59: Eastern Cape
B60: EC156 Mhlontlo | C60: Eastern Cape
B61: EC157 King Sabata Dalindyebo | C61: Eastern Cape
B62: DC15 O .R. Tambo | C62: Eastern Cape
B63: EC441 Matatiele | C63: Eastern Cape
B64: EC442 Umzimvubu | C64: Eastern Cape
B65: EC443 Mbizana | C65: Eastern Cape
B66: EC444 Ntabankulu | C66: Eastern Cape
B67: DC44 Alfred Nzo | C67: Eastern Cape
B68: MAN Mangaung | C68: Free State
B69: FS161 Letsemeng | C69: Free State
B70: FS162 Kopanong | C70: Free State
B71: FS163 Mohokare | C71: Free State
B72: DC16 Xhariep | C72: Free State
B73: FS181 Masilonyana | C73: Free State
B74: FS182 Tokologo | C74: Free State
B75: FS183 Tswelopele | C75: Free State
B76: FS184 Matjhabeng | C76: Free State
B77: FS185 Nala | C77: Free State
B78: DC18 Lejweleputswa | C78: Free State
B79: FS191 Setsoto | C79: Free State
B80: FS192 Dihlabeng | C80: Free State
B81: FS193 Nketoana | C81: Free State
B82: FS194 Maluti-a-Phofung | C82: Free State
B83: FS195 Phumelela | C83: Free State
B84: FS196 Mantsopa | C84: Free State
B85: DC19 Thabo Mofutsanyana | C85: Free State
B86: FS201 Moqhaka | C86: Free State
B87: FS203 Ngwathe | C87: Free State
B88: FS204 Metsimaholo | C88: Free State
B89: FS205 Mafube | C89: Free State
B90: DC20 Fezile Dabi | C90: Free State
B91: EKU Ekurhuleni Metro | C91: Gauteng
B92: JHB City Of Johannesburg | C92: Gauteng
B93: TSH City Of Tshwane | C93: Gauteng
B94: GT421 Emfuleni | C94: Gauteng
B95: GT422 Midvaal | C95: Gauteng
B96: GT423 Lesedi | C96: Gauteng
B97: DC42 Sedibeng | C97: Gauteng
B98: GT481 Mogale City | C98: Gauteng
B99: GT484 Merafong City | C99: Gauteng
B100: GT485 GT485 | C100: Gauteng
B101: DC48 West Rand | C101: Gauteng
B102: ETH eThekwini | C102: Kwazulu-Natal
B103: KZN212 Umdoni | C103: Kwazulu-Natal
B104: KZN213 Umzumbe | C104: Kwazulu-Natal
B105: KZN214 uMuziwabantu | C105: Kwazulu-Natal
B106: KZN216 Ray Nkonyeni | C106: Kwazulu-Natal
B107: DC21 Ugu | C107: Kwazulu-Natal
B108: KZN221 uMshwathi | C108: Kwazulu-Natal
B109: KZN222 uMngeni | C109: Kwazulu-Natal
B110: KZN223 Mpofana | C110: Kwazulu-Natal
B111: KZN224 Impendle | C111: Kwazulu-Natal
B112: KZN225 Msunduzi | C112: Kwazulu-Natal
B113: KZN226 Mkhambathini | C113: Kwazulu-Natal
B114: KZN227 Richmond | C114: Kwazulu-Natal
B115: DC22 uMgungundlovu | C115: Kwazulu-Natal
B116: KZN235 Okhahlamba | C116: Kwazulu-Natal
B117: KZN237 Inkosi Langalibalele | C117: Kwazulu-Natal
B118: KZN238 Alfred Duma | C118: Kwazulu-Natal
B119: DC23 Uthukela | C119: Kwazulu-Natal
B120: KZN241 Endumeni | C120: Kwazulu-Natal
B121: KZN242 Nquthu | C121: Kwazulu-Natal
B122: KZN244 Msinga | C122: Kwazulu-Natal
B123: KZN245 Umvoti | C123: Kwazulu-Natal
B124: DC24 Umzinyathi | C124: Kwazulu-Natal
B125: KZN252 Newcastle | C125: Kwazulu-Natal
B126: KZN253 eMadlangeni | C126: Kwazulu-Natal
B127: KZN254 Dannhauser | C127: Kwazulu-Natal
B128: DC25 Amajuba | C128: Kwazulu-Natal
B129: KZN261 eDumbe | C129: Kwazulu-Natal
B130: KZN262 uPhongolo | C130: Kwazulu-Natal
B131: KZN263 Abaqulusi | C131: Kwazulu-Natal
B132: KZN265 Nongoma | C132: Kwazulu-Natal
B133: KZN266 Ulundi | C133: Kwazulu-Natal
B134: DC26 Zululand | C134: Kwazulu-Natal
B135: KZN271 Umhlabuyalingana | C135: Kwazulu-Natal
B136: KZN272 Jozini | C136: Kwazulu-Natal
B137: KZN275 Mtubatuba | C137: Kwazulu-Natal
B138: KZN276 The New Big 5 False Bay | C138: Kwazulu-Natal
B139: DC27 Umkhanyakude | C139: Kwazulu-Natal
B140: KZN281 Mfolozi | C140: Kwazulu-Natal
B141: KZN282 uMhlathuze | C141: Kwazulu-Natal
B142: KZN284 uMlalazi | C142: Kwazulu-Natal
B143: KZN285 Mthonjaneni | C143: Kwazulu-Natal
B144: KZN286 Nkandla | C144: Kwazulu-Natal
B145: DC28 King Cetshwayo | C145: Kwazulu-Natal
B146: KZN291 Mandeni | C146: Kwazulu-Natal
B147: KZN292 KwaDukuza | C147: Kwazulu-Natal
B148: KZN293 Ndwedwe | C148: Kwazulu-Natal
B149: KZN294 Maphumulo | C149: Kwazulu-Natal
B150: DC29 iLembe | C150: Kwazulu-Natal
B151: KZN433 Greater Kokstad | C151: Kwazulu-Natal
B152: KZN434 Ubuhlebezwe | C152: Kwazulu-Natal
B153: KZN435 Umzimkhulu | C153: Kwazulu-Natal
B154: KZN436 Dr Nkosazana Dlamini Zuma | C154: Kwazulu-Natal
B155: DC43 Harry Gwala | C155: Kwazulu-Natal
B156: LIM331 Greater Giyani | C156: Limpopo
B157: LIM332 Greater Letaba | C157: Limpopo
B158: LIM333 Greater Tzaneen | C158: Limpopo
B159: LIM334 Ba-Phalaborwa | C159: Limpopo
B160: LIM335 Maruleng | C160: Limpopo
B161: DC33 Mopani | C161: Limpopo
B162: LIM341 Musina | C162: Limpopo
B163: LIM343 Thulamela | C163: Limpopo
B164: LIM344 Makhado | C164: Limpopo
B165: LIM345 LIM345 | C165: Limpopo
B166: DC34 Vhembe | C166: Limpopo
B167: LIM351 Blouberg | C167: Limpopo
B168: LIM353 Molemole | C168: Limpopo
B169: LIM354 Polokwane | C169: Limpopo
B170: LIM355 Lepelle-Nkumpi | C170: Limpopo
B171: DC35 Capricorn | C171: Limpopo
B172: LIM361 Thabazimbi | C172: Limpopo
B173: LIM362 Lephalale | C173: Limpopo
B174: LIM366 Bela Bela | C174: Limpopo
B175: LIM367 Mogalakwena | C175: Limpopo
B176: LIM368 LIM368 | C176: Limpopo
B177: DC36 Waterberg | C177: Limpopo
B178: LIM471 Ephraim Mogale | C178: Limpopo
B179: LIM472 Elias Motsoaledi | C179: Limpopo
B180: LIM473 Makhuduthamaga | C180: Limpopo
B181: LIM476 LIM476 | C181: Limpopo
B182: DC47 Sekhukhune | C182: Limpopo
B183: MP301 Albert Luthuli | C183: Mpumalanga
B184: MP302 Msukaligwa | C184: Mpumalanga
B185: MP303 Mkhondo | C185: Mpumalanga
B186: MP304 Pixley Ka Seme (MP) | C186: Mpumalanga
B187: MP305 Lekwa | C187: Mpumalanga
B188: MP306 Dipaleseng | C188: Mpumalanga
B189: MP307 Govan Mbeki | C189: Mpumalanga
B190: DC30 Gert Sibande | C190: Mpumalanga
B191: MP311 Victor Khanye | C191: Mpumalanga
B192: MP312 Emalahleni (Mp) | C192: Mpumalanga
B193: MP313 Steve Tshwete | C193: Mpumalanga
B194: MP314 Emakhazeni | C194: Mpumalanga
B195: MP315 Thembisile Hani | C195: Mpumalanga
B196: MP316 Dr J.S. Moroka | C196: Mpumalanga
B197: DC31 Nkangala | C197: Mpumalanga
B198: MP321 Thaba Chweu | C198: Mpumalanga
B199: MP324 Nkomazi | C199: Mpumalanga
B200: MP325 Bushbuckridge | C200: Mpumalanga
B201: MP326 City of Mbombela | C201: Mpumalanga
B202: DC32 Ehlanzeni | C202: Mpumalanga
B203: NC451 Joe Morolong | C203: Northern Cape
B204: NC452 Ga-Segonyana | C204: Northern Cape
B205: NC453 Gamagara | C205: Northern Cape
B206: DC45 John Taolo Gaetsewe | C206: Northern Cape
B207: NC061 Richtersveld | C207: Northern Cape
B208: NC062 Nama Khoi | C208: Northern Cape
B209: NC064 Kamiesberg | C209: Northern Cape
B210: NC065 Hantam | C210: Northern Cape
B211: NC066 Karoo Hoogland | C211: Northern Cape
B212: NC067 Khai-Ma | C212: Northern Cape
B213: DC6 Namakwa | C213: Northern Cape
... 73 more rows

Sheet Org structure
A1: Organisational Structure Votes | C1: Organisational Structure Sub-Votes | E1: Display Sub-Votes
A2: =B2&" - "&C2 -> Vote 1 - Executive and council | B2: Vote 1 | C2: Executive and council
A3: =B13&" - "& C13 -> Vote 2 - Corporate Services | B3: 1.1 | C3: [Name of sub-vote] | D3: =CONCATENATE(B3, " - ", C3) -> 1.1 - [Name of sub-vote] | E3: 1.1 - [Name of sub-vote]
A4: =B24&" - "&C24 -> Vote 3 - Budget and Treasury | B4: 1.2 | C4: [Name of sub-vote] | D4: 1.2 - [Name of sub-vote]
A5: =B35&" - "&C35 -> Vote 4 - PEDTA | B5: 1.3 | C5: [Name of sub-vote] | D5: 1.3 - [Name of sub-vote]
A6: =B46&" - "&C46 -> Vote 5 - Community Services and Social Services | B6: 1.4 | C6: [Name of sub-vote] | D6: 1.4 - [Name of sub-vote]
A7: =B57&" - "&C57 -> Vote 6 - Infrastructure Development and Human Settlement | B7: 1.5 | C7: [Name of sub-vote] | D7: 1.5 - [Name of sub-vote]
A8: =B68&" - "&C68 -> Vote 7 - COMMUNITY & SOCIAL SERVICES | B8: 1.6 | C8: [Name of sub-vote] | D8: 1.6 - [Name of sub-vote]
A9: =B79&" - "&C79 -> Vote 8 - [NAME OF VOTE 8] | B9: 1.7 | C9: [Name of sub-vote] | D9: 1.7 - [Name of sub-vote]
A10: =B90&" - "&C90 -> Vote 9 - [NAME OF VOTE 9] | B10: 1.8 | C10: [Name of sub-vote] | D10: 1.8 - [Name of sub-vote]
A11: =B101&" - "&C101 -> Vote 10 - [NAME OF VOTE 10] | B11: 1.9 | C11: [Name of sub-vote] | D11: 1.9 - [Name of sub-vote]
A12: =B112&" - "&C112 -> Vote 11 - [NAME OF VOTE 11] | B12: 1.10 | C12: [Name of sub-vote] | D12: 1.10 - [Name of sub-vote]
A13: =B123&" - "&C123 -> Vote 12 - [NAME OF VOTE 12] | B13: Vote 2 | C13: Corporate Services
A14: =B134&" - "&C134 -> Vote 13 - [NAME OF VOTE 13] | B14: 2.1 | C14: [Name of sub-vote] | D14: =CONCATENATE(B14, " - ", C14) -> 2.1 - [Name of sub-vote] | E14: 2.1 - [Name of sub-vote]
A15: =B145&" - "&C145 -> Vote 14 - [NAME OF VOTE 14] | B15: 2.2 | C15: [Name of sub-vote] | D15: 2.2 - [Name of sub-vote]
A16: =B156&" - "&C156 -> Vote 15 - [NAME OF VOTE 15] | B16: 2.3 | C16: [Name of sub-vote] | D16: 2.3 - [Name of sub-vote]
B17: 2.4 | C17: [Name of sub-vote] | D17: 2.4 - [Name of sub-vote]
B18: 2.5 | C18: [Name of sub-vote] | D18: 2.5 - [Name of sub-vote]
B19: 2.6 | C19: [Name of sub-vote] | D19: 2.6 - [Name of sub-vote]
B20: 2.7 | C20: [Name of sub-vote] | D20: 2.7 - [Name of sub-vote]
B21: 2.8 | C21: [Name of sub-vote] | D21: 2.8 - [Name of sub-vote]
B22: 2.9 | C22: [Name of sub-vote] | D22: 2.9 - [Name of sub-vote]
B23: 2.10 | C23: [Name of sub-vote] | D23: 2.10 - [Name of sub-vote]
B24: Vote 3 | C24: Budget and Treasury
B25: 3.1 | C25: [Name of sub-vote] | D25: =CONCATENATE(B25, " - ", C25) -> 3.1 - [Name of sub-vote] | E25: 3.1 - [Name of sub-vote]
B26: 3.2 | C26: [Name of sub-vote] | D26: 3.2 - [Name of sub-vote]
B27: 3.3 | C27: [Name of sub-vote] | D27: 3.3 - [Name of sub-vote]
B28: 3.4 | C28: [Name of sub-vote] | D28: 3.4 - [Name of sub-vote]
B29: 3.5 | C29: [Name of sub-vote] | D29: 3.5 - [Name of sub-vote]
B30: 3.6 | C30: [Name of sub-vote] | D30: 3.6 - [Name of sub-vote]
B31: 3.7 | C31: [Name of sub-vote] | D31: 3.7 - [Name of sub-vote]
B32: 3.8 | C32: [Name of sub-vote] | D32: 3.8 - [Name of sub-vote]
B33: 3.9 | C33: [Name of sub-vote] | D33: 3.9 - [Name of sub-vote]
B34: 3.10 | C34: [Name of sub-vote] | D34: 3.10 - [Name of sub-vote]
B35: Vote 4 | C35: PEDTA
B36: 4.1 | C36: [Name of sub-vote] | D36: =CONCATENATE(B36, " - ", C36) -> 4.1 - [Name of sub-vote] | E36: 4.1 - [Name of sub-vote]
B37: 4.2 | C37: [Name of sub-vote] | D37: 4.2 - [Name of sub-vote]
B38: 4.3 | C38: [Name of sub-vote] | D38: 4.3 - [Name of sub-vote]
B39: 4.4 | C39: [Name of sub-vote] | D39: 4.4 - [Name of sub-vote]
B40: 4.5 | C40: [Name of sub-vote] | D40: 4.5 - [Name of sub-vote]
B41: 4.6 | C41: [Name of sub-vote] | D41: 4.6 - [Name of sub-vote]
B42: 4.7 | C42: [Name of sub-vote] | D42: 4.7 - [Name of sub-vote]
B43: 4.8 | C43: [Name of sub-vote] | D43: 4.8 - [Name of sub-vote]
B44: 4.9 | C44: [Name of sub-vote] | D44: 4.9 - [Name of sub-vote]
B45: 4.10 | C45: [Name of sub-vote] | D45: 4.10 - [Name of sub-vote]
B46: Vote 5 | C46: Community Services and Social Services
B47: 5.1 | C47: [Name of sub-vote] | D47: =CONCATENATE(B47, " - ", C47) -> 5.1 - [Name of sub-vote] | E47: 5.1 - [Name of sub-vote]
B48: 5.2 | C48: [Name of sub-vote] | D48: 5.2 - [Name of sub-vote]
B49: 5.3 | C49: [Name of sub-vote] | D49: 5.3 - [Name of sub-vote]
B50: 5.4 | C50: [Name of sub-vote] | D50: 5.4 - [Name of sub-vote]
B51: 5.5 | C51: [Name of sub-vote] | D51: 5.5 - [Name of sub-vote]
B52: 5.6 | C52: [Name of sub-vote] | D52: 5.6 - [Name of sub-vote]
B53: 5.7 | C53: [Name of sub-vote] | D53: 5.7 - [Name of sub-vote]
B54: 5.8 | C54: [Name of sub-vote] | D54: 5.8 - [Name of sub-vote]
B55: 5.9 | C55: [Name of sub-vote] | D55: 5.9 - [Name of sub-vote]
B56: 5.10 | C56: [Name of sub-vote] | D56: 5.10 - [Name of sub-vote]
B57: Vote 6 | C57: Infrastructure Development and Human Settlement
B58: 6.1 | C58: [Name of sub-vote] | D58: =CONCATENATE(B58, " - ", C58) -> 6.1 - [Name of sub-vote] | E58: 6.1 - [Name of sub-vote]
B59: 6.2 | C59: [Name of sub-vote] | D59: 6.2 - [Name of sub-vote]
B60: 6.3 | C60: [Name of sub-vote] | D60: 6.3 - [Name of sub-vote]
B61: 6.4 | C61: [Name of sub-vote] | D61: 6.4 - [Name of sub-vote]
B62: 6.5 | C62: [Name of sub-vote] | D62: 6.5 - [Name of sub-vote]
B63: 6.6 | C63: [Name of sub-vote] | D63: 6.6 - [Name of sub-vote]
B64: 6.7 | C64: [Name of sub-vote] | D64: 6.7 - [Name of sub-vote]
B65: 6.8 | C65: [Name of sub-vote] | D65: 6.8 - [Name of sub-vote]
B66: 6.9 | C66: [Name of sub-vote] | D66: 6.9 - [Name of sub-vote]
B67: 6.10 | C67: [Name of sub-vote] | D67: 6.10 - [Name of sub-vote]
B68: Vote 7 | C68: COMMUNITY & SOCIAL SERVICES
B69: 7.1 | C69: [Name of sub-vote] | D69: =CONCATENATE(B69, " - ", C69) -> 7.1 - [Name of sub-vote] | E69: 7.1 - [Name of sub-vote]
B70: 7.2 | C70: [Name of sub-vote] | D70: 7.2 - [Name of sub-vote]
B71: 7.3 | C71: [Name of sub-vote] | D71: 7.3 - [Name of sub-vote]
B72: 7.4 | C72: [Name of sub-vote] | D72: 7.4 - [Name of sub-vote]
B73: 7.5 | C73: [Name of sub-vote] | D73: 7.5 - [Name of sub-vote]
B74: 7.6 | C74: [Name of sub-vote] | D74: 7.6 - [Name of sub-vote]
B75: 7.7 | C75: [Name of sub-vote] | D75: 7.7 - [Name of sub-vote]
B76: 7.8 | C76: [Name of sub-vote] | D76: 7.8 - [Name of sub-vote]
B77: 7.9 | C77: [Name of sub-vote] | D77: 7.9 - [Name of sub-vote]
B78: 7.10 | C78: [Name of sub-vote] | D78: 7.10 - [Name of sub-vote]
B79: Vote 8 | C79: [NAME OF VOTE 8]
B80: 8.1 | C80: [Name of sub-vote] | D80: =CONCATENATE(B80, " - ", C80) -> 8.1 - [Name of sub-vote] | E80: 8.1 - [Name of sub-vote]
B81: 8.2 | C81: [Name of sub-vote] | D81: 8.2 - [Name of sub-vote]
B82: 8.3 | C82: [Name of sub-vote] | D82: 8.3 - [Name of sub-vote]
B83: 8.4 | C83: [Name of sub-vote] | D83: 8.4 - [Name of sub-vote]
B84: 8.5 | C84: [Name of sub-vote] | D84: 8.5 - [Name of sub-vote]
B85: 8.6 | C85: [Name of sub-vote] | D85: 8.6 - [Name of sub-vote]
B86: 8.7 | C86: [Name of sub-vote] | D86: 8.7 - [Name of sub-vote]
B87: 8.8 | C87: [Name of sub-vote] | D87: 8.8 - [Name of sub-vote]
B88: 8.9 | C88: [Name of sub-vote] | D88: 8.9 - [Name of sub-vote]
B89: 8.10 | C89: [Name of sub-vote] | D89: 8.10 - [Name of sub-vote]
B90: Vote 9 | C90: [NAME OF VOTE 9]
B91: 9.1 | C91: [Name of sub-vote] | D91: =CONCATENATE(B91, " - ", C91) -> 9.1 - [Name of sub-vote] | E91: 9.1 - [Name of sub-vote]
B92: 9.2 | C92: [Name of sub-vote] | D92: 9.2 - [Name of sub-vote]
B93: 9.3 | C93: [Name of sub-vote] | D93: 9.3 - [Name of sub-vote]
B94: 9.4 | C94: [Name of sub-vote] | D94: 9.4 - [Name of sub-vote]
B95: 9.5 | C95: [Name of sub-vote] | D95: 9.5 - [Name of sub-vote]
B96: 9.6 | C96: [Name of sub-vote] | D96: 9.6 - [Name of sub-vote]
B97: 9.7 | C97: [Name of sub-vote] | D97: 9.7 - [Name of sub-vote]
B98: 9.8 | C98: [Name of sub-vote] | D98: 9.8 - [Name of sub-vote]
B99: 9.9 | C99: [Name of sub-vote] | D99: 9.9 - [Name of sub-vote]
B100: 9.10 | C100: [Name of sub-vote] | D100: 9.10 - [Name of sub-vote]
B101: Vote 10 | C101: [NAME OF VOTE 10]
B102: 10.1 | C102: [Name of sub-vote] | D102: =CONCATENATE(B102, " - ", C102) -> 10.1 - [Name of sub-vote] | E102: 10.1 - [Name of sub-vote]
B103: 10.2 | C103: [Name of sub-vote] | D103: 10.2 - [Name of sub-vote]
B104: 10.3 | C104: [Name of sub-vote] | D104: 10.3 - [Name of sub-vote]
B105: 10.4 | C105: [Name of sub-vote] | D105: 10.4 - [Name of sub-vote]
B106: 10.5 | C106: [Name of sub-vote] | D106: 10.5 - [Name of sub-vote]
B107: 10.6 | C107: [Name of sub-vote] | D107: 10.6 - [Name of sub-vote]
B108: 10.7 | C108: [Name of sub-vote] | D108: 10.7 - [Name of sub-vote]
B109: 10.8 | C109: [Name of sub-vote] | D109: 10.8 - [Name of sub-vote]
B110: 10.9 | C110: [Name of sub-vote] | D110: 10.9 - [Name of sub-vote]
B111: 10.10 | C111: [Name of sub-vote] | D111: 10.10 - [Name of sub-vote]
B112: Vote 11 | C112: [NAME OF VOTE 11]
B113: 11.1 | C113: [Name of sub-vote] | D113: =CONCATENATE(B113, " - ", C113) -> 11.1 - [Name of sub-vote] | E113: 11.1 - [Name of sub-vote]
B114: 11.2 | C114: [Name of sub-vote] | D114: 11.2 - [Name of sub-vote]
B115: 11.3 | C115: [Name of sub-vote] | D115: 11.3 - [Name of sub-vote]
B116: 11.4 | C116: [Name of sub-vote] | D116: 11.4 - [Name of sub-vote]
B117: 11.5 | C117: [Name of sub-vote] | D117: 11.5 - [Name of sub-vote]
B118: 11.6 | C118: [Name of sub-vote] | D118: 11.6 - [Name of sub-vote]
B119: 11.7 | C119: [Name of sub-vote] | D119: 11.7 - [Name of sub-vote]
B120: 11.8 | C120: [Name of sub-vote] | D120: 11.8 - [Name of sub-vote]
B121: 11.9 | C121: [Name of sub-vote] | D121: 11.9 - [Name of sub-vote]
B122: 11.10 | C122: [Name of sub-vote] | D122: 11.10 - [Name of sub-vote]
B123: Vote 12 | C123: [NAME OF VOTE 12]
B124: 12.1 | C124: [Name of sub-vote] | D124: =CONCATENATE(B124, " - ", C124) -> 12.1 - [Name of sub-vote] | E124: 12.1 - [Name of sub-vote]
B125: 12.2 | C125: [Name of sub-vote] | D125: 12.2 - [Name of sub-vote]
B126: 12.3 | C126: [Name of sub-vote] | D126: 12.3 - [Name of sub-vote]
B127: 12.4 | C127: [Name of sub-vote] | D127: 12.4 - [Name of sub-vote]
B128: 12.5 | C128: [Name of sub-vote] | D128: 12.5 - [Name of sub-vote]
B129: 12.6 | C129: [Name of sub-vote] | D129: 12.6 - [Name of sub-vote]
B130: 12.7 | C130: [Name of sub-vote] | D130: 12.7 - [Name of sub-vote]
B131: 12.8 | C131: [Name of sub-vote] | D131: 12.8 - [Name of sub-vote]
B132: 12.9 | C132: [Name of sub-vote] | D132: 12.9 - [Name of sub-vote]
B133: 12.10 | C133: [Name of sub-vote] | D133: 12.10 - [Name of sub-vote]
B134: Vote 13 | C134: [NAME OF VOTE 13]
B135: 13.1 | C135: [Name of sub-vote] | D135: =CONCATENATE(B135, " - ", C135) -> 13.1 - [Name of sub-vote] | E135: 13.1 - [Name of sub-vote]
B136: 13.2 | C136: [Name of sub-vote] | D136: 13.2 - [Name of sub-vote]
B137: 13.3 | C137: [Name of sub-vote] | D137: 13.3 - [Name of sub-vote]
B138: 13.4 | C138: [Name of sub-vote] | D138: 13.4 - [Name of sub-vote]
B139: 13.5 | C139: [Name of sub-vote] | D139: 13.5 - [Name of sub-vote]
B140: 13.6 | C140: [Name of sub-vote] | D140: 13.6 - [Name of sub-vote]
B141: 13.7 | C141: [Name of sub-vote] | D141: 13.7 - [Name of sub-vote]
B142: 13.8 | C142: [Name of sub-vote] | D142: 13.8 - [Name of sub-vote]
B143: 13.9 | C143: [Name of sub-vote] | D143: 13.9 - [Name of sub-vote]
B144: 13.10 | C144: [Name of sub-vote] | D144: 13.10 - [Name of sub-vote]
B145: Vote 14 | C145: [NAME OF VOTE 14]
B146: 14.1 | C146: [Name of sub-vote] | D146: =CONCATENATE(B146, " - ", C146) -> 14.1 - [Name of sub-vote] | E146: 14.1 - [Name of sub-vote]
B147: 14.2 | C147: [Name of sub-vote] | D147: 14.2 - [Name of sub-vote]
B148: 14.3 | C148: [Name of sub-vote] | D148: 14.3 - [Name of sub-vote]
B149: 14.4 | C149: [Name of sub-vote] | D149: 14.4 - [Name of sub-vote]
B150: 14.5 | C150: [Name of sub-vote] | D150: 14.5 - [Name of sub-vote]
B151: 14.6 | C151: [Name of sub-vote] | D151: 14.6 - [Name of sub-vote]
B152: 14.7 | C152: [Name of sub-vote] | D152: 14.7 - [Name of sub-vote]
B153: 14.8 | C153: [Name of sub-vote] | D153: 14.8 - [Name of sub-vote]
B154: 14.9 | C154: [Name of sub-vote] | D154: 14.9 - [Name of sub-vote]
B155: 14.10 | C155: [Name of sub-vote] | D155: 14.10 - [Name of sub-vote]
B156: Vote 15 | C156: [NAME OF VOTE 15]
B157: 15.1 | C157: [Name of sub-vote] | D157: =CONCATENATE(B157, " - ", C157) -> 15.1 - [Name of sub-vote] | E157: 15.1 - [Name of sub-vote]
B158: 15.2 | C158: [Name of sub-vote] | D158: 15.2 - [Name of sub-vote]
B159: 15.3 | C159: [Name of sub-vote] | D159: 15.3 - [Name of sub-vote]
B160: 15.4 | C160: [Name of sub-vote] | D160: 15.4 - [Name of sub-vote]
B161: 15.5 | C161: [Name of sub-vote] | D161: 15.5 - [Name of sub-vote]
B162: 15.6 | C162: [Name of sub-vote] | D162: 15.6 - [Name of sub-vote]
B163: 15.7 | C163: [Name of sub-vote] | D163: 15.7 - [Name of sub-vote]
B164: 15.8 | C164: [Name of sub-vote] | D164: 15.8 - [Name of sub-vote]
B165: 15.9 | C165: [Name of sub-vote] | D165: 15.9 - [Name of sub-vote]
B166: 15.10 | C166: [Name of sub-vote] | D166: 15.10 - [Name of sub-vote]

Sheet Contacts
A1: =muni&" - "&" Contact Information" -> EC136 Emalahleni (Ec) - Contact Information
A3: A. GENERAL INFORMATION
A4: Municipality | B4: =muni -> EC136 Emalahleni (Ec) | C4: Set name on 'Instructions' sheet
A6: Grade | B6: 2 | C6: 1 Grade in terms of the Remuneration of Public Office Bearers Act.
A8: Province | B8: =IF(B4>" ",VLOOKUP(B4,'Lookup and lists'!B28:C311,2, FALSE)," ") -> Eastern Cape
A10: Web Address | B10: www.emalahlenilm.gov.za
A12: e-mail Address | B12: admin@emalahlenilm.gov.za
A14: B. CONTACT INFORMATION
A15: Postal address:
A16: P.O. Box | B16: Private Bag X1161
A17: City / Town | B17: Lady Frere
A18: Postal Code | B18: 5410
A20: Street address
A21: Building | B21: 37
A22: Street No. & Name | B22: Indwe Road
A23: City / Town | B23: Lady Frere
A24: Postal Code | B24: 5410
A26: General Contacts
A27: Telephone number | B27: 047 878 2000
A28: Fax number | B28: 047 878 0112
A30: C. POLITICAL LEADERSHIP
A31: Speaker: | C31: Secretary/PA to the Speaker:
A32: ID Number | B32: 650226 5670 082 | C32: ID Number | D32: 720929 0426 089
A33: Title | B33: Mr | C33: Title | D33: Mrs
A34: Name | B34: D S Kalolo | C34: Name | D34: V Yawa
A35: Telephone number | B35: 047 878 0020 | C35: Telephone number | D35: 047 878 2054
A36: Cell number | B36: 079 917 4715 | C36: Cell number | D36: 072 143 7388
A37: Fax number | B37: 047 878 0112 | C37: Fax number | D37: 047 878 0112
A38: E-mail address | B38: kalolod@emalahlenilm.gov.za | C38: E-mail address | D38: yawav@emalahlenilm.gov.za
A40: Mayor/Executive Mayor: | C40: Secretary/PA to the Mayor/Executive Mayor:
A41: ID Number | C41: ID Number | D41: 810711 0878 084
A42: Title | B42: MS | C42: Title | D42: Ms
A43: Name | B43: N. Koni | C43: Name | D43: A Ngqola
A44: Telephone number | B44: 047 878 2000 | C44: Telephone number | D44: 047 878 2014
A45: Cell number | B45: 078 880 2843 | C45: Cell number | D45: 071 451 6724
A46: Fax number | B46: 047 878 0112 | C46: Fax number | D46: 047 878 0112
A47: E-mail address | B47: konin@emalahlenilm.gov.za | C47: E-mail address | D47: ngqolaa@emalahlenilm.gov.za
A49: Deputy Mayor/Executive Mayor: | C49: Secretary/PA to the Deputy Mayor/Executive Mayor:
A50: ID Number | C50: ID Number
A51: Title | C51: Title
A52: Name | C52: Name
A53: Telephone number | C53: Telephone number
A54: Cell number | C54: Cell number
A55: Fax number | C55: Fax number
A56: E-mail address | C56: E-mail address
A58: D. MANAGEMENT LEADERSHIP
A59: Municipal Manager: | C59: Secretary/PA to the Municipal Manager:
A60: ID Number | B60: 670428 5437 084 | C60: ID Number | D60: 740921 0885 089
A61: Title | B61: Mr | C61: Title | D61: Mrs
A62: Name | B62: Gerald De Jager - ACTING | C62: Name | D62: N Mrwebi
A63: Telephone number | B63: 047 878 2011 | C63: Telephone number | D63: 047 878 0020
A64: Cell number | B64: 082 336 6315 | C64: Cell number | D64: 072 043 9003
A65: Fax number | B65: 047 878 0112 | C65: Fax number | D65: 047 878 0112
A66: E-mail address | B66: dejagerg@emalahlenilm.gov.za | C66: E-mail address | D66: mrwebin@emalahlenilm.gov.za
A68: Chief Financial Officer | C68: Secretary/PA to the Chief Financial Officer
A69: ID Number | B69: 8004285269084 | C69: ID Number | D69: 780910 0685 087
A70: Title | B70: Mr | C70: Title | D70: Ms
A71: Name | B71: A. Zindlu - ACTING | C71: Name | D71: S Bizwaphi
A72: Telephone number | B72: 047-8782080 | C72: Telephone number | D72: 047 878 2038
A73: Cell number | B73: 079-608 8466 | C73: Cell number | D73: 072 325 2834
A74: Fax number | B74: 047 878 0112 | C74: Fax number | D74: 047 878 0112
A75: E-mail address | B75: dejagerg@emalahlenilm.gov.za | C75: E-mail address | D75: bizwapis@emalahlenilm.gov.za
A77: Official responsible for submitting financial information | C77: Official responsible for submitting financial information
A78: ID Number | B78: 770308 0956 081 | C78: ID Number | D78: 840127 0728 084
A79: Title | B79: Ms | C79: Title | D79: Mrs
A80: Name | B80: P Manakaza | C80: Name | D80: N Ngeva-Mbotyi
A81: Telephone number | B81: 047 878 0020 | C81: Telephone number | D81: 047 878 2062
A82: Cell number | B82: 073 393 9374 | C82: Cell number | D82: 073 363 3647
A83: Fax number | B83: 047 878 0112 | C83: Fax number | D83: 047 878 0112
A84: E-mail address | B84: mankazap@emalahlenilm.gov.za | C84: E-mail address | D84: ngevan@emalahlenilm.gov.za
A85: Official responsible for submitting financial information | C85: Official responsible for submitting financial information
A86: ID Number | B86: 870922 5925 088 | C86: ID Number
A87: Title | B87: Mr | C87: Title
A88: Name | B88: M Ngxowa | C88: Name
A89: Telephone number | B89: 047 878 2042 | C89: Telephone number
A90: Cell number | B90: 078 426 6097 | C90: Cell number
A91: Fax number | B91: 047 878 0112 | C91: Fax number
A92: E-mail address | B92: ngxowam@emalahlenilm.gov.za | C92: E-mail address
A93: Official responsible for submitting financial information | C93: Official responsible for submitting financial information
A94: ID Number | C94: ID Number
A95: Title | C95: Title
A96: Name | C96: Name
A97: Telephone number | C97: Telephone number
A98: Cell number | C98: Cell number
A99: Fax number | C99: Fax number
A100: E-mail address | C100: E-mail address
A101: Official responsible for submitting financial information | C101: Official responsible for submitting financial information
A102: ID Number | C102: ID Number
A103: Title | C103: Title
A104: Name | C104: Name
A105: Telephone number | C105: Telephone number
A106: Cell number | C106: Cell number
A107: Fax number | C107: Fax number
A108: E-mail address | C108: E-mail address
A109: Official responsible for submitting financial information | C109: Official responsible for submitting financial information
A110: ID Number | C110: ID Number
A111: Title | C111: Title
A112: Name | C112: Name
A113: Telephone number | C113: Telephone number
A114: Cell number | C114: Cell number
A115: Fax number | C115: Fax number
A116: E-mail address | C116: E-mail address
A117: Official responsible for submitting financial information | C117: Official responsible for submitting financial information
A118: ID Number | C118: ID Number
A119: Title | C119: Title
A120: Name | C120: Name
A121: Telephone number | C121: Telephone number
A122: Cell number | C122: Cell number
A123: Fax number | C123: Fax number
A124: E-mail address | C124: E-mail address
A125: Official responsible for submitting financial information | C125: Official responsible for submitting financial information
A126: ID Number | C126: ID Number
A127: Title | C127: Title
A128: Name | C128: Name
A129: Telephone number | C129: Telephone number
A130: Cell number | C130: Cell number
A131: Fax number | C131: Fax number
A132: E-mail address | C132: E-mail address
A133: Official responsible for submitting financial information
A134: ID Number
A135: Title
A136: Name
A137: Telephone number
A138: Cell number
A139: Fax number
A140: E-mail address

Sheet C1-Sum
A1: =muni& " - "&s71sum& " - "&date -> EC136 Emalahleni (Ec) - Table C1 Monthly Budget Statement Summary - M12 June
A2: =desc -> Description | B2: =Head1 -> 2017/18 | C2: =Head2 -> Budget Year 2018/19
B3: =Head5 -> Audited Outcome | C3: =Head6 -> Original Budget | D3: =Head7 -> Adjusted Budget | E3: =Head38 -> Monthly actual | F3: =Head39 -> YearTD actual | G3: =Head40 -> YearTD budget | H3: =Head41 -> YTD variance | I3: =Head41 -> YTD variance | J3: =Head8 -> Full Year Forecast
A4: R thousands | I4: %
A5: Financial Performance
A6: Property rates | B6: =SUM('C4-FinPerf RE'!C6:C6) -> 0 | C6: =SUM('C4-FinPerf RE'!D6:D6) -> 4549700 | D6: =SUM('C4-FinPerf RE'!E6:E6) -> 4549700 | E6: =SUM('C4-FinPerf RE'!F6:F6) -> 0 | F6: =SUM('C4-FinPerf RE'!G6:G6) -> 5382209.71 | G6: =SUM('C4-FinPerf RE'!H6:H6) -> 4549700 | H6: =F6-G6 -> 832509.71 | I6: =IF(H6=0,"",H6/G6) -> 0.1829812317 | J6: =SUM('C4-FinPerf RE'!K6:K6) -> 4549700
A7: Service charges | B7: =SUM('C4-FinPerf RE'!C7:C11) -> 0 | C7: =SUM('C4-FinPerf RE'!D7:D11) -> 21970318 | D7: =SUM('C4-FinPerf RE'!E7:E11) -> 21970318 | E7: =SUM('C4-FinPerf RE'!F7:F11) -> 725236.02 | F7: =SUM('C4-FinPerf RE'!G7:G11) -> 20342373.85 | G7: =SUM('C4-FinPerf RE'!H7:H11) -> 21970319 | H7: =F7-G7 -> -1627945.15 | I7: =IF(H7=0,"",H7/G7) -> -0.07409747442 | J7: =SUM('C4-FinPerf RE'!K7:K11) -> 21970318
A8: Investment revenue | B8: ='C4-FinPerf RE'!C13 -> 0 | C8: ='C4-FinPerf RE'!D13 -> 1045454 | D8: ='C4-FinPerf RE'!E13 -> 1045454 | E8: ='C4-FinPerf RE'!F13 -> 114818.3 | F8: ='C4-FinPerf RE'!G13 -> 660660.28 | G8: ='C4-FinPerf RE'!H13 -> 1045454 | H8: =F8-G8 -> -384793.72 | I8: =IF(H8=0,"",H8/G8) -> -0.3680637503 | J8: ='C4-FinPerf RE'!K13 -> 1045454
A9: Transfers and subsidies | B9: ='C4-FinPerf RE'!C19 -> 0 | C9: ='C4-FinPerf RE'!D19 -> 126886100 | D9: ='C4-FinPerf RE'!E19 -> 126886100 | E9: ='C4-FinPerf RE'!F19 -> 0 | F9: ='C4-FinPerf RE'!G19 -> 158568740.2 | G9: ='C4-FinPerf RE'!H19 -> 126886100 | H9: =F9-G9 -> 31682640.18 | I9: =IF(H9=0,"",H9/G9) -> 0.2496935455 | J9: ='C4-FinPerf RE'!K19 -> 126886100
A10: Other own revenue | B10: ='C4-FinPerf RE'!C12+'C4-FinPerf RE'!C14+'C4-FinPerf RE'!C15+'C4-FinPerf RE'!C16+'C4-FinPerf RE'!C17+'C4-FinPerf RE'!C18+'C4-FinPerf RE'!C20+'C4-FinPerf RE'!C21 -> 0 | C10: ='C4-FinPerf RE'!D12+'C4-FinPerf RE'!D14+'C4-FinPerf RE'!D15+'C4-FinPerf RE'!D16+'C4-FinPerf RE'!D17+'C4-FinPerf RE'!D18+'C4-FinPerf RE'!D20+'C4-FinPerf RE'!D21 -> 12934181 | D10: ='C4-FinPerf RE'!E12+'C4-FinPerf RE'!E14+'C4-FinPerf RE'!E15+'C4-FinPerf RE'!E16+'C4-FinPerf RE'!E17+'C4-FinPerf RE'!E18+'C4-FinPerf RE'!E20+'C4-FinPerf RE'!E21 -> 12934181 | E10: ='C4-FinPerf RE'!F12+'C4-FinPerf RE'!F14+'C4-FinPerf RE'!F15+'C4-FinPerf RE'!F16+'C4-FinPerf RE'!F17+'C4-FinPerf RE'!F18+'C4-FinPerf RE'!F20+'C4-FinPerf RE'!F21 -> 253636.17 | F10: ='C4-FinPerf RE'!G12+'C4-FinPerf RE'!G14+'C4-FinPerf RE'!G15+'C4-FinPerf RE'!G16+'C4-FinPerf RE'!G17+'C4-FinPerf RE'!G18+'C4-FinPerf RE'!G20+'C4-FinPerf RE'!G21 -> 12263811.51 | G10: ='C4-FinPerf RE'!H12+'C4-FinPerf RE'!H14+'C4-FinPerf RE'!H15+'C4-FinPerf RE'!H16+'C4-FinPerf RE'!H17+'C4-FinPerf RE'!H18+'C4-FinPerf RE'!H20+'C4-FinPerf RE'!H21 -> 12934181 | H10: =F10-G10 -> -670369.49 | I10: =IF(H10=0,"",H10/G10) -> -0.05182929557 | J10: ='C4-FinPerf RE'!K12+'C4-FinPerf RE'!K14+'C4-FinPerf RE'!K15+'C4-FinPerf RE'!K16+'C4-FinPerf RE'!K17+'C4-FinPerf RE'!K18+'C4-FinPerf RE'!K20+'C4-FinPerf RE'!K21 -> 12934181
A11: Total Revenue (excluding capital transfers and contributions) | B11: =SUM(B6:B10) -> 0 | C11: 167385753 | D11: 167385753 | E11: 1093690.49 | F11: 197217795.5 | G11: 167385754 | H11: =F11-G11 -> 29832041.53 | I11: =IF(H11=0,"",H11/G11) -> 0.1782233005 | J11: 167385753
A12: Employee costs | B12: ='C4-FinPerf RE'!C25 -> 0 | C12: ='C4-FinPerf RE'!D25 -> 88123211 | D12: ='C4-FinPerf RE'!E25 -> 88326344 | E12: ='C4-FinPerf RE'!F25 -> 8377734.2 | F12: ='C4-FinPerf RE'!G25 -> 82972149.11 | G12: ='C4-FinPerf RE'!H25 -> 89027832 | H12: -6055682.89 | I12: -0.0680201096 | J12: ='C4-FinPerf RE'!K25 -> 88326344
A13: Remuneration of Councillors | B13: ='C4-FinPerf RE'!C26 -> 0 | C13: ='C4-FinPerf RE'!D26 -> 13134669 | D13: ='C4-FinPerf RE'!E26 -> 13134669 | E13: ='C4-FinPerf RE'!F26 -> 1085057.31 | F13: ='C4-FinPerf RE'!G26 -> 12873805.88 | G13: ='C4-FinPerf RE'!H26 -> 14871762 | H13: -1997956.12 | I13: -0.1343456223 | J13: ='C4-FinPerf RE'!K26 -> 13134669
A14: Depreciation & asset impairment | B14: ='C4-FinPerf RE'!C28 -> 0 | C14: ='C4-FinPerf RE'!D28 -> 23721031 | D14: ='C4-FinPerf RE'!E28 -> 23721031 | E14: ='C4-FinPerf RE'!F28 -> 0 | F14: ='C4-FinPerf RE'!G28 -> 0 | G14: ='C4-FinPerf RE'!H28 -> 23721031 | H14: -23721031 | I14: -1 | J14: ='C4-FinPerf RE'!K28 -> 23721031
A15: Finance charges | B15: ='C4-FinPerf RE'!C29 -> 0 | C15: ='C4-FinPerf RE'!D29 -> 264650 | D15: ='C4-FinPerf RE'!E29 -> 264650 | E15: ='C4-FinPerf RE'!F29 -> 0 | F15: ='C4-FinPerf RE'!G29 -> 13251.64 | G15: ='C4-FinPerf RE'!H29 -> 259758 | H15: -246506.36 | I15: -0.9489846703 | J15: ='C4-FinPerf RE'!K29 -> 264650
A16: Materials and bulk purchases | B16: =SUM('C4-FinPerf RE'!C30:C31) -> 0 | C16: =SUM('C4-FinPerf RE'!D30:D31) -> 16665586 | D16: =SUM('C4-FinPerf RE'!E30:E31) -> 17065388 | E16: =SUM('C4-FinPerf RE'!F30:F31) -> 1256096.23 | F16: =SUM('C4-FinPerf RE'!G30:G31) -> 16188379.21 | G16: =SUM('C4-FinPerf RE'!H30:H31) -> 17222129 | H16: -1033749.79 | I16: -0.06002450626 | J16: =SUM('C4-FinPerf RE'!K30:K31) -> 17065388
A17: Transfers and subsidies | B17: ='C4-FinPerf RE'!C33 -> 0 | C17: ='C4-FinPerf RE'!D33 -> 145012 | D17: ='C4-FinPerf RE'!E33 -> 145012 | E17: ='C4-FinPerf RE'!F33 -> 0 | F17: ='C4-FinPerf RE'!G33 -> 79129.6 | G17: ='C4-FinPerf RE'!H33 -> 148762 | H17: -69632.4 | I17: -0.4680792138 | J17: ='C4-FinPerf RE'!K33 -> 145012
A18: Other expenditure | B18: ='C4-FinPerf RE'!C36-SUM('C1-Sum'!B12:B17) -> 0 | C18: ='C4-FinPerf RE'!D36-SUM('C1-Sum'!C12:C17) -> 53422963 | D18: ='C4-FinPerf RE'!E36-SUM('C1-Sum'!D12:D17) -> 58512458 | E18: ='C4-FinPerf RE'!F36-SUM('C1-Sum'!E12:E17) -> 3883951.22 | F18: ='C4-FinPerf RE'!G36-SUM('C1-Sum'!F12:F17) -> 36053627.5 | G18: ='C4-FinPerf RE'!H36-SUM('C1-Sum'!G12:G17) -> 55751919 | H18: -19698291.5 | I18: -0.3533204211 | J18: ='C4-FinPerf RE'!K36-SUM('C1-Sum'!J12:J17) -> 58512458
A19: Total Expenditure | B19: =SUM(B12:B18) -> 0 | C19: 195477122 | D19: 201169552 | E19: 14602838.96 | F19: 148180342.9 | G19: 201003193 | H19: -52822850.06 | I19: -0.2627960744 | J19: =SUM(J12:J18) -> 201169552
A20: Surplus/(Deficit) | B20: =B11-B19 -> 0 | C20: -28091369 | D20: -33783799 | E20: -13509148.47 | F20: 49037452.59 | G20: -33617439 | H20: 82654891.59 | I20: -2.458690907 | J20: =J11-J19 -> -33783799
A21: ='C4-FinPerf RE'!A39 -> Transfers and subsidies - capital (monetary allocations) (National / Provincial and District) | B21: ='C4-FinPerf RE'!C39 -> 0 | C21: ='C4-FinPerf RE'!D39 -> 42256900 | D21: ='C4-FinPerf RE'!E39 -> 42256900 | E21: ='C4-FinPerf RE'!F39 -> 0 | F21: ='C4-FinPerf RE'!G39 -> 17114935.9 | G21: ='C4-FinPerf RE'!H39 -> 42256900 | H21: -25141964.1 | I21: -0.5949789052 | J21: ='C4-FinPerf RE'!K39 -> 42256900
A22: Contributions & Contributed assets | B22: =SUM('C4-FinPerf RE'!C40:C41) -> 0 | C22: =SUM('C4-FinPerf RE'!D40:D41) -> 0 | D22: =SUM('C4-FinPerf RE'!E40:E41) -> 0 | E22: =SUM('C4-FinPerf RE'!F40:F41) -> 0 | F22: =SUM('C4-FinPerf RE'!G40:G41) -> 0 | G22: =SUM('C4-FinPerf RE'!H40:H41) -> 0 | H22: 0 | J22: =SUM('C4-FinPerf RE'!K40:K41) -> 0
A23: Surplus/(Deficit) after capital transfers & contributions | B23: =B20+B21+B22 -> 0 | C23: 14165531 | D23: 8473101 | E23: -13509148.47 | F23: 66152388.49 | G23: 8639461 | H23: 57512927.49 | I23: 6.657004122 | J23: =J20+J21+J22 -> 8473101
A24: Share of surplus/ (deficit) of associate | B24: ='C4-FinPerf RE'!C47 -> 0 | C24: ='C4-FinPerf RE'!D47 -> 0 | D24: ='C4-FinPerf RE'!E47 -> 0 | E24: ='C4-FinPerf RE'!F47 -> 0 | F24: ='C4-FinPerf RE'!G47 -> 0 | G24: ='C4-FinPerf RE'!H47 -> 0 | H24: 0 | J24: ='C4-FinPerf RE'!K47 -> 0
A25: Surplus/ (Deficit) for the year | B25: =B23+B24 -> 0 | C25: 14165531 | D25: 8473101 | E25: -13509148.47 | F25: 66152388.49 | G25: 8639461 | H25: 57512927.49 | I25: 6.657004122 | J25: =J23+J24 -> 8473101
A27: Capital expenditure & funds sources
A28: Capital expenditure | B28: ='C5-Capex'!C40 -> 0 | C28: ='C5-Capex'!D40 -> 47101902 | D28: ='C5-Capex'!E40 -> 47101902 | E28: ='C5-Capex'!F40 -> 4713034.85 | F28: ='C5-Capex'!G40 -> 35136737.39 | G28: ='C5-Capex'!H40 -> 47101887 | H28: =F28-G28 -> -11965149.61 | I28: =IF(H28=0,"",H28/G28) -> -0.2540269695 | J28: ='C5-Capex'!K40 -> 47101902
A29: Capital transfers recognised | B29: ='C5-Capex'!C70 -> 0 | C29: ='C5-Capex'!D70 -> 42256900 | D29: ='C5-Capex'!E70 -> 0 | E29: ='C5-Capex'!F70 -> 4494130.51 | F29: ='C5-Capex'!G70 -> 32025429.31 | G29: ='C5-Capex'!H70 -> 0 | H29: 32025429.31 | J29: ='C5-Capex'!K70 -> 0
A30: Public contributions & donations | B30: ='C5-Capex'!C71 -> 0 | C30: ='C5-Capex'!D71 -> 0 | D30: ='C5-Capex'!E71 -> 0 | E30: ='C5-Capex'!F71 -> 0 | F30: ='C5-Capex'!G71 -> 0 | G30: ='C5-Capex'!H71 -> 0 | H30: 0 | J30: ='C5-Capex'!K71 -> 0
A31: Borrowing | B31: ='C5-Capex'!C72 -> 0 | C31: ='C5-Capex'!D72 -> 1 | D31: ='C5-Capex'!E72 -> 0 | E31: ='C5-Capex'!F72 -> 0 | F31: ='C5-Capex'!G72 -> 2877064.33 | G31: ='C5-Capex'!H72 -> 0 | H31: 2877064.33 | J31: ='C5-Capex'!K72 -> 0
A32: Internally generated funds | B32: ='C5-Capex'!C73 -> 0 | C32: ='C5-Capex'!D73 -> 4295001 | D32: ='C5-Capex'!E73 -> 0 | E32: ='C5-Capex'!F73 -> 43304.35 | F32: ='C5-Capex'!G73 -> 58643.76 | G32: ='C5-Capex'!H73 -> 0 | H32: 58643.76 | J32: ='C5-Capex'!K73 -> 0
A33: Total sources of capital funds | B33: =SUM(B29:B32) -> 0 | C33: 46551902 | D33: 0 | E33: =SUM(E29:E32) -> 4537434.86 | F33: =SUM(F29:F32) -> 34961137.4 | G33: =SUM(G29:G32) -> 0 | H33: 34961137.4 | J33: 0
A35: Financial position
A36: Total current assets | B36: ='C6-FinPos'!C13 -> 132645219 | C36: ='C6-FinPos'!D13 -> 355162434 | D36: ='C6-FinPos'!E13 -> 19368332 | F36: ='C6-FinPos'!F13 -> 18967519 | J36: ='C6-FinPos'!G13 -> 19368332
A37: Total non current assets | B37: ='C6-FinPos'!C25 -> 19018539 | C37: ='C6-FinPos'!D25 -> 70822945 | D37: ='C6-FinPos'!E25 -> 71313743 | F37: ='C6-FinPos'!F25 -> 441575834 | J37: ='C6-FinPos'!G25 -> 71313743
A38: Total current liabilities | B38: ='C6-FinPos'!C35 -> -62168318 | C38: ='C6-FinPos'!D35 -> 281512708 | D38: ='C6-FinPos'!E35 -> 15512708 | F38: ='C6-FinPos'!F35 -> 42824289 | J38: ='C6-FinPos'!G35 -> 15512708
A39: Total non current liabilities | B39: ='C6-FinPos'!C40 -> 0 | C39: ='C6-FinPos'!D40 -> 258640 | D39: ='C6-FinPos'!E40 -> 258640 | F39: ='C6-FinPos'!F40 -> 17749921 | J39: ='C6-FinPos'!G40 -> 258640
A40: Community wealth/Equity | B40: ='C6-FinPos'!C48 -> 213832076 | C40: ='C6-FinPos'!D48 -> 182863447 | D40: ='C6-FinPos'!E48 -> 74910727 | F40: ='C6-FinPos'!F48 -> 399969143 | J40: ='C6-FinPos'!G48 -> 74910727
A42: Cash flows
A43: Net cash from (used) operating | B43: ='C7-CFlow'!C18 -> 0 | C43: ='C7-CFlow'!D18 -> 0 | D43: ='C7-CFlow'!E18 -> 0 | E43: ='C7-CFlow'!F18 -> 0 | F43: ='C7-CFlow'!G18 -> 0 | G43: ='C7-CFlow'!H18 -> 0 | H43: =G43-F43 -> 0 | I43: =IF(H43=0,"",H43/G43) ->  | J43: ='C7-CFlow'!K18 -> 0
A44: Net cash from (used) investing | B44: ='C7-CFlow'!C28 -> 0 | C44: ='C7-CFlow'!D28 -> 0 | D44: ='C7-CFlow'!E28 -> 0 | E44: ='C7-CFlow'!F28 -> 0 | F44: ='C7-CFlow'!G28 -> 0 | G44: ='C7-CFlow'!H28 -> 0 | H44: =G44-F44 -> 0 | I44: =IF(H44=0,"",H44/G44) ->  | J44: ='C7-CFlow'!K28 -> 0
A45: Net cash from (used) financing | B45: ='C7-CFlow'!C37 -> 0 | C45: ='C7-CFlow'!D37 -> 0 | D45: ='C7-CFlow'!E37 -> 0 | E45: ='C7-CFlow'!F37 -> 0 | F45: ='C7-CFlow'!G37 -> 0 | G45: ='C7-CFlow'!H37 -> 0 | H45: =G45-F45 -> 0 | I45: =IF(H45=0,"",H45/G45) ->  | J45: ='C7-CFlow'!K37 -> 0
A46: Cash/cash equivalents at the month/year end | B46: ='C7-CFlow'!C41 -> 0 | C46: ='C7-CFlow'!D41 -> 0 | D46: ='C7-CFlow'!E41 -> 0 | E46: ='C7-CFlow'!F41 -> 0 | F46: ='C7-CFlow'!G41 -> 0 | G46: ='C7-CFlow'!H41 -> 0 | H46: =G46-F46 -> 0 | I46: =IF(H46=0,"",H46/G46) ->  | J46: ='C7-CFlow'!K41 -> 0
A48: Debtors & creditors analysis | B48: ='SC3'!C3 -> 0-30 Days | C48: ='SC3'!D3 -> 31-60 Days | D48: ='SC3'!E3 -> 61-90 Days | E48: ='SC3'!F3 -> 91-120 Days | F48: ='SC3'!G3 -> 121-150 Dys | G48: ='SC3'!H3 -> 151-180 Dys | H48: ='SC3'!I3 -> 181 Dys-1 Yr | I48: ='SC3'!J3 -> Over 1Yr | J48: Total
A49: =LEFT('SC3'!A4,20) -> Debtors Age Analysis
A50: ='SC3'!A14 -> Total By Income Source | B50: ='SC3'!C14 -> -390004 | C50: ='SC3'!D14 -> 4425378 | D50: ='SC3'!E14 -> 3080216 | E50: ='SC3'!F14 -> -709046 | F50: ='SC3'!G14 -> 6563432 | G50: ='SC3'!H14 -> 3865326 | H50: ='SC3'!I14 -> 3917244 | I50: ='SC3'!J14 -> 163771388 | J50: ='SC3'!K14 -> 184523934
A51: =LEFT('SC4'!A5,22) -> Creditors Age Analysis
A52: Total Creditors | B52: ='SC4'!C15 -> 4646511.48 | C52: ='SC4'!D15 -> 26466.35 | D52: ='SC4'!E15 -> 0 | E52: ='SC4'!F15 -> 0 | F52: ='SC4'!G15 -> 0 | G52: ='SC4'!H15 -> 0 | H52: ='SC4'!I15 -> 0 | I52: ='SC4'!J15 -> 0 | J52: ='SC4'!K15 -> 4672977.83

Sheet C2-FinPerf SC
A1: =muni& " - "&S71A& " - "&date -> EC136 Emalahleni (Ec) - Table C2 Monthly Budget Statement - Financial Performance (functional classification) - M12 June
A2: =desc -> Description | B2: =head27 -> Ref | C2: =Head1 -> 2017/18 | D2: =Head2 -> Budget Year 2018/19
C3: =Head5 -> Audited Outcome | D3: =Head6 -> Original Budget | E3: =Head7 -> Adjusted Budget | F3: =Head38 -> Monthly actual | G3: =Head39 -> YearTD actual | H3: =Head40 -> YearTD budget | I3: =Head41 -> YTD variance | J3: =Head41 -> YTD variance | K3: =Head8 -> Full Year Forecast
A4: R thousands | B4: 1 | J4: %
A5: Revenue - Functional
A6: Governance and administration | C6: =SUM(C7:C9) -> 0 | D6: 0 | E6: 0 | F6: 0 | G6: 0 | H6: 0 | I6: =G6-H6 -> 0 | J6: =IF(I6=0,"",I6/H6) ->  | K6: =SUM(K7:K9) -> 0
A7: Executive and council | C7: ='C2C'!C7 -> 0 | D7: ='C2C'!D7 -> 0 | E7: ='C2C'!E7 -> 0 | F7: ='C2C'!F7 -> 0 | G7: ='C2C'!G7 -> 0 | H7: ='C2C'!H7 -> 0 | I7: 0 | J7: =IF(I7=0,"",I7/H7) ->  | K7: ='C2C'!K7 -> 0
A8: Finance and administration | C8: ='C2C'!C10 -> 0 | D8: ='C2C'!D10 -> 0 | E8: ='C2C'!E10 -> 0 | F8: ='C2C'!F10 -> 0 | G8: ='C2C'!G10 -> 0 | H8: ='C2C'!H10 -> 0 | I8: 0 | K8: ='C2C'!K10 -> 0
A9: Internal audit | C9: ='C2C'!C25 -> 0 | D9: ='C2C'!D25 -> 0 | E9: ='C2C'!E25 -> 0 | F9: ='C2C'!F25 -> 0 | G9: ='C2C'!G25 -> 0 | H9: ='C2C'!H25 -> 0 | I9: 0 | K9: ='C2C'!K25 -> 0
A10: Community and public safety | C10: =SUM(C11:C15) -> 0 | D10: 0 | E10: 0 | F10: 0 | G10: 0 | H10: 0 | I10: 0 | K10: =SUM(K11:K15) -> 0
A11: Community and social services | C11: ='C2C'!C28 -> 0 | D11: ='C2C'!D28 -> 0 | E11: ='C2C'!E28 -> 0 | F11: ='C2C'!F28 -> 0 | G11: ='C2C'!G28 -> 0 | H11: ='C2C'!H28 -> 0 | I11: 0 | K11: ='C2C'!K28 -> 0
A12: Sport and recreation | C12: ='C2C'!C50 -> 0 | D12: ='C2C'!D50 -> 0 | E12: ='C2C'!E50 -> 0 | F12: ='C2C'!F50 -> 0 | G12: ='C2C'!G50 -> 0 | H12: ='C2C'!H50 -> 0 | I12: 0 | K12: ='C2C'!K50 -> 0
A13: Public safety | C13: ='C2C'!C56 -> 0 | D13: ='C2C'!D56 -> 0 | E13: ='C2C'!E56 -> 0 | F13: ='C2C'!F56 -> 0 | G13: ='C2C'!G56 -> 0 | H13: ='C2C'!H56 -> 0 | I13: 0 | K13: ='C2C'!K56 -> 0
A14: Housing | C14: ='C2C'!C63 -> 0 | D14: ='C2C'!D63 -> 0 | E14: ='C2C'!E63 -> 0 | F14: ='C2C'!F63 -> 0 | G14: ='C2C'!G63 -> 0 | H14: ='C2C'!H63 -> 0 | I14: =G14-H14 -> 0 | J14: =IF(I14=0,"",I14/H14) ->  | K14: ='C2C'!K63 -> 0
A15: Health | C15: ='C2C'!C66 -> 0 | D15: ='C2C'!D66 -> 0 | E15: ='C2C'!E66 -> 0 | F15: ='C2C'!F66 -> 0 | G15: ='C2C'!G66 -> 0 | H15: ='C2C'!H66 -> 0 | I15: 0 | K15: ='C2C'!K66 -> 0
A16: Economic and environmental services | C16: =SUM(C17:C19) -> 0 | D16: 0 | E16: 0 | F16: 0 | G16: 0 | H16: 0 | I16: 0 | K16: =SUM(K17:K19) -> 0
A17: Planning and development | C17: ='C2C'!C75 -> 0 | D17: ='C2C'!D75 -> 0 | E17: ='C2C'!E75 -> 0 | F17: ='C2C'!F75 -> 0 | G17: ='C2C'!G75 -> 0 | H17: ='C2C'!H75 -> 0 | I17: 0 | K17: ='C2C'!K75 -> 0
A18: Road transport | C18: ='C2C'!C86 -> 0 | D18: ='C2C'!D86 -> 0 | E18: ='C2C'!E86 -> 0 | F18: ='C2C'!F86 -> 0 | G18: ='C2C'!G86 -> 0 | H18: ='C2C'!H86 -> 0 | I18: 0 | K18: ='C2C'!K86 -> 0
A19: Environmental protection | C19: ='C2C'!C93 -> 0 | D19: ='C2C'!D93 -> 0 | E19: ='C2C'!E93 -> 0 | F19: ='C2C'!F93 -> 0 | G19: ='C2C'!G93 -> 0 | H19: ='C2C'!H93 -> 0 | I19: 0 | K19: ='C2C'!K93 -> 0
A20: Trading services | C20: =SUM(C21:C24) -> 0 | D20: =SUM(D21:D24) -> 0 | E20: 0 | F20: 0 | G20: 0 | H20: 0 | I20: 0 | K20: =SUM(K21:K24) -> 0
A21: Energy sources | C21: ='C2C'!C101 -> 0 | D21: ='C2C'!D101 -> 0 | E21: ='C2C'!E101 -> 0 | F21: ='C2C'!F101 -> 0 | G21: ='C2C'!G101 -> 0 | H21: ='C2C'!H101 -> 0 | I21: =G21-H21 -> 0 | K21: ='C2C'!K101 -> 0
A22: Water management | C22: ='C2C'!C105 -> 0 | D22: ='C2C'!D105 -> 0 | E22: ='C2C'!E105 -> 0 | F22: ='C2C'!F105 -> 0 | G22: ='C2C'!G105 -> 0 | H22: ='C2C'!H105 -> 0 | I22: =G22-H22 -> 0 | K22: ='C2C'!K105 -> 0
A23: Waste water management | C23: ='C2C'!C109 -> 0 | D23: ='C2C'!D109 -> 0 | E23: ='C2C'!E109 -> 0 | F23: ='C2C'!F109 -> 0 | G23: ='C2C'!G109 -> 0 | H23: ='C2C'!H109 -> 0 | I23: =G23-H23 -> 0 | K23: ='C2C'!K109 -> 0
A24: Waste management | C24: ='C2C'!C114 -> 0 | D24: ='C2C'!D114 -> 0 | E24: ='C2C'!E114 -> 0 | F24: ='C2C'!F114 -> 0 | G24: ='C2C'!G114 -> 0 | H24: ='C2C'!H114 -> 0 | I24: =G24-H24 -> 0 | K24: ='C2C'!K114 -> 0
A25: Other | B25: 4 | C25: ='C2C'!C119 -> 0 | D25: ='C2C'!D119 -> 0 | E25: ='C2C'!E119 -> 0 | F25: ='C2C'!F119 -> 0 | G25: ='C2C'!G119 -> 0 | H25: ='C2C'!H119 -> 0 | I25: =G25-H25 -> 0 | K25: ='C2C'!K119 -> 0
A26: Total Revenue - Functional | B26: 2 | C26: =C6+C10+C16+C20+C25 -> 0 | D26: =D6+D10+D16+D20+D25 -> 0 | E26: 0 | F26: 0 | G26: 0 | H26: 0 | I26: 0 | K26: =K6+K10+K16+K20+K25 -> 0
A28: Expenditure - Functional
A29: Governance and administration | C29: =SUM(C30:C32) -> 0 | D29: 0 | E29: 0 | F29: 0 | G29: 0 | H29: 0 | I29: =G29-H29 -> 0 | J29: =IF(I29=0,"",I29/H29) ->  | K29: =SUM(K30:K32) -> 0
A30: Executive and council | C30: ='C2C'!C130 -> 0 | D30: ='C2C'!D130 -> 0 | E30: ='C2C'!E130 -> 0 | F30: ='C2C'!F130 -> 0 | G30: ='C2C'!G130 -> 0 | H30: ='C2C'!H130 -> 0 | I30: 0 | J30: =IF(I30=0,"",I30/H30) ->  | K30: ='C2C'!K130 -> 0
A31: Finance and administration | C31: ='C2C'!C133 -> 0 | D31: ='C2C'!D133 -> 0 | E31: ='C2C'!E133 -> 0 | F31: ='C2C'!F133 -> 0 | G31: ='C2C'!G133 -> 0 | H31: ='C2C'!H133 -> 0 | I31: 0 | K31: ='C2C'!K133 -> 0
A32: Internal audit | C32: ='C2C'!C148 -> 0 | D32: ='C2C'!D148 -> 0 | E32: ='C2C'!E148 -> 0 | F32: ='C2C'!F148 -> 0 | G32: ='C2C'!G148 -> 0 | H32: ='C2C'!H148 -> 0 | I32: 0 | K32: ='C2C'!K148 -> 0
A33: Community and public safety | C33: =SUM(C34:C38) -> 0 | D33: 0 | E33: 0 | F33: 0 | G33: 0 | H33: 0 | I33: 0 | K33: =SUM(K34:K38) -> 0
A34: Community and social services | C34: ='C2C'!C151 -> 0 | D34: ='C2C'!D151 -> 0 | E34: ='C2C'!E151 -> 0 | F34: ='C2C'!F151 -> 0 | G34: ='C2C'!G151 -> 0 | H34: ='C2C'!H151 -> 0 | I34: 0 | K34: ='C2C'!K151 -> 0
A35: Sport and recreation | C35: ='C2C'!C173 -> 0 | D35: ='C2C'!D173 -> 0 | E35: ='C2C'!E173 -> 0 | F35: ='C2C'!F173 -> 0 | G35: ='C2C'!G173 -> 0 | H35: ='C2C'!H173 -> 0 | I35: 0 | K35: ='C2C'!K173 -> 0
A36: Public safety | C36: ='C2C'!C179 -> 0 | D36: ='C2C'!D179 -> 0 | E36: ='C2C'!E179 -> 0 | F36: ='C2C'!F179 -> 0 | G36: ='C2C'!G179 -> 0 | H36: ='C2C'!H179 -> 0 | I36: 0 | K36: ='C2C'!K179 -> 0
A37: Housing | C37: ='C2C'!C186 -> 0 | D37: ='C2C'!D186 -> 0 | E37: ='C2C'!E186 -> 0 | F37: ='C2C'!F186 -> 0 | G37: ='C2C'!G186 -> 0 | H37: ='C2C'!H186 -> 0 | I37: 0 | K37: ='C2C'!K186 -> 0
A38: Health | C38: ='C2C'!C189 -> 0 | D38: ='C2C'!D189 -> 0 | E38: ='C2C'!E189 -> 0 | F38: ='C2C'!F189 -> 0 | G38: ='C2C'!G189 -> 0 | H38: ='C2C'!H189 -> 0 | I38: 0 | K38: ='C2C'!K189 -> 0
A39: Economic and environmental services | C39: =SUM(C40:C42) -> 0 | D39: 0 | E39: 0 | F39: 0 | G39: 0 | H39: 0 | I39: 0 | K39: =SUM(K40:K42) -> 0
A40: Planning and development | C40: ='C2C'!C198 -> 0 | D40: ='C2C'!D198 -> 0 | E40: ='C2C'!E198 -> 0 | F40: ='C2C'!F198 -> 0 | G40: ='C2C'!G198 -> 0 | H40: ='C2C'!H198 -> 0 | I40: 0 | K40: ='C2C'!K198 -> 0
A41: Road transport | C41: ='C2C'!C209 -> 0 | D41: ='C2C'!D209 -> 0 | E41: ='C2C'!E209 -> 0 | F41: ='C2C'!F209 -> 0 | G41: ='C2C'!G209 -> 0 | H41: ='C2C'!H209 -> 0 | I41: 0 | K41: ='C2C'!K209 -> 0
A42: Environmental protection | C42: ='C2C'!C216 -> 0 | D42: ='C2C'!D216 -> 0 | E42: ='C2C'!E216 -> 0 | F42: ='C2C'!F216 -> 0 | G42: ='C2C'!G216 -> 0 | H42: ='C2C'!H216 -> 0 | I42: 0 | K42: ='C2C'!K216 -> 0
A43: Trading services | C43: =SUM(C44:C47) -> 0 | D43: =SUM(D44:D47) -> 0 | E43: 0 | F43: 0 | G43: 0 | H43: 0 | I43: 0 | K43: =SUM(K44:K47) -> 0
A44: Energy sources | C44: ='C2C'!C224 -> 0 | D44: ='C2C'!D224 -> 0 | E44: ='C2C'!E224 -> 0 | F44: ='C2C'!F224 -> 0 | G44: ='C2C'!G224 -> 0 | H44: ='C2C'!H224 -> 0 | I44: 0 | K44: ='C2C'!K224 -> 0
A45: Water management | C45: ='C2C'!C228 -> 0 | D45: ='C2C'!D228 -> 0 | E45: ='C2C'!E228 -> 0 | F45: ='C2C'!F228 -> 0 | G45: ='C2C'!G228 -> 0 | H45: ='C2C'!H228 -> 0 | I45: 0 | K45: ='C2C'!K228 -> 0
A46: Waste water management | C46: ='C2C'!C232 -> 0 | D46: ='C2C'!D232 -> 0 | E46: ='C2C'!E232 -> 0 | F46: ='C2C'!F232 -> 0 | G46: ='C2C'!G232 -> 0 | H46: ='C2C'!H232 -> 0 | I46: 0 | K46: ='C2C'!K232 -> 0
A47: Waste management | C47: ='C2C'!C237 -> 0 | D47: ='C2C'!D237 -> 0 | E47: ='C2C'!E237 -> 0 | F47: ='C2C'!F237 -> 0 | G47: ='C2C'!G237 -> 0 | H47: ='C2C'!H237 -> 0 | I47: 0 | K47: ='C2C'!K237 -> 0
A48: Other | C48: ='C2C'!C242 -> 0 | D48: ='C2C'!D242 -> 0 | E48: ='C2C'!E242 -> 0 | F48: ='C2C'!F242 -> 0 | G48: ='C2C'!G242 -> 0 | H48: ='C2C'!H242 -> 0 | I48: 0 | K48: ='C2C'!K242 -> 0
A49: Total Expenditure - Functional | B49: 3 | C49: =C29+C33+C39+C43+C48 -> 0 | D49: =D29+D33+D39+D43+D48 -> 0 | E49: 0 | F49: 0 | G49: 0 | H49: 0 | I49: 0 | K49: =K29+K33+K39+K43+K48 -> 0
A50: Surplus/ (Deficit) for the year | C50: =C26-C49 -> 0 | D50: 0 | E50: 0 | F50: 0 | G50: 0 | H50: 0 | I50: =I26-I49 -> 0 | J50: =IF(I50=0,"",I50/H50) ->  | K50: =K26-K49 -> 0
A51: =head27a -> References
A52: 1. Government Finance Statistics Functions and Sub-functions are standardised to assist the compilation of national and international accounts for comparison purposes
A53: 2. Total Revenue by functional classification must reconcile to Total Operating Revenue shown in the Financial Performance Statement
A54: 3. Total Expenditure by functional classification must reconcile to total operating expenditure shown in 'Financial Performance Statement'
A55: 4. All amounts must be classified under a functional classification (modified GFS). The GFS function 'Other' is only for Abbatoirs, Air Transport, Licensing and Regulation, Markets and Tourism - and if used must be supported by footnotes. Nothing else may be placed under 'Other'. Assign associate share to relevant classification

Sheet C2C
A1: =muni& " - "&S71A& " - "&date -> EC136 Emalahleni (Ec) - Table C2 Monthly Budget Statement - Financial Performance (functional classification) - M12 June
A2: =desc -> Description | B2: =head27 -> Ref | C2: =Head1 -> 2017/18 | D2: =Head2 -> Budget Year 2018/19
C3: =Head5 -> Audited Outcome | D3: =Head6 -> Original Budget | E3: =Head7 -> Adjusted Budget | F3: =Head38 -> Monthly actual | G3: =Head39 -> YearTD actual | H3: =Head40 -> YearTD budget | I3: =Head41 -> YTD variance | J3: =Head41 -> YTD variance | K3: =Head8 -> Full Year Forecast
A4: R thousands | B4: 1 | J4: %
A5: Revenue - Functional
A6: Municipal governance and administration | C6: =C7+C10+C25 -> 0 | D6: =D7+D10+D25 -> 0 | E6: 0 | F6: 0 | G6: 0 | H6: 0 | I6: =G6-H6 -> 0 | J6: =IF(I6=0,"",I6/H6) ->  | K6: 0
A7: Executive and council | C7: =SUM(C8:C9) -> 0 | D7: =SUM(D8:D9) -> 0 | E7: 0 | F7: 0 | G7: 0 | H7: 0 | I7: =G7-H7 -> 0 | J7: =IF(I7=0,"",I7/H7) ->  | K7: 0
A8: Mayor and Council | I8: 0
A9: Municipal Manager, Town Secretary and Chief Executive | I9: 0
A10: Finance and administration | C10: =SUM(C11:C24) -> 0 | D10: 0 | E10: 0 | F10: 0 | G10: 0 | H10: 0 | I10: =G10-H10 -> 0 | J10: =IF(I10=0,"",I10/H10) ->  | K10: =SUM(K11:K24) -> 0
A11: Administrative and Corporate Support | I11: =G11-H11 -> 0 | J11: =IF(I11=0,"",I11/H11) -> 
A12: Asset Management | I12: 0
A13: Budget and Treasury Office | I13: 0
A14: Finance | I14: 0
A15: Fleet Management | I15: 0
A16: Human Resources | I16: 0
A17: Information Technology | I17: =G17-H17 -> 0 | J17: =IF(I17=0,"",I17/H17) -> 
A18: Legal Services | I18: 0
A19: Marketing, Customer Relations, Publicity and Media Co-ordination | I19: 0
A20: Property Services | I20: 0
A21: Risk Management | I21: 0
A22: Security Services | I22: 0
A23: Supply Chain Management | I23: 0
A24: Valuation Service | I24: 0
A25: Internal audit | C25: =SUM(C26:C26) -> 0 | D25: 0 | E25: 0 | F25: 0 | G25: 0 | H25: 0 | I25: 0 | K25: =SUM(K26:K26) -> 0
A26: Governance Function | I26: 0
A27: Community and public safety | C27: =C28+C50+C56+C63+C66 -> 0 | D27: =D28+D50+D56+D63+D66 -> 0 | E27: 0 | F27: 0 | G27: 0 | H27: 0 | I27: 0 | K27: 0
A28: Community and social services | C28: =SUM(C29:C49) -> 0 | D28: 0 | E28: 0 | F28: 0 | G28: 0 | H28: 0 | I28: 0 | K28: =SUM(K29:K49) -> 0
A29: Aged Care | I29: =G29-H29 -> 0 | J29: =IF(I29=0,"",I29/H29) -> 
A30: Agricultural | I30: 0
A31: Animal Care and Diseases | I31: 0
A32: Cemeteries, Funeral Parlours and Crematoriums | I32: 0
A33: Child Care Facilities | I33: 0
A34: Community Halls and Facilities | I34: 0
A35: Consumer Protection | I35: 0
A36: Cultural Matters | I36: =G36-H36 -> 0 | J36: =IF(I36=0,"",I36/H36) -> 
A37: Disaster Management | I37: 0
A38: Education | I38: 0
A39: Indigenous and Customary Law | I39: 0
A40: Industrial Promotion | I40: 0
A41: Language Policy | I41: 0
A42: Libraries and Archives | I42: 0
A43: Literacy Programmes | I43: 0
A44: Media Services | I44: 0
A45: Museums and Art Galleries | I45: 0
A46: Population Development | I46: 0
A47: Provincial Cultural Matters | I47: 0
A48: Theatres | I48: 0
A49: Zoo's | I49: 0
A50: Sport and recreation | C50: =SUM(C51:C55) -> 0 | D50: =SUM(D51:D55) -> 0 | E50: 0 | F50: 0 | G50: 0 | H50: 0 | I50: =G50-H50 -> 0 | J50: =IF(I50=0,"",I50/H50) ->  | K50: 0
A51: Beaches and Jetties | I51: 0
A52: Casinos, Racing, Gambling, Wagering | I52: 0
A53: Community Parks (including Nurseries) | I53: 0
A54: Recreational Facilities | I54: 0
A55: Sports Grounds and Stadiums | I55: 0
A56: Public safety | C56: =SUM(C57:C62) -> 0 | D56: =SUM(D57:D62) -> 0 | E56: 0 | F56: 0 | G56: 0 | H56: 0 | I56: 0 | K56: 0
A57: Civil Defence | I57: 0
A58: Cleansing | I58: 0
A59: Control of Public Nuisances | I59: =G59-H59 -> 0 | J59: =IF(I59=0,"",I59/H59) -> 
A60: Fencing and Fences | I60: 0
A61: Fire Fighting and Protection | I61: 0
A62: Licensing and Control of Animals | I62: 0
A63: Housing | C63: =SUM(C64:C65) -> 0 | D63: 0 | E63: 0 | F63: 0 | G63: 0 | H63: 0 | I63: =G63-H63 -> 0 | J63: =IF(I63=0,"",I63/H63) ->  | K63: =SUM(K64:K65) -> 0
A64: Housing | I64: =G64-H64 -> 0 | J64: =IF(I64=0,"",I64/H64) -> 
A65: Informal Settlements | I65: =G65-H65 -> 0 | J65: =IF(I65=0,"",I65/H65) -> 
A66: Health | C66: =SUM(C67:C73) -> 0 | D66: 0 | E66: 0 | F66: 0 | G66: 0 | H66: 0 | I66: 0 | K66: =SUM(K67:K73) -> 0
A67: Ambulance | I67: 0
A68: Health Services | I68: 0
A69: Laboratory Services | I69: =G69-H69 -> 0 | J69: =IF(I69=0,"",I69/H69) -> 
A70: Food Control | I70: =G70-H70 -> 0 | J70: =IF(I70=0,"",I70/H70) -> 
A71: Health Surveillance and Prevention of Communicable Diseases including immunizations | I71: 0
A72: Vector Control | I72: 0
A73: Chemical Safety | I73: 0
A74: Economic and environmental services | C74: =C75+C86+C93 -> 0 | D74: =D75+D86+D93 -> 0 | E74: 0 | F74: 0 | G74: 0 | H74: 0 | I74: 0 | K74: 0
A75: Planning and development | C75: =SUM(C76:C85) -> 0 | D75: 0 | E75: 0 | F75: 0 | G75: 0 | H75: 0 | I75: 0 | K75: =SUM(K76:K85) -> 0
A76: Billboards | I76: =G76-H76 -> 0 | J76: =IF(I76=0,"",I76/H76) -> 
A77: Corporate Wide Strategic Planning (IDPs, LEDs) | I77: 0
A78: Central City Improvement District | I78: 0
A79: Development Facilitation | I79: =G79-H79 -> 0 | J79: =IF(I79=0,"",I79/H79) -> 
A80: Economic Development/Planning | I80: =G80-H80 -> 0 | J80: =IF(I80=0,"",I80/H80) -> 
A81: Regional Planning and Development | I81: =G81-H81 -> 0 | J81: =IF(I81=0,"",I81/H81) -> 
A82: Town Planning, Building Regulations and Enforcement, and City Engineer | I82: =G82-H82 -> 0 | J82: =IF(I82=0,"",I82/H82) -> 
A83: Project Management Unit | I83: 0
A84: Provincial Planning | I84: 0
A85: Support to Local Municipalities | I85: 0
A86: Road transport | C86: =SUM(C87:C92) -> 0 | D86: =SUM(D87:D92) -> 0 | E86: 0 | F86: 0 | G86: 0 | H86: 0 | I86: 0 | K86: 0
A87: Police Forces, Traffic and Street Parking Control | I87: 0
A88: Pounds | I88: =G88-H88 -> 0 | J88: =IF(I88=0,"",I88/H88) -> 
A89: Public Transport | I89: 0
A90: Road and Traffic Regulation | I90: 0
A91: Roads | I91: 0
A92: Taxi Ranks | I92: 0
A93: Environmental protection | C93: =SUM(C94:C99) -> 0 | D93: =SUM(D94:D99) -> 0 | E93: 0 | F93: 0 | G93: 0 | H93: 0 | I93: 0 | K93: 0
A94: Biodiversity and Landscape | I94: 0
A95: Coastal Protection | I95: 0
A96: Indigenous Forests | I96: =G96-H96 -> 0 | J96: =IF(I96=0,"",I96/H96) -> 
A97: Nature Conservation | I97: =G97-H97 -> 0 | J97: =IF(I97=0,"",I97/H97) -> 
A98: Pollution Control | I98: 0
A99: Soil Conservation | I99: 0
A100: Trading services | C100: =C101+C105+C109+C114 -> 0 | D100: =D101+D105+D109+D114 -> 0 | E100: 0 | F100: 0 | G100: 0 | H100: 0 | I100: 0 | K100: =K101+K105+K109+K114 -> 0
A101: Energy sources | C101: =SUM(C102:C104) -> 0 | D101: =SUM(D102:D104) -> 0 | E101: 0 | F101: 0 | G101: 0 | H101: 0 | I101: 0 | K101: 0
A102: Electricity | I102: 0
A103: Street Lighting and Signal Systems | I103: =G103-H103 -> 0 | J103: =IF(I103=0,"",I103/H103) -> 
A104: Nonelectric Energy | I104: 0
A105: Water management | C105: =SUM(C106:C108) -> 0 | D105: =SUM(D106:D108) -> 0 | E105: 0 | F105: 0 | G105: 0 | H105: 0 | I105: 0 | K105: 0
A106: Water Treatment | I106: 0
A107: Water Distribution | I107: =G107-H107 -> 0 | J107: =IF(I107=0,"",I107/H107) -> 
A108: Water Storage | I108: 0
A109: Waste water management | C109: =SUM(C110:C113) -> 0 | D109: =SUM(D110:D113) -> 0 | E109: 0 | F109: 0 | G109: 0 | H109: 0 | I109: 0 | K109: 0
A110: Public Toilets | I110: 0
A111: Sewerage | I111: 0
A112: Storm Water Management | I112: =G112-H112 -> 0 | J112: =IF(I112=0,"",I112/H112) -> 
A113: Waste Water Treatment | I113: 0
A114: Waste management | C114: =SUM(C115:C118) -> 0 | D114: 0 | E114: 0 | F114: 0 | G114: 0 | H114: 0 | I114: 0 | K114: =SUM(K115:K118) -> 0
A115: Recycling | I115: =G115-H115 -> 0 | J115: =IF(I115=0,"",I115/H115) -> 
A116: Solid Waste Disposal (Landfill Sites) | I116: =G116-H116 -> 0 | J116: =IF(I116=0,"",I116/H116) -> 
A117: Solid Waste Removal | I117: 0
A118: Street Cleaning | I118: =G118-H118 -> 0 | J118: =IF(I118=0,"",I118/H118) -> 
A119: Other | C119: =SUM(C120:C125) -> 0 | D119: =SUM(D120:D125) -> 0 | E119: 0 | F119: 0 | G119: 0 | H119: 0 | I119: 0 | K119: 0
A120: Abattoirs | I120: 0
A121: Air Transport | I121: 0
A122: Forestry | I122: =G122-H122 -> 0 | J122: =IF(I122=0,"",I122/H122) -> 
A123: Licensing and Regulation | I123: 0
A124: Markets | I124: 0
A125: Tourism | I125: =G125-H125 -> 0 | J125: =IF(I125=0,"",I125/H125) -> 
A126: ="Total "&A5 -> Total Revenue - Functional | B126: 2 | C126: =C6+C27+C74+C100+C119 -> 0 | D126: 0 | E126: 0 | F126: 0 | G126: 0 | H126: 0 | I126: =G126-H126 -> 0 | J126: =IF(I126=0,"",I126/H126) ->  | K126: =K6+K27+K74+K100+K119 -> 0
A128: Expenditure - Functional
A129: =A6 -> Municipal governance and administration | C129: =C130+C133+C148 -> 0 | D129: 0 | E129: 0 | F129: 0 | G129: 0 | H129: 0 | I129: =G129-H129 -> 0 | J129: =IF(I129=0,"",I129/H129) ->  | K129: 0
A130: =A7 -> Executive and council | C130: =SUM(C131:C132) -> 0 | D130: 0 | E130: 0 | F130: 0 | G130: 0 | H130: 0 | I130: 0 | K130: 0
A131: =A8 -> Mayor and Council | I131: 0
A132: =A9 -> Municipal Manager, Town Secretary and Chief Executive | I132: 0
A133: =A10 -> Finance and administration | C133: =SUM(C134:C147) -> 0 | D133: 0 | E133: 0 | F133: 0 | G133: 0 | H133: 0 | I133: 0 | K133: =SUM(K134:K147) -> 0
A134: =A11 -> Administrative and Corporate Support | I134: 0
A135: Asset Management | I135: 0
A136: Budget and Treasury Office | I136: 0
A137: Finance | I137: 0
A138: Fleet Management | I138: 0
A139: Human Resources | I139: 0
A140: Information Technology | I140: 0
A141: Legal Services | I141: 0
A142: Marketing, Customer Relations, Publicity and Media Co-ordination | I142: 0
A143: Property Services | I143: 0
A144: Risk Management | I144: 0
A145: Security Services | I145: 0
A146: Supply Chain Management | I146: 0
A147: Valuation Service | I147: 0
A148: =A25 -> Internal audit | C148: =SUM(C149:C149) -> 0 | D148: 0 | E148: 0 | F148: 0 | G148: 0 | H148: 0 | I148: 0 | K148: =SUM(K149:K149) -> 0
A149: =A26 -> Governance Function | I149: 0
A150: =A27 -> Community and public safety | C150: =C151+C173+C179+C186+C189 -> 0 | D150: 0 | E150: 0 | F150: 0 | G150: 0 | H150: 0 | I150: 0 | K150: =K151+K173+K179+K186+K189 -> 0
A151: =A28 -> Community and social services | C151: =SUM(C152:C172) -> 0 | D151: 0 | E151: 0 | F151: 0 | G151: 0 | H151: 0 | I151: 0 | K151: =SUM(K152:K172) -> 0
A152: =A29 -> Aged Care | I152: 0
A153: Agricultural | I153: 0
A154: Animal Care and Diseases | I154: 0
A155: Cemeteries, Funeral Parlours and Crematoriums | I155: 0
A156: Child Care Facilities | I156: 0
A157: Community Halls and Facilities | I157: 0
A158: Consumer Protection | I158: 0
A159: Cultural Matters | I159: =G159-H159 -> 0 | J159: =IF(I159=0,"",I159/H159) -> 
A160: Disaster Management | I160: =G160-H160 -> 0 | J160: =IF(I160=0,"",I160/H160) -> 
A161: Education | I161: =G161-H161 -> 0 | J161: =IF(I161=0,"",I161/H161) -> 
A162: Indigenous and Customary Law | I162: 0
A163: Industrial Promotion | I163: 0
A164: Language Policy | I164: 0
A165: Libraries and Archives | I165: 0
A166: Literacy Programmes | I166: 0
A167: Media Services | I167: 0
A168: Museums and Art Galleries | I168: 0
A169: Population Development | I169: 0
A170: Provincial Cultural Matters | I170: 0
A171: Theatres | I171: 0
A172: Zoo's | I172: 0
A173: =A50 -> Sport and recreation | C173: =SUM(C174:C178) -> 0 | D173: 0 | E173: 0 | F173: 0 | G173: 0 | H173: 0 | I173: =G173-H173 -> 0 | J173: =IF(I173=0,"",I173/H173) ->  | K173: 0
A174: Beaches and Jetties | I174: 0
A175: Casinos, Racing, Gambling, Wagering | I175: 0
A176: Community Parks (including Nurseries) | I176: 0
A177: Recreational Facilities | I177: 0
A178: Sports Grounds and Stadiums | I178: 0
A179: Public safety | C179: =SUM(C180:C185) -> 0 | D179: 0 | E179: 0 | F179: 0 | G179: 0 | H179: 0 | I179: 0 | K179: 0
A180: Civil Defence | I180: 0
A181: Cleansing | I181: 0
A182: =A59 -> Control of Public Nuisances | I182: =G182-H182 -> 0 | J182: =IF(I182=0,"",I182/H182) -> 
A183: Fencing and Fences | I183: 0
A184: Fire Fighting and Protection | I184: 0
A185: Licensing and Control of Animals | I185: 0
A186: Housing | C186: =SUM(C187:C188) -> 0 | D186: 0 | E186: 0 | F186: 0 | G186: 0 | H186: 0 | I186: =G186-H186 -> 0 | J186: =IF(I186=0,"",I186/H186) ->  | K186: =SUM(K187:K188) -> 0
A187: Housing | I187: =G187-H187 -> 0 | J187: =IF(I187=0,"",I187/H187) -> 
A188: Informal Settlements | I188: =G188-H188 -> 0 | J188: =IF(I188=0,"",I188/H188) -> 
A189: Health | C189: =SUM(C190:C196) -> 0 | D189: 0 | E189: 0 | F189: 0 | G189: 0 | H189: 0 | I189: 0 | K189: 0
A190: =A67 -> Ambulance | I190: 0
A191: Health Services | I191: 0
A192: Laboratory Services | I192: 0
A193: Food Control | I193: =G193-H193 -> 0 | J193: =IF(I193=0,"",I193/H193) -> 
A194: Health Surveillance and Prevention of Communicable Diseases including immunizations | I194: =G194-H194 -> 0 | J194: =IF(I194=0,"",I194/H194) -> 
A195: Vector Control | I195: 0
A196: Chemical Safety | I196: 0
A197: Economic and environmental services | C197: =C198+C209+C216 -> 0 | D197: 0 | E197: 0 | F197: 0 | G197: 0 | H197: 0 | I197: 0 | K197: 0
A198: Planning and development | C198: =SUM(C199:C208) -> 0 | D198: 0 | E198: 0 | F198: 0 | G198: 0 | H198: 0 | I198: 0 | K198: 0
A199: Billboards | I199: 0
A200: Corporate Wide Strategic Planning (IDPs, LEDs) | I200: 0
A201: Central City Improvement District | I201: 0
... 56 more rows

Sheet C3-FinPerf V
A1: =muni& " - "&S71C& " - "&date -> EC136 Emalahleni (Ec) - Table C3 Monthly Budget Statement - Financial Performance (revenue and expenditure by municipal vote) - M12 June
A2: =Vdesc -> Vote Description | B2: =head27 -> Ref | C2: =Head1 -> 2017/18 | D2: =Head2 -> Budget Year 2018/19
C3: =Head5 -> Audited Outcome | D3: =Head6 -> Original Budget | E3: =Head7 -> Adjusted Budget | F3: =Head38 -> Monthly actual | G3: =Head39 -> YearTD actual | H3: =Head40 -> YearTD budget | I3: =Head41 -> YTD variance | J3: =Head41 -> YTD variance | K3: =Head8 -> Full Year Forecast
A4: R thousands | J4: %
A5: Revenue by Vote | B5: 1
A6: ='Org structure'!A2 -> Vote 1 - Executive and council | C6: ='C3C'!C6 -> 0 | D6: ='C3C'!D6 -> 7015000 | E6: ='C3C'!E6 -> 7015000 | F6: ='C3C'!F6 -> 0 | G6: ='C3C'!G6 -> 0 | H6: ='C3C'!H6 -> 7015000 | I6: =G6-H6 -> -7015000 | J6: =IF(I6=0,"",I6/H6) -> -1 | K6: ='C3C'!K6 -> 7015000
A7: ='Org structure'!A3 -> Vote 2 - Corporate Services | C7: ='C3C'!C17 -> 0 | D7: ='C3C'!D17 -> 0 | E7: ='C3C'!E17 -> 0 | F7: ='C3C'!F17 -> 0 | G7: ='C3C'!G17 -> 5019.74 | H7: ='C3C'!H17 -> 0 | I7: =G7-H7 -> 5019.74 | J7: =IF(I7=0,"",I7/H7) ->  | K7: ='C3C'!K17 -> 0
A8: ='Org structure'!A4 -> Vote 3 - Budget and Treasury | C8: ='C3C'!C28 -> 0 | D8: ='C3C'!D28 -> 123607505 | E8: ='C3C'!E28 -> 123607505 | F8: ='C3C'!F28 -> 116561.73 | G8: ='C3C'!G28 -> 166857419.6 | H8: ='C3C'!H28 -> 123607505 | I8: 43249914.61 | J8: 0.3498971572 | K8: ='C3C'!K28 -> 123607505
A9: ='Org structure'!A5 -> Vote 4 - PEDTA | C9: ='C3C'!C39 -> 0 | D9: ='C3C'!D39 -> 135250 | E9: ='C3C'!E39 -> 135250 | F9: ='C3C'!F39 -> 0 | G9: ='C3C'!G39 -> 1133509.56 | H9: ='C3C'!H39 -> 135250 | I9: 998259.56 | J9: 7.380847024 | K9: ='C3C'!K39 -> 135250
A10: ='Org structure'!A6 -> Vote 5 - Community Services and Social Services | C10: ='C3C'!C50 -> 0 | D10: ='C3C'!D50 -> 16066798 | E10: ='C3C'!E50 -> 16066798 | F10: ='C3C'!F50 -> 234663.02 | G10: ='C3C'!G50 -> 11613886.17 | H10: ='C3C'!H50 -> 16066798 | I10: -4452911.83 | J10: -0.2771499231 | K10: ='C3C'!K50 -> 16066798
A11: ='Org structure'!A7 -> Vote 6 - Infrastructure Development and Human Settlement | C11: ='C3C'!C61 -> 0 | D11: ='C3C'!D61 -> 62818100 | E11: ='C3C'!E61 -> 62818100 | F11: ='C3C'!F61 -> 742465.74 | G11: ='C3C'!G61 -> 34722896.35 | H11: ='C3C'!H61 -> 62818101 | I11: -28095204.65 | J11: -0.4472469591 | K11: ='C3C'!K61 -> 62818100
A12: ='Org structure'!A8 -> Vote 7 - COMMUNITY & SOCIAL SERVICES | C12: ='C3C'!C72 -> 0 | D12: ='C3C'!D72 -> 0 | E12: ='C3C'!E72 -> 0 | F12: ='C3C'!F72 -> 0 | G12: ='C3C'!G72 -> 0 | H12: ='C3C'!H72 -> 0 | I12: 0 | K12: ='C3C'!K72 -> 0
A13: ='Org structure'!A9 -> Vote 8 - [NAME OF VOTE 8] | C13: ='C3C'!C83 -> 0 | D13: ='C3C'!D83 -> 0 | E13: ='C3C'!E83 -> 0 | F13: ='C3C'!F83 -> 0 | G13: ='C3C'!G83 -> 0 | H13: ='C3C'!H83 -> 0 | I13: 0 | K13: ='C3C'!K83 -> 0
A14: ='Org structure'!A10 -> Vote 9 - [NAME OF VOTE 9] | C14: ='C3C'!C94 -> 0 | D14: ='C3C'!D94 -> 0 | E14: ='C3C'!E94 -> 0 | F14: ='C3C'!F94 -> 0 | G14: ='C3C'!G94 -> 0 | H14: ='C3C'!H94 -> 0 | I14: 0 | K14: ='C3C'!K94 -> 0
A15: ='Org structure'!A11 -> Vote 10 - [NAME OF VOTE 10] | C15: ='C3C'!C105 -> 0 | D15: ='C3C'!D105 -> 0 | E15: ='C3C'!E105 -> 0 | F15: ='C3C'!F105 -> 0 | G15: ='C3C'!G105 -> 0 | H15: ='C3C'!H105 -> 0 | I15: 0 | K15: ='C3C'!K105 -> 0
A16: ='Org structure'!A12 -> Vote 11 - [NAME OF VOTE 11] | C16: ='C3C'!C116 -> 0 | D16: ='C3C'!D116 -> 0 | E16: ='C3C'!E116 -> 0 | F16: ='C3C'!F116 -> 0 | G16: ='C3C'!G116 -> 0 | H16: ='C3C'!H116 -> 0 | I16: 0 | K16: ='C3C'!K116 -> 0
A17: ='Org structure'!A13 -> Vote 12 - [NAME OF VOTE 12] | C17: ='C3C'!C127 -> 0 | D17: ='C3C'!D127 -> 0 | E17: ='C3C'!E127 -> 0 | F17: ='C3C'!F127 -> 0 | G17: ='C3C'!G127 -> 0 | H17: ='C3C'!H127 -> 0 | I17: 0 | K17: ='C3C'!K127 -> 0
A18: ='Org structure'!A14 -> Vote 13 - [NAME OF VOTE 13] | C18: ='C3C'!C138 -> 0 | D18: ='C3C'!D138 -> 0 | E18: ='C3C'!E138 -> 0 | F18: ='C3C'!F138 -> 0 | G18: ='C3C'!G138 -> 0 | H18: ='C3C'!H138 -> 0 | I18: 0 | K18: ='C3C'!K138 -> 0
A19: ='Org structure'!A15 -> Vote 14 - [NAME OF VOTE 14] | C19: ='C3C'!C149 -> 0 | D19: ='C3C'!D149 -> 0 | E19: ='C3C'!E149 -> 0 | F19: ='C3C'!F149 -> 0 | G19: ='C3C'!G149 -> 0 | H19: ='C3C'!H149 -> 0 | I19: 0 | K19: ='C3C'!K149 -> 0
A20: ='Org structure'!A16 -> Vote 15 - [NAME OF VOTE 15] | C20: ='C3C'!C160 -> 0 | D20: ='C3C'!D160 -> 0 | E20: ='C3C'!E160 -> 0 | F20: ='C3C'!F160 -> 0 | G20: ='C3C'!G160 -> 0 | H20: ='C3C'!H160 -> 0 | I20: 0 | K20: ='C3C'!K160 -> 0
A21: Total Revenue by Vote | B21: 2 | C21: =SUM(C6:C20) -> 0 | D21: =SUM(D6:D20) -> 209642653 | E21: 209642653 | F21: 1093690.49 | G21: 214332731.4 | H21: 209642654 | I21: 4690077.43 | J21: 0.02237177092 | K21: =SUM(K6:K20) -> 209642653
A23: Expenditure by Vote | B23: 1
A24: ='Org structure'!A2 -> Vote 1 - Executive and council | C24: ='C3C'!C174 -> 0 | D24: ='C3C'!D174 -> 34763604 | E24: ='C3C'!E174 -> 36886437 | F24: ='C3C'!F174 -> 2474177.58 | G24: ='C3C'!G174 -> 27309806.77 | H24: ='C3C'!H174 -> 36901974 | I24: =G24-H24 -> -9592167.23 | J24: =IF(I24=0,"",I24/H24) -> -0.2599364259 | K24: ='C3C'!K174 -> 36886437
A25: ='Org structure'!A3 -> Vote 2 - Corporate Services | C25: ='C3C'!C185 -> 0 | D25: ='C3C'!D185 -> 21473154 | E25: ='C3C'!E185 -> 22920711 | F25: ='C3C'!F185 -> 5 | G25: ='C3C'!G185 -> 12057762.92 | H25: ='C3C'!H185 -> 22248559 | I25: -10190796.08 | J25: -0.4580429717 | K25: ='C3C'!K185 -> 22920711
A26: ='Org structure'!A4 -> Vote 3 - Budget and Treasury | C26: ='C3C'!C196 -> 0 | D26: ='C3C'!D196 -> 31767072 | E26: ='C3C'!E196 -> 32818032 | F26: ='C3C'!F196 -> 4118556.97 | G26: ='C3C'!G196 -> 55825281.13 | H26: ='C3C'!H196 -> 32195875 | I26: 23629406.13 | J26: 0.7339265086 | K26: ='C3C'!K196 -> 32818032
A27: ='Org structure'!A5 -> Vote 4 - PEDTA | C27: ='C3C'!C207 -> 0 | D27: ='C3C'!D207 -> 8731295 | E27: ='C3C'!E207 -> 8784955 | F27: ='C3C'!F207 -> 973266.86 | G27: ='C3C'!G207 -> 7053996.33 | H27: ='C3C'!H207 -> 8855569 | I27: -1801572.67 | J27: -0.2034395159 | K27: ='C3C'!K207 -> 8784955
A28: ='Org structure'!A6 -> Vote 5 - Community Services and Social Services | C28: ='C3C'!C218 -> 0 | D28: ='C3C'!D218 -> 41658125 | E28: ='C3C'!E218 -> 42321085 | F28: ='C3C'!F218 -> 3647503.98 | G28: ='C3C'!G218 -> 27184891.88 | H28: ='C3C'!H218 -> 42875669 | I28: -15690777.12 | J28: -0.3659599369 | K28: ='C3C'!K218 -> 42321085
A29: ='Org structure'!A7 -> Vote 6 - Infrastructure Development and Human Settlement | C29: ='C3C'!C229 -> 0 | D29: ='C3C'!D229 -> 57083872 | E29: ='C3C'!E229 -> 57438332 | F29: ='C3C'!F229 -> 2113366.52 | G29: ='C3C'!G229 -> 18748603.91 | H29: ='C3C'!H229 -> 57925547 | I29: -39176943.09 | J29: -0.6763327257 | K29: ='C3C'!K229 -> 57438332
A30: ='Org structure'!A8 -> Vote 7 - COMMUNITY & SOCIAL SERVICES | C30: ='C3C'!C240 -> 0 | D30: ='C3C'!D240 -> 0 | E30: ='C3C'!E240 -> 0 | F30: ='C3C'!F240 -> 0 | G30: ='C3C'!G240 -> 0 | H30: ='C3C'!H240 -> 0 | I30: 0 | J30: =IF(I30=0,"",I30/H30) ->  | K30: ='C3C'!K240 -> 0
A31: ='Org structure'!A9 -> Vote 8 - [NAME OF VOTE 8] | C31: ='C3C'!C251 -> 0 | D31: ='C3C'!D251 -> 0 | E31: ='C3C'!E251 -> 0 | F31: ='C3C'!F251 -> 0 | G31: ='C3C'!G251 -> 0 | H31: ='C3C'!H251 -> 0 | I31: 0 | K31: ='C3C'!K251 -> 0
A32: ='Org structure'!A10 -> Vote 9 - [NAME OF VOTE 9] | C32: ='C3C'!C262 -> 0 | D32: ='C3C'!D262 -> 0 | E32: ='C3C'!E262 -> 0 | F32: ='C3C'!F262 -> 0 | G32: ='C3C'!G262 -> 0 | H32: ='C3C'!H262 -> 0 | I32: 0 | K32: ='C3C'!K262 -> 0
A33: ='Org structure'!A11 -> Vote 10 - [NAME OF VOTE 10] | C33: ='C3C'!C273 -> 0 | D33: ='C3C'!D273 -> 0 | E33: ='C3C'!E273 -> 0 | F33: ='C3C'!F273 -> 0 | G33: ='C3C'!G273 -> 0 | H33: ='C3C'!H273 -> 0 | I33: 0 | J33: =IF(I33=0,"",I33/H33) ->  | K33: ='C3C'!K273 -> 0
A34: ='Org structure'!A12 -> Vote 11 - [NAME OF VOTE 11] | C34: ='C3C'!C284 -> 0 | D34: ='C3C'!D284 -> 0 | E34: ='C3C'!E284 -> 0 | F34: ='C3C'!F284 -> 0 | G34: ='C3C'!G284 -> 0 | H34: ='C3C'!H284 -> 0 | I34: 0 | J34: =IF(I34=0,"",I34/H34) ->  | K34: ='C3C'!K284 -> 0
A35: ='Org structure'!A13 -> Vote 12 - [NAME OF VOTE 12] | C35: ='C3C'!C295 -> 0 | D35: ='C3C'!D295 -> 0 | E35: ='C3C'!E295 -> 0 | F35: ='C3C'!F295 -> 0 | G35: ='C3C'!G295 -> 0 | H35: ='C3C'!H295 -> 0 | I35: 0 | J35: =IF(I35=0,"",I35/H35) ->  | K35: ='C3C'!K295 -> 0
A36: ='Org structure'!A14 -> Vote 13 - [NAME OF VOTE 13] | C36: ='C3C'!C306 -> 0 | D36: ='C3C'!D306 -> 0 | E36: ='C3C'!E306 -> 0 | F36: ='C3C'!F306 -> 0 | G36: ='C3C'!G306 -> 0 | H36: ='C3C'!H306 -> 0 | I36: 0 | J36: =IF(I36=0,"",I36/H36) ->  | K36: ='C3C'!K306 -> 0
A37: ='Org structure'!A15 -> Vote 14 - [NAME OF VOTE 14] | C37: ='C3C'!C317 -> 0 | D37: ='C3C'!D317 -> 0 | E37: ='C3C'!E317 -> 0 | F37: ='C3C'!F317 -> 0 | G37: ='C3C'!G317 -> 0 | H37: ='C3C'!H317 -> 0 | I37: 0 | J37: =IF(I37=0,"",I37/H37) ->  | K37: ='C3C'!K317 -> 0
A38: ='Org structure'!A16 -> Vote 15 - [NAME OF VOTE 15] | C38: ='C3C'!C328 -> 0 | D38: ='C3C'!D328 -> 0 | E38: ='C3C'!E328 -> 0 | F38: ='C3C'!F328 -> 0 | G38: ='C3C'!G328 -> 0 | H38: ='C3C'!H328 -> 0 | I38: 0 | K38: ='C3C'!K328 -> 0
A39: Total Expenditure by Vote | B39: 2 | C39: =SUM(C24:C38) -> 0 | D39: =SUM(D24:D38) -> 195477122 | E39: 201169552 | F39: 13326876.91 | G39: 148180342.9 | H39: 201003193 | I39: -52822850.06 | J39: =IF(I39=0,"",I39/H39) -> -0.2627960744 | K39: =SUM(K24:K38) -> 201169552
A40: =result -> Surplus/ (Deficit) for the year | B40: 2 | C40: =C21-C39 -> 0 | D40: 14165531 | E40: 8473101 | F40: -12233186.42 | G40: 66152388.49 | H40: 8639461 | I40: =I21-I39 -> 57512927.49 | J40: =IF(I40=0,"",I40/H40) -> 6.657004122 | K40: =K21-K39 -> 8473101
A41: =head27a -> References
A42: 1. Insert 'Vote'; e.g. Department, if different to standard classification structure
A43: 2. Must reconcile to Monthly Budget Statement - Financial Performance Statement (standard classification)

Sheet C3C
A1: =muni& " - "&S71C& " - "&"A"& " - "&date -> EC136 Emalahleni (Ec) - Table C3 Monthly Budget Statement - Financial Performance (revenue and expenditure by municipal vote) - A - M12 June
A2: =Vdesc -> Vote Description | B2: =head27 -> Ref | C2: =Head1 -> 2017/18 | D2: =Head2 -> Budget Year 2018/19 | L2: =Head4 -> 
A3: R thousand | C3: =Head5 -> Audited Outcome | D3: =Head6 -> Original Budget | E3: =Head7 -> Adjusted Budget | F3: =Head38 -> Monthly actual | G3: =Head39 -> YearTD actual | H3: =Head40 -> YearTD budget | I3: =Head41 -> YTD variance | J3: =Head41 -> YTD variance | K3: =Head8 -> Full Year Forecast | L3: =Head12 -> Forecast 2010/11 | M3: =Head13 -> Forecast 2011/12 | N3: =Head14 -> Forecast 2012/13 | O3: =Head15 -> Forecast 2013/14 | P3: =Head16 -> Forecast 2014/15 | Q3: =Head17 -> Forecast 2015/16 | R3: =Head18 -> Forecast 2016/17 | S3: =Head19 -> Forecast 2017/18 | T3: =Head20 -> Forecast 2018/19 | U3: =Head21 -> Forecast 2019/20 | V3: =Head22 -> Forecast 2020/21 | W3: =Head23 -> Forecast 2021/22
J4: %
A5: Revenue by Vote | B5: 1
A6: ='Org structure'!A2 -> Vote 1 - Executive and council | C6: 0 | D6: 7015000 | E6: 7015000 | F6: 0 | G6: 0 | H6: 7015000 | I6: =G6-H6 -> -7015000 | J6: =IF(I6=0,"",I6/H6) -> -1 | K6: 7015000
A7: ='Org structure'!E3 -> 1.1 - [Name of sub-vote] | I7: 0
A8: ='Org structure'!E4 -> 0 | I8: 0
A9: ='Org structure'!E5 -> 0 | I9: 0
A10: ='Org structure'!E6 -> 0 | I10: 0
A11: ='Org structure'!E7 -> 0 | I11: 0
A12: ='Org structure'!E8 -> 0 | I12: 0
A13: ='Org structure'!E9 -> 0 | I13: 0
A14: ='Org structure'!E10 -> 0 | I14: 0
A15: ='Org structure'!E11 -> 0 | I15: 0
A16: ='Org structure'!E12 -> 0 | I16: 0
A17: ='Org structure'!A3 -> Vote 2 - Corporate Services | C17: 0 | D17: 0 | E17: 0 | F17: 0 | G17: 5019.74 | H17: 0 | I17: 5019.74 | K17: 0
A18: ='Org structure'!E14 -> 2.1 - [Name of sub-vote] | I18: 0
A19: ='Org structure'!E15 -> 0 | I19: 0
A20: ='Org structure'!E16 -> 0 | I20: 0
A21: ='Org structure'!E17 -> 0 | I21: 0
A22: ='Org structure'!E18 -> 0 | I22: 0
A23: ='Org structure'!E19 -> 0 | I23: 0
A24: ='Org structure'!E20 -> 0 | I24: 0
A25: ='Org structure'!E21 -> 0 | I25: 0
A26: ='Org structure'!E22 -> 0 | I26: 0
A27: ='Org structure'!E23 -> 0 | I27: 0
A28: ='Org structure'!A4 -> Vote 3 - Budget and Treasury | C28: 0 | D28: 123607505 | E28: 123607505 | F28: 116561.73 | G28: 166857419.6 | H28: 123607505 | I28: 43249914.61 | J28: 0.3498971572 | K28: 123607505
A29: ='Org structure'!E25 -> 3.1 - [Name of sub-vote] | I29: 0
A30: ='Org structure'!E26 -> 0 | I30: 0
A31: ='Org structure'!E27 -> 0 | I31: 0
A32: ='Org structure'!E28 -> 0 | I32: 0
A33: ='Org structure'!E29 -> 0 | I33: 0
A34: ='Org structure'!E30 -> 0 | I34: 0
A35: ='Org structure'!E31 -> 0 | I35: 0
A36: ='Org structure'!E32 -> 0 | I36: 0
A37: ='Org structure'!E33 -> 0 | I37: 0
A38: ='Org structure'!E34 -> 0 | I38: 0
A39: ='Org structure'!A5 -> Vote 4 - PEDTA | C39: 0 | D39: 135250 | E39: 135250 | F39: 0 | G39: 1133509.56 | H39: 135250 | I39: 998259.56 | J39: 7.380847024 | K39: 135250
A40: ='Org structure'!E36 -> 4.1 - [Name of sub-vote] | I40: 0
A41: ='Org structure'!E37 -> 0 | I41: 0
A42: ='Org structure'!E38 -> 0 | I42: 0
A43: ='Org structure'!E39 -> 0 | I43: 0
A44: ='Org structure'!E40 -> 0 | I44: 0
A45: ='Org structure'!E41 -> 0 | I45: 0
A46: ='Org structure'!E42 -> 0 | I46: 0
A47: ='Org structure'!E43 -> 0 | I47: 0
A48: ='Org structure'!E44 -> 0 | I48: 0
A49: ='Org structure'!E45 -> 0 | I49: 0
A50: ='Org structure'!A6 -> Vote 5 - Community Services and Social Services | C50: 0 | D50: 16066798 | E50: 16066798 | F50: 234663.02 | G50: 11613886.17 | H50: 16066798 | I50: -4452911.83 | J50: -0.2771499231 | K50: 16066798
A51: ='Org structure'!E47 -> 5.1 - [Name of sub-vote] | I51: 0
A52: ='Org structure'!E48 -> 0 | I52: 0
A53: ='Org structure'!E49 -> 0 | I53: 0
A54: ='Org structure'!E50 -> 0 | I54: 0
A55: ='Org structure'!E51 -> 0 | I55: 0
A56: ='Org structure'!E52 -> 0 | I56: 0
A57: ='Org structure'!E53 -> 0 | I57: 0
A58: ='Org structure'!E54 -> 0 | I58: 0
A59: ='Org structure'!E55 -> 0 | I59: 0
A60: ='Org structure'!E56 -> 0 | I60: 0
A61: ='Org structure'!A7 -> Vote 6 - Infrastructure Development and Human Settlement | C61: 0 | D61: 62818100 | E61: 62818100 | F61: 742465.74 | G61: 34722896.35 | H61: 62818101 | I61: -28095204.65 | J61: -0.4472469591 | K61: 62818100
A62: ='Org structure'!E58 -> 6.1 - [Name of sub-vote] | I62: 0
A63: ='Org structure'!E59 -> 0 | I63: 0
A64: ='Org structure'!E60 -> 0 | I64: 0
A65: ='Org structure'!E61 -> 0 | I65: 0
A66: ='Org structure'!E62 -> 0 | I66: 0
A67: ='Org structure'!E63 -> 0 | I67: 0
A68: ='Org structure'!E64 -> 0 | I68: 0
A69: ='Org structure'!E65 -> 0 | I69: 0
A70: ='Org structure'!E66 -> 0 | I70: =G70-H70 -> 0 | J70: =IF(I70=0,"",I70/H70) -> 
A71: ='Org structure'!E67 -> 0 | I71: 0
A72: ='Org structure'!A8 -> Vote 7 - COMMUNITY & SOCIAL SERVICES | C72: 0 | D72: 0 | E72: 0 | F72: 0 | G72: 0 | H72: 0 | I72: 0 | K72: 0
A73: ='Org structure'!E69 -> 7.1 - [Name of sub-vote] | I73: 0
A74: ='Org structure'!E70 -> 0 | I74: 0
A75: ='Org structure'!E71 -> 0 | I75: 0
A76: ='Org structure'!E72 -> 0 | I76: 0
A77: ='Org structure'!E73 -> 0 | I77: 0
A78: ='Org structure'!E74 -> 0 | I78: 0
A79: ='Org structure'!E75 -> 0 | I79: 0
A80: ='Org structure'!E76 -> 0 | I80: 0
A81: ='Org structure'!E77 -> 0 | I81: 0
A82: ='Org structure'!E78 -> 0 | I82: 0
A83: ='Org structure'!A9 -> Vote 8 - [NAME OF VOTE 8] | C83: =SUM(C84:C93) -> 0 | D83: =SUM(D84:D93) -> 0 | E83: 0 | F83: 0 | G83: 0 | H83: 0 | I83: 0 | K83: 0
A84: ='Org structure'!E80 -> 8.1 - [Name of sub-vote] | I84: 0
A85: ='Org structure'!E81 -> 0 | I85: 0
A86: ='Org structure'!E82 -> 0 | I86: 0
A87: ='Org structure'!E83 -> 0 | I87: 0
A88: ='Org structure'!E84 -> 0 | I88: 0
A89: ='Org structure'!E85 -> 0 | I89: 0
A90: ='Org structure'!E86 -> 0 | I90: 0
A91: ='Org structure'!E87 -> 0 | I91: 0
A92: ='Org structure'!E88 -> 0 | I92: 0
A93: ='Org structure'!E89 -> 0 | I93: 0
A94: ='Org structure'!A10 -> Vote 9 - [NAME OF VOTE 9] | C94: =SUM(C95:C104) -> 0 | D94: =SUM(D95:D104) -> 0 | E94: 0 | F94: 0 | G94: 0 | H94: 0 | I94: 0 | K94: 0
A95: ='Org structure'!E91 -> 9.1 - [Name of sub-vote] | I95: 0
A96: ='Org structure'!E92 -> 0 | I96: 0
A97: ='Org structure'!E93 -> 0 | I97: 0
A98: ='Org structure'!E94 -> 0 | I98: 0
A99: ='Org structure'!E95 -> 0 | I99: 0
A100: ='Org structure'!E96 -> 0 | I100: 0
A101: ='Org structure'!E97 -> 0 | I101: 0
A102: ='Org structure'!E98 -> 0 | I102: 0
A103: ='Org structure'!E99 -> 0 | I103: 0
A104: ='Org structure'!E100 -> 0 | I104: 0
A105: ='Org structure'!A11 -> Vote 10 - [NAME OF VOTE 10] | C105: =SUM(C106:C115) -> 0 | D105: =SUM(D106:D115) -> 0 | E105: 0 | F105: 0 | G105: 0 | H105: 0 | I105: 0 | K105: 0
A106: ='Org structure'!E102 -> 10.1 - [Name of sub-vote] | I106: 0
A107: ='Org structure'!E103 -> 0 | I107: 0
A108: ='Org structure'!E104 -> 0 | I108: 0
A109: ='Org structure'!E105 -> 0 | I109: 0
A110: ='Org structure'!E106 -> 0 | I110: 0
A111: ='Org structure'!E107 -> 0 | I111: 0
A112: ='Org structure'!E108 -> 0 | I112: 0
A113: ='Org structure'!E109 -> 0 | I113: 0
A114: ='Org structure'!E110 -> 0 | I114: 0
A115: ='Org structure'!E111 -> 0 | I115: 0
A116: ='Org structure'!A12 -> Vote 11 - [NAME OF VOTE 11] | C116: =SUM(C117:C126) -> 0 | D116: =SUM(D117:D126) -> 0 | E116: 0 | F116: 0 | G116: 0 | H116: 0 | I116: 0 | K116: 0
A117: ='Org structure'!E113 -> 11.1 - [Name of sub-vote] | I117: 0
A118: ='Org structure'!E114 -> 0 | I118: 0
A119: ='Org structure'!E115 -> 0 | I119: 0
A120: ='Org structure'!E116 -> 0 | I120: 0
A121: ='Org structure'!E117 -> 0 | I121: 0
A122: ='Org structure'!E118 -> 0 | I122: 0
A123: ='Org structure'!E119 -> 0 | I123: 0
A124: ='Org structure'!E120 -> 0 | I124: 0
A125: ='Org structure'!E121 -> 0 | I125: 0
A126: ='Org structure'!E122 -> 0 | I126: 0
A127: ='Org structure'!A13 -> Vote 12 - [NAME OF VOTE 12] | C127: =SUM(C128:C137) -> 0 | D127: =SUM(D128:D137) -> 0 | E127: 0 | F127: 0 | G127: 0 | H127: 0 | I127: 0 | K127: 0
A128: ='Org structure'!E124 -> 12.1 - [Name of sub-vote] | I128: 0
A129: ='Org structure'!E125 -> 0 | I129: 0
A130: ='Org structure'!E126 -> 0 | I130: 0
A131: ='Org structure'!E127 -> 0 | I131: 0
A132: ='Org structure'!E128 -> 0 | I132: 0
A133: ='Org structure'!E129 -> 0 | I133: 0
A134: ='Org structure'!E130 -> 0 | I134: =G134-H134 -> 0 | J134: =IF(I134=0,"",I134/H134) -> 
A135: ='Org structure'!E131 -> 0 | I135: 0
A136: ='Org structure'!E132 -> 0 | I136: 0
A137: ='Org structure'!E133 -> 0 | I137: 0
A138: ='Org structure'!A14 -> Vote 13 - [NAME OF VOTE 13] | C138: =SUM(C139:C148) -> 0 | D138: =SUM(D139:D148) -> 0 | E138: 0 | F138: 0 | G138: 0 | H138: 0 | I138: 0 | K138: 0
A139: ='Org structure'!E135 -> 13.1 - [Name of sub-vote] | I139: 0
A140: ='Org structure'!E136 -> 0 | I140: 0
A141: ='Org structure'!E137 -> 0 | I141: 0
A142: ='Org structure'!E138 -> 0 | I142: 0
A143: ='Org structure'!E139 -> 0 | I143: 0
A144: ='Org structure'!E140 -> 0 | I144: 0
A145: ='Org structure'!E141 -> 0 | I145: 0
A146: ='Org structure'!E142 -> 0 | I146: 0
A147: ='Org structure'!E143 -> 0 | I147: 0
A148: ='Org structure'!E144 -> 0 | I148: 0
A149: ='Org structure'!A15 -> Vote 14 - [NAME OF VOTE 14] | C149: =SUM(C150:C159) -> 0 | D149: =SUM(D150:D159) -> 0 | E149: 0 | F149: 0 | G149: 0 | H149: 0 | I149: 0 | K149: 0
A150: ='Org structure'!E146 -> 14.1 - [Name of sub-vote] | I150: 0
A151: ='Org structure'!E147 -> 0 | I151: 0
A152: ='Org structure'!E148 -> 0 | I152: 0
A153: ='Org structure'!E149 -> 0 | I153: 0
A154: ='Org structure'!E150 -> 0 | I154: 0
A155: ='Org structure'!E151 -> 0 | I155: 0
A156: ='Org structure'!E152 -> 0 | I156: 0
A157: ='Org structure'!E153 -> 0 | I157: 0
A158: ='Org structure'!E154 -> 0 | I158: 0
A159: ='Org structure'!E155 -> 0 | I159: 0
A160: ='Org structure'!A16 -> Vote 15 - [NAME OF VOTE 15] | C160: =SUM(C161:C170) -> 0 | D160: =SUM(D161:D170) -> 0 | E160: 0 | F160: 0 | G160: 0 | H160: 0 | I160: 0 | K160: 0
A161: ='Org structure'!E157 -> 15.1 - [Name of sub-vote] | I161: 0
A162: ='Org structure'!E158 -> 0 | I162: 0
A163: ='Org structure'!E159 -> 0 | I163: 0
A164: ='Org structure'!E160 -> 0 | I164: 0
A165: ='Org structure'!E161 -> 0 | I165: 0
A166: ='Org structure'!E162 -> 0 | I166: 0
A167: ='Org structure'!E163 -> 0 | I167: 0
A168: ='Org structure'!E164 -> 0 | I168: 0
A169: ='Org structure'!E165 -> 0 | I169: 0
A170: ='Org structure'!E166 -> 0 | I170: 0 | L170: =SUM(L78:L81) -> 0 | M170: 0 | N170: 0 | O170: 0 | P170: 0 | Q170: 0 | R170: 0 | S170: 0 | T170: 0 | U170: 0 | V170: 0 | W170: 0
A171: Total Revenue by Vote | B171: 2 | C171: =C6+C17+C28+C39+C50+C61+C72+C83+C94+C105+C116+C127+C138+C149+C160 -> 0 | D171: =D6+D17+D28+D39+D50+D61+D72+D83+D94+D105+D116+D127+D138+D149+D160 -> 209642653 | E171: 209642653 | F171: 1093690.49 | G171: 214332731.4 | H171: 209642654 | I171: 4690077.43 | J171: 0.02237177092 | K171: 209642653
I172: 0
A173: Expenditure by Vote | B173: 1 | I173: 0
A174: ='Org structure'!A2 -> Vote 1 - Executive and council | C174: 0 | D174: 34763604 | E174: 36886437 | F174: 2474177.58 | G174: 27309806.77 | H174: 36901974 | I174: -9592167.23 | J174: -0.2599364259 | K174: 36886437
A175: ='Org structure'!E3 -> 1.1 - [Name of sub-vote] | I175: 0
A176: ='Org structure'!E4 -> 0 | I176: 0
A177: ='Org structure'!E5 -> 0 | I177: 0
A178: ='Org structure'!E6 -> 0 | I178: 0
A179: ='Org structure'!E7 -> 0 | I179: 0
A180: ='Org structure'!E8 -> 0 | I180: 0
A181: ='Org structure'!E9 -> 0 | I181: 0
A182: ='Org structure'!E10 -> 0 | I182: 0
A183: ='Org structure'!E11 -> 0 | I183: 0
A184: ='Org structure'!E12 -> 0 | I184: 0
A185: ='Org structure'!A3 -> Vote 2 - Corporate Services | C185: 0 | D185: 21473154 | E185: 22920711 | F185: 5 | G185: 12057762.92 | H185: 22248559 | I185: -10190796.08 | J185: -0.4580429717 | K185: 22920711
A186: ='Org structure'!E14 -> 2.1 - [Name of sub-vote] | I186: 0
A187: ='Org structure'!E15 -> 0 | I187: 0
A188: ='Org structure'!E16 -> 0 | I188: 0
A189: ='Org structure'!E17 -> 0 | I189: 0
A190: ='Org structure'!E18 -> 0 | I190: 0
A191: ='Org structure'!E19 -> 0 | I191: 0
A192: ='Org structure'!E20 -> 0 | I192: 0
A193: ='Org structure'!E21 -> 0 | I193: 0
A194: ='Org structure'!E22 -> 0 | I194: 0
A195: ='Org structure'!E23 -> 0 | I195: 0
A196: ='Org structure'!A4 -> Vote 3 - Budget and Treasury | C196: 0 | D196: 31767072 | E196: 32818032 | F196: 4118556.97 | G196: 55825281.13 | H196: 32195875 | I196: 23629406.13 | J196: 0.7339265086 | K196: 32818032
A197: ='Org structure'!E25 -> 3.1 - [Name of sub-vote] | I197: 0
A198: ='Org structure'!E26 -> 0 | I198: =G198-H198 -> 0 | J198: =IF(I198=0,"",I198/H198) -> 
A199: ='Org structure'!E27 -> 0 | I199: 0
A200: ='Org structure'!E28 -> 0 | I200: 0
... 147 more rows

Sheet C4-FinPerf RE
A1: =muni& " - "&S71B& " - "&date -> EC136 Emalahleni (Ec) - Table C4 Monthly Budget Statement - Financial Performance (revenue and expenditure) - M12 June
A2: =desc -> Description | B2: =head27 -> Ref | C2: =Head1 -> 2017/18 | D2: =Head2 -> Budget Year 2018/19
C3: =Head5 -> Audited Outcome | D3: =Head6 -> Original Budget | E3: =Head7 -> Adjusted Budget | F3: =Head38 -> Monthly actual | G3: =Head39 -> YearTD actual | H3: =Head40 -> YearTD budget | I3: =Head41 -> YTD variance | J3: =Head41 -> YTD variance | K3: =Head8 -> Full Year Forecast
A4: R thousands | J4: %
A5: Revenue By Source
A6: Property rates | C6: 0 | D6: 4549700 | E6: 4549700 | F6: 0 | G6: 5382209.71 | H6: 4549700 | I6: =G6-H6 -> 832509.71 | J6: =IF(I6=0,"",I6/H6) -> 0.1829812317 | K6: 4549700
A7: Service charges - electricity revenue | C7: 0 | D7: 15946231 | E7: 15946231 | F7: 724874.24 | G7: 15368252.72 | H7: 15946232 | I7: -577979.28 | J7: -0.03624550803 | K7: 15946231
A8: Service charges - water revenue | C8: 0 | D8: 0 | E8: 0 | F8: 0 | G8: 0 | H8: 0 | I8: 0 | K8: 0
A9: Service charges - sanitation revenue | C9: 0 | D9: 0 | E9: 0 | F9: 0 | G9: 0 | H9: 0 | I9: 0 | K9: 0
A10: Service charges - refuse revenue | C10: 0 | D10: 6024087 | E10: 6024087 | F10: 361.78 | G10: 4974121.13 | H10: 6024087 | I10: -1049965.87 | J10: -0.174294606 | K10: 6024087
A11: Service charges - other | C11: 0 | D11: 0 | E11: 0 | F11: 0 | G11: 0 | H11: 0 | I11: 0 | K11: 0
A12: Rental of facilities and equipment | C12: 0 | D12: 612390 | E12: 612390 | F12: 20000 | G12: 855884.1 | H12: 612390 | I12: 243494.1 | J12: 0.3976127958 | K12: 612390
A13: Interest earned - external investments | C13: 0 | D13: 1045454 | E13: 1045454 | F13: 114818.3 | G13: 660660.28 | H13: 1045454 | I13: -384793.72 | J13: -0.3680637503 | K13: 1045454
A14: Interest earned - outstanding debtors | C14: 0 | D14: 5595124 | E14: 5595124 | F14: 0 | G14: 5038876.98 | H14: 5595124 | I14: -556247.02 | J14: -0.09941638827 | K14: 5595124
A15: Dividends received | C15: 0 | D15: 0 | E15: 0 | F15: 0 | G15: 0 | H15: 0 | I15: 0 | K15: 0
A16: Fines, penalties and forfeits | C16: 0 | D16: 49400 | E16: 49400 | F16: 0 | G16: 9311.74 | H16: 49400 | I16: -40088.26 | J16: -0.8115032389 | K16: 49400
A17: Licences and permits | C17: 0 | D17: 1442111 | E17: 1442111 | F17: 148003.04 | G17: 1864292.26 | H17: 1442111 | I17: 422181.26 | J17: 0.2927522639 | K17: 1442111
A18: Agency services | C18: 0 | D18: 1312897 | E18: 1312897 | F18: 62402.51 | G18: 1268750.12 | H18: 1312897 | I18: -44146.88 | J18: -0.03362554717 | K18: 1312897
A19: Transfers and subsidies | C19: 0 | D19: 126886100 | E19: 126886100 | F19: 0 | G19: 158568740.2 | H19: 126886100 | I19: 31682640.18 | J19: 0.2496935455 | K19: 126886100
A20: Other revenue | C20: 0 | D20: 3922259 | E20: 3922259 | F20: 23230.62 | G20: 3226696.31 | H20: 3922259 | I20: -695562.69 | J20: -0.1773372666 | K20: 3922259
A21: Gains on disposal of PPE | C21: 0 | D21: 0 | E21: 0 | F21: 0 | G21: 0 | H21: 0 | I21: 0 | K21: 0
A22: Total Revenue (excluding capital transfers and contributions) | C22: =SUM(C6:C21) -> 0 | D22: 167385753 | E22: 167385753 | F22: 1093690.49 | G22: 197217795.5 | H22: 167385754 | I22: 29832041.53 | J22: 0.1782233005 | K22: =SUM(K6:K21) -> 167385753
A24: Expenditure By Type
A25: Employee related costs | C25: 0 | D25: 88123211 | E25: 88326344 | F25: 8377734.2 | G25: 82972149.11 | H25: 89027832 | I25: =G25-H25 -> -6055682.89 | J25: =IF(I25=0,"",I25/H25) -> -0.0680201096 | K25: 88326344
A26: Remuneration of councillors | C26: 0 | D26: 13134669 | E26: 13134669 | F26: 1085057.31 | G26: 12873805.88 | H26: 14871762 | I26: -1997956.12 | J26: -0.1343456223 | K26: 13134669
A27: Debt impairment | C27: 0 | D27: 6000000 | E27: 6000000 | F27: 0 | G27: 0 | H27: 6000000 | I27: -6000000 | J27: -1 | K27: 6000000
A28: Depreciation & asset impairment | C28: 0 | D28: 23721031 | E28: 23721031 | F28: 0 | G28: 0 | H28: 23721031 | I28: -23721031 | J28: -1 | K28: 23721031
A29: Finance charges | C29: 0 | D29: 264650 | E29: 264650 | F29: 0 | G29: 13251.64 | H29: 259758 | I29: -246506.36 | J29: -0.9489846703 | K29: 264650
A30: Bulk purchases | C30: 0 | D30: 13070000 | E30: 13070000 | F30: 940909.17 | G30: 14158594.28 | H30: 13070000 | I30: 1088594.28 | J30: 0.0832895394 | K30: 13070000
A31: Other materials | C31: 0 | D31: 3595586 | E31: 3995388 | F31: 315187.06 | G31: 2029784.93 | H31: 4152129 | I31: -2122344.07 | J31: -0.5111459856 | K31: 3995388
A32: Contracted services | C32: 0 | D32: 19841981 | E32: 20963838 | F32: 1968322.55 | G32: 15339031.05 | H32: 20716195 | I32: -5377163.95 | J32: -0.2595633006 | K32: 20963838
A33: Transfers and subsidies | C33: 0 | D33: 145012 | E33: 145012 | F33: 0 | G33: 79129.6 | H33: 148762 | I33: -69632.4 | J33: -0.4680792138 | K33: 145012
A34: Other expenditure | C34: 0 | D34: 27580982 | E34: 31548620 | F34: 1915628.67 | G34: 20714596.45 | H34: 29035724 | I34: -8321127.55 | J34: -0.2865824028 | K34: 31548620
A35: Loss on disposal of PPE | C35: 0 | D35: 0 | E35: 0 | F35: 0 | G35: 0 | H35: 0 | I35: 0 | K35: 0
A36: Total Expenditure | C36: =SUM(C25:C35) -> 0 | D36: =SUM(D25:D35) -> 195477122 | E36: =SUM(E25:E35) -> 201169552 | F36: 14602838.96 | G36: 148180342.9 | H36: 201003193 | I36: -52822850.06 | J36: -0.2627960744 | K36: 201169552
A38: Surplus/(Deficit) | C38: =C22-C36 -> 0 | D38: -28091369 | E38: -33783799 | F38: -13509148.47 | G38: 49037452.59 | H38: -33617439 | I38: =I22-I36 -> 82654891.59 | J38: -2.458690907 | K38: =K22-K36 -> -33783799
A39: Transfers and subsidies - capital (monetary allocations) (National / Provincial and District) | C39: 0 | D39: 42256900 | E39: 42256900 | F39: 0 | G39: 17114935.9 | H39: 42256900 | I39: =G39-H39 -> -25141964.1 | J39: -0.5949789052 | K39: 42256900
A40: Transfers and subsidies - capital (monetary allocations) (National / Provincial Departmental Agencies, Households, Non-profit Institutions, Private Enterprises, Public Corporatons, Higher Educational Institutions) | C40: 0 | D40: 0 | E40: 0 | F40: 0 | G40: 0 | H40: 0 | I40: =G40-H40 -> 0 | K40: 0
A41: Transfers and subsidies - capital (in-kind - all) | C41: 0 | D41: 0 | E41: 0 | F41: 0 | G41: 0 | H41: 0 | I41: =G41-H41 -> 0 | K41: 0
A42: Surplus/(Deficit) after capital transfers & contributions | C42: =C38+SUM(C39:C41) -> 0 | D42: 14165531 | E42: 8473101 | F42: -13509148.47 | G42: 66152388.49 | H42: 8639461 | K42: =K38+SUM(K39:K41) -> 8473101
A43: Taxation | C43: 0 | D43: 0 | E43: 0 | F43: 0 | G43: 0 | H43: 0 | I43: =G43-H43 -> 0 | J43: =IF(I43=0,"",I43/H43) ->  | K43: 0
A44: Surplus/(Deficit) after taxation | C44: =C42-C43 -> 0 | D44: 14165531 | E44: 8473101 | F44: -13509148.47 | G44: 66152388.49 | H44: 8639461 | K44: =K42-K43 -> 8473101
A45: Attributable to minorities | C45: 0 | D45: 0 | E45: 0 | F45: 0 | G45: 0 | H45: 0 | K45: 0
A46: Surplus/(Deficit) attributable to municipality | C46: =SUM(C44:C45) -> 0 | D46: 14165531 | E46: 8473101 | F46: -13509148.47 | G46: 66152388.49 | H46: 8639461 | K46: =SUM(K44:K45) -> 8473101
A47: Share of surplus/ (deficit) of associate | C47: 0 | D47: 0 | E47: 0 | F47: 0 | G47: 0 | H47: 0 | K47: 0
A48: Surplus/ (Deficit) for the year | C48: =C46+C47 -> 0 | D48: 14165531 | E48: 8473101 | F48: -13509148.47 | G48: 66152388.49 | H48: 8639461 | K48: =K46+K47 -> 8473101
A49: =head27a -> References
A50: 1. Material variances to be explained on Table SC1
A53: =A22&" including capital transfers/contributions etc" -> Total Revenue (excluding capital transfers and contributions) including capital transfers/contributions etc | C53: =C22+SUM(C39:C41) -> 0 | D53: 209642653 | E53: 209642653 | F53: 1093690.49 | G53: 214332731.4 | H53: 209642654 | K53: =K22+SUM(K39:K41) -> 209642653

Sheet C5-Capex
A1: =muni& " - "&S71D& " - "&date -> EC136 Emalahleni (Ec) - Table C5 Monthly Budget Statement - Capital Expenditure (municipal vote, functional classification and funding) - M12 June
A2: =Vdesc -> Vote Description | B2: =head27 -> Ref | C2: =Head1 -> 2017/18 | D2: =Head2 -> Budget Year 2018/19
C3: =Head5 -> Audited Outcome | D3: =Head6 -> Original Budget | E3: =Head7 -> Adjusted Budget | F3: =Head38 -> Monthly actual | G3: =Head39 -> YearTD actual | H3: =Head40 -> YearTD budget | I3: =Head41 -> YTD variance | J3: =Head41 -> YTD variance | K3: =Head8 -> Full Year Forecast
A4: R thousands | B4: 1 | J4: %
A5: Multi-Year expenditure appropriation | B5: 2
A6: ='Org structure'!A2 -> Vote 1 - Executive and council | C6: ='C5C'!C7 -> 0 | D6: ='C5C'!D7 -> 3000001 | E6: ='C5C'!E7 -> 3000001 | F6: ='C5C'!F7 -> 0 | G6: ='C5C'!G7 -> 15339.41 | H6: ='C5C'!H7 -> 2999998 | I6: =G6-H6 -> -2984658.59 | J6: =IF(I6=0,"",I6/H6) -> -0.9948868599 | K6: ='C5C'!K7 -> 3000001
A7: ='Org structure'!A3 -> Vote 2 - Corporate Services | C7: ='C5C'!C18 -> 0 | D7: ='C5C'!D18 -> 0 | E7: ='C5C'!E18 -> 0 | F7: ='C5C'!F18 -> 0 | G7: ='C5C'!G18 -> 0 | H7: ='C5C'!H18 -> 0 | I7: =G7-H7 -> 0 | J7: =IF(I7=0,"",I7/H7) ->  | K7: ='C5C'!K18 -> 0
A8: ='Org structure'!A4 -> Vote 3 - Budget and Treasury | C8: ='C5C'!C29 -> 0 | D8: ='C5C'!D29 -> 0 | E8: ='C5C'!E29 -> 0 | F8: ='C5C'!F29 -> 2049572.27 | G8: ='C5C'!G29 -> 32101267.2 | H8: ='C5C'!H29 -> 0 | I8: =G8-H8 -> 32101267.2 | J8: =IF(I8=0,"",I8/H8) ->  | K8: ='C5C'!K29 -> 0
A9: ='Org structure'!A5 -> Vote 4 - PEDTA | C9: ='C5C'!C40 -> 0 | D9: ='C5C'!D40 -> 1200000 | E9: ='C5C'!E40 -> 1200000 | F9: ='C5C'!F40 -> 0 | G9: ='C5C'!G40 -> 0 | H9: ='C5C'!H40 -> 1200000 | I9: -1200000 | J9: -1 | K9: ='C5C'!K40 -> 1200000
A10: ='Org structure'!A6 -> Vote 5 - Community Services and Social Services | C10: ='C5C'!C51 -> 0 | D10: ='C5C'!D51 -> 28749174 | E10: ='C5C'!E51 -> 28749174 | F10: ='C5C'!F51 -> 479978.22 | G10: ='C5C'!G51 -> 479978.22 | H10: ='C5C'!H51 -> 28749173 | I10: -28269194.78 | J10: -0.9833046251 | K10: ='C5C'!K51 -> 28749174
A11: ='Org structure'!A7 -> Vote 6 - Infrastructure Development and Human Settlement | C11: ='C5C'!C62 -> 0 | D11: ='C5C'!D62 -> 13282727 | E11: ='C5C'!E62 -> 13282727 | F11: ='C5C'!F62 -> 2183484.36 | G11: ='C5C'!G62 -> 2540152.56 | H11: ='C5C'!H62 -> 13282716 | I11: -10742563.44 | J11: -0.8087625633 | K11: ='C5C'!K62 -> 13282727
A12: ='Org structure'!A8 -> Vote 7 - COMMUNITY & SOCIAL SERVICES | C12: ='C5C'!C73 -> 0 | D12: ='C5C'!D73 -> 0 | E12: ='C5C'!E73 -> 0 | F12: ='C5C'!F73 -> 0 | G12: ='C5C'!G73 -> 0 | H12: ='C5C'!H73 -> 0 | I12: 0 | K12: ='C5C'!K73 -> 0
A13: ='Org structure'!A9 -> Vote 8 - [NAME OF VOTE 8] | C13: ='C5C'!C84 -> 0 | D13: ='C5C'!D84 -> 0 | E13: ='C5C'!E84 -> 0 | F13: ='C5C'!F84 -> 0 | G13: ='C5C'!G84 -> 0 | H13: ='C5C'!H84 -> 0 | I13: 0 | K13: ='C5C'!K84 -> 0
A14: ='Org structure'!A10 -> Vote 9 - [NAME OF VOTE 9] | C14: ='C5C'!C95 -> 0 | D14: ='C5C'!D95 -> 0 | E14: ='C5C'!E95 -> 0 | F14: ='C5C'!F95 -> 0 | G14: ='C5C'!G95 -> 0 | H14: ='C5C'!H95 -> 0 | I14: 0 | K14: ='C5C'!K95 -> 0
A15: ='Org structure'!A11 -> Vote 10 - [NAME OF VOTE 10] | C15: ='C5C'!C106 -> 0 | D15: ='C5C'!D106 -> 0 | E15: ='C5C'!E106 -> 0 | F15: ='C5C'!F106 -> 0 | G15: ='C5C'!G106 -> 0 | H15: ='C5C'!H106 -> 0 | I15: 0 | K15: ='C5C'!K106 -> 0
A16: ='Org structure'!A12 -> Vote 11 - [NAME OF VOTE 11] | C16: ='C5C'!C117 -> 0 | D16: ='C5C'!D117 -> 0 | E16: ='C5C'!E117 -> 0 | F16: ='C5C'!F117 -> 0 | G16: ='C5C'!G117 -> 0 | H16: ='C5C'!H117 -> 0 | I16: 0 | K16: ='C5C'!K117 -> 0
A17: ='Org structure'!A13 -> Vote 12 - [NAME OF VOTE 12] | C17: ='C5C'!C128 -> 0 | D17: ='C5C'!D128 -> 0 | E17: ='C5C'!E128 -> 0 | F17: ='C5C'!F128 -> 0 | G17: ='C5C'!G128 -> 0 | H17: ='C5C'!H128 -> 0 | I17: 0 | K17: ='C5C'!K128 -> 0
A18: ='Org structure'!A14 -> Vote 13 - [NAME OF VOTE 13] | C18: ='C5C'!C139 -> 0 | D18: ='C5C'!D139 -> 0 | E18: ='C5C'!E139 -> 0 | F18: ='C5C'!F139 -> 0 | G18: ='C5C'!G139 -> 0 | H18: ='C5C'!H139 -> 0 | I18: =G18-H18 -> 0 | J18: =IF(I18=0,"",I18/H18) ->  | K18: ='C5C'!K139 -> 0
A19: ='Org structure'!A15 -> Vote 14 - [NAME OF VOTE 14] | C19: ='C5C'!C150 -> 0 | D19: ='C5C'!D150 -> 0 | E19: ='C5C'!E150 -> 0 | F19: ='C5C'!F150 -> 0 | G19: ='C5C'!G150 -> 0 | H19: ='C5C'!H150 -> 0 | I19: =G19-H19 -> 0 | J19: =IF(I19=0,"",I19/H19) ->  | K19: ='C5C'!K150 -> 0
A20: ='Org structure'!A16 -> Vote 15 - [NAME OF VOTE 15] | C20: ='C5C'!C161 -> 0 | D20: ='C5C'!D161 -> 0 | E20: ='C5C'!E161 -> 0 | F20: ='C5C'!F161 -> 0 | G20: ='C5C'!G161 -> 0 | H20: ='C5C'!H161 -> 0 | I20: =G20-H20 -> 0 | J20: =IF(I20=0,"",I20/H20) ->  | K20: ='C5C'!K161 -> 0
A21: Total Capital Multi-year expenditure | B21: 4,7 | C21: =SUM(C6:C20) -> 0 | D21: =SUM(D6:D20) -> 46231902 | E21: 46231902 | F21: 4713034.85 | G21: 35136737.39 | H21: 46231887 | I21: -11095149.61 | J21: =IF(I21=0,"",I21/H21) -> -0.2399891142 | K21: =SUM(K6:K20) -> 46231902
A23: Single Year expenditure appropriation | B23: 2
A24: ='Org structure'!A2 -> Vote 1 - Executive and council | C24: ='C5C'!C176 -> 0 | D24: ='C5C'!D176 -> 0 | E24: ='C5C'!E176 -> 0 | F24: ='C5C'!F176 -> 0 | G24: ='C5C'!G176 -> 0 | H24: ='C5C'!H176 -> 0 | I24: ='C5C'!I176 -> 0 | J24: =IF(I24=0,"",I24/H24) ->  | K24: ='C5C'!K176 -> 0
A25: ='Org structure'!A3 -> Vote 2 - Corporate Services | C25: ='C5C'!C187 -> 0 | D25: ='C5C'!D187 -> 870000 | E25: ='C5C'!E187 -> 870000 | F25: ='C5C'!F187 -> 0 | G25: ='C5C'!G187 -> 0 | H25: ='C5C'!H187 -> 870000 | I25: ='C5C'!I187 -> -870000 | J25: =IF(I25=0,"",I25/H25) -> -1 | K25: ='C5C'!K187 -> 870000
A26: ='Org structure'!A4 -> Vote 3 - Budget and Treasury | C26: ='C5C'!C198 -> 0 | D26: ='C5C'!D198 -> 0 | E26: ='C5C'!E198 -> 0 | F26: ='C5C'!F198 -> 0 | G26: ='C5C'!G198 -> 0 | H26: ='C5C'!H198 -> 0 | I26: ='C5C'!I198 -> 0 | K26: ='C5C'!K198 -> 0
A27: ='Org structure'!A5 -> Vote 4 - PEDTA | C27: ='C5C'!C209 -> 0 | D27: ='C5C'!D209 -> 0 | E27: ='C5C'!E209 -> 0 | F27: ='C5C'!F209 -> 0 | G27: ='C5C'!G209 -> 0 | H27: ='C5C'!H209 -> 0 | I27: ='C5C'!I209 -> 0 | K27: ='C5C'!K209 -> 0
A28: ='Org structure'!A6 -> Vote 5 - Community Services and Social Services | C28: ='C5C'!C220 -> 0 | D28: ='C5C'!D220 -> 0 | E28: ='C5C'!E220 -> 0 | F28: ='C5C'!F220 -> 0 | G28: ='C5C'!G220 -> 0 | H28: ='C5C'!H220 -> 0 | I28: ='C5C'!I220 -> 0 | K28: ='C5C'!K220 -> 0
A29: ='Org structure'!A7 -> Vote 6 - Infrastructure Development and Human Settlement | C29: ='C5C'!C231 -> 0 | D29: ='C5C'!D231 -> 0 | E29: ='C5C'!E231 -> 0 | F29: ='C5C'!F231 -> 0 | G29: ='C5C'!G231 -> 0 | H29: ='C5C'!H231 -> 0 | I29: ='C5C'!I231 -> 0 | K29: ='C5C'!K231 -> 0
A30: ='Org structure'!A8 -> Vote 7 - COMMUNITY & SOCIAL SERVICES | C30: ='C5C'!C242 -> 0 | D30: ='C5C'!D242 -> 0 | E30: ='C5C'!E242 -> 0 | F30: ='C5C'!F242 -> 0 | G30: ='C5C'!G242 -> 0 | H30: ='C5C'!H242 -> 0 | I30: ='C5C'!I242 -> 0 | K30: ='C5C'!K242 -> 0
A31: ='Org structure'!A9 -> Vote 8 - [NAME OF VOTE 8] | C31: ='C5C'!C253 -> 0 | D31: ='C5C'!D253 -> 0 | E31: ='C5C'!E253 -> 0 | F31: ='C5C'!F253 -> 0 | G31: ='C5C'!G253 -> 0 | H31: ='C5C'!H253 -> 0 | I31: ='C5C'!I253 -> 0 | K31: ='C5C'!K253 -> 0
A32: ='Org structure'!A10 -> Vote 9 - [NAME OF VOTE 9] | C32: ='C5C'!C264 -> 0 | D32: ='C5C'!D264 -> 0 | E32: ='C5C'!E264 -> 0 | F32: ='C5C'!F264 -> 0 | G32: ='C5C'!G264 -> 0 | H32: ='C5C'!H264 -> 0 | I32: ='C5C'!I264 -> 0 | K32: ='C5C'!K264 -> 0
A33: ='Org structure'!A11 -> Vote 10 - [NAME OF VOTE 10] | C33: ='C5C'!C275 -> 0 | D33: ='C5C'!D275 -> 0 | E33: ='C5C'!E275 -> 0 | F33: ='C5C'!F275 -> 0 | G33: ='C5C'!G275 -> 0 | H33: ='C5C'!H275 -> 0 | I33: ='C5C'!I275 -> 0 | K33: ='C5C'!K275 -> 0
A34: ='Org structure'!A12 -> Vote 11 - [NAME OF VOTE 11] | C34: ='C5C'!C286 -> 0 | D34: ='C5C'!D286 -> 0 | E34: ='C5C'!E286 -> 0 | F34: ='C5C'!F286 -> 0 | G34: ='C5C'!G286 -> 0 | H34: ='C5C'!H286 -> 0 | I34: ='C5C'!I286 -> 0 | K34: ='C5C'!K286 -> 0
A35: ='Org structure'!A13 -> Vote 12 - [NAME OF VOTE 12] | C35: ='C5C'!C297 -> 0 | D35: ='C5C'!D297 -> 0 | E35: ='C5C'!E297 -> 0 | F35: ='C5C'!F297 -> 0 | G35: ='C5C'!G297 -> 0 | H35: ='C5C'!H297 -> 0 | I35: ='C5C'!I297 -> 0 | K35: ='C5C'!K297 -> 0
A36: ='Org structure'!A14 -> Vote 13 - [NAME OF VOTE 13] | C36: ='C5C'!C308 -> 0 | D36: ='C5C'!D308 -> 0 | E36: ='C5C'!E308 -> 0 | F36: ='C5C'!F308 -> 0 | G36: ='C5C'!G308 -> 0 | H36: ='C5C'!H308 -> 0 | I36: ='C5C'!I308 -> 0 | K36: ='C5C'!K308 -> 0
A37: ='Org structure'!A15 -> Vote 14 - [NAME OF VOTE 14] | C37: ='C5C'!C319 -> 0 | D37: ='C5C'!D319 -> 0 | E37: ='C5C'!E319 -> 0 | F37: ='C5C'!F319 -> 0 | G37: ='C5C'!G319 -> 0 | H37: ='C5C'!H319 -> 0 | I37: ='C5C'!I319 -> 0 | K37: ='C5C'!K319 -> 0
A38: ='Org structure'!A16 -> Vote 15 - [NAME OF VOTE 15] | C38: ='C5C'!C330 -> 0 | D38: ='C5C'!D330 -> 0 | E38: ='C5C'!E330 -> 0 | F38: ='C5C'!F330 -> 0 | G38: ='C5C'!G330 -> 0 | H38: ='C5C'!H330 -> 0 | I38: ='C5C'!I330 -> 0 | K38: ='C5C'!K330 -> 0
A39: Total Capital single-year expenditure | B39: 4 | C39: =SUM(C24:C38) -> 0 | D39: 870000 | E39: 870000 | F39: 0 | G39: 0 | H39: 870000 | I39: -870000 | J39: -1 | K39: =SUM(K24:K38) -> 870000
A40: Total Capital Expenditure | C40: =C39+C21 -> 0 | D40: 47101902 | E40: 47101902 | F40: 4713034.85 | G40: 35136737.39 | H40: 47101887 | I40: -11965149.61 | J40: =IF(I40=0,"",I40/H40) -> -0.2540269695 | K40: =K39+K21 -> 47101902
A42: Capital Expenditure - Functional Classification
A43: Governance and administration | C43: =SUM(C44:C46) -> 0 | D43: 3870001 | E43: 0 | F43: 43304.35 | G43: 2768358.09 | H43: 0 | I43: =G43-H43 -> 2768358.09 | J43: =IF(I43=0,"",I43/H43) ->  | K43: =SUM(K44:K46) -> 0
A44: Executive and council | C44: 0 | D44: 3000001 | E44: 0 | F44: 0 | G44: 2725053.74 | H44: 0 | I44: 2725053.74 | J44: =IF(I44=0,"",I44/H44) ->  | K44: 0
A45: Finance and administration | C45: 0 | D45: 870000 | E45: 0 | F45: 43304.35 | G45: 43304.35 | H45: 0 | I45: 43304.35 | K45: 0
A46: Internal audit | C46: 0 | D46: 0 | E46: 0 | F46: 0 | G46: 0 | H46: 0 | I46: 0 | K46: 0
A47: Community and public safety | C47: =SUM(C48:C52) -> 0 | D47: 21899174 | E47: 0 | F47: 1689723.15 | G47: 18692318.62 | H47: 0 | I47: 18692318.62 | K47: =SUM(K48:K52) -> 0
A48: Community and social services | C48: 0 | D48: 6831818 | E48: 0 | F48: 0 | G48: 6774779.27 | H48: 0 | I48: 6774779.27 | K48: 0
A49: Sport and recreation | C49: 0 | D49: 15067356 | E49: 0 | F49: 1689723.15 | G49: 11917539.35 | H49: 0 | I49: 11917539.35 | K49: 0
A50: Public safety | C50: 0 | D50: 0 | E50: 0 | F50: 0 | G50: 0 | H50: 0 | I50: 0 | K50: 0
A51: Housing | C51: 0 | D51: 0 | E51: 0 | F51: 0 | G51: 0 | H51: 0 | I51: 0 | K51: 0
A52: Health | C52: 0 | D52: 0 | E52: 0 | F52: 0 | G52: 0 | H52: 0 | I52: 0 | K52: 0
A53: Economic and environmental services | C53: =SUM(C54:C56) -> 0 | D53: 12857726 | E53: 0 | F53: 2857875.44 | G53: 8408411.23 | H53: 0 | I53: 8408411.23 | K53: =SUM(K54:K56) -> 0
A54: Planning and development | C54: 0 | D54: 0 | E54: 0 | F54: 0 | G54: 0 | H54: 0 | I54: 0 | K54: 0
A55: Road transport | C55: 0 | D55: 12857726 | E55: 0 | F55: 2857875.44 | G55: 8408411.23 | H55: 0 | I55: 8408411.23 | K55: 0
A56: Environmental protection | C56: 0 | D56: 0 | E56: 0 | F56: 0 | G56: 0 | H56: 0 | I56: 0 | K56: 0
A57: Trading services | C57: =SUM(C58:C61) -> 0 | D57: 975001 | E57: 0 | F57: 218904.34 | G57: 386254.34 | H57: 0 | I57: 386254.34 | K57: =SUM(K58:K61) -> 0
A58: Energy sources | C58: 0 | D58: 425001 | E58: 0 | F58: 0 | G58: 167350 | H58: 0 | I58: 167350 | K58: 0
A59: Water management | C59: 0 | D59: 0 | E59: 0 | F59: 0 | G59: 0 | H59: 0 | I59: 0 | K59: 0
A60: Waste water management | C60: 0 | D60: 0 | E60: 0 | F60: 0 | G60: 0 | H60: 0 | I60: 0 | K60: 0
A61: Waste management | C61: 0 | D61: 550000 | E61: 0 | F61: 218904.34 | G61: 218904.34 | H61: 0 | I61: 218904.34 | K61: 0
A62: Other | C62: 0 | D62: 7500000 | E62: 0 | F62: -53468.08 | G62: 4924699.46 | H62: 0 | I62: 4924699.46 | K62: 0
A63: Total Capital Expenditure - Functional Classification | B63: 3 | C63: =C43+C47+C53+C57+C62 -> 0 | D63: =D43+D47+D53+D57+D62 -> 47101902 | E63: 0 | F63: 4756339.2 | G63: 35180041.74 | H63: 0 | I63: 35180041.74 | K63: =K43+K47+K53+K57+K62 -> 0
A65: Funded by:
A66: National Government | C66: 0 | D66: 42256900 | E66: 0 | F66: 4494130.51 | G66: 32025429.31 | H66: 0 | I66: =G66-H66 -> 32025429.31 | J66: =IF(I66=0,"",I66/H66) ->  | K66: 0
A67: Provincial Government | C67: 0 | D67: 0 | E67: 0 | F67: 0 | G67: 0 | H67: 0 | I67: 0 | K67: 0
A68: District Municipality | C68: 0 | D68: 0 | E68: 0 | F68: 0 | G68: 0 | H68: 0 | I68: 0 | K68: 0
A69: Other transfers and grants | C69: 0 | D69: 0 | E69: 0 | F69: 0 | G69: 0 | H69: 0 | I69: 0 | K69: 0
A70: Transfers recognised - capital | C70: =SUM(C66:C69) -> 0 | D70: 42256900 | E70: 0 | F70: 4494130.51 | G70: 32025429.31 | H70: 0 | I70: 32025429.31 | K70: =SUM(K66:K69) -> 0
A71: Public contributions & donations | B71: 5 | C71: 0 | D71: 0 | E71: 0 | F71: 0 | G71: 0 | H71: 0 | I71: 0 | K71: 0
A72: Borrowing | B72: 6 | C72: 0 | D72: 1 | E72: 0 | F72: 0 | G72: 2877064.33 | H72: 0 | I72: 2877064.33 | K72: 0
A73: Internally generated funds | C73: 0 | D73: 4295001 | E73: 0 | F73: 43304.35 | G73: 58643.76 | H73: 0 | I73: 58643.76 | K73: 0
A74: Total Capital Funding | C74: =SUM(C70:C73) -> 0 | D74: 46551902 | E74: 0 | F74: =SUM(F70:F73) -> 4537434.86 | G74: =SUM(G70:G73) -> 34961137.4 | H74: =SUM(H70:H73) -> 0 | I74: 34961137.4 | K74: 0
A75: =head27a -> References
A76: 1. Municipalities may choose to appropriate for capital expenditure for three years or for one year (if one year appropriation projected expenditure required for yr2 and yr3).
A77: 2. Include capital component of PPP unitary payment
A78: 3. Capital expenditure by functional classification must reconcile to the total of multi-year and single year appropriations
A79: 4. Include expenditure on investment property, intangible and biological assets
A80: 5. Must reconcile to Monthly Budget Statement Financial Performance (revenue and expenditure)
A81: 6. Include finance leases and PPP capital funding component of unitary payment - total borrowing/repayments to reconcile to changes in Table SA17
A86: check balance | C86: =C40-C74 -> 0 | D86: =D40-D74 -> 550000 | E86: 47101902 | F86: 175599.99 | G86: 175599.99 | H86: 47101887 | K86: 47101902

Sheet C5C
A1: =muni& " - "&S71D& " - "&"A"& " - "&date -> EC136 Emalahleni (Ec) - Table C5 Monthly Budget Statement - Capital Expenditure (municipal vote, functional classification and funding) - A - M12 June
A2: =Vdesc -> Vote Description | B2: =head27 -> Ref | C2: =Head1 -> 2017/18 | D2: =Head2 -> Budget Year 2018/19 | L2: =Head4 -> 
A3: R thousand | C3: =Head5 -> Audited Outcome | D3: =Head6 -> Original Budget | E3: =Head7 -> Adjusted Budget | F3: =Head38 -> Monthly actual | G3: =Head39 -> YearTD actual | H3: =Head40 -> YearTD budget | I3: =Head41 -> YTD variance | J3: =Head41 -> YTD variance | K3: =Head8 -> Full Year Forecast | L3: =Head12 -> Forecast 2010/11 | M3: =Head13 -> Forecast 2011/12 | N3: =Head14 -> Forecast 2012/13 | O3: =Head15 -> Forecast 2013/14 | P3: =Head16 -> Forecast 2014/15 | Q3: =Head17 -> Forecast 2015/16 | R3: =Head18 -> Forecast 2016/17 | S3: =Head19 -> Forecast 2017/18 | T3: =Head20 -> Forecast 2018/19 | U3: =Head21 -> Forecast 2019/20 | V3: =Head22 -> Forecast 2020/21 | W3: =Head23 -> Forecast 2021/22
J4: %
A5: Capital expenditure - Municipal Vote
A6: Expenditure of multi-year capital appropriation | B6: 1
A7: ='Org structure'!A2 -> Vote 1 - Executive and council | C7: 0 | D7: 3000001 | E7: 3000001 | F7: 0 | G7: 15339.41 | H7: 2999998 | I7: =G7-H7 -> -2984658.59 | J7: =IF(I7=0,"",I7/H7) -> -0.9948868599 | K7: 3000001
A8: ='Org structure'!E3 -> 1.1 - [Name of sub-vote] | I8: 0
A9: ='Org structure'!E4 -> 0 | I9: 0
A10: ='Org structure'!E5 -> 0 | I10: 0
A11: ='Org structure'!E6 -> 0 | I11: 0
A12: ='Org structure'!E7 -> 0 | I12: 0
A13: ='Org structure'!E8 -> 0 | I13: 0
A14: ='Org structure'!E9 -> 0 | I14: 0
A15: ='Org structure'!E10 -> 0 | I15: 0
A16: ='Org structure'!E11 -> 0 | I16: 0
A17: ='Org structure'!E12 -> 0 | I17: 0
A18: ='Org structure'!A3 -> Vote 2 - Corporate Services | C18: 0 | D18: 0 | E18: 0 | F18: 0 | G18: 0 | H18: 0 | I18: 0 | K18: 0
A19: ='Org structure'!E14 -> 2.1 - [Name of sub-vote] | I19: 0
A20: ='Org structure'!E15 -> 0 | I20: 0
A21: ='Org structure'!E16 -> 0 | I21: 0
A22: ='Org structure'!E17 -> 0 | I22: 0
A23: ='Org structure'!E18 -> 0 | I23: 0
A24: ='Org structure'!E19 -> 0 | I24: 0
A25: ='Org structure'!E20 -> 0 | I25: 0
A26: ='Org structure'!E21 -> 0 | I26: 0
A27: ='Org structure'!E22 -> 0 | I27: 0
A28: ='Org structure'!E23 -> 0 | I28: 0
A29: ='Org structure'!A4 -> Vote 3 - Budget and Treasury | C29: 0 | D29: 0 | E29: 0 | F29: 2049572.27 | G29: 32101267.2 | H29: 0 | I29: 32101267.2 | K29: 0
A30: ='Org structure'!E25 -> 3.1 - [Name of sub-vote] | I30: 0
A31: ='Org structure'!E26 -> 0 | I31: 0
A32: ='Org structure'!E27 -> 0 | I32: 0
A33: ='Org structure'!E28 -> 0 | I33: 0
A34: ='Org structure'!E29 -> 0 | I34: 0
A35: ='Org structure'!E30 -> 0 | I35: 0
A36: ='Org structure'!E31 -> 0 | I36: 0
A37: ='Org structure'!E32 -> 0 | I37: 0
A38: ='Org structure'!E33 -> 0 | I38: 0
A39: ='Org structure'!E34 -> 0 | I39: 0
A40: ='Org structure'!A5 -> Vote 4 - PEDTA | C40: 0 | D40: 1200000 | E40: 1200000 | F40: 0 | G40: 0 | H40: 1200000 | I40: -1200000 | J40: -1 | K40: 1200000
A41: ='Org structure'!E36 -> 4.1 - [Name of sub-vote] | I41: 0
A42: ='Org structure'!E37 -> 0 | I42: 0
A43: ='Org structure'!E38 -> 0 | I43: 0
A44: ='Org structure'!E39 -> 0 | I44: 0
A45: ='Org structure'!E40 -> 0 | I45: 0
A46: ='Org structure'!E41 -> 0 | I46: 0
A47: ='Org structure'!E42 -> 0 | I47: 0
A48: ='Org structure'!E43 -> 0 | I48: 0
A49: ='Org structure'!E44 -> 0 | I49: 0
A50: ='Org structure'!E45 -> 0 | I50: 0
A51: ='Org structure'!A6 -> Vote 5 - Community Services and Social Services | C51: 0 | D51: 28749174 | E51: 28749174 | F51: 479978.22 | G51: 479978.22 | H51: 28749173 | I51: -28269194.78 | J51: -0.9833046251 | K51: 28749174
A52: ='Org structure'!E47 -> 5.1 - [Name of sub-vote] | I52: 0
A53: ='Org structure'!E48 -> 0 | I53: 0
A54: ='Org structure'!E49 -> 0 | I54: 0
A55: ='Org structure'!E50 -> 0 | I55: 0
A56: ='Org structure'!E51 -> 0 | I56: 0
A57: ='Org structure'!E52 -> 0 | I57: 0
A58: ='Org structure'!E53 -> 0 | I58: 0
A59: ='Org structure'!E54 -> 0 | I59: 0
A60: ='Org structure'!E55 -> 0 | I60: 0
A61: ='Org structure'!E56 -> 0 | I61: 0
A62: ='Org structure'!A7 -> Vote 6 - Infrastructure Development and Human Settlement | C62: 0 | D62: 13282727 | E62: 13282727 | F62: 2183484.36 | G62: 2540152.56 | H62: 13282716 | I62: -10742563.44 | J62: -0.8087625633 | K62: 13282727
A63: ='Org structure'!E58 -> 6.1 - [Name of sub-vote] | I63: 0
A64: ='Org structure'!E59 -> 0 | I64: 0
A65: ='Org structure'!E60 -> 0 | I65: 0
A66: ='Org structure'!E61 -> 0 | I66: 0
A67: ='Org structure'!E62 -> 0 | I67: 0
A68: ='Org structure'!E63 -> 0 | I68: 0
A69: ='Org structure'!E64 -> 0 | I69: 0
A70: ='Org structure'!E65 -> 0 | I70: 0
A71: ='Org structure'!E66 -> 0 | I71: =G71-H71 -> 0 | J71: =IF(I71=0,"",I71/H71) -> 
A72: ='Org structure'!E67 -> 0 | I72: 0
A73: ='Org structure'!A8 -> Vote 7 - COMMUNITY & SOCIAL SERVICES | C73: 0 | D73: 0 | E73: 0 | F73: 0 | G73: 0 | H73: 0 | I73: 0 | K73: 0
A74: ='Org structure'!E69 -> 7.1 - [Name of sub-vote] | I74: 0
A75: ='Org structure'!E70 -> 0 | I75: 0
A76: ='Org structure'!E71 -> 0 | I76: 0
A77: ='Org structure'!E72 -> 0 | I77: 0
A78: ='Org structure'!E73 -> 0 | I78: 0
A79: ='Org structure'!E74 -> 0 | I79: 0
A80: ='Org structure'!E75 -> 0 | I80: 0
A81: ='Org structure'!E76 -> 0 | I81: 0
A82: ='Org structure'!E77 -> 0 | I82: 0
A83: ='Org structure'!E78 -> 0 | I83: 0
A84: ='Org structure'!A9 -> Vote 8 - [NAME OF VOTE 8] | C84: =SUM(C85:C94) -> 0 | D84: =SUM(D85:D94) -> 0 | E84: 0 | F84: 0 | G84: 0 | H84: 0 | I84: 0 | K84: 0
A85: ='Org structure'!E80 -> 8.1 - [Name of sub-vote] | I85: 0
A86: ='Org structure'!E81 -> 0 | I86: 0
A87: ='Org structure'!E82 -> 0 | I87: 0
A88: ='Org structure'!E83 -> 0 | I88: 0
A89: ='Org structure'!E84 -> 0 | I89: 0
A90: ='Org structure'!E85 -> 0 | I90: 0
A91: ='Org structure'!E86 -> 0 | I91: 0
A92: ='Org structure'!E87 -> 0 | I92: 0
A93: ='Org structure'!E88 -> 0 | I93: 0
A94: ='Org structure'!E89 -> 0 | I94: 0
A95: ='Org structure'!A10 -> Vote 9 - [NAME OF VOTE 9] | C95: =SUM(C96:C105) -> 0 | D95: =SUM(D96:D105) -> 0 | E95: 0 | F95: 0 | G95: 0 | H95: 0 | I95: 0 | K95: 0
A96: ='Org structure'!E91 -> 9.1 - [Name of sub-vote] | I96: 0
A97: ='Org structure'!E92 -> 0 | I97: 0
A98: ='Org structure'!E93 -> 0 | I98: 0
A99: ='Org structure'!E94 -> 0 | I99: 0
A100: ='Org structure'!E95 -> 0 | I100: 0
A101: ='Org structure'!E96 -> 0 | I101: 0
A102: ='Org structure'!E97 -> 0 | I102: 0
A103: ='Org structure'!E98 -> 0 | I103: 0
A104: ='Org structure'!E99 -> 0 | I104: 0
A105: ='Org structure'!E100 -> 0 | I105: 0
A106: ='Org structure'!A11 -> Vote 10 - [NAME OF VOTE 10] | C106: =SUM(C107:C116) -> 0 | D106: =SUM(D107:D116) -> 0 | E106: 0 | F106: 0 | G106: 0 | H106: 0 | I106: 0 | K106: 0
A107: ='Org structure'!E102 -> 10.1 - [Name of sub-vote] | I107: 0
A108: ='Org structure'!E103 -> 0 | I108: 0
A109: ='Org structure'!E104 -> 0 | I109: 0
A110: ='Org structure'!E105 -> 0 | I110: 0
A111: ='Org structure'!E106 -> 0 | I111: 0
A112: ='Org structure'!E107 -> 0 | I112: 0
A113: ='Org structure'!E108 -> 0 | I113: 0
A114: ='Org structure'!E109 -> 0 | I114: 0
A115: ='Org structure'!E110 -> 0 | I115: 0
A116: ='Org structure'!E111 -> 0 | I116: 0
A117: ='Org structure'!A12 -> Vote 11 - [NAME OF VOTE 11] | C117: =SUM(C118:C127) -> 0 | D117: =SUM(D118:D127) -> 0 | E117: 0 | F117: 0 | G117: 0 | H117: 0 | I117: 0 | K117: 0
A118: ='Org structure'!E113 -> 11.1 - [Name of sub-vote] | I118: 0
A119: ='Org structure'!E114 -> 0 | I119: 0
A120: ='Org structure'!E115 -> 0 | I120: 0
A121: ='Org structure'!E116 -> 0 | I121: 0
A122: ='Org structure'!E117 -> 0 | I122: 0
A123: ='Org structure'!E118 -> 0 | I123: 0
A124: ='Org structure'!E119 -> 0 | I124: 0
A125: ='Org structure'!E120 -> 0 | I125: 0
A126: ='Org structure'!E121 -> 0 | I126: 0
A127: ='Org structure'!E122 -> 0 | I127: 0
A128: ='Org structure'!A13 -> Vote 12 - [NAME OF VOTE 12] | C128: =SUM(C129:C138) -> 0 | D128: =SUM(D129:D138) -> 0 | E128: 0 | F128: 0 | G128: 0 | H128: 0 | I128: 0 | K128: 0
A129: ='Org structure'!E124 -> 12.1 - [Name of sub-vote] | I129: 0
A130: ='Org structure'!E125 -> 0 | I130: 0
A131: ='Org structure'!E126 -> 0 | I131: 0
A132: ='Org structure'!E127 -> 0 | I132: 0
A133: ='Org structure'!E128 -> 0 | I133: 0
A134: ='Org structure'!E129 -> 0 | I134: 0
A135: ='Org structure'!E130 -> 0 | I135: =G135-H135 -> 0 | J135: =IF(I135=0,"",I135/H135) -> 
A136: ='Org structure'!E131 -> 0 | I136: 0
A137: ='Org structure'!E132 -> 0 | I137: 0
A138: ='Org structure'!E133 -> 0 | I138: 0
A139: ='Org structure'!A14 -> Vote 13 - [NAME OF VOTE 13] | C139: =SUM(C140:C149) -> 0 | D139: =SUM(D140:D149) -> 0 | E139: 0 | F139: 0 | G139: 0 | H139: 0 | I139: 0 | K139: 0
A140: ='Org structure'!E135 -> 13.1 - [Name of sub-vote] | I140: 0
A141: ='Org structure'!E136 -> 0 | I141: 0
A142: ='Org structure'!E137 -> 0 | I142: 0
A143: ='Org structure'!E138 -> 0 | I143: 0
A144: ='Org structure'!E139 -> 0 | I144: 0
A145: ='Org structure'!E140 -> 0 | I145: 0
A146: ='Org structure'!E141 -> 0 | I146: 0
A147: ='Org structure'!E142 -> 0 | I147: 0
A148: ='Org structure'!E143 -> 0 | I148: 0
A149: ='Org structure'!E144 -> 0 | I149: 0
A150: ='Org structure'!A15 -> Vote 14 - [NAME OF VOTE 14] | C150: =SUM(C151:C160) -> 0 | D150: =SUM(D151:D160) -> 0 | E150: 0 | F150: 0 | G150: 0 | H150: 0 | I150: 0 | K150: 0
A151: ='Org structure'!E146 -> 14.1 - [Name of sub-vote] | I151: 0
A152: ='Org structure'!E147 -> 0 | I152: 0
A153: ='Org structure'!E148 -> 0 | I153: 0
A154: ='Org structure'!E149 -> 0 | I154: 0
A155: ='Org structure'!E150 -> 0 | I155: 0
A156: ='Org structure'!E151 -> 0 | I156: 0
A157: ='Org structure'!E152 -> 0 | I157: 0
A158: ='Org structure'!E153 -> 0 | I158: 0
A159: ='Org structure'!E154 -> 0 | I159: 0
A160: ='Org structure'!E155 -> 0 | I160: 0
A161: ='Org structure'!A16 -> Vote 15 - [NAME OF VOTE 15] | C161: =SUM(C162:C171) -> 0 | D161: =SUM(D162:D171) -> 0 | E161: 0 | F161: 0 | G161: 0 | H161: 0 | I161: 0 | K161: 0
A162: ='Org structure'!E157 -> 15.1 - [Name of sub-vote] | I162: 0
A163: ='Org structure'!E158 -> 0 | I163: 0
A164: ='Org structure'!E159 -> 0 | I164: 0
A165: ='Org structure'!E160 -> 0 | I165: 0
A166: ='Org structure'!E161 -> 0 | I166: 0
A167: ='Org structure'!E162 -> 0 | I167: 0
A168: ='Org structure'!E163 -> 0 | I168: 0
A169: ='Org structure'!E164 -> 0 | I169: 0
A170: ='Org structure'!E165 -> 0 | I170: 0
A171: ='Org structure'!E166 -> 0 | I171: 0 | L171: =SUM(L79:L82) -> 0 | M171: 0 | N171: 0 | O171: 0 | P171: 0 | Q171: 0 | R171: 0 | S171: 0 | T171: 0 | U171: 0 | V171: 0 | W171: 0
A172: Total multi-year capital expenditure | C172: =C7+C18+C29+C40+C51+C62+C73+C84+C95+C106+C117+C128+C139+C150+C161 -> 0 | D172: =D7+D18+D29+D40+D51+D62+D73+D84+D95+D106+D117+D128+D139+D150+D161 -> 46231902 | E172: 46231902 | F172: 4713034.85 | G172: 35136737.39 | H172: 46231887 | I172: -11095149.61 | J172: -0.2399891142 | K172: 46231902
I173: 0
A174: Capital expenditure - Municipal Vote
A175: Expenditue of single-year capital appropriation | B175: 1 | I175: 0
A176: ='Org structure'!A2 -> Vote 1 - Executive and council | C176: 0 | D176: 0 | E176: 0 | F176: 0 | G176: 0 | H176: 0 | I176: 0 | K176: 0
A177: ='Org structure'!E3 -> 1.1 - [Name of sub-vote] | I177: 0
A178: ='Org structure'!E4 -> 0 | I178: 0
A179: ='Org structure'!E5 -> 0 | I179: 0
A180: ='Org structure'!E6 -> 0 | I180: 0
A181: ='Org structure'!E7 -> 0 | I181: 0
A182: ='Org structure'!E8 -> 0 | I182: 0
A183: ='Org structure'!E9 -> 0 | I183: 0
A184: ='Org structure'!E10 -> 0 | I184: 0
A185: ='Org structure'!E11 -> 0 | I185: 0
A186: ='Org structure'!E12 -> 0 | I186: 0
A187: ='Org structure'!A3 -> Vote 2 - Corporate Services | C187: 0 | D187: 870000 | E187: 870000 | F187: 0 | G187: 0 | H187: 870000 | I187: -870000 | J187: -1 | K187: 870000
A188: ='Org structure'!E14 -> 2.1 - [Name of sub-vote] | I188: 0
A189: ='Org structure'!E15 -> 0 | I189: 0
A190: ='Org structure'!E16 -> 0 | I190: 0
A191: ='Org structure'!E17 -> 0 | I191: 0
A192: ='Org structure'!E18 -> 0 | I192: 0
A193: ='Org structure'!E19 -> 0 | I193: 0
A194: ='Org structure'!E20 -> 0 | I194: 0
A195: ='Org structure'!E21 -> 0 | I195: 0
A196: ='Org structure'!E22 -> 0 | I196: 0
A197: ='Org structure'!E23 -> 0 | I197: 0
A198: ='Org structure'!A4 -> Vote 3 - Budget and Treasury | C198: 0 | D198: 0 | E198: 0 | F198: 0 | G198: 0 | H198: 0 | I198: 0 | K198: 0
A199: ='Org structure'!E25 -> 3.1 - [Name of sub-vote] | I199: 0
A200: ='Org structure'!E26 -> 0 | I200: =G200-H200 -> 0 | J200: =IF(I200=0,"",I200/H200) -> 
... 145 more rows

Sheet C6-FinPos
A1: =muni& " - "&S71E& " - "&date -> EC136 Emalahleni (Ec) - Table C6 Monthly Budget Statement - Financial Position - M12 June
A2: =desc -> Description | B2: =head27 -> Ref | C2: =Head1 -> 2017/18 | D2: =Head2 -> Budget Year 2018/19
C3: =Head5 -> Audited Outcome | D3: =Head6 -> Original Budget | E3: =Head7 -> Adjusted Budget | F3: =Head39 -> YearTD actual | G3: =Head8 -> Full Year Forecast
A4: R thousands | B4: 1
A5: ASSETS
A6: Current assets
A7: Cash | C7: 107209524 | D7: 273204227 | E7: 3204227 | F7: 1416110 | G7: 3204227
A8: Call investment deposits | C8: 7010688 | D8: 588 | E8: 2000588 | F8: 2732907 | G8: 2000588
A9: Consumer debtors | C9: 10838705 | D9: 35401499 | E9: 8558395 | F9: 6228635 | G9: 8558395
A10: Other debtors | C10: 7586302 | D10: 40605122 | E10: 5605122 | F10: 0 | G10: 5605122
A11: Current portion of long-term receivables | C11: 0 | D11: 0 | E11: 0 | F11: 0 | G11: 0
A12: Inventory | C12: 0 | D12: 5950998 | E12: 0 | F12: 8589867 | G12: 0
A13: Total current assets | C13: =SUM(C7:C12) -> 132645219 | D13: =SUM(D7:D12) -> 355162434 | E13: =SUM(E7:E12) -> 19368332 | F13: =SUM(F7:F12) -> 18967519 | G13: =SUM(G7:G12) -> 19368332
A15: Non current assets
A16: Long-term receivables | C16: 0 | D16: 0 | E16: 0 | F16: 0 | G16: 0
A17: Investments | C17: 0 | D17: 0 | E17: 0 | F17: 0 | G17: 0
A18: Investment property | C18: 0 | D18: 390798 | E18: 390798 | F18: 4149487 | G18: 390798
A19: Investments in Associate | C19: 0 | D19: 0 | E19: 0 | F19: 0 | G19: 0
A20: Property, plant and equipment | C20: 19018539 | D20: 70332147 | E20: 70822945 | F20: 436842778 | G20: 70822945
A21: Agricultural | C21: 0 | D21: 0 | E21: 0 | F21: 0 | G21: 0
A22: Biological | C22: 0 | D22: 0 | E22: 0 | F22: 0 | G22: 0
A23: Intangible | C23: 0 | D23: 100000 | E23: 100000 | F23: 401033 | G23: 100000
A24: Other non-current assets | C24: 0 | D24: 0 | E24: 0 | F24: 182536 | G24: 0
A25: Total non current assets | C25: =SUM(C16:C24) -> 19018539 | D25: =SUM(D16:D24) -> 70822945 | E25: =SUM(E16:E24) -> 71313743 | F25: =SUM(F16:F24) -> 441575834 | G25: =SUM(G16:G24) -> 71313743
A26: TOTAL ASSETS | C26: =C13+C25 -> 151663758 | D26: =D13+D25 -> 425985379 | E26: =E13+E25 -> 90682075 | F26: =F13+F25 -> 460543353 | G26: =G13+G25 -> 90682075
A28: LIABILITIES
A29: Current liabilities
A30: Bank overdraft | C30: 0 | D30: 0 | E30: 0 | F30: 0 | G30: 0
A31: Borrowing | C31: 0 | D31: 0 | E31: 0 | F31: 407365 | G31: 0
A32: Consumer deposits | C32: 154612 | D32: 0 | E32: 0 | F32: 21877297 | G32: 0
A33: Trade and other payables | C33: -62322930 | D33: 281512708 | E33: 15512708 | F33: 20539627 | G33: 15512708
A34: Provisions | C34: 0 | D34: 0 | E34: 0 | F34: 0 | G34: 0
A35: Total current liabilities | C35: =SUM(C30:C34) -> -62168318 | D35: =SUM(D30:D34) -> 281512708 | E35: =SUM(E30:E34) -> 15512708 | F35: =SUM(F30:F34) -> 42824289 | G35: =SUM(G30:G34) -> 15512708
A37: Non current liabilities
A38: Borrowing | C38: 0 | D38: 258640 | E38: 258640 | F38: 5655623 | G38: 258640
A39: Provisions | C39: 0 | D39: 0 | E39: 0 | F39: 12094298 | G39: 0
A40: Total non current liabilities | C40: =SUM(C38:C39) -> 0 | D40: =SUM(D38:D39) -> 258640 | E40: =SUM(E38:E39) -> 258640 | F40: =SUM(F38:F39) -> 17749921 | G40: =SUM(G38:G39) -> 258640
A41: TOTAL LIABILITIES | C41: =C35+C40 -> -62168318 | D41: =D35+D40 -> 281771348 | E41: =E35+E40 -> 15771348 | F41: =F35+F40 -> 60574210 | G41: =G35+G40 -> 15771348
A43: NET ASSETS | B43: 2 | C43: =C26-C41 -> 213832076 | D43: =D26-D41 -> 144214031 | E43: =E26-E41 -> 74910727 | F43: =F26-F41 -> 399969143 | G43: =G26-G41 -> 74910727
A45: COMMUNITY WEALTH/EQUITY
A46: Accumulated Surplus/(Deficit) | C46: 213832076 | D46: 182863447 | E46: 74910727 | F46: 399969143 | G46: 74910727
A47: Reserves | C47: 0 | D47: 0 | E47: 0 | F47: 0 | G47: 0
A48: TOTAL COMMUNITY WEALTH/EQUITY | B48: 2 | C48: =SUM(C46:C47) -> 213832076 | D48: =SUM(D46:D47) -> 182863447 | E48: =SUM(E46:E47) -> 74910727 | F48: =SUM(F46:F47) -> 399969143 | G48: =SUM(G46:G47) -> 74910727
A49: =head27a -> References
A50: 1. Material variances to be explained in Table SC1
A51: 2. Net assets must balance with Total Community Wealth/Equity
A54: check balance | C54: =C43-C48 -> 0 | D54: =D43-D48 -> -38649416 | E54: =E43-E48 -> 0 | F54: =F43-F48 -> 0 | G54: =G43-G48 -> 0

Sheet C7-CFlow
A1: =muni& " - "&S71F& " - "&date -> EC136 Emalahleni (Ec) - Table C7 Monthly Budget Statement - Cash Flow - M12 June
A2: =desc -> Description | B2: =head27 -> Ref | C2: =Head1 -> 2017/18 | D2: =Head2 -> Budget Year 2018/19
C3: =Head5 -> Audited Outcome | D3: =Head6 -> Original Budget | E3: =Head7 -> Adjusted Budget | F3: =Head38 -> Monthly actual | G3: =Head39 -> YearTD actual | H3: =Head40 -> YearTD budget | I3: =Head41 -> YTD variance | J3: =Head41 -> YTD variance | K3: =Head8 -> Full Year Forecast
A4: R thousands | B4: 1 | J4: %
A5: CASH FLOW FROM OPERATING ACTIVITIES
A6: Receipts
A7: Property rates | I7: =G7-H7 -> 0 | J7: =IF(I7=0,"",I7/H7) -> 
A8: Service charges | I8: 0 | J8: =IF(I8=0,"",I8/H8) -> 
A9: Other revenue | I9: 0 | J9: =IF(I9=0,"",I9/H9) -> 
A10: Government - operating | I10: 0 | J10: =IF(I10=0,"",I10/H10) -> 
A11: Government - capital | I11: 0 | J11: =IF(I11=0,"",I11/H11) -> 
A12: Interest | I12: 0
A13: Dividends | I13: 0
A14: Payments
A15: Suppliers and employees | I15: =H15-G15 -> 0
A16: Finance charges | I16: =H16-G16 -> 0
A17: Transfers and Grants | I17: =H17-G17 -> 0
A18: NET CASH FROM/(USED) OPERATING ACTIVITIES | C18: =SUM(C7:C13)+SUM(C15:C17) -> 0 | D18: 0 | E18: 0 | F18: 0 | G18: 0 | H18: 0 | I18: =H18-G18 -> 0 | K18: =SUM(K7:K13)+SUM(K15:K17) -> 0
A20: CASH FLOWS FROM INVESTING ACTIVITIES
A21: Receipts
A22: Proceeds on disposal of PPE | I22: =G22-H22 -> 0 | J22: =IF(I22=0,"",I22/H22) -> 
A23: Decrease (Increase) in non-current debtors | I23: =G23-H23 -> 0
A24: Decrease (increase) other non-current receivables | I24: =G24-H24 -> 0
A25: Decrease (increase) in non-current investments | I25: =G25-H25 -> 0
A26: Payments
A27: Capital assets | I27: =H27-G27 -> 0
A28: NET CASH FROM/(USED) INVESTING ACTIVITIES | C28: =SUM(C22:C25)+C27 -> 0 | D28: =SUM(D22:D25)+D27 -> 0 | E28: 0 | F28: 0 | G28: 0 | H28: 0 | I28: =H28-G28 -> 0 | K28: =SUM(K22:K25)+K27 -> 0
A30: CASH FLOWS FROM FINANCING ACTIVITIES
A31: Receipts
A32: Short term loans | I32: =G32-H32 -> 0 | J32: =IF(I32=0,"",I32/H32) -> 
A33: Borrowing long term/refinancing | I33: =G33-H33 -> 0
A34: Increase (decrease) in consumer deposits | I34: =G34-H34 -> 0
A35: Payments
A36: Repayment of borrowing | I36: =H36-G36 -> 0
A37: NET CASH FROM/(USED) FINANCING ACTIVITIES | C37: =SUM(C32:C34)+C36 -> 0 | D37: 0 | E37: 0 | F37: 0 | G37: 0 | H37: 0 | I37: =H37-G37 -> 0 | K37: =SUM(K32:K34)+K36 -> 0
A39: NET INCREASE/ (DECREASE) IN CASH HELD | C39: =C18+C28+C37 -> 0 | D39: 0 | E39: 0 | F39: 0 | G39: 0 | H39: 0 | K39: =K18+K28+K37 -> 0
A40: Cash/cash equivalents at beginning: | H40: =IF(E40=0, D40, E40) -> 0 | K40: =G40 -> 0
A41: Cash/cash equivalents at month/year end: | C41: =C39+C40 -> 0 | D41: =D39+D40 -> 0 | E41: =E39+E40 -> 0 | G41: =G39+G40 -> 0 | H41: =H39+H40 -> 0 | K41: =K39+K40 -> 0
A42: References
A43: 1. Material variances to be explained in Table SC1

Sheet SC1
A1: =muni& " - "&S71G& " - "&date -> EC136 Emalahleni (Ec) - Supporting Table SC1 Material variance explanations - M12 June
A2: =head27 -> Ref | B2: =desc -> Description
C3: Variance | D3: Reasons for material deviations | E3: Remedial or corrective steps/remarks
B4: R thousands
A5: 1 | B5: ='C4-FinPerf RE'!A5 -> Revenue By Source
A10: 2 | B10: ='C4-FinPerf RE'!A24 -> Expenditure By Type
A15: 3 | B15: =RIGHT('C5-Capex'!A40,19) -> Capital Expenditure
A20: 4 | B20: Financial Position
A25: 5 | B25: Cash Flow
A30: 6 | B30: Measureable performance
A35: 7 | B35: Municipal Entities
A41: =head27a -> References
A42: 1. Revenue for each source, vote and standard classification
A43: 2. Expenditure for each type, vote and standard classification
A44: 3. Capital expenditure for each vote and standard classification
A45: 4. Explain any material variances between the annual budget and the expected financial position based on current trends
A46: 5. Cash receipts by source and cash payments by type where not explained under revenue and expenditure
A47: 6. For Sept, Dec, Mar and Jun statements explain any material variances in achievement of measurable performance objectives

Sheet SC2
A1: =muni& " - "&S71H& " - "&Head57 -> EC136 Emalahleni (Ec) - Supporting Table SC2 Monthly Budget Statement - performance indicators - M12 June
A2: Description of financial indicator | B2: Basis of calculation | C2: =head27 -> Ref | D2: =Head1 -> 2017/18 | E2: =Head2 -> Budget Year 2018/19
D3: =Head5 -> Audited Outcome | E3: =Head6 -> Original Budget | F3: =Head7 -> Adjusted Budget | G3: =Head39 -> YearTD actual | H3: =Head8 -> Full Year Forecast
A5: Borrowing Management
A7: Capital Charges to Operating Expenditure | B7: Interest & principal paid/Operating Expenditure | D7: =IF(ISERROR((D42-D43)/D45),0,((D42-D43)/D45)) -> 0 | E7: =IF(ISERROR((E42+E44)/E45),0,((E42+E44)/E45)) -> 0.1227032645 | F7: =IF(ISERROR((F42+F44)/F45),0,((F42+F44)/F45)) -> 0.1192311697 | G7: =IF(ISERROR((G42+G44)/G45),0,((G42+G44)/G45)) -> 8.942913572e-05 | H7: =IF(ISERROR((H42+H44)/H45),0,((H42+H44)/H45)) -> 0.06660709271
A8: Borrowed funding of 'own' capital expenditure | B8: Borrowings/Capital expenditure excl. transfers and grants | D8: =IF(ISERROR(D47/D46),0,(D47/D46)) -> 0 | E8: =IF(ISERROR(E47/E46),0,(E47/E46)) -> 2.123056517e-08 | F8: =IF(ISERROR(F47/F46),0,(F47/F46)) -> 0 | G8: =IF(ISERROR(G47/G46),0,(G47/G46)) -> 0.08188194305 | H8: =IF(ISERROR(H47/H46),0,(H47/H46)) -> 0
A9: Safety of Capital
A10: Debt to Equity | B10: Loans, Accounts Payable, Overdraft & Tax Provision/ Funds & Reserves | D10: =IF(ISERROR(D48/D49),0,(D48/D49)) -> -0.291457349 | E10: =IF(ISERROR(E48/E49),0,(E48/E49)) -> 1.540883936 | F10: =IF(ISERROR(F48/F49),0,(F48/F49)) -> 0.2105352415 | G10: =IF(ISERROR(G48/G49),0,(G48/G49)) -> 0.06651166838 | H10: =IF(ISERROR(H48/H49),0,(H48/H49)) -> 0.2105352415
A11: Gearing | B11: Long Term Borrowing/ Funds & Reserves | D11: =IF(ISERROR(D51/D50),0,(D51/D50)) -> 0 | E11: =IF(ISERROR(E51/E50),0,(E51/E50)) -> 0 | F11: =IF(ISERROR(F51/F50),0,(F51/F50)) -> 0 | G11: =IF(ISERROR(G51/G50),0,(G51/G50)) -> 0 | H11: =IF(ISERROR(H51/H50),0,(H51/H50)) -> 0
A12: Liquidity
A13: Current Ratio | B13: Current assets/current liabilities | C13: 1 | D13: =IF(ISERROR(D52/D53),0,(D52/D53)) -> -2.133646579 | E13: =IF(ISERROR(E52/E53),0,(E52/E53)) -> 1.261621319 | F13: =IF(ISERROR(F52/F53),0,(F52/F53)) -> 1.24854616 | G13: =IF(ISERROR(G52/G53),0,(G52/G53)) -> 0.4429149775 | H13: =IF(ISERROR(H52/H53),0,(H52/H53)) -> 1.24854616
A14: Liquidity Ratio | B14: Monetary Assets/Current Liabilities | D14: =IF(ISERROR(D54/D53),0,(D54/D53)) -> -1.837273642 | E14: =IF(ISERROR(E54/E53),0,(E54/E53)) -> 0.9704883909 | F14: =IF(ISERROR(F54/F53),0,(F54/F53)) -> 0.3355194335 | G14: =IF(ISERROR(G54/G53),0,(G54/G53)) -> 0.09688466748 | H14: =IF(ISERROR(H54/H53),0,(H54/H53)) -> 0.3355194335
A15: Revenue Management
A16: Annual Debtors Collection Rate (Payment Level %) | B16: Last 12 Mths Receipts/ Last 12 Mths Billing
A17: Outstanding Debtors to Revenue | B17: Total Outstanding Debtors to Annual Revenue | D17: =IF(ISERROR(D59/D55),0,(D59/D55)) -> 0 | E17: =IF(ISERROR(E59/E55),0,(E59/E55)) -> 0.4540805871 | F17: =IF(ISERROR(F59/F55),0,(F59/F55)) -> 0.08461602464 | G17: =IF(ISERROR(G59/G55),0,(G59/G55)) -> 0.03158252014 | H17: =IF(ISERROR(H59/H55),0,(H59/H55)) -> 0.08461602464
A18: Longstanding Debtors Recovered | B18: Debtors > 12 Mths Recovered/Total Debtors > 12 Months Old | D18: =IF(ISERROR(D64/D63),0,(D64/D63)) -> 0 | E18: =IF(ISERROR(E64/E63),0,(E64/E63)) -> 0 | F18: =IF(ISERROR(F64/F63),0,(F64/F63)) -> 0 | G18: =IF(ISERROR(G64/G63),0,(G64/G63)) -> 0 | H18: =IF(ISERROR(H64/H63),0,(H64/H63)) -> 0
A19: Creditors Management
A20: Creditors System Efficiency | B20: % of Creditors Paid Within Terms (within MFMA s 65(e))
A21: Funding of Provisions
A22: Percentage Of Provisions Not Funded | B22: Unfunded Provisions/Total Provisions
A23: Other Indicators
A24: Electricity Distribution Losses | B24: % Volume (units purchased and generated less units sold)/units purchased and generated | C24: 2
A25: Water Distribution Losses | B25: % Volume (units purchased and own source less units sold)/Total units purchased and own source | C25: 2
A26: Employee costs | B26: Employee costs/Total Revenue - capital revenue | D26: =IF(ISERROR(D40/D55),0,(D40/D55)) -> 0 | E26: =IF(ISERROR(E40/E55),0,(E40/E55)) -> 0.5264678112 | F26: =IF(ISERROR(F40/F55),0,(F40/F55)) -> 0.5276813732 | G26: =IF(ISERROR(G40/G55),0,(G40/G55)) -> 0.4207132976 | H26: =IF(ISERROR(H40/H55),0,(H40/H55)) -> 0.5276813732
A27: Repairs & Maintenance | B27: R&M/Total Revenue - capital revenue | D27: =IF(ISERROR(D41/D55),0,(D41/D55)) -> 0 | E27: =IF(ISERROR(E41/E55),0,(E41/E55)) -> 0 | F27: =IF(ISERROR(F41/F55),0,(F41/F55)) -> 0 | G27: =IF(ISERROR(G41/G55),0,(G41/G55)) -> 0 | H27: =IF(ISERROR(H41/H55),0,(H41/H55)) -> 0
A28: Interest & Depreciation | B28: I&D/Total Revenue - capital revenue | D28: =IF(ISERROR((D42+D44)/D55),0,((D42+D44)/D55)) -> 0 | E28: =IF(ISERROR((E42+E44)/E55),0,((E42+E44)/E55)) -> 0.1432958335 | F28: =IF(ISERROR((F42+F44)/F55),0,((F42+F44)/F55)) -> 0.1432958335 | G28: =IF(ISERROR((G42+G44)/G55),0,((G42+G44)/G55)) -> 6.719292224e-05 | H28: =IF(ISERROR((H42+H44)/H55),0,((H42+H44)/H55)) -> 0.08005053453
A29: IDP regulation financial viability indicators
A30: i. Debt coverage | B30: (Total Operating Revenue - Operating Grants)/Debt service payments due within financial year)
A31: ii. O/S Service Debtors to Revenue | B31: Total outstanding service debtors/annual revenue received for services
A32: iii. Cost coverage | B32: (Available cash + Investments)/monthly fixed operational expenditure
A33: References
A34: 1. Consumer debtors > 12 months old are excluded from current assets.
A35: 2. Material variances to be explained.
A37: Calculations
A38: ='C6-FinPos'!A38 -> Borrowing | D38: ='C6-FinPos'!C38 -> 0 | E38: ='C6-FinPos'!D38 -> 258640 | F38: ='C6-FinPos'!E38 -> 258640 | G38: ='C6-FinPos'!F38 -> 5655623 | H38: 0
A39: Total Assets | D39: ='C6-FinPos'!C26 -> 151663758 | E39: ='C6-FinPos'!D26 -> 425985379 | F39: ='C6-FinPos'!E26 -> 90682075 | G39: ='C6-FinPos'!F26 -> 460543353 | H39: ='C6-FinPos'!G26 -> 90682075
A40: ='C4-FinPerf RE'!A25 -> Employee related costs | D40: ='C4-FinPerf RE'!C25 -> 0 | E40: ='C4-FinPerf RE'!D25 -> 88123211 | F40: ='C4-FinPerf RE'!E25 -> 88326344 | G40: ='C4-FinPerf RE'!G25 -> 82972149.11 | H40: ='C4-FinPerf RE'!K25 -> 88326344
A41: =A27 -> Repairs & Maintenance
A42: Interest (finance charges) | D42: ='C4-FinPerf RE'!C29 -> 0 | E42: ='C4-FinPerf RE'!D29 -> 264650 | F42: ='C4-FinPerf RE'!E29 -> 264650 | G42: ='C4-FinPerf RE'!G29 -> 13251.64 | H42: ='C4-FinPerf RE'!K29 -> 264650
A43: Principal paid | D43: =-'C7-CFlow'!C36 -> 0 | E43: =-'C7-CFlow'!D36 -> 0 | F43: =-'C7-CFlow'!E36 -> 0 | G43: =-'C7-CFlow'!G36 -> 0 | H43: =-'C7-CFlow'!K36 -> 0
A44: Depreciation | D44: ='C4-FinPerf RE'!C28 -> 0 | E44: ='C4-FinPerf RE'!D28 -> 23721031 | F44: ='C4-FinPerf RE'!E28 -> 23721031 | H44: ='C4-FinPerf RE'!K26 -> 13134669
A45: Operating expenditure | D45: ='C4-FinPerf RE'!C36 -> 0 | E45: ='C4-FinPerf RE'!D36 -> 195477122 | F45: ='C4-FinPerf RE'!E36 -> 201169552 | G45: ='C4-FinPerf RE'!G36 -> 148180342.9 | H45: ='C4-FinPerf RE'!K36 -> 201169552
A46: ='C5-Capex'!A40 -> Total Capital Expenditure | D46: ='C5-Capex'!C40 -> 0 | E46: ='C5-Capex'!D40 -> 47101902 | F46: ='C5-Capex'!E40 -> 47101902 | G46: ='C5-Capex'!G40 -> 35136737.39 | H46: ='C5-Capex'!K40 -> 47101902
A47: Borrowed funding for capital | D47: ='C5-Capex'!C72 -> 0 | E47: ='C5-Capex'!D72 -> 1 | F47: ='C5-Capex'!E72 -> 0 | G47: ='C5-Capex'!G72 -> 2877064.33 | H47: ='C5-Capex'!K72 -> 0
A48: Debt | D48: ='C6-FinPos'!C30+'C6-FinPos'!C31+'C6-FinPos'!C33+'C6-FinPos'!C38 -> -62322930 | E48: ='C6-FinPos'!D30+'C6-FinPos'!D31+'C6-FinPos'!D33+'C6-FinPos'!D38 -> 281771348 | F48: ='C6-FinPos'!E30+'C6-FinPos'!E31+'C6-FinPos'!E33+'C6-FinPos'!E38 -> 15771348 | G48: ='C6-FinPos'!F30+'C6-FinPos'!F31+'C6-FinPos'!F33+'C6-FinPos'!F38 -> 26602615 | H48: ='C6-FinPos'!G30+'C6-FinPos'!G31+'C6-FinPos'!G33+'C6-FinPos'!G38 -> 15771348
A49: Equity | D49: ='C6-FinPos'!C48 -> 213832076 | E49: ='C6-FinPos'!D48 -> 182863447 | F49: ='C6-FinPos'!E48 -> 74910727 | G49: ='C6-FinPos'!F48 -> 399969143 | H49: ='C6-FinPos'!G48 -> 74910727
A50: ='C6-FinPos'!A47 -> Reserves | D50: ='C6-FinPos'!C47 -> 0 | E50: ='C6-FinPos'!D47 -> 0 | F50: ='C6-FinPos'!E47 -> 0 | G50: ='C6-FinPos'!F47 -> 0 | H50: ='C6-FinPos'!G47 -> 0
A51: ='C6-FinPos'!A38 -> Borrowing | D51: ='C6-FinPos'!C38 -> 0 | E51: ='C6-FinPos'!D38 -> 258640 | F51: ='C6-FinPos'!E38 -> 258640 | G51: ='C6-FinPos'!F38 -> 5655623 | H51: ='C6-FinPos'!G38 -> 258640
A52: ='C6-FinPos'!A6 -> Current assets | D52: ='C6-FinPos'!C13 -> 132645219 | E52: ='C6-FinPos'!D13 -> 355162434 | F52: ='C6-FinPos'!E13 -> 19368332 | G52: ='C6-FinPos'!F13 -> 18967519 | H52: ='C6-FinPos'!G13 -> 19368332
A53: ='C6-FinPos'!A29 -> Current liabilities | D53: ='C6-FinPos'!C35 -> -62168318 | E53: ='C6-FinPos'!D35 -> 281512708 | F53: ='C6-FinPos'!E35 -> 15512708 | G53: ='C6-FinPos'!F35 -> 42824289 | H53: ='C6-FinPos'!G35 -> 15512708
A54: Monetary assets | D54: ='C6-FinPos'!C7+'C6-FinPos'!C8 -> 114220212 | E54: ='C6-FinPos'!D7+'C6-FinPos'!D8 -> 273204815 | F54: ='C6-FinPos'!E7+'C6-FinPos'!E8 -> 5204815 | G54: ='C6-FinPos'!F7+'C6-FinPos'!F8 -> 4149017 | H54: ='C6-FinPos'!G7+'C6-FinPos'!G8 -> 5204815
A55: ='C4-FinPerf RE'!A22 -> Total Revenue (excluding capital transfers and contributions) | D55: ='C4-FinPerf RE'!C22 -> 0 | E55: ='C4-FinPerf RE'!D22 -> 167385753 | F55: ='C4-FinPerf RE'!E22 -> 167385753 | G55: ='C4-FinPerf RE'!G22 -> 197217795.5 | H55: ='C4-FinPerf RE'!K22 -> 167385753
A56: ='C4-FinPerf RE'!A19 -> Transfers and subsidies | D56: ='C4-FinPerf RE'!C19 -> 0 | E56: ='C4-FinPerf RE'!D19 -> 126886100 | F56: ='C4-FinPerf RE'!E19 -> 126886100 | G56: ='C4-FinPerf RE'!G19 -> 158568740.2 | H56: ='C4-FinPerf RE'!K19 -> 126886100
A57: ='C4-FinPerf RE'!A39 -> Transfers and subsidies - capital (monetary allocations) (National / Provincial and District) | D57: ='C4-FinPerf RE'!C39 -> 0 | E57: ='C4-FinPerf RE'!D39 -> 42256900 | F57: ='C4-FinPerf RE'!E39 -> 42256900 | G57: ='C4-FinPerf RE'!G39 -> 17114935.9 | H57: ='C4-FinPerf RE'!K39 -> 42256900
A58: Debt service payments | D58: ='C7-CFlow'!C12+'C7-CFlow'!C36 -> 0 | E58: ='C7-CFlow'!D12+'C7-CFlow'!D36 -> 0 | F58: ='C7-CFlow'!E12+'C7-CFlow'!E36 -> 0 | G58: ='C7-CFlow'!G16+'C7-CFlow'!G36 -> 0 | H58: ='C7-CFlow'!K16+'C7-CFlow'!K36 -> 0
A59: Outstanding debtors (receivables) | D59: ='C6-FinPos'!C9+'C6-FinPos'!C10+'C6-FinPos'!C11+'C6-FinPos'!C16 -> 18425007 | E59: ='C6-FinPos'!D9+'C6-FinPos'!D10+'C6-FinPos'!D11+'C6-FinPos'!D16 -> 76006621 | F59: ='C6-FinPos'!E9+'C6-FinPos'!E10+'C6-FinPos'!E11+'C6-FinPos'!E16 -> 14163517 | G59: ='C6-FinPos'!F9+'C6-FinPos'!F10+'C6-FinPos'!F11+'C6-FinPos'!F16 -> 6228635 | H59: ='C6-FinPos'!G9+'C6-FinPos'!G10+'C6-FinPos'!G11+'C6-FinPos'!G16 -> 14163517
A60: Annual services revenue | D60: =SUM('C4-FinPerf RE'!C7:C11) -> 0 | E60: =SUM('C4-FinPerf RE'!D7:D11) -> 21970318 | F60: =SUM('C4-FinPerf RE'!E7:E11) -> 21970318 | G60: =SUM('C4-FinPerf RE'!G7:G11) -> 20342373.85
A61: Cash + investments | B61: Including LT investments | D61: ='C6-FinPos'!C7+'C6-FinPos'!C8+'C6-FinPos'!C17-'C6-FinPos'!C30 -> 114220212 | E61: ='C6-FinPos'!D7+'C6-FinPos'!D8+'C6-FinPos'!D17-'C6-FinPos'!D30 -> 273204815 | F61: ='C6-FinPos'!E7+'C6-FinPos'!E8+'C6-FinPos'!E17-'C6-FinPos'!E30 -> 5204815 | G61: ='C6-FinPos'!F7+'C6-FinPos'!F8+'C6-FinPos'!F17-'C6-FinPos'!F30 -> 4149017 | H61: ='C6-FinPos'!G7+'C6-FinPos'!G8+'C6-FinPos'!G17-'C6-FinPos'!G30 -> 5204815
A62: Fixed operational expend. (monthly)
A63: Longstanding debtors outstanding | D63: ='C6-FinPos'!C16 -> 0 | E63: ='C6-FinPos'!D16 -> 0 | F63: ='C6-FinPos'!E16 -> 0 | G63: ='C6-FinPos'!F16 -> 0 | H63: ='C6-FinPos'!G16 -> 0
A64: Longstanding debtors recovered
A65: Attorney collections

Sheet SC3
A1: =muni& " - "&S71I& " - "&Head57 -> EC136 Emalahleni (Ec) - Supporting Table SC3 Monthly Budget Statement - aged debtors - M12 June
A2: =desc -> Description | C2: =Head2 -> Budget Year 2018/19
A3: R thousands | B3: NT Code | C3: 0-30 Days | D3: 31-60 Days | E3: 61-90 Days | F3: 91-120 Days | G3: 121-150 Dys | H3: 151-180 Dys | I3: 181 Dys-1 Yr | J3: Over 1Yr | K3: Total | L3: Total over 90 days | M3: Actual Bad Debts Written Off against Debtors | N3: Impairment - Bad Debts i.t.o Council Policy
A4: Debtors Age Analysis By Income Source
A5: Trade and Other Receivables from Exchange Transactions - Water | B5: 1200 | C5: 0 | D5: 0 | E5: 0 | F5: 0 | G5: 0 | H5: 0 | I5: 0 | J5: 0 | K5: =SUM(C5:J5) -> 0 | L5: =SUM(F5:J5) -> 0 | M5: 0 | N5: 0
A6: Trade and Other Receivables from Exchange Transactions - Electricity | B6: 1300 | C6: -120846 | D6: 1226240 | E6: 503060 | F6: -1996860 | G6: 3757976 | H6: 1058908 | I6: 968440 | J6: 18291402 | K6: =SUM(C6:J6) -> 23688320 | L6: =SUM(F6:J6) -> 22079866 | M6: 0 | N6: 0
A7: Receivables from Non-exchange Transactions - Property Rates | B7: 1400 | C7: -187142 | D7: 1203108 | E7: 929906 | F7: -97664 | G7: 1134356 | H7: 1155326 | I7: 1258118 | J7: 51725646 | K7: =SUM(C7:J7) -> 57121654 | L7: 55175782 | M7: 0 | N7: 0
A8: Receivables from Exchange Transactions - Waste Water Management | B8: 1500 | C8: 0 | D8: 0 | E8: 0 | F8: 0 | G8: 0 | H8: 0 | I8: 0 | J8: 0 | K8: 0 | L8: 0 | M8: 0 | N8: 0
A9: Receivables from Exchange Transactions - Waste Management | B9: 1600 | C9: -65960 | D9: 1557630 | E9: 1528922 | F9: 1277944 | G9: 1548926 | H9: 1531430 | I9: 1565366 | J9: 87976754 | K9: 96921012 | L9: =SUM(F9:J9) -> 93900420 | M9: 0 | N9: 0
A10: Receivables from Exchange Transactions - Property Rental Debtors | B10: 1700 | C10: -16056 | D10: 138400 | E10: 118328 | F10: 107534 | G10: 122174 | H10: 119662 | I10: 125320 | J10: 5777586 | K10: 6492948 | L10: =SUM(F10:J10) -> 6252276 | M10: 0 | N10: 0
A11: Interest on Arrear Debtor Accounts | B11: 1810 | C11: 0 | D11: 0 | E11: 0 | F11: 0 | G11: 0 | H11: 0 | I11: 0 | J11: 0 | K11: 0 | L11: 0 | M11: 0 | N11: 0
A12: Recoverable unauthorised, irregular, fruitless and wasteful expenditure | B12: 1820 | C12: 0 | D12: 0 | E12: 0 | F12: 0 | G12: 0 | H12: 0 | I12: 0 | J12: 0 | K12: 0 | L12: 0 | M12: 0 | N12: 0
A13: Other | B13: 1900 | C13: 0 | D13: 300000 | E13: 0 | F13: 0 | G13: 0 | H13: 0 | I13: 0 | J13: 0 | K13: 300000 | L13: =SUM(F13:J13) -> 0 | M13: 0 | N13: 0
A14: Total By Income Source | B14: 2000 | C14: =SUM(C5:C13) -> -390004 | D14: 4425378 | E14: 3080216 | F14: -709046 | G14: 6563432 | H14: 3865326 | I14: 3917244 | J14: 163771388 | K14: 184523934 | L14: =SUM(L5:L13) -> 177408344 | M14: 0 | N14: 0
A15: =Head1&" - totals only" -> 2017/18 - totals only | C15: 3076060 | D15: 2856944 | E15: 2261730 | F15: 2170420 | G15: 2102612 | H15: 2055120 | I15: 2016466 | J15: 120936548 | K15: =SUM(C15:J15) -> 137475900 | L15: =SUM(F15:J15) -> 129281166 | M15: 0 | N15: 0
A16: Debtors Age Analysis By Customer Group
A17: Organs of State | B17: 2200 | C17: -90356 | D17: 1559440 | E17: 1144038 | F17: -2735608 | G17: 4072222 | H17: 1277340 | I17: 1287564 | J17: 41282184 | K17: =SUM(C17:J17) -> 47796824 | L17: =SUM(F17:J17) -> 45183702 | M17: 0 | N17: 0
A18: Commercial | B18: 2300 | C18: -218684 | D18: 474472 | E18: 245012 | F18: 17986 | G18: 381170 | H18: 592538 | I18: 574276 | J18: 10460872 | K18: =SUM(C18:J18) -> 12527642 | L18: =SUM(F18:J18) -> 12026842 | M18: 0 | N18: 0
A19: Households | B19: 2400 | C19: -61508 | D19: 1891504 | E19: 1813702 | F19: 1924954 | G19: 1936502 | H19: 1832212 | I19: 1885914 | J19: 106113496 | K19: =SUM(C19:J19) -> 117336776 | L19: =SUM(F19:J19) -> 113693078 | M19: 0 | N19: 0
A20: Other | B20: 2500 | C20: -19456 | D20: 499962 | E20: -122536 | F20: 83622 | G20: 173538 | H20: 163236 | I20: 169490 | J20: 5914836 | K20: =SUM(C20:J20) -> 6862692 | L20: =SUM(F20:J20) -> 6504722 | M20: 0 | N20: 0
A21: Total By Customer Group | B21: 2600 | C21: =SUM(C17:C20) -> -390004 | D21: 4425378 | E21: 3080216 | F21: -709046 | G21: 6563432 | H21: 3865326 | I21: 3917244 | J21: =SUM(J17:J20) -> 163771388 | K21: =SUM(K17:K20) -> 184523934 | L21: =SUM(L17:L20) -> 177408344 | M21: =SUM(M17:M20) -> 0 | N21: =SUM(N17:N20) -> 0
A22: Notes
A23: Material increases in value of debtors' categories compared to previous month to be explained
A24: Bad debts = amounts actually written off in the month
A25: Total by Income Source must reconcile with Total by Customer Group
C26: =C14-C21 -> 0 | D26: =D14-D21 -> 0 | E26: =E14-E21 -> 0 | F26: 0 | G26: 0 | H26: 0 | I26: 0 | J26: =J14-J21 -> 0 | K26: 0
C27: =IF(C26=0,"","MUST AGREE") ->  | D27: =IF(D26=0,"","MUST AGREE") -> 

Sheet SC4
A1: =muni& " - "&S71J& " - "&Head57 -> EC136 Emalahleni (Ec) - Supporting Table SC4 Monthly Budget Statement - aged creditors - M12 June
A2: =desc -> Description | B2: NT Code | C2: =Head2 -> Budget Year 2018/19 | L2: Prior year totals for chart (same period)
C3: 0 - 30 Days | D3: 31 - 60 Days | E3: 61 - 90 Days | F3: 91 - 120 Days | G3: 121 - 150 Days | H3: 151 - 180 Days | I3: 181 Days - 1 Year | J3: Over 1 Year | K3: Total
A4: R thousands
A5: Creditors Age Analysis By Customer Type
A6: Bulk Electricity | B6: 0100 | C6: 0 | D6: 0 | E6: 0 | F6: 0 | G6: 0 | H6: 0 | I6: 0 | J6: 0 | K6: =SUM(C6:J6) -> 0 | L6: 0
A7: Bulk Water | B7: 0200 | C7: 0 | D7: 0 | E7: 0 | F7: 0 | G7: 0 | H7: 0 | I7: 0 | J7: 0 | K7: =SUM(C7:J7) -> 0 | L7: 0
A8: PAYE deductions | B8: 0300 | C8: 0 | D8: 0 | E8: 0 | F8: 0 | G8: 0 | H8: 0 | I8: 0 | J8: 0 | K8: 0 | L8: 0
A9: VAT (output less input) | B9: 0400 | C9: 0 | D9: 0 | E9: 0 | F9: 0 | G9: 0 | H9: 0 | I9: 0 | J9: 0 | K9: 0 | L9: 0
A10: Pensions / Retirement deductions | B10: 0500 | C10: 0 | D10: 0 | E10: 0 | F10: 0 | G10: 0 | H10: 0 | I10: 0 | J10: 0 | K10: 0 | L10: 0
A11: Loan repayments | B11: 0600 | C11: 0 | D11: 0 | E11: 0 | F11: 0 | G11: 0 | H11: 0 | I11: 0 | J11: 0 | K11: 0 | L11: 0
A12: Trade Creditors | B12: 0700 | C12: 4646511.48 | D12: 26466.35 | E12: 0 | F12: 0 | G12: 0 | H12: 0 | I12: 0 | J12: 0 | K12: 4672977.83 | L12: 0
A13: Auditor General | B13: 0800 | C13: 0 | D13: 0 | E13: 0 | F13: 0 | G13: 0 | H13: 0 | I13: 0 | J13: 0 | K13: 0 | L13: 0
A14: Other | B14: 0900 | C14: 0 | D14: 0 | E14: 0 | F14: 0 | G14: 0 | H14: 0 | I14: 0 | J14: 0 | K14: =SUM(C14:J14) -> 0 | L14: 0
A15: Total By Customer Type | B15: 1000 | C15: =SUM(C6:C14) -> 4646511.48 | D15: =SUM(D6:D14) -> 26466.35 | E15: 0 | F15: 0 | G15: 0 | H15: 0 | I15: 0 | J15: 0 | K15: =SUM(K6:K14) -> 4672977.83 | L15: =SUM(L6:L14) -> 0
A16: Notes
A17: Material increases in value of creditors' categories compared to previous month to be explained

Sheet SC5
A1: =muni& " - "&S71K& " - "&Head57 -> EC136 Emalahleni (Ec) - Supporting Table SC5 Monthly Budget Statement - investment portfolio - M12 June
A2: Investments by maturity Name of institution & investment ID | B2: Ref | C2: Period of Investment | D2: Type of Investment | E2: Expiry date of investment | F2: Accrued interest for the month | G2: Yield for the month 1 (%) | H2: Market value at beginning of the month | I2: Change in market value | J2: Market value at end of the month
A3: R thousands | C3: Yrs/Months
A4: Municipality
A12: Municipality sub-total | F12: =SUM(F5:F11) -> 0 | H12: =SUM(H5:H11) -> 0 | I12: =SUM(I5:I11) -> 0 | J12: =SUM(J5:J11) -> 0
A14: Entities
A22: Entities sub-total | F22: =SUM(F15:F21) -> 0 | H22: =SUM(H15:H21) -> 0 | I22: =SUM(I15:I21) -> 0 | J22: =SUM(J15:J21) -> 0
A24: TOTAL INVESTMENTS AND INTEREST | B24: 2 | F24: =F12+F22 -> 0 | H24: =H12+H22 -> 0 | I24: =I12+I22 -> 0 | J24: =J12+J22 -> 0
A25: =head27a -> References
A26: 1. Yield is calculated as the annualised equivalent
A27: 2. Total market value must reconcile with the total of investments on the 'Financial Position statement'

Sheet SC6
A1: =muni& " - "&S71L& " - "&Head57 -> EC136 Emalahleni (Ec) - Supporting Table SC6 Monthly Budget Statement - transfers and grant receipts - M12 June
A2: =desc -> Description | B2: =head27 -> Ref | C2: =Head1 -> 2017/18 | D2: =Head2 -> Budget Year 2018/19
C3: =Head5 -> Audited Outcome | D3: =Head6 -> Original Budget | E3: =Head7 -> Adjusted Budget | F3: =Head38 -> Monthly actual | G3: =Head39 -> YearTD actual | H3: =Head40 -> YearTD budget | I3: =Head41 -> YTD variance | J3: =Head41 -> YTD variance | K3: =Head8 -> Full Year Forecast
A4: R thousands | J4: %
A5: RECEIPTS: | B5: 1,2
A7: Operating Transfers and Grants
A8: National Government: | C8: =SUM(C9:C19) -> 0 | D8: 121856100 | E8: 121856100 | F8: 0 | G8: 156924934.9 | H8: 121856100 | I8: 35068834.89 | J8: =IF(I8=0,"",I8/H8) -> 0.2877889157 | K8: =SUM(K9:K19) -> 121856100
C9: 0 | D9: 121856100 | E9: 121856100 | F9: 0 | G9: 156924934.9 | H9: 121856100 | I9: =G9-H9 -> 35068834.89 | J9: 0.2877889157 | K9: 121856100
B14: 3 | I14: 0
I15: 0
I16: 0
I17: 0
I18: 0
A19: Other transfers and grants [insert description] | I19: 0
A20: Provincial Government: | C20: =SUM(C21:C26) -> 0 | D20: 3900000 | E20: 3900000 | F20: 0 | G20: 513805.29 | H20: 3900000 | I20: -3386194.71 | J20: -0.8682550538 | K20: =SUM(K21:K26) -> 3900000
C21: 0 | D21: 3900000 | E21: 3900000 | F21: 0 | G21: 513805.29 | H21: 3900000 | I21: =G21-H21 -> -3386194.71 | J21: -0.8682550538 | K21: 3900000
I23: 0
B24: 4 | I24: 0
I25: 0
A26: Other transfers and grants [insert description] | I26: 0
A27: District Municipality: | C27: =SUM(C28:C29) -> 0 | D27: 1130000 | E27: 1130000 | F27: 0 | G27: 1130000 | H27: 1130000 | I27: 0 | K27: =SUM(K28:K29) -> 1130000
A28: [insert description] | C28: 0 | D28: 1130000 | E28: 1130000 | F28: 0 | G28: 1130000 | H28: 1130000 | I28: 0 | K28: 1130000
I29: 0
A30: Other grant providers: | C30: =SUM(C31:C37) -> 0 | D30: 0 | E30: 0 | F30: 0 | G30: 0 | H30: 0 | I30: 0 | K30: =SUM(K31:K37) -> 0
A31: [insert description] | C31: 0 | D31: 0 | E31: 0 | F31: 0 | G31: 0 | H31: 0 | I31: 0 | K31: 0
I37: 0
A38: Total Operating Transfers and Grants | B38: 5 | C38: =C8+C20+C27+C30 -> 0 | D38: 126886100 | E38: 126886100 | F38: 0 | G38: 158568740.2 | H38: 126886100 | I38: 31682640.18 | J38: 0.2496935455 | K38: =K8+K20+K27+K30 -> 126886100
A40: Capital Transfers and Grants
A41: =A8 -> National Government: | C41: =SUM(C42:C51) -> 0 | D41: 42256900 | E41: 42256900 | F41: 0 | G41: 17114935.9 | H41: 42256900 | I41: -25141964.1 | J41: =IF(I41=0,"",I41/H41) -> -0.5949789052 | K41: 42256900
C42: 0 | D42: 42256900 | E42: 42256900 | F42: 0 | G42: 17114935.9 | H42: 42256900 | I42: =G42-H42 -> -25141964.1 | J42: -0.5949789052 | K42: 42256900
I47: 0
I48: 0
I49: 0
I50: 0
A51: Other capital transfers [insert description] | I51: 0
A52: =A20 -> Provincial Government: | C52: =SUM(C53:C58) -> 0 | D52: 0 | E52: 0 | F52: 0 | G52: 0 | H52: 0 | I52: =G52-H52 -> 0 | J52: =IF(I52=0,"",I52/H52) ->  | K52: =SUM(K53:K58) -> 0
A53: [insert description] | C53: 0 | D53: 0 | E53: 0 | F53: 0 | G53: 0 | H53: 0 | I53: 0 | J53: =IF(I53=0,"",I53/H53) ->  | K53: 0
I58: 0
A59: =A27 -> District Municipality: | C59: =SUM(C60:C61) -> 0 | D59: 0 | E59: 0 | F59: 0 | G59: 0 | H59: 0 | I59: 0 | K59: =SUM(K60:K61) -> 0
A60: [insert description] | C60: 0 | D60: 0 | E60: 0 | F60: 0 | G60: 0 | H60: 0 | I60: 0 | K60: 0
I61: 0
A62: =A30 -> Other grant providers: | C62: =SUM(C63:C68) -> 0 | D62: 0 | E62: 0 | F62: 0 | G62: 0 | H62: 0 | I62: 0 | K62: =SUM(K63:K68) -> 0
A63: [insert description] | C63: 0 | D63: 0 | E63: 0 | F63: 0 | G63: 0 | H63: 0 | I63: 0 | J63: =IF(I63=0,"",I63/H63) ->  | K63: 0
I68: 0
A69: Total Capital Transfers and Grants | B69: 5 | C69: =C41+C52+C59+C62 -> 0 | D69: =D41+D52+D59+D62 -> 42256900 | E69: 42256900 | F69: 0 | G69: 17114935.9 | H69: 42256900 | I69: -25141964.1 | J69: -0.5949789052 | K69: 42256900
A71: TOTAL RECEIPTS OF TRANSFERS & GRANTS | B71: 5 | C71: =C38+C69 -> 0 | D71: 169143000 | E71: 169143000 | F71: 0 | G71: 175683676.1 | H71: 169143000 | I71: 6540676.08 | J71: 0.03866950498 | K71: 169143000
A72: =head27a -> References
A73: 1. Each grant is listed by name as gazetted together with the name of the transferring department or municipality, donor or other organisation
A74: 2. Grant expenditure must be separately listed for each grant received
A75: 3. Replacement of RSC levies
A76: 4. Housing subsidies for housing where ownership transferred
A77: 5. Total recurrent/capital grants and subsidies must reconcile to the 'Financial Performance' Statement

Sheet SC7(1)
A1: =muni& " - "&S71M& " - "&Head57 -> EC136 Emalahleni (Ec) - Supporting Table SC7(1) Monthly Budget Statement - transfers and grant expenditure - M12 June
A2: =desc -> Description | B2: =head27 -> Ref | C2: =Head1 -> 2017/18 | D2: =Head2 -> Budget Year 2018/19
C3: =Head5 -> Audited Outcome | D3: =Head6 -> Original Budget | E3: =Head7 -> Adjusted Budget | F3: =Head38 -> Monthly actual | G3: =Head39 -> YearTD actual | H3: =Head40 -> YearTD budget | I3: =Head41 -> YTD variance | J3: =Head41 -> YTD variance | K3: =Head8 -> Full Year Forecast
A4: R thousands | J4: %
A5: EXPENDITURE
A7: Operating expenditure of Transfers and Grants
A8: ='SC6'!A8 -> National Government: | C8: =SUM(C9:C15) -> 0 | D8: 0 | E8: 0 | F8: 0 | G8: 0 | H8: 0 | I8: 0 | J8: =IF(I8=0,"",I8/H8) ->  | K8: =SUM(K9:K15) -> 0
A9: ='SC6'!A9 -> 0 | C9: 0 | D9: 0 | E9: 0 | F9: 0 | G9: 0 | H9: 0 | I9: =G9-H9 -> 0 | K9: 0
A10: ='SC6'!A10 -> 0 | I10: 0
A11: ='SC6'!A11 -> 0 | I11: 0
A12: ='SC6'!A12 -> 0 | I12: 0
A13: ='SC6'!A13 -> 0 | I13: 0
A14: ='SC6'!A14 -> 0 | I14: 0
A15: ='SC6'!A19 -> Other transfers and grants [insert description] | I15: 0
A16: ='SC6'!A20 -> Provincial Government: | C16: =SUM(C17:C21) -> 0 | D16: 0 | E16: 0 | F16: 0 | G16: 0 | H16: 0 | I16: 0 | K16: =SUM(K17:K21) -> 0
A17: ='SC6'!A21 -> 0 | C17: 0 | D17: 0 | E17: 0 | F17: 0 | G17: 0 | H17: 0 | I17: =G17-H17 -> 0 | K17: 0
A18: ='SC6'!A23 -> 0 | I18: 0
A19: ='SC6'!A24 -> 0 | I19: 0
A20: ='SC6'!A25 -> 0 | I20: 0
A21: ='SC6'!A26 -> Other transfers and grants [insert description] | I21: 0
A22: ='SC6'!A27 -> District Municipality: | C22: =SUM(C23:C24) -> 0 | D22: 0 | E22: =SUM(E23:E24) -> 0 | F22: 0 | G22: 0 | H22: 0 | I22: 0 | K22: =SUM(K23:K24) -> 0
C23: 0 | D23: 0 | E23: 0 | F23: 0 | G23: 0 | H23: 0 | I23: 0 | K23: 0
A24: ='SC6'!A28 -> [insert description] | I24: 0
A25: ='SC6'!A30 -> Other grant providers: | C25: =SUM(C26:C27) -> 0 | D25: 145012 | E25: 145012 | F25: 0 | G25: 79129.6 | H25: 148762 | I25: -69632.4 | J25: -0.4680792138 | K25: =SUM(K26:K27) -> 145012
C26: 0 | D26: 145012 | E26: 145012 | F26: 0 | G26: 79129.6 | H26: 148762 | I26: -69632.4 | J26: -0.4680792138 | K26: 145012
A27: ='SC6'!A31 -> [insert description] | I27: 0
A28: Total operating expenditure of Transfers and Grants: | C28: =C8+C16+C22+C25 -> 0 | D28: =D8+D16+D22+D25 -> 145012 | E28: 145012 | F28: 0 | G28: 79129.6 | H28: 148762 | I28: -69632.4 | J28: -0.4680792138 | K28: =K8+K16+K22+K25 -> 145012
A30: Capital expenditure of Transfers and Grants
A31: ='SC6'!A41 -> National Government: | C31: =SUM(C32:C37) -> 0 | D31: 0 | E31: 0 | F31: 0 | G31: 0 | H31: 0 | I31: 0 | J31: =IF(I31=0,"",I31/H31) ->  | K31: 0
A32: ='SC6'!A42 -> 0 | C32: 0 | D32: 0 | E32: 0 | F32: 0 | G32: 0 | H32: 0 | I32: =G32-H32 -> 0 | K32: 0
A33: ='SC6'!A47 -> 0 | I33: 0
A34: ='SC6'!A48 -> 0 | I34: 0
A35: ='SC6'!A49 -> 0 | I35: 0
A36: ='SC6'!A50 -> 0 | I36: 0
A37: ='SC6'!A51 -> Other capital transfers [insert description] | I37: 0
A38: ='SC6'!A52 -> Provincial Government: | C38: =SUM(C39:C40) -> 0 | D38: 0 | E38: 0 | F38: 0 | G38: 0 | H38: 0 | I38: =G38-H38 -> 0 | K38: =SUM(K39:K40) -> 0
C39: 0 | D39: 0 | E39: 0 | F39: 0 | G39: 0 | H39: 0 | I39: 0 | K39: 0
A40: ='SC6'!A58 -> 0 | I40: 0
A41: ='SC6'!A59 -> District Municipality: | C41: =SUM(C42:C43) -> 0 | D41: 0 | E41: 0 | F41: 0 | G41: 0 | H41: 0 | I41: 0 | K41: =SUM(K42:K43) -> 0
C42: 0 | D42: 0 | E42: 0 | F42: 0 | G42: 0 | H42: 0 | I42: 0 | K42: 0
A43: ='SC6'!A61 -> 0 | I43: 0
A44: ='SC6'!A62 -> Other grant providers: | C44: =SUM(C45:C46) -> 0 | D44: 0 | E44: 0 | F44: 0 | G44: 0 | H44: 0 | I44: 0 | K44: =SUM(K45:K46) -> 0
C45: 0 | D45: 0 | E45: 0 | F45: 0 | G45: 0 | H45: 0 | I45: 0 | K45: 0
A46: ='SC6'!A68 -> 0 | I46: 0
A47: Total capital expenditure of Transfers and Grants | C47: =C31+C38+C41+C44 -> 0 | D47: =D31+D38+D41+D44 -> 0 | E47: 0 | F47: 0 | G47: 0 | H47: 0 | I47: 0 | J47: =IF(I47=0,"",I47/H47) ->  | K47: 0
A49: TOTAL EXPENDITURE OF TRANSFERS AND GRANTS | C49: =C28+C47 -> 0 | D49: 145012 | E49: 145012 | F49: 0 | G49: 79129.6 | H49: 148762 | I49: -69632.4 | J49: =IF(I49=0,"",I49/H49) -> -0.4680792138 | K49: 145012
A50: =head27a -> References

Sheet SC7(2)
A1: =muni& " - "&S71T& " - "&Head57 -> EC136 Emalahleni (Ec) - Supporting Table SC7(2) Monthly Budget Statement - Expenditure against approved rollovers - M12 June
A2: =desc -> Description | B2: =head27 -> Ref | C2: =Head2 -> Budget Year 2018/19
C3: ="Approved Rollover " &Head1 -> Approved Rollover 2017/18 | D3: =Head38 -> Monthly actual | E3: =Head39 -> YearTD actual | F3: =Head41 -> YTD variance | G3: =Head41 -> YTD variance
A4: R thousands | G4: %
A5: EXPENDITURE
A7: Operating expenditure of Approved Roll-overs
A8: ='SC6'!A8 -> National Government: | C8: =SUM(C9:C15) -> 0 | D8: =SUM(D9:D15) -> 0 | E8: =SUM(E9:E15) -> 0 | F8: =SUM(F9:F15) -> 0 | G8: =IF(F8=0,"",F8/C8) -> 
A9: ='SC6'!A9 -> 0 | D9: 0 | E9: 0 | F9: =E9-C9 -> 0 | G9: =IF(F9=0,"",F9/C9) -> 
A10: ='SC6'!A10 -> 0 | F10: =C10-E10 -> 0
A11: ='SC6'!A11 -> 0 | F11: 0
A12: ='SC6'!A12 -> 0 | F12: 0
A13: ='SC6'!A13 -> 0 | F13: 0
A14: ='SC6'!A14 -> 0 | F14: 0
A15: ='SC6'!A19 -> Other transfers and grants [insert description] | F15: 0
A16: ='SC6'!A20 -> Provincial Government: | C16: =SUM(C17:C21) -> 0 | D16: =SUM(D17:D21) -> 0 | E16: =SUM(E17:E21) -> 0 | F16: =SUM(F17:F21) -> 0
A17: ='SC6'!A21 -> 0 | D17: 0 | E17: 0 | F17: =C17-E17 -> 0
A18: ='SC6'!A23 -> 0 | F18: =C18-E18 -> 0
A19: ='SC6'!A24 -> 0 | F19: =C19-E19 -> 0
A20: ='SC6'!A25 -> 0 | F20: =C20-E20 -> 0
A21: ='SC6'!A26 -> Other transfers and grants [insert description] | F21: =C21-E21 -> 0
A22: ='SC6'!A27 -> District Municipality: | C22: =SUM(C23:C24) -> 0 | D22: =SUM(D23:D24) -> 0 | E22: =SUM(E23:E24) -> 0 | F22: =SUM(F23:F24) -> 0
D23: 0 | E23: 0 | F23: =C23-E23 -> 0
A24: ='SC6'!A28 -> [insert description] | F24: =C24-E24 -> 0
A25: ='SC6'!A30 -> Other grant providers: | C25: =SUM(C26:C27) -> 0 | D25: =SUM(D26:D27) -> 0 | E25: =SUM(E26:E27) -> 79129.6 | F25: =SUM(F26:F27) -> -79129.6
D26: 0 | E26: 79129.6 | F26: =C26-E26 -> -79129.6
A27: ='SC6'!A31 -> [insert description] | F27: =C27-E27 -> 0
A28: Total operating expenditure of Approved Roll-overs | C28: =C8+C16+C22+C25 -> 0 | D28: =D8+D16+D22+D25 -> 0 | E28: =E8+E16+E22+E25 -> 79129.6 | F28: =F8+F16+F22+F25 -> -79129.6
A30: Capital expenditure of Approved Roll-overs
A31: ='SC6'!A41 -> National Government: | C31: =SUM(C32:C37) -> 0 | D31: =SUM(D32:D37) -> 0 | E31: =SUM(E32:E37) -> 0 | F31: =SUM(F32:F37) -> 0
A32: ='SC6'!A42 -> 0 | D32: 0 | E32: 0 | F32: =C32-E32 -> 0
A33: ='SC6'!A47 -> 0 | F33: 0
A34: ='SC6'!A48 -> 0 | F34: 0
A35: ='SC6'!A49 -> 0 | F35: 0
A36: ='SC6'!A50 -> 0 | F36: 0
A37: ='SC6'!A51 -> Other capital transfers [insert description] | F37: 0
A38: ='SC6'!A52 -> Provincial Government: | C38: =SUM(C39:C40) -> 0 | D38: =SUM(D39:D40) -> 0 | E38: =SUM(E39:E40) -> 0 | F38: =SUM(F39:F40) -> 0
D39: 0 | E39: 0 | F39: =C39-E39 -> 0
A40: ='SC6'!A58 -> 0 | F40: =C40-E40 -> 0
A41: ='SC6'!A59 -> District Municipality: | C41: =SUM(C42:C43) -> 0 | D41: =SUM(D42:D43) -> 0 | E41: =SUM(E42:E43) -> 0 | F41: =SUM(F42:F43) -> 0
D42: 0 | E42: 0 | F42: =C42-E42 -> 0
A43: ='SC6'!A61 -> 0 | F43: =C43-E43 -> 0
A44: ='SC6'!A62 -> Other grant providers: | C44: =SUM(C45:C46) -> 0 | D44: =SUM(D45:D46) -> 0 | E44: =SUM(E45:E46) -> 0 | F44: =SUM(F45:F46) -> 0
D45: 0 | E45: 0 | F45: =C45-E45 -> 0
A46: ='SC6'!A68 -> 0 | F46: =C46-E46 -> 0
A47: Total capital expenditure of Approved Roll-overs | C47: =C31+C38+C41+C44 -> 0 | D47: =D31+D38+D41+D44 -> 0 | E47: =E31+E38+E41+E44 -> 0 | F47: =F31+F38+F41+F44 -> 0
A49: TOTAL EXPENDITURE OF APPROVED ROLL-OVERS | C49: =C28+C47 -> 0 | D49: =D28+D47 -> 0 | E49: =E28+E47 -> 79129.6 | F49: =F28+F47 -> -79129.6
A50: =head27a -> References

Sheet SC8
A1: =muni& " - "&S71N& " - "&Head57 -> EC136 Emalahleni (Ec) - Supporting Table SC8 Monthly Budget Statement - councillor and staff benefits - M12 June
A2: Summary of Employee and Councillor remuneration | B2: =head27 -> Ref | C2: =Head1 -> 2017/18 | D2: =Head2 -> Budget Year 2018/19
C3: =Head5 -> Audited Outcome | D3: =Head6 -> Original Budget | E3: =Head7 -> Adjusted Budget | F3: =Head38 -> Monthly actual | G3: =Head39 -> YearTD actual | H3: =Head40 -> YearTD budget | I3: =Head41 -> YTD variance | J3: =Head41 -> YTD variance | K3: =Head8 -> Full Year Forecast
A4: R thousands | J4: %
B5: 1 | C5: A | D5: B | E5: C | K5: D
A6: Councillors (Political Office Bearers plus Other)
A7: Basic Salaries and Wages | C7: 0 | D7: 10952727 | E7: 0 | F7: 869220.92 | G7: 12136776.85 | H7: 0 | I7: =G7-H7 -> 12136776.85 | J7: =IF(I7=0,"",I7/H7) ->  | K7: 0
A8: Pension and UIF Contributions | C8: 0 | D8: 0 | E8: 0 | F8: 0 | G8: 0 | H8: 0 | I8: 0 | K8: 0
A9: Medical Aid Contributions | C9: 0 | D9: 0 | E9: 0 | F9: 0 | G9: 0 | H9: 0 | I9: 0 | K9: 0
A10: Motor Vehicle Allowance | C10: 0 | D10: 0 | E10: 0 | F10: 0 | G10: 0 | H10: 0 | I10: =G10-H10 -> 0 | J10: =IF(I10=0,"",I10/H10) ->  | K10: 0
A11: Cellphone Allowance | C11: 0 | D11: 1420800 | E11: 0 | F11: 153007.89 | G11: 548543.53 | H11: 0 | I11: =G11-H11 -> 548543.53 | J11: =IF(I11=0,"",I11/H11) ->  | K11: 0
A12: Housing Allowances | C12: 0 | D12: 0 | E12: 0 | F12: 0 | G12: 0 | H12: 0 | I12: =G12-H12 -> 0 | J12: =IF(I12=0,"",I12/H12) ->  | K12: 0
A13: Other benefits and allowances | C13: 0 | D13: 0 | E13: 0 | F13: 0 | G13: 0 | H13: 0 | I13: 0 | K13: 0
A14: Sub Total - Councillors | C14: =SUM(C7:C13) -> 0 | D14: 12373527 | E14: 0 | F14: 1022228.81 | G14: 12685320.38 | H14: 0 | I14: 12685320.38 | K14: 0
A15: % increase | B15: 4 | D15: =IF(D14=0,"",(D14/C14)-1) ->  | E15: =IF(E14=0,"",(E14/C14)-1) ->  | K15: =IF(K14=0,"",(K14/C14)-1) -> 
A17: Senior Managers of the Municipality | B17: 3
A18: Basic Salaries and Wages | C18: 0 | D18: 8889041 | E18: 0 | F18: 519954.77 | G18: 7463200.44 | H18: 0 | I18: =G18-H18 -> 7463200.44 | J18: =IF(I18=0,"",I18/H18) ->  | K18: 0
A19: Pension and UIF Contributions | C19: 0 | D19: 10710 | E19: 0 | F19: 594.88 | G19: 116662.17 | H19: 0 | I19: 116662.17 | K19: 0
A20: Medical Aid Contributions | C20: 0 | D20: 0 | E20: 0 | F20: 0 | G20: 0 | H20: 0 | I20: 0 | K20: 0
A21: Overtime | C21: 0 | D21: 0 | E21: 0 | F21: 0 | G21: 0 | H21: 0 | I21: 0 | K21: 0
A22: Performance Bonus | C22: 0 | D22: 1168950 | E22: 0 | F22: 0 | G22: 3661.64 | H22: 0 | I22: =G22-H22 -> 3661.64 | J22: =IF(I22=0,"",I22/H22) ->  | K22: 0
A23: Motor Vehicle Allowance | C23: 0 | D23: 0 | E23: 0 | F23: 0 | G23: 0 | H23: 0 | I23: =G23-H23 -> 0 | J23: =IF(I23=0,"",I23/H23) ->  | K23: 0
A24: Cellphone Allowance | C24: 0 | D24: 203133 | E24: 0 | F24: 10986.8 | G24: 32960.4 | H24: 0 | I24: =G24-H24 -> 32960.4 | J24: =IF(I24=0,"",I24/H24) ->  | K24: 0
A25: Housing Allowances | C25: 0 | D25: 0 | E25: 0 | F25: 0 | G25: 0 | H25: 0 | I25: =G25-H25 -> 0 | J25: =IF(I25=0,"",I25/H25) ->  | K25: 0
A26: Other benefits and allowances | C26: 0 | D26: 50705 | E26: 0 | F26: 0 | G26: 169472.58 | H26: 0 | I26: 169472.58 | K26: 0
A27: Payments in lieu of leave | C27: 0 | D27: 0 | E27: 0 | F27: 0 | G27: 0 | H27: 0 | I27: 0 | K27: 0
A28: Long service awards | C28: 0 | D28: 0 | E28: 0 | F28: 0 | G28: 0 | H28: 0 | I28: 0 | K28: 0
A29: Post-retirement benefit obligations | B29: 2 | C29: 0 | D29: 590895 | E29: 0 | F29: 0 | G29: 34364.5 | H29: 0 | I29: 34364.5 | K29: 0
A30: Sub Total - Senior Managers of Municipality | C30: =SUM(C18:C29) -> 0 | D30: 10913434 | E30: 0 | F30: =SUM(F18:F29) -> 531536.45 | G30: =SUM(G18:G29) -> 7820321.73 | H30: =SUM(H18:H29) -> 0 | I30: 7820321.73 | J30: =IF(I30=0,"",I30/H30) ->  | K30: 0
A31: % increase | B31: 4 | D31: =IF(D30=0,"",(D30/C30)-1) ->  | E31: =IF(E30=0,"",(E30/C30)-1) ->  | K31: =IF(K30=0,"",(K30/C30)-1) -> 
A33: Other Municipal Staff
A34: Basic Salaries and Wages | C34: 0 | D34: 54618806 | E34: 0 | F34: 5938869.97 | G34: 54477070.5 | H34: 0 | I34: =G34-H34 -> 54477070.5 | J34: =IF(I34=0,"",I34/H34) ->  | K34: 0
A35: Pension and UIF Contributions | C35: 0 | D35: 8606847 | E35: 0 | F35: 660363.86 | G35: 7950303.42 | H35: 0 | I35: 7950303.42 | K35: 0
A36: Medical Aid Contributions | C36: 0 | D36: 2660551 | E36: 0 | F36: 234273.87 | G36: 2662363.62 | H36: 0 | I36: 2662363.62 | K36: 0
A37: Overtime | C37: 0 | D37: 1555000 | E37: 0 | F37: 244623.5 | G37: 1268955.68 | H37: 0 | I37: 1268955.68 | K37: 0
A38: Performance Bonus | C38: 0 | D38: 3815665 | E38: 0 | F38: 336337.2 | G38: 3724205.18 | H38: 0 | I38: 3724205.18 | K38: 0
A39: Motor Vehicle Allowance | C39: 0 | D39: 4052539 | E39: 0 | F39: 271564.96 | G39: 3513989.58 | H39: 0 | I39: =G39-H39 -> 3513989.58 | J39: =IF(I39=0,"",I39/H39) ->  | K39: 0
A40: Cellphone Allowance | C40: 0 | D40: 625599 | E40: 0 | F40: 32811.49 | G40: 436317.03 | H40: 0 | I40: =G40-H40 -> 436317.03 | J40: =IF(I40=0,"",I40/H40) ->  | K40: 0
A41: Housing Allowances | C41: 0 | D41: 228148 | E41: 0 | F41: 13637.92 | G41: 163575.46 | H41: 0 | I41: =G41-H41 -> 163575.46 | J41: =IF(I41=0,"",I41/H41) ->  | K41: 0
A42: Other benefits and allowances | C42: 0 | D42: 396622 | E42: 0 | F42: 97680.56 | G42: 845910.71 | H42: 0 | I42: 845910.71 | K42: 0
A43: Payments in lieu of leave | C43: 0 | D43: 250000 | E43: 0 | F43: 10854.72 | G43: 80351.04 | H43: 0 | I43: 80351.04 | K43: 0
A44: Long service awards | C44: 0 | D44: 400000 | E44: 0 | F44: 5179.7 | G44: 28785.16 | H44: 0 | I44: 28785.16 | K44: 0
A45: Post-retirement benefit obligations | B45: 2 | C45: 0 | D45: 0 | E45: 0 | F45: 0 | G45: 0 | H45: 0 | I45: 0 | K45: 0
A46: Sub Total - Other Municipal Staff | C46: =SUM(C34:C45) -> 0 | D46: 77209777 | E46: 0 | F46: =SUM(F34:F45) -> 7846197.75 | G46: =SUM(G34:G45) -> 75151827.38 | H46: =SUM(H34:H45) -> 0 | I46: 75151827.38 | J46: =IF(I46=0,"",I46/H46) ->  | K46: 0
A47: % increase | B47: 4 | D47: =IF(D46=0,"",(D46/C46)-1) ->  | E47: =IF(E46=0,"",(E46/C46)-1) ->  | K47: =IF(K46=0,"",(K46/C46)-1) -> 
A49: Total Parent Municipality | C49: =C14+C30+C46 -> 0 | D49: =D14+D30+D46 -> 100496738 | E49: 0 | F49: 9399963.01 | G49: 95657469.49 | H49: 0 | I49: =G49-H49 -> 95657469.49 | J49: =IF(I49=0,"",I49/H49) ->  | K49: 0
D50: =IF(D49=0,"",(D49/C49)-1) ->  | E50: =IF(E49=0,"",(E49/C49)-1) ->  | K50: =IF(K49=0,"",(K49/C49)-1) -> 
A51: Unpaid salary, allowances & benefits in arrears:
A53: Board Members of Entities
A54: Basic Salaries and Wages | I54: =G54-H54 -> 0 | J54: =IF(I54=0,"",I54/H54) -> 
A55: Pension and UIF Contributions | I55: 0
A56: Medical Aid Contributions | I56: 0
A57: Overtime | I57: =G57-H57 -> 0 | J57: =IF(I57=0,"",I57/H57) -> 
A58: Performance Bonus | I58: =G58-H58 -> 0 | J58: =IF(I58=0,"",I58/H58) -> 
A59: Motor Vehicle Allowance | I59: =G59-H59 -> 0 | J59: =IF(I59=0,"",I59/H59) -> 
A60: Cellphone Allowance | I60: =G60-H60 -> 0 | J60: =IF(I60=0,"",I60/H60) -> 
A61: Housing Allowances | I61: =G61-H61 -> 0 | J61: =IF(I61=0,"",I61/H61) -> 
A62: Other benefits and allowances | I62: 0
A63: Board Fees | I63: =G63-H63 -> 0 | J63: =IF(I63=0,"",I63/H63) -> 
A64: Payments in lieu of leave | I64: 0
A65: Long service awards | I65: 0
A66: Post-retirement benefit obligations | I66: 0
A67: Sub Total - Board Members of Entities | B67: 2 | C67: =SUM(C54:C66) -> 0 | D67: 0 | E67: 0 | F67: =SUM(F54:F66) -> 0 | G67: =SUM(G54:G66) -> 0 | H67: =SUM(H54:H66) -> 0 | I67: 0 | J67: =IF(I67=0,"",I67/H67) ->  | K67: 0
A68: % increase | B68: 4 | D68: =IF(D67=0,"",(D67/C67)-1) ->  | E68: =IF(E67=0,"",(E67/C67)-1) ->  | K68: =IF(K67=0,"",(K67/C67)-1) -> 
A70: Senior Managers of Entities
A71: Basic Salaries and Wages | I71: =G71-H71 -> 0 | J71: =IF(I71=0,"",I71/H71) -> 
A72: Pension and UIF Contributions | I72: 0
A73: Medical Aid Contributions | I73: 0
A74: Overtime | I74: 0
A75: Performance Bonus | I75: =G75-H75 -> 0 | J75: =IF(I75=0,"",I75/H75) -> 
A76: Motor Vehicle Allowance | I76: =G76-H76 -> 0 | J76: =IF(I76=0,"",I76/H76) -> 
A77: Cellphone Allowance | I77: =G77-H77 -> 0 | J77: =IF(I77=0,"",I77/H77) -> 
A78: Housing Allowances | I78: =G78-H78 -> 0 | J78: =IF(I78=0,"",I78/H78) -> 
A79: Other benefits and allowances | I79: 0
A80: Payments in lieu of leave | I80: 0
A81: Long service awards | I81: 0
A82: Post-retirement benefit obligations | B82: 2 | I82: 0
A83: Sub Total - Senior Managers of Entities | C83: =SUM(C71:C82) -> 0 | D83: 0 | E83: 0 | F83: =SUM(F71:F82) -> 0 | G83: =SUM(G71:G82) -> 0 | H83: =SUM(H71:H82) -> 0 | I83: 0 | J83: =IF(I83=0,"",I83/H83) ->  | K83: 0
A84: % increase | B84: 4 | D84: =IF(D83=0,"",(D83/C83)-1) ->  | E84: =IF(E83=0,"",(E83/C83)-1) ->  | K84: =IF(K83=0,"",(K83/C83)-1) -> 
A86: Other Staff of Entities
A87: Basic Salaries and Wages | I87: =G87-H87 -> 0 | J87: =IF(I87=0,"",I87/H87) -> 
A88: Pension and UIF Contributions | I88: 0
A89: Medical Aid Contributions | I89: =G89-H89 -> 0 | J89: =IF(I89=0,"",I89/H89) -> 
A90: Overtime | I90: =G90-H90 -> 0 | J90: =IF(I90=0,"",I90/H90) -> 
A91: Performance Bonus | I91: =G91-H91 -> 0 | J91: =IF(I91=0,"",I91/H91) -> 
A92: Motor Vehicle Allowance | I92: =G92-H92 -> 0 | J92: =IF(I92=0,"",I92/H92) -> 
A93: Cellphone Allowance | I93: 0
A94: Housing Allowances | I94: 0
A95: Other benefits and allowances | I95: 0
A96: Payments in lieu of leave | I96: 0
A97: Long service awards | I97: 0
A98: Post-retirement benefit obligations | I98: 0
A99: Sub Total - Other Staff of Entities | C99: =SUM(C87:C98) -> 0 | D99: 0 | E99: 0 | F99: 0 | G99: 0 | H99: 0 | I99: 0 | J99: =IF(I99=0,"",I99/H99) ->  | K99: =SUM(K87:K98) -> 0
A100: % increase | B100: 4 | D100: =IF(D99=0,"",(D99/C99)-1) ->  | E100: =IF(E99=0,"",(E99/C99)-1) ->  | K100: =IF(K99=0,"",(K99/C99)-1) -> 
A102: Total Municipal Entities | C102: =C67+C83+C99 -> 0 | D102: 0 | E102: 0 | F102: 0 | G102: 0 | H102: 0 | I102: =G102-H102 -> 0 | J102: =IF(I102=0,"",I102/H102) ->  | K102: =K67+K83+K99 -> 0
A104: TOTAL SALARY, ALLOWANCES & BENEFITS | C104: =C49+C102 -> 0 | D104: 100496738 | E104: 0 | F104: 9399963.01 | G104: 95657469.49 | H104: 0 | I104: =G104-H104 -> 95657469.49 | J104: =IF(I104=0,"",I104/H104) ->  | K104: =K49+K102 -> 0
A105: % increase | B105: 4 | D105: =IF(D104=0,"",(D104/C104)-1) ->  | E105: =IF(E104=0,"",(E104/C104)-1) ->  | K105: =IF(K104=0,"",(K104/C104)-1) -> 
A106: TOTAL MANAGERS AND STAFF | C106: =C30+C46+C83+C99 -> 0 | D106: 88123211 | E106: 0 | F106: 8377734.2 | G106: 82972149.11 | H106: 0 | I106: 82972149.11 | J106: =IF(I106=0,"",I106/H106) ->  | K106: =K30+K46+K83+K99 -> 0
A107: =head27a -> References
A108: 1. Include 'Loans and advances' where applicable if any reportable amounts until phased compliance with s164 of MFMA achieved
A109: 2. If benefits in kind are provided (e.g. provision of living quarters) the full market value must be shown as the cost to the municipality
A110: 3. s57 of the Systems Act
A111: 4. B/A, C/A, D/A
A112: Column Definitions:
A113: A. Audited actual 2005/06 (audited financial statements). If audited amounts unavailable, unaudited amounts must be provided with a note stating these are unaudited
A114: B. The original budget approved by council for the 2006/07 budget year.
A115: C. The budget for 2006/07 budget year as adjusted by council resolution in terms of section 28 of the MFMA.
A116: D. An estimate of final actual amounts (pre audit - 2006/07 budget year) at the time of preparing the budget for the 2007/08 budget year. This may differ from C.

Sheet SC9
A1: =muni& " - "&S71O& " - "&Head57 -> EC136 Emalahleni (Ec) - Supporting Table SC9 Monthly Budget Statement - actuals and revised targets for cash receipts - M12 June
A2: =desc -> Description | B2: =head27 -> Ref | C2: =Head2 -> Budget Year 2018/19 | O2: ='Template names'!B5 -> 2018/19 Medium Term Revenue & Expenditure Framework
C3: July | D3: August | E3: Sept | F3: October | G3: Nov | H3: Dec | I3: January | J3: Feb | K3: March | L3: April | M3: May | N3: June | O3: =Head9 -> Budget Year 2018/19 | P3: =Head10 -> Budget Year +1 2019/20 | Q3: =Head11 -> Budget Year +2 2020/21
A4: R thousands | B4: 1 | C4: Outcome | D4: Outcome | E4: Outcome | F4: Outcome | G4: Outcome | H4: Outcome | I4: Budget | J4: Budget | K4: Budget | L4: Budget | M4: Budget | N4: Budget
A5: Cash Receipts By Source
A6: Property rates | N6: =O6-SUM(C6:M6) -> 0
A7: Service charges - electricity revenue | N7: 0
A8: Service charges - water revenue | N8: 0
A9: Service charges - sanitation revenue | N9: 0
A10: Service charges - refuse | N10: 0
A11: Service charges - other | N11: 0
A12: Rental of facilities and equipment | N12: 0
A13: Interest earned - external investments | N13: 0
A14: Interest earned - outstanding debtors | N14: 0
A15: Dividends received | N15: 0
A16: Fines, penalties and forfeits | N16: 0
A17: Licences and permits | N17: 0
A18: Agency services | N18: 0
A19: Transfer receipts - operating | N19: 0
A20: Other revenue | N20: 0
A21: Cash Receipts by Source | C21: =SUM(C6:C20) -> 0 | D21: 0 | E21: 0 | F21: 0 | G21: 0 | H21: 0 | I21: 0 | J21: 0 | K21: 0 | L21: 0 | M21: 0 | N21: 0 | O21: 0 | P21: 0 | Q21: 0
N22: =O22-SUM(C22:M22) -> 0
A23: Other Cash Flows by Source | N23: 0
A24: Transfer receipts - capital | N24: 0
A25: Contributions & Contributed assets | N25: 0
A26: Proceeds on disposal of PPE | N26: 0
A27: Short term loans | N27: 0
A28: Borrowing long term/refinancing | N28: 0
A29: Increase in consumer deposits | N29: 0
A30: Receipt of non-current debtors | N30: 0
A31: Receipt of non-current receivables | N31: 0
A32: Change in non-current investments | N32: 0
A33: Total Cash Receipts by Source | C33: =SUM(C21:C32) -> 0 | D33: 0 | E33: 0 | F33: 0 | G33: 0 | H33: 0 | I33: 0 | J33: 0 | K33: 0 | L33: 0 | M33: 0 | N33: 0 | O33: 0 | P33: 0 | Q33: 0
N34: =O34-SUM(C34:M34) -> 0
A35: Cash Payments by Type | N35: 0
A36: Employee related costs | N36: 0
A37: Remuneration of councillors | N37: 0
A38: Interest paid | N38: 0
A39: Bulk purchases - Electricity | N39: 0
A40: Bulk purchases - Water & Sewer | N40: 0
A41: Other materials | N41: 0
A42: Contracted services | N42: 0
A43: Grants and subsidies paid - other municipalities | N43: 0
A44: Grants and subsidies paid - other | N44: 0
A45: General expenses | N45: 0
A46: Cash Payments by Type | B46: =SUM(B36:B45) -> 0 | C46: =SUM(C36:C45) -> 0 | D46: =SUM(D36:D45) -> 0 | E46: 0 | F46: 0 | G46: 0 | H46: 0 | I46: 0 | J46: 0 | K46: 0 | L46: 0 | M46: 0 | N46: 0 | O46: 0 | P46: 0 | Q46: 0
N47: =O47-SUM(C47:M47) -> 0
A48: Other Cash Flows/Payments by Type
A49: Capital assets | N49: =O49-SUM(C49:M49) -> 0
A50: Repayment of borrowing | N50: =O50-SUM(C50:M50) -> 0
A51: Other Cash Flows/Payments | N51: =O51-SUM(C51:M51) -> 0
A52: Total Cash Payments by Type | B52: =SUM(B46:B51) -> 0 | C52: 0 | D52: 0 | E52: 0 | F52: 0 | G52: 0 | H52: 0 | I52: 0 | J52: 0 | K52: 0 | L52: 0 | M52: 0 | N52: 0 | O52: 0 | P52: 0 | Q52: 0
N53: =O53-SUM(C53:M53) -> 0
A54: NET INCREASE/(DECREASE) IN CASH HELD | B54: =B33-B52 -> 0 | C54: 0 | D54: 0 | E54: 0 | F54: 0 | G54: 0 | H54: 0 | I54: 0 | J54: 0 | K54: 0 | L54: 0 | M54: 0 | N54: 0 | O54: 0 | P54: 0 | Q54: 0
A55: Cash/cash equivalents at the month/year beginning: | D55: =C56 -> 0 | E55: =D56 -> 0 | F55: 0 | G55: 0 | H55: 0 | I55: 0 | J55: 0 | K55: 0 | L55: 0 | M55: 0 | N55: 0 | O55: =C55 -> 0 | P55: =O56 -> 0 | Q55: =P56 -> 0
A56: Cash/cash equivalents at the month/year end: | C56: =C54+C55 -> 0 | D56: =D54+D55 -> 0 | E56: =E54+E55 -> 0 | F56: 0 | G56: 0 | H56: 0 | I56: 0 | J56: 0 | K56: 0 | L56: 0 | M56: 0 | N56: 0 | O56: =O54+O55 -> 0 | P56: =P54+P55 -> 0 | Q56: =Q54+Q55 -> 0
A57: =head27a -> References
A58: 1. Replace 'budget' heading with adjusted budget, or 'outcome' only for month/s complete
A59: 2. Total of monthly amounts must always agree to the approved or adjusted budget
A60: 3. Amend 'cash-at-beginning' when prior year actual known (as part of the adjustments budget)
E65: =E46+E64 -> 0 | F65: 0 | G65: 0 | H65: 0 | I65: 0 | J65: 0 | K65: 0 | L65: 0 | N65: =N46+N64 -> 0 | O65: 0 | P65: 0
E66: =E54-E64 -> 0 | F66: 0 | G66: 0 | H66: 0 | I66: 0 | J66: 0 | K66: 0 | L66: 0 | M66: =M54-M64 -> 0 | N66: =N54-N64 -> 0 | O66: 0 | P66: 0

Sheet SC10
A1: =muni& " - "&S71P& " - "&Head57 -> EC136 Emalahleni (Ec) - NOT REQUIRED - municipality does not have entities or this is the parent municipality's budget - M12 June
A2: =desc -> Description | B2: =head27 -> Ref | C2: =Head1 -> 2017/18 | D2: =Head2 -> Budget Year 2018/19
C3: =Head5 -> Audited Outcome | D3: =Head6 -> Original Budget | E3: =Head7 -> Adjusted Budget | F3: =Head38 -> Monthly actual | G3: =Head39 -> YearTD actual | H3: =Head40 -> YearTD budget | I3: =Head41 -> YTD variance | J3: =Head41 -> YTD variance | K3: =Head8 -> Full Year Forecast
A4: R thousands | B4: 1 | J4: %
A5: ='C4-FinPerf RE'!A5 -> Revenue By Source
A6: ='C4-FinPerf RE'!A6 -> Property rates | C6: 0 | D6: 4549700 | E6: 4549700 | F6: 0 | G6: 5382209.71 | H6: 4549700 | I6: =G6-H6 -> 832509.71 | J6: =IF(I6=0,"",I6/H6) -> 0.1829812317 | K6: 4549700
A7: ='C4-FinPerf RE'!A7 -> Service charges - electricity revenue | C7: 0 | D7: 15946231 | E7: 15946231 | F7: 724874.24 | G7: 15368252.72 | H7: 15946232 | I7: -577979.28 | J7: =IF(I7=0,"",I7/H7) -> -0.03624550803 | K7: 15946231
A8: ='C4-FinPerf RE'!A8 -> Service charges - water revenue | C8: 0 | D8: 0 | E8: 0 | F8: 0 | G8: 0 | H8: 0 | I8: 0 | K8: 0
A9: ='C4-FinPerf RE'!A9 -> Service charges - sanitation revenue | C9: 0 | D9: 0 | E9: 0 | F9: 0 | G9: 0 | H9: 0 | I9: 0 | K9: 0
A10: ='C4-FinPerf RE'!A10 -> Service charges - refuse revenue | C10: 0 | D10: 8024087 | E10: 8024087 | F10: 361.78 | G10: 4974121.13 | H10: 8024087 | I10: -3049965.87 | J10: -0.3801012963 | K10: 8024087
A11: ='C4-FinPerf RE'!A11 -> Service charges - other | C11: 0 | D11: 0 | E11: 0 | F11: 0 | G11: 0 | H11: 0 | I11: 0 | K11: 0
A12: ='C4-FinPerf RE'!A12 -> Rental of facilities and equipment | C12: 0 | D12: 612390 | E12: 612390 | F12: 20000 | G12: 855884.1 | H12: 612390 | I12: 243494.1 | J12: 0.3976127958 | K12: 612390
A13: ='C4-FinPerf RE'!A13 -> Interest earned - external investments | C13: 0 | D13: 1045454 | E13: 1045454 | F13: 114818.3 | G13: 660660.28 | H13: 1045454 | I13: -384793.72 | J13: -0.3680637503 | K13: 1045454
A14: ='C4-FinPerf RE'!A14 -> Interest earned - outstanding debtors | C14: 0 | D14: 5595124 | E14: 5595124 | F14: 0 | G14: 5038876.98 | H14: 5595124 | I14: -556247.02 | J14: -0.09941638827 | K14: 5595124
A15: ='C4-FinPerf RE'!A15 -> Dividends received | C15: 0 | D15: 0 | E15: 0 | F15: 0 | G15: 0 | H15: 0 | I15: 0 | K15: 0
A16: ='C4-FinPerf RE'!A16 -> Fines, penalties and forfeits | C16: 0 | D16: 49400 | E16: 49400 | F16: 0 | G16: 9311.74 | H16: 49400 | I16: -40088.26 | J16: -0.8115032389 | K16: 49400
A17: ='C4-FinPerf RE'!A17 -> Licences and permits | C17: 0 | D17: 1442111 | E17: 1442111 | F17: 148003.04 | G17: 1864292.26 | H17: 1442111 | I17: 422181.26 | J17: 0.2927522639 | K17: 1442111
A18: ='C4-FinPerf RE'!A18 -> Agency services | C18: 0 | D18: 1312897 | E18: 1312897 | F18: 62402.51 | G18: 1268750.12 | H18: 1312897 | I18: -44146.88 | J18: -0.03362554717 | K18: 1312897
A19: ='C4-FinPerf RE'!A19 -> Transfers and subsidies | C19: 0 | D19: 126886100 | E19: 126886100 | F19: 0 | G19: 158568740.2 | H19: 126886100 | I19: 31682640.18 | J19: 0.2496935455 | K19: 126886100
A20: ='C4-FinPerf RE'!A20 -> Other revenue | C20: 0 | D20: 3922259 | E20: 3922259 | F20: 23230.62 | G20: 3226696.31 | H20: 3922259 | I20: -695562.69 | J20: -0.1773372666 | K20: 3922259
A21: ='C4-FinPerf RE'!A21 -> Gains on disposal of PPE | C21: 0 | D21: 0 | E21: 0 | F21: 0 | G21: 0 | H21: 0 | I21: 0 | K21: 0
A22: Total Revenue (excluding capital transfers and contributions) | C22: =SUM(C6:C21) -> 0 | D22: 169385753 | E22: 169385753 | F22: 1093690.49 | G22: 197217795.5 | H22: 169385754 | I22: =G22-H22 -> 27832041.53 | J22: 0.1643115839 | K22: =SUM(K6:K21) -> 169385753
A24: Expenditure By Type
A25: ='C4-FinPerf RE'!A25 -> Employee related costs | C25: 0 | D25: 88123211 | E25: 88326344 | F25: 8377734.2 | G25: 82972149.11 | H25: 89027832 | I25: =G25-H25 -> -6055682.89 | J25: =IF(I25=0,"",I25/H25) -> -0.0680201096 | K25: 88326344
A26: ='C4-FinPerf RE'!A26 -> Remuneration of councillors | C26: 0 | D26: 13134669 | E26: 13134669 | F26: 1085057.31 | G26: 12873805.88 | H26: 14871762 | I26: -1997956.12 | J26: -0.1343456223 | K26: 13134669
A27: ='C4-FinPerf RE'!A27 -> Debt impairment | C27: 0 | D27: 6000000 | E27: 6000000 | F27: 0 | G27: 0 | H27: 6000000 | I27: -6000000 | J27: -1 | K27: 6000000
A28: ='C4-FinPerf RE'!A28 -> Depreciation & asset impairment | C28: 0 | D28: 23721031 | E28: 23721031 | F28: 0 | G28: 0 | H28: 23721031 | I28: -23721031 | J28: -1 | K28: 23721031
A29: ='C4-FinPerf RE'!A29 -> Finance charges | C29: 0 | D29: 264650 | E29: 264650 | F29: 0 | G29: 13251.64 | H29: 259758 | I29: -246506.36 | J29: -0.9489846703 | K29: 264650
A30: ='C4-FinPerf RE'!A30 -> Bulk purchases | C30: 0 | D30: 13070000 | E30: 13070000 | F30: 940909.17 | G30: 14158594.28 | H30: 13070000 | I30: 1088594.28 | J30: 0.0832895394 | K30: 13070000
A31: ='C4-FinPerf RE'!A31 -> Other materials | C31: 0 | D31: 3595586 | E31: 3995388 | F31: 315187.06 | G31: 2029784.93 | H31: 4152129 | I31: -2122344.07 | J31: -0.5111459856 | K31: 3995388
A32: ='C4-FinPerf RE'!A32 -> Contracted services | C32: 0 | D32: 19841981 | E32: 20963838 | F32: 1968322.55 | G32: 15339031.05 | H32: 20716195 | I32: -5377163.95 | J32: -0.2595633006 | K32: 20963838
A33: ='C4-FinPerf RE'!A33 -> Transfers and subsidies | C33: 0 | D33: 145012 | E33: 145012 | F33: 0 | G33: 79129.6 | H33: 148762 | I33: -69632.4 | J33: -0.4680792138 | K33: 145012
A34: ='C4-FinPerf RE'!A34 -> Other expenditure | C34: 0 | D34: 27580982 | E34: 31548620 | F34: 1915628.67 | G34: 20714596.45 | H34: 29035724 | I34: -8321127.55 | J34: -0.2865824028 | K34: 31548620
A35: ='C4-FinPerf RE'!A35 -> Loss on disposal of PPE | C35: 0 | D35: 0 | E35: 0 | F35: 0 | G35: 0 | H35: 0 | I35: 0 | K35: 0
A36: Total Expenditure | C36: =SUM(C25:C35) -> 0 | D36: 195477122 | E36: 201169552 | F36: 14602838.96 | G36: 148180342.9 | H36: 201003193 | I36: -52822850.06 | J36: -0.2627960744 | K36: =SUM(K25:K35) -> 201169552
I37: 0
A38: ='C4-FinPerf RE'!A38 -> Surplus/(Deficit) | C38: =C22-C36 -> 0 | D38: -26091369 | E38: -31783799 | F38: -13509148.47 | G38: 49037452.59 | H38: -31617439 | I38: 80654891.59 | J38: -2.550962195 | K38: =K22-K36 -> -31783799
A39: ='C4-FinPerf RE'!A39 -> Transfers and subsidies - capital (monetary allocations) (National / Provincial and District) | C39: 0 | D39: 42256900 | E39: 42256900 | F39: 0 | G39: 17114935.9 | H39: 42256900 | I39: -25141964.1 | J39: -0.5949789052 | K39: 42256900
A40: ='C4-FinPerf RE'!A40 -> Transfers and subsidies - capital (monetary allocations) (National / Provincial Departmental Agencies, Households, Non-profit Institutions, Private Enterprises, Public Corporatons, Higher Educational Institutions) | C40: 0 | D40: 0 | E40: 0 | F40: 0 | G40: 0 | H40: 0 | I40: 0 | K40: 0
A41: ='C4-FinPerf RE'!A41 -> Transfers and subsidies - capital (in-kind - all) | C41: 0 | D41: 0 | E41: 0 | F41: 0 | G41: 0 | H41: 0 | I41: 0 | K41: 0
A42: ='C4-FinPerf RE'!A42 -> Surplus/(Deficit) after capital transfers & contributions | C42: =C38+SUM(C39:C41) -> 0 | D42: =D38+SUM(D39:D41) -> 16165531 | E42: 10473101 | F42: -13509148.47 | G42: 66152388.49 | H42: 10639461 | I42: 55512927.49 | J42: 5.217644718 | K42: 10473101
A43: ='C4-FinPerf RE'!A43 -> Taxation | C43: 0 | D43: 0 | E43: 0 | F43: 0 | G43: 0 | H43: 0 | I43: 0 | K43: 0
A44: ='C4-FinPerf RE'!A44 -> Surplus/(Deficit) after taxation | C44: =C42-C43 -> 0 | D44: 16165531 | E44: 10473101 | F44: -13509148.47 | G44: 66152388.49 | H44: 10639461 | I44: 55512927.49 | J44: 5.217644718 | K44: =K42-K43 -> 10473101
A45: =head27a -> References
A46: 1. Votes (consolidated) are revenue sources and expenditure type

Sheet SC11
A1: =muni& " - "&S71Q& " - "&Head57 -> EC136 Emalahleni (Ec) - NOT REQUIRED - municipality does not have entities or this is the parent municipality's budget - M12 June
A2: =desc -> Description | B2: =head27 -> Ref | C2: =Head1 -> 2017/18 | D2: =Head2 -> Budget Year 2018/19
C3: =Head5 -> Audited Outcome | D3: =Head6 -> Original Budget | E3: =Head7 -> Adjusted Budget | F3: =Head38 -> Monthly actual | G3: =Head39 -> YearTD actual | H3: =Head40 -> YearTD budget | I3: =Head41 -> YTD variance | J3: =Head41 -> YTD variance | K3: =Head8 -> Full Year Forecast
A4: R thousands | J4: %
A5: Revenue By Municipal Entity
A6: Insert name of municipal entity | I6: =G6-H6 -> 0 | J6: =IF(I6=0,"",I6/H6) -> 
I7: 0 | J7: =IF(I7=0,"",I7/H7) -> 
I8: 0
I9: 0
I10: 0
I11: 0
I12: 0
I13: 0
I14: 0
I15: 0
A16: Total Operating Revenue | B16: 1 | C16: =SUM(C6:C15) -> 0 | D16: 0 | E16: 0 | F16: 0 | G16: 0 | H16: 0 | I16: 0 | K16: =SUM(K6:K15) -> 0
A18: Expenditure By Municipal Entity
A19: =A6 -> Insert name of municipal entity | I19: 0 | J19: =IF(I19=0,"",I19/H19) -> 
A20: =IF(A7="","",A7) ->  | I20: 0
A21: =IF(A8="","",A8) ->  | I21: 0
I22: 0
I23: 0
I24: 0
I25: 0
I26: 0
I27: 0
I28: 0
A29: Total Operating Expenditure | B29: 2 | C29: =SUM(C19:C28) -> 0 | D29: 0 | E29: 0 | F29: 0 | G29: 0 | H29: 0 | I29: 0 | K29: =SUM(K19:K28) -> 0
A31: =Head42 -> Surplus/ (Deficit) for the yr/period | C31: =C16-C29 -> 0 | D31: =D16-D29 -> 0 | E31: 0 | F31: 0 | G31: 0 | H31: 0 | I31: =I16+I29 -> 0 | K31: 0
A32: Capital Expenditure By Municipal Entity
A33: =$A$6 -> Insert name of municipal entity | I33: 0
A34: =IF(A7="","",A7) ->  | I34: 0
A35: =IF(A8="","",A8) ->  | I35: 0
I36: 0
I37: 0
I38: 0
I39: 0
I40: 0
I41: 0
A43: Total Capital Expenditure | B43: 3 | C43: =SUM(C32:C42) -> 0 | D43: =SUM(D32:D42) -> 0 | E43: 0 | F43: 0 | G43: 0 | H43: =SUM(H32:H42) -> 0 | I43: =G43-H43 -> 0 | K43: 0
A44: =head27a -> References
A45: 1. Must reconcile to the sum of all municipal entity monthly revenue reports
A46: 2. Must reconcile to the sum of all municipal entity monthly expenditure reports
A47: 3. YTD = Year to date; FAV - favourable variance or unfavourable variance
A48: 4. Material variances to be explained
A49: 5. Insert additional 'Adjustment' Budget column for each Adjustment made by an entity

Sheet SC12
A1: =muni& " - "&S71R& " - "&Head57 -> EC136 Emalahleni (Ec) - Supporting Table SC12 Monthly Budget Statement - capital expenditure trend - M12 June
A2: Month | B2: =Head1 -> 2017/18 | C2: =Head2 -> Budget Year 2018/19
B3: =Head5 -> Audited Outcome | C3: =Head6 -> Original Budget | D3: =Head7 -> Adjusted Budget | E3: =Head38 -> Monthly actual | F3: =Head39 -> YearTD actual | G3: =Head40 -> YearTD budget | H3: =Head41 -> YTD variance | I3: =Head41 -> YTD variance | J3: % spend of Original Budget
A4: R thousands | I4: %
A5: Monthly expenditure performance trend
A6: July | B6: 0 | C6: 1748261 | D6: 1748261 | E6: 60771.7 | F6: =IF(E6>0,E6,"") -> 60771.7 | G6: =IF(D6>0,D6,C6) -> 1748261 | H6: =IF(F6="",0,G6-F6) -> 1687489.3 | I6: =IF(F6="","",IF(H6=0,"",H6/G6)) -> 0.9652387716 | J6: =IF(F6="","",F6/$C$18) -> 0.001290217537
A7: August | B7: 0 | C7: 2862035 | D7: 2862035 | E7: 1630493.88 | F7: =IF(E7>0,E7+F6,"") -> 1691265.58 | G7: =IF(D7>0,D7+D6,C7+C6) -> 4610296 | H7: 2919030.42 | I7: 0.6331546651 | J7: 0.03590652411
A8: September | B8: 0 | C8: 1687501 | D8: 1687501 | E8: 176924.34 | F8: =IF(E8>0,E8+F7,"") -> 1868189.92 | G8: =IF(D8>0,D8+G7,C8+G7) -> 6297797 | H8: 4429607.08 | I8: 0.703358187 | J8: 0.03966272784
A9: October | B9: 0 | C9: 2861681 | D9: 2861681 | E9: 2350805.27 | F9: 4218995.19 | G9: =IF(D9>0,D9+G8,C9+G8) -> 9159478 | H9: 4940482.81 | I9: 0.5393847564 | J9: 0.08957165233
A10: November | B10: 0 | C10: 5528699 | D10: 5528699 | E10: 6098494.09 | F10: 10317489.28 | G10: 14688177 | H10: 4370687.72 | I10: 0.2975650225 | J10: 0.2190461285
A11: December | B11: 0 | C11: 7160233 | D11: 7160233 | E11: 7985380.87 | F11: 18302870.15 | G11: 21848410 | H11: 3545539.85 | I11: 0.1622790789 | J11: 0.3885802775
A12: January | B12: 0 | C12: 1711787 | D12: 1711787 | E12: 686255.24 | F12: 18989125.39 | G12: 23560197 | H12: 4571071.61 | I12: 0.1940166973 | J12: 0.4031498641
A13: February | B13: 0 | C13: 4708338 | D13: 4708338 | E13: 1619643.4 | F13: 20608768.79 | G13: 28268535 | H13: 7659766.21 | I13: 0.2709643853 | J13: 0.4375358089
A14: March | B14: 0 | C14: 4708338 | D14: 4708338 | E14: 3950170.94 | F14: 24558939.73 | G14: 32976873 | H14: 8417933.27 | I14: 0.2552677833 | J14: 0.5214001704
A15: April | B15: 0 | C15: 4708338 | D15: 4708338 | E15: 2999723.76 | F15: 27558663.49 | G15: 37685211 | H15: 10126547.51 | I15: 0.2687140987 | J15: 0.5850860012
A16: May | B16: 0 | C16: 4708338 | D16: 4708338 | E16: 2865039.05 | F16: 30423702.54 | G16: 42393549 | H16: 11969846.46 | I16: 0.2823506581 | J16: 0.6459123995
A17: June | B17: 0 | C17: 4708353 | D17: 4708353 | E17: 4756339.2 | F17: 35180041.74 | G17: 47101902 | H17: =IF(F17="",0,G17-F17) -> 11921860.26 | I17: =IF(F17="","",IF(H17=0,"",H17/G17)) -> 0.2531078312 | J17: =IF(F17="","",F17/$C$18) -> 0.7468921688
A18: Total Capital expenditure | B18: =SUM(B6:B17) -> 0 | C18: =SUM(C6:C17) -> 47101902 | D18: =SUM(D6:D17) -> 47101902 | E18: =SUM(E6:E17) -> 35180041.74

Sheet SC13a
A1: =muni& " - "&S71Sa& " - "&Head57 -> EC136 Emalahleni (Ec) - Supporting Table SC13a Monthly Budget Statement - capital expenditure on new assets by asset class - M12 June
A2: =desc -> Description | B2: =head27 -> Ref | C2: =Head1 -> 2017/18 | D2: =Head2 -> Budget Year 2018/19
C3: =Head5 -> Audited Outcome | D3: =Head6 -> Original Budget | E3: =Head7 -> Adjusted Budget | F3: =Head38 -> Monthly actual | G3: =Head39 -> YearTD actual | H3: =Head40 -> YearTD budget | I3: =Head41 -> YTD variance | J3: =Head41 -> YTD variance | K3: =Head8 -> Full Year Forecast
A4: R thousands | B4: 1 | J4: %
A5: Capital expenditure on new assets by Asset Class/Sub-class
A7: Infrastructure | C7: =C8+C13+C17+C27+C38+C45+C53+C63+C69 -> 0 | D7: 4996117 | E7: 0 | F7: 867730.9 | G7: 3302306.54 | H7: 0 | I7: =H7-G7 -> -3302306.54 | J7: =IF(I7=0,"",I7/H7) ->  | K7: =K8+K13+K17+K27+K38+K45+K53+K63+K69 -> 0
A8: Roads Infrastructure | C8: =SUM(C9:C12) -> 0 | D8: 4571116 | E8: 0 | F8: 867730.9 | G8: 3134956.54 | H8: 0 | I8: -3134956.54 | K8: =SUM(K9:K12) -> 0
A9: Roads | C9: 0 | D9: 4571116 | E9: 0 | F9: 867730.9 | G9: 3134956.54 | H9: 0 | I9: -3134956.54 | K9: 0
A10: Road Structures | C10: 0 | D10: 0 | E10: 0 | F10: 0 | G10: 0 | H10: 0 | I10: 0 | K10: 0
A11: Road Furniture | C11: 0 | D11: 0 | E11: 0 | F11: 0 | G11: 0 | H11: 0 | I11: 0 | K11: 0
A12: Capital Spares | C12: 0 | D12: 0 | E12: 0 | F12: 0 | G12: 0 | H12: 0 | I12: 0 | K12: 0
A13: Storm water Infrastructure | C13: =SUM(C14:C16) -> 0 | D13: 0 | E13: 0 | F13: 0 | G13: 0 | H13: 0 | I13: 0 | K13: =SUM(K14:K16) -> 0
A14: Drainage Collection | C14: 0 | D14: 0 | E14: 0 | F14: 0 | G14: 0 | H14: 0 | I14: 0 | K14: 0
A15: Storm water Conveyance | C15: 0 | D15: 0 | E15: 0 | F15: 0 | G15: 0 | H15: 0 | I15: 0 | K15: 0
A16: Attenuation | C16: 0 | D16: 0 | E16: 0 | F16: 0 | G16: 0 | H16: 0 | I16: 0 | K16: 0
A17: Electrical Infrastructure | C17: =SUM(C18:C26) -> 0 | D17: 425001 | E17: 0 | F17: 0 | G17: 167350 | H17: 0 | I17: -167350 | K17: =SUM(K18:K26) -> 0
A18: Power Plants | C18: 0 | D18: 0 | E18: 0 | F18: 0 | G18: 0 | H18: 0 | I18: 0 | K18: 0
A19: HV Substations | C19: 0 | D19: 0 | E19: 0 | F19: 0 | G19: 0 | H19: 0 | I19: 0 | K19: 0
A20: HV Switching Station | C20: 0 | D20: 0 | E20: 0 | F20: 0 | G20: 0 | H20: 0 | I20: 0 | K20: 0
A21: HV Transmission Conductors | C21: 0 | D21: 0 | E21: 0 | F21: 0 | G21: 0 | H21: 0 | I21: 0 | K21: 0
A22: MV Substations | C22: 0 | D22: 0 | E22: 0 | F22: 0 | G22: 0 | H22: 0 | I22: 0 | K22: 0
A23: MV Switching Stations | C23: 0 | D23: 0 | E23: 0 | F23: 0 | G23: 0 | H23: 0 | I23: 0 | K23: 0
A24: MV Networks | C24: 0 | D24: 0 | E24: 0 | F24: 0 | G24: 0 | H24: 0 | I24: 0 | K24: 0
A25: LV Networks | C25: 0 | D25: 0 | E25: 0 | F25: 0 | G25: 0 | H25: 0 | I25: 0 | K25: 0
A26: Capital Spares | C26: 0 | D26: 425001 | E26: 0 | F26: 0 | G26: 167350 | H26: 0 | I26: -167350 | K26: 0
A27: Water Supply Infrastructure | C27: =SUM(C28:C37) -> 0 | D27: 0 | E27: 0 | F27: 0 | G27: 0 | H27: 0 | I27: 0 | K27: =SUM(K28:K37) -> 0
A28: Dams and Weirs | C28: 0 | D28: 0 | E28: 0 | F28: 0 | G28: 0 | H28: 0 | I28: 0 | K28: 0
A29: Boreholes | C29: 0 | D29: 0 | E29: 0 | F29: 0 | G29: 0 | H29: 0 | I29: 0 | K29: 0
A30: Reservoirs | C30: 0 | D30: 0 | E30: 0 | F30: 0 | G30: 0 | H30: 0 | I30: 0 | K30: 0
A31: Pump Stations | C31: 0 | D31: 0 | E31: 0 | F31: 0 | G31: 0 | H31: 0 | I31: 0 | K31: 0
A32: Water Treatment Works | C32: 0 | D32: 0 | E32: 0 | F32: 0 | G32: 0 | H32: 0 | I32: 0 | K32: 0
A33: Bulk Mains | C33: 0 | D33: 0 | E33: 0 | F33: 0 | G33: 0 | H33: 0 | I33: 0 | K33: 0
A34: Distribution | C34: 0 | D34: 0 | E34: 0 | F34: 0 | G34: 0 | H34: 0 | I34: 0 | K34: 0
A35: Distribution Points | C35: 0 | D35: 0 | E35: 0 | F35: 0 | G35: 0 | H35: 0 | I35: 0 | K35: 0
A36: PRV Stations | C36: 0 | D36: 0 | E36: 0 | F36: 0 | G36: 0 | H36: 0 | I36: 0 | K36: 0
A37: Capital Spares | C37: 0 | D37: 0 | E37: 0 | F37: 0 | G37: 0 | H37: 0 | I37: 0 | K37: 0
A38: Sanitation Infrastructure | C38: =SUM(C39:C44) -> 0 | D38: 0 | E38: 0 | F38: 0 | G38: 0 | H38: 0 | I38: =H38-G38 -> 0 | J38: =IF(I38=0,"",I38/H38) ->  | K38: =SUM(K39:K44) -> 0
A39: Pump Station | C39: 0 | D39: 0 | E39: 0 | F39: 0 | G39: 0 | H39: 0 | I39: 0 | K39: 0
A40: Reticulation | C40: 0 | D40: 0 | E40: 0 | F40: 0 | G40: 0 | H40: 0 | I40: =H40-G40 -> 0 | J40: =IF(I40=0,"",I40/H40) ->  | K40: 0
A41: Waste Water Treatment Works | C41: 0 | D41: 0 | E41: 0 | F41: 0 | G41: 0 | H41: 0 | I41: =H41-G41 -> 0 | J41: =IF(I41=0,"",I41/H41) ->  | K41: 0
A42: Outfall Sewers | C42: 0 | D42: 0 | E42: 0 | F42: 0 | G42: 0 | H42: 0 | I42: =H42-G42 -> 0 | J42: =IF(I42=0,"",I42/H42) ->  | K42: 0
A43: Toilet Facilities | C43: 0 | D43: 0 | E43: 0 | F43: 0 | G43: 0 | H43: 0 | I43: 0 | K43: 0
A44: Capital Spares | C44: 0 | D44: 0 | E44: 0 | F44: 0 | G44: 0 | H44: 0 | I44: 0 | K44: 0
A45: Solid Waste Infrastructure | C45: =SUM(C46:C52) -> 0 | D45: 0 | E45: 0 | F45: 0 | G45: 0 | H45: 0 | I45: =H45-G45 -> 0 | J45: =IF(I45=0,"",I45/H45) ->  | K45: =SUM(K46:K52) -> 0
A46: Landfill Sites | C46: 0 | D46: 0 | E46: 0 | F46: 0 | G46: 0 | H46: 0 | I46: 0 | K46: 0
A47: Waste Transfer Stations | C47: 0 | D47: 0 | E47: 0 | F47: 0 | G47: 0 | H47: 0 | I47: 0 | K47: 0
A48: Waste Processing Facilities | C48: 0 | D48: 0 | E48: 0 | F48: 0 | G48: 0 | H48: 0 | I48: =H48-G48 -> 0 | J48: =IF(I48=0,"",I48/H48) ->  | K48: 0
A49: Waste Drop-off Points | C49: 0 | D49: 0 | E49: 0 | F49: 0 | G49: 0 | H49: 0 | I49: 0 | K49: 0
A50: Waste Separation Facilities | C50: 0 | D50: 0 | E50: 0 | F50: 0 | G50: 0 | H50: 0 | I50: 0 | K50: 0
A51: Electricity Generation Facilities | C51: 0 | D51: 0 | E51: 0 | F51: 0 | G51: 0 | H51: 0 | I51: 0 | K51: 0
A52: Capital Spares | C52: 0 | D52: 0 | E52: 0 | F52: 0 | G52: 0 | H52: 0 | I52: 0 | K52: 0
A53: Rail Infrastructure | C53: =SUM(C54:C62) -> 0 | D53: 0 | E53: 0 | F53: 0 | G53: 0 | H53: 0 | I53: 0 | K53: =SUM(K54:K62) -> 0
A54: Rail Lines | C54: 0 | D54: 0 | E54: 0 | F54: 0 | G54: 0 | H54: 0 | I54: 0 | K54: 0
A55: Rail Structures | C55: 0 | D55: 0 | E55: 0 | F55: 0 | G55: 0 | H55: 0 | I55: 0 | K55: 0
A56: Rail Furniture | C56: 0 | D56: 0 | E56: 0 | F56: 0 | G56: 0 | H56: 0 | I56: 0 | K56: 0
A57: Drainage Collection | C57: 0 | D57: 0 | E57: 0 | F57: 0 | G57: 0 | H57: 0 | I57: 0 | K57: 0
A58: Storm water Conveyance | C58: 0 | D58: 0 | E58: 0 | F58: 0 | G58: 0 | H58: 0 | I58: 0 | K58: 0
A59: Attenuation | C59: 0 | D59: 0 | E59: 0 | F59: 0 | G59: 0 | H59: 0 | I59: 0 | K59: 0
A60: MV Substations | C60: 0 | D60: 0 | E60: 0 | F60: 0 | G60: 0 | H60: 0 | I60: 0 | K60: 0
A61: LV Networks | C61: 0 | D61: 0 | E61: 0 | F61: 0 | G61: 0 | H61: 0 | I61: 0 | K61: 0
A62: Capital Spares | C62: 0 | D62: 0 | E62: 0 | F62: 0 | G62: 0 | H62: 0 | I62: 0 | K62: 0
A63: Coastal Infrastructure | C63: =SUM(C64:C68) -> 0 | D63: 0 | E63: 0 | F63: 0 | G63: 0 | H63: 0 | I63: 0 | K63: =SUM(K64:K68) -> 0
A64: Sand Pumps | C64: 0 | D64: 0 | E64: 0 | F64: 0 | G64: 0 | H64: 0 | I64: 0 | K64: 0
A65: Piers | C65: 0 | D65: 0 | E65: 0 | F65: 0 | G65: 0 | H65: 0 | I65: 0 | K65: 0
A66: Revetments | C66: 0 | D66: 0 | E66: 0 | F66: 0 | G66: 0 | H66: 0 | I66: 0 | K66: 0
A67: Promenades | C67: 0 | D67: 0 | E67: 0 | F67: 0 | G67: 0 | H67: 0 | I67: 0 | K67: 0
A68: Capital Spares | C68: 0 | D68: 0 | E68: 0 | F68: 0 | G68: 0 | H68: 0 | I68: 0 | K68: 0
A69: Information and Communication Infrastructure | C69: =SUM(C70:C73) -> 0 | D69: 0 | E69: 0 | F69: 0 | G69: 0 | H69: 0 | I69: =H69-G69 -> 0 | J69: =IF(I69=0,"",I69/H69) ->  | K69: =SUM(K70:K73) -> 0
A70: Data Centres | C70: 0 | D70: 0 | E70: 0 | F70: 0 | G70: 0 | H70: 0 | I70: =H70-G70 -> 0 | K70: 0
A71: Core Layers | C71: 0 | D71: 0 | E71: 0 | F71: 0 | G71: 0 | H71: 0 | I71: =H71-G71 -> 0 | K71: 0
A72: Distribution Layers | C72: 0 | D72: 0 | E72: 0 | F72: 0 | G72: 0 | H72: 0 | I72: =H72-G72 -> 0 | K72: 0
A73: Capital Spares | C73: 0 | D73: 0 | E73: 0 | F73: 0 | G73: 0 | H73: 0 | I73: =H73-G73 -> 0 | K73: 0
A75: Community Assets | C75: =+C76+C99 -> 0 | D75: 13131818 | E75: 0 | F75: -53468.08 | G75: 10750610.98 | H75: 0 | I75: =H75-G75 -> -10750610.98 | K75: =+K76+K99 -> 0
A76: Community Facilities | C76: =SUM(C77:C98) -> 0 | D76: 13131818 | E76: 0 | F76: -53468.08 | G76: 10750610.98 | H76: 0 | I76: =H76-G76 -> -10750610.98 | J76: =IF(I76=0,"",I76/H76) ->  | K76: =SUM(K77:K98) -> 0
A77: Halls | C77: 0 | D77: 0 | E77: 0 | F77: 0 | G77: 0 | H77: 0 | I77: 0 | K77: 0
A78: Centres | C78: 0 | D78: 5631818 | E78: 0 | F78: 0 | G78: 5825911.52 | H78: 0 | I78: -5825911.52 | K78: 0
A79: Crèches | C79: 0 | D79: 0 | E79: 0 | F79: 0 | G79: 0 | H79: 0 | I79: 0 | K79: 0
A80: Clinics/Care Centres | C80: 0 | D80: 0 | E80: 0 | F80: 0 | G80: 0 | H80: 0 | I80: 0 | K80: 0
A81: Fire/Ambulance Stations | C81: 0 | D81: 0 | E81: 0 | F81: 0 | G81: 0 | H81: 0 | I81: 0 | K81: 0
A82: Testing Stations | C82: 0 | D82: 7500000 | E82: 0 | F82: -53468.08 | G82: 4924699.46 | H82: 0 | I82: -4924699.46 | K82: 0
A83: Museums | C83: 0 | D83: 0 | E83: 0 | F83: 0 | G83: 0 | H83: 0 | I83: 0 | K83: 0
A84: Galleries | C84: 0 | D84: 0 | E84: 0 | F84: 0 | G84: 0 | H84: 0 | I84: 0 | K84: 0
A85: Theatres | C85: 0 | D85: 0 | E85: 0 | F85: 0 | G85: 0 | H85: 0 | I85: 0 | K85: 0
A86: Libraries | C86: 0 | D86: 0 | E86: 0 | F86: 0 | G86: 0 | H86: 0 | I86: 0 | K86: 0
A87: Cemeteries/Crematoria | C87: 0 | D87: 0 | E87: 0 | F87: 0 | G87: 0 | H87: 0 | I87: 0 | K87: 0
A88: Police | C88: 0 | D88: 0 | E88: 0 | F88: 0 | G88: 0 | H88: 0 | I88: =H88-G88 -> 0 | J88: =IF(I88=0,"",I88/H88) ->  | K88: 0
A89: Purls | C89: 0 | D89: 0 | E89: 0 | F89: 0 | G89: 0 | H89: 0 | I89: 0 | K89: 0
A90: Public Open Space | C90: 0 | D90: 0 | E90: 0 | F90: 0 | G90: 0 | H90: 0 | I90: 0 | K90: 0
A91: Nature Reserves | C91: 0 | D91: 0 | E91: 0 | F91: 0 | G91: 0 | H91: 0 | I91: 0 | K91: 0
A92: Public Ablution Facilities | C92: 0 | D92: 0 | E92: 0 | F92: 0 | G92: 0 | H92: 0 | I92: 0 | K92: 0
A93: Markets | C93: 0 | D93: 0 | E93: 0 | F93: 0 | G93: 0 | H93: 0 | I93: 0 | K93: 0
A94: Stalls | C94: 0 | D94: 0 | E94: 0 | F94: 0 | G94: 0 | H94: 0 | I94: 0 | K94: 0
A95: Abattoirs | C95: 0 | D95: 0 | E95: 0 | F95: 0 | G95: 0 | H95: 0 | I95: 0 | K95: 0
A96: Airports | C96: 0 | D96: 0 | E96: 0 | F96: 0 | G96: 0 | H96: 0 | I96: 0 | K96: 0
A97: Taxi Ranks/Bus Terminals | C97: 0 | D97: 0 | E97: 0 | F97: 0 | G97: 0 | H97: 0 | I97: 0 | K97: 0
A98: Capital Spares | C98: 0 | D98: 0 | E98: 0 | F98: 0 | G98: 0 | H98: 0 | I98: 0 | K98: 0
A99: Sport and Recreation Facilities | C99: =SUM(C100:C102) -> 0 | D99: 0 | E99: 0 | F99: 0 | G99: 0 | H99: 0 | I99: 0 | K99: =SUM(K100:K102) -> 0
A100: Indoor Facilities | C100: 0 | D100: 0 | E100: 0 | F100: 0 | G100: 0 | H100: 0 | I100: 0 | K100: 0
A101: Outdoor Facilities | C101: 0 | D101: 0 | E101: 0 | F101: 0 | G101: 0 | H101: 0 | I101: 0 | K101: 0
A102: Capital Spares | C102: 0 | D102: 0 | E102: 0 | F102: 0 | G102: 0 | H102: 0 | I102: 0 | K102: 0
A103: Heritage assets | C103: =SUM(C104:C108) -> 0 | D103: 0 | E103: 0 | F103: 0 | G103: 0 | H103: 0 | I103: 0 | K103: =SUM(K104:K108) -> 0
A104: Monuments | C104: 0 | D104: 0 | E104: 0 | F104: 0 | G104: 0 | H104: 0 | I104: 0 | K104: 0
A105: Historic Buildings | C105: 0 | D105: 0 | E105: 0 | F105: 0 | G105: 0 | H105: 0 | I105: 0 | K105: 0
A106: Works of Art | C106: 0 | D106: 0 | E106: 0 | F106: 0 | G106: 0 | H106: 0 | I106: 0 | K106: 0
A107: Conservation Areas | C107: 0 | D107: 0 | E107: 0 | F107: 0 | G107: 0 | H107: 0 | I107: 0 | K107: 0
A108: Other Heritage | C108: 0 | D108: 0 | E108: 0 | F108: 0 | G108: 0 | H108: 0 | I108: 0 | K108: 0
I109: 0
A110: Investment properties | C110: =+C111+C114 -> 0 | D110: 0 | E110: 0 | F110: 0 | G110: 0 | H110: 0 | I110: 0 | K110: =+K111+K114 -> 0
A111: Revenue Generating | C111: =SUM(C112:C113) -> 0 | D111: 0 | E111: 0 | F111: 0 | G111: 0 | H111: 0 | I111: 0 | K111: =SUM(K112:K113) -> 0
A112: Improved Property | C112: 0 | D112: 0 | E112: 0 | F112: 0 | G112: 0 | H112: 0 | I112: 0 | K112: 0
A113: Unimproved Property | C113: 0 | D113: 0 | E113: 0 | F113: 0 | G113: 0 | H113: 0 | I113: 0 | K113: 0
A114: Non-revenue Generating | C114: =SUM(C115:C116) -> 0 | D114: 0 | E114: 0 | F114: 0 | G114: 0 | H114: 0 | I114: 0 | K114: =SUM(K115:K116) -> 0
A115: Improved Property | C115: 0 | D115: 0 | E115: 0 | F115: 0 | G115: 0 | H115: 0 | I115: 0 | K115: 0
A116: Unimproved Property | C116: 0 | D116: 0 | E116: 0 | F116: 0 | G116: 0 | H116: 0 | I116: 0 | K116: 0
A117: Other assets | C117: =+C118+C130 -> 0 | D117: 3000001 | E117: 0 | F117: 0 | G117: 2725053.74 | H117: 0 | I117: -2725053.74 | K117: =+K118+K130 -> 0
A118: Operational Buildings | C118: =SUM(C119:C129) -> 0 | D118: 3000001 | E118: 0 | F118: 0 | G118: 2725053.74 | H118: 0 | I118: -2725053.74 | K118: =SUM(K119:K129) -> 0
A119: Municipal Offices | C119: 0 | D119: 3000001 | E119: 0 | F119: 0 | G119: 2725053.74 | H119: 0 | I119: -2725053.74 | K119: 0
A120: Pay/Enquiry Points | C120: 0 | D120: 0 | E120: 0 | F120: 0 | G120: 0 | H120: 0 | I120: 0 | J120: =IF(I120=0,"",I120/H120) ->  | K120: 0
A121: Building Plan Offices | C121: 0 | D121: 0 | E121: 0 | F121: 0 | G121: 0 | H121: 0 | I121: 0 | K121: 0
A122: Workshops | C122: 0 | D122: 0 | E122: 0 | F122: 0 | G122: 0 | H122: 0 | I122: 0 | K122: 0
A123: Yards | C123: 0 | D123: 0 | E123: 0 | F123: 0 | G123: 0 | H123: 0 | I123: 0 | K123: 0
A124: Stores | C124: 0 | D124: 0 | E124: 0 | F124: 0 | G124: 0 | H124: 0 | I124: 0 | K124: 0
A125: Laboratories | C125: 0 | D125: 0 | E125: 0 | F125: 0 | G125: 0 | H125: 0 | I125: 0 | K125: 0
A126: Training Centres | C126: 0 | D126: 0 | E126: 0 | F126: 0 | G126: 0 | H126: 0 | I126: 0 | K126: 0
A127: Manufacturing Plant | C127: 0 | D127: 0 | E127: 0 | F127: 0 | G127: 0 | H127: 0 | I127: 0 | K127: 0
A128: Depots | C128: 0 | D128: 0 | E128: 0 | F128: 0 | G128: 0 | H128: 0 | I128: 0 | K128: 0
A129: Capital Spares | C129: 0 | D129: 0 | E129: 0 | F129: 0 | G129: 0 | H129: 0 | I129: 0 | K129: 0
A130: Housing | C130: =SUM(C131:C133) -> 0 | D130: 0 | E130: 0 | F130: 0 | G130: 0 | H130: 0 | I130: 0 | K130: =SUM(K131:K133) -> 0
A131: Staff Housing | C131: 0 | D131: 0 | E131: 0 | F131: 0 | G131: 0 | H131: 0 | I131: 0 | K131: 0
A132: Social Housing | C132: 0 | D132: 0 | E132: 0 | F132: 0 | G132: 0 | H132: 0 | I132: 0 | K132: 0
A133: Capital Spares | C133: 0 | D133: 0 | E133: 0 | F133: 0 | G133: 0 | H133: 0 | I133: 0 | K133: 0
A135: Biological or Cultivated Assets | C135: =SUM(C136:C136) -> 0 | D135: 0 | E135: 0 | F135: 0 | G135: 0 | H135: 0 | I135: =H135-G135 -> 0 | K135: =SUM(K136) -> 0
A136: Biological or Cultivated Assets | C136: 0 | D136: 0 | E136: 0 | F136: 0 | G136: 0 | H136: 0 | I136: =H136-G136 -> 0 | K136: 0
A138: Intangible Assets | C138: =SUM(C139:C140) -> 0 | D138: 0 | E138: 0 | F138: 0 | G138: 0 | H138: 0 | I138: =H138-G138 -> 0 | K138: =SUM(K139:K140) -> 0
A139: Servitudes | C139: 0 | D139: 0 | E139: 0 | F139: 0 | G139: 0 | H139: 0 | I139: 0 | K139: 0
A140: Licences and Rights | C140: =SUM(C141:C146) -> 0 | D140: 0 | E140: 0 | F140: 0 | G140: 0 | H140: 0 | I140: 0 | K140: =SUM(K141:K146) -> 0
A141: Water Rights | C141: 0 | D141: 0 | E141: 0 | F141: 0 | G141: 0 | H141: 0 | I141: 0 | K141: 0
A142: Effluent Licenses | C142: 0 | D142: 0 | E142: 0 | F142: 0 | G142: 0 | H142: 0 | I142: 0 | K142: 0
A143: Solid Waste Licenses | C143: 0 | D143: 0 | E143: 0 | F143: 0 | G143: 0 | H143: 0 | I143: 0 | K143: 0
A144: Computer Software and Applications | C144: 0 | D144: 0 | E144: 0 | F144: 0 | G144: 0 | H144: 0 | I144: 0 | K144: 0
A145: Load Settlement Software Applications | C145: 0 | D145: 0 | E145: 0 | F145: 0 | G145: 0 | H145: 0 | I145: 0 | K145: 0
A146: Unspecified | C146: 0 | D146: 0 | E146: 0 | F146: 0 | G146: 0 | H146: 0 | I146: 0 | K146: 0
A148: Computer Equipment | C148: =SUM(C149:C149) -> 0 | D148: 0 | E148: 0 | F148: 0 | G148: 0 | H148: 0 | I148: =H148-G148 -> 0 | J148: =IF(I148=0,"",I148/H148) ->  | K148: =SUM(K149) -> 0
A149: Computer Equipment | C149: 0 | D149: 0 | E149: 0 | F149: 0 | G149: 0 | H149: 0 | I149: =H149-G149 -> 0 | J149: =IF(I149=0,"",I149/H149) ->  | K149: 0
A151: Furniture and Office Equipment | C151: =SUM(C152:C152) -> 0 | D151: 870000 | E151: 0 | F151: 43304.35 | G151: 43304.35 | H151: 0 | I151: =H151-G151 -> -43304.35 | J151: =IF(I151=0,"",I151/H151) ->  | K151: =SUM(K152) -> 0
A152: Furniture and Office Equipment | C152: 0 | D152: 870000 | E152: 0 | F152: 43304.35 | G152: 43304.35 | H152: 0 | I152: =H152-G152 -> -43304.35 | J152: =IF(I152=0,"",I152/H152) ->  | K152: 0
J153: =IF(I153=0,"",I153/H153) -> 
A154: Machinery and Equipment | C154: =SUM(C155:C155) -> 0 | D154: 50000 | E154: 0 | F154: 47599.99 | G154: 47599.99 | H154: 0 | I154: =H154-G154 -> -47599.99 | J154: =IF(I154=0,"",I154/H154) ->  | K154: =SUM(K155) -> 0
A155: Machinery and Equipment | C155: 0 | D155: 50000 | E155: 0 | F155: 47599.99 | G155: 47599.99 | H155: 0 | I155: =H155-G155 -> -47599.99 | J155: =IF(I155=0,"",I155/H155) ->  | K155: 0
A157: Transport Assets | C157: =SUM(C158:C158) -> 0 | D157: 0 | E157: 0 | F157: 0 | G157: 0 | H157: 0 | I157: =H157-G157 -> 0 | J157: =IF(I157=0,"",I157/H157) ->  | K157: =SUM(K158) -> 0
A158: Transport Assets | C158: 0 | D158: 0 | E158: 0 | F158: 0 | G158: 0 | H158: 0 | I158: =H158-G158 -> 0 | J158: =IF(I158=0,"",I158/H158) ->  | K158: 0
A160: Land | C160: =SUM(C161:C161) -> 0 | D160: 0 | E160: 0 | F160: 0 | G160: 0 | H160: 0 | I160: =H160-G160 -> 0 | J160: =IF(I160=0,"",I160/H160) ->  | K160: =SUM(K161) -> 0
A161: Land | C161: 0 | D161: 0 | E161: 0 | F161: 0 | G161: 0 | H161: 0 | I161: =H161-G161 -> 0 | J161: =IF(I161=0,"",I161/H161) ->  | K161: 0
A163: Zoo's, Marine and Non-biological Animals | C163: =SUM(C164:C164) -> 0 | D163: 1200000 | E163: 0 | F163: 0 | G163: 948867.75 | H163: 0 | I163: =H163-G163 -> -948867.75 | J163: =IF(I163=0,"",I163/H163) ->  | K163: =SUM(K164) -> 0
A164: Zoo's, Marine and Non-biological Animals | C164: 0 | D164: 1200000 | E164: 0 | F164: 0 | G164: 948867.75 | H164: 0 | I164: =H164-G164 -> -948867.75 | J164: =IF(I164=0,"",I164/H164) ->  | K164: 0
J165: =IF(I165=0,"",I165/H165) -> 
A166: Total Capital Expenditure on new assets | B166: 1 | C166: =C7+C75+C103+C110+C117+C135+C138+C148+C151+C154+C157+C160+C163 -> 0 | D166: 23247936 | E166: 0 | F166: 905167.16 | G166: 17817743.35 | H166: 0 | I166: =H166-G166 -> -17817743.35 | J166: =IF(I166=0,"",I166/H166) ->  | K166: =K7+K75+K103+K110+K117+K135+K138+K148+K151+K154+K157+K160+K163 -> 0
A168: =head27a -> References
A169: 1. Total Capital Expenditure on new assets (SC13a) plus Total Capital Expenditure on renewal of existing assets (SC13b) plus Total Capital Expenditure on upgrading of existing assets (SC13e) must reconcile to total capital expenditure in Table C5
A171: check balance | C171: =C166+SC13b!C166+SC13e!C166-'C5-Capex'!C40 -> 0 | D171: =D166+SC13b!D166+SC13e!D166-'C5-Capex'!D40 -> 0 | E171: =E166+SC13b!E166+SC13e!E166-'C5-Capex'!E40 -> -47101902 | F171: =F166+SC13b!F166+SC13e!F166-'C5-Capex'!F40 -> 43304.35 | G171: =G166+SC13b!G166+SC13e!G166-'C5-Capex'!G40 -> 43304.35 | H171: =H166+SC13b!H166+SC13e!H166-'C5-Capex'!H40 -> -47101887 | K171: =K166+SC13b!K166+SC13e!K166-'C5-Capex'!K40 -> -47101902

Sheet SC13b
A1: =muni& " - "&S71Sb& " - "&Head57 -> EC136 Emalahleni (Ec) - Supporting Table SC13b Monthly Budget Statement - capital expenditure on renewal of existing assets by asset class - M12 June
A2: =desc -> Description | B2: =head27 -> Ref | C2: =Head1 -> 2017/18 | D2: =Head2 -> Budget Year 2018/19
C3: =Head5 -> Audited Outcome | D3: =Head6 -> Original Budget | E3: =Head7 -> Adjusted Budget | F3: =Head38 -> Monthly actual | G3: =Head39 -> YearTD actual | H3: =Head40 -> YearTD budget | I3: =Head41 -> YTD variance | J3: =Head41 -> YTD variance | K3: =Head8 -> Full Year Forecast
A4: R thousands | B4: 1 | J4: %
A5: Capital expenditure on renewal of existing assets by Asset Class/Sub-class
A7: Infrastructure | C7: =C8+C13+C17+C27+C38+C45+C53+C63+C69 -> 0 | D7: 500000 | E7: 0 | F7: 171304.35 | G7: 171304.35 | H7: 0 | I7: =H7-G7 -> -171304.35 | J7: =IF(I7=0,"",I7/H7) ->  | K7: =K8+K13+K17+K27+K38+K45+K53+K63+K69 -> 0
A8: Roads Infrastructure | C8: =SUM(C9:C12) -> 0 | D8: 0 | E8: 0 | F8: 0 | G8: 0 | H8: 0 | I8: 0 | K8: =SUM(K9:K12) -> 0
A9: Roads | C9: 0 | D9: 0 | E9: 0 | F9: 0 | G9: 0 | H9: 0 | I9: 0 | K9: 0
A10: Road Structures | C10: 0 | D10: 0 | E10: 0 | F10: 0 | G10: 0 | H10: 0 | I10: 0 | K10: 0
A11: Road Furniture | C11: 0 | D11: 0 | E11: 0 | F11: 0 | G11: 0 | H11: 0 | I11: 0 | K11: 0
A12: Capital Spares | C12: 0 | D12: 0 | E12: 0 | F12: 0 | G12: 0 | H12: 0 | I12: 0 | K12: 0
A13: Storm water Infrastructure | C13: =SUM(C14:C16) -> 0 | D13: 0 | E13: 0 | F13: 0 | G13: 0 | H13: 0 | I13: 0 | K13: =SUM(K14:K16) -> 0
A14: Drainage Collection | C14: 0 | D14: 0 | E14: 0 | F14: 0 | G14: 0 | H14: 0 | I14: 0 | K14: 0
A15: Storm water Conveyance | C15: 0 | D15: 0 | E15: 0 | F15: 0 | G15: 0 | H15: 0 | I15: 0 | K15: 0
A16: Attenuation | C16: 0 | D16: 0 | E16: 0 | F16: 0 | G16: 0 | H16: 0 | I16: 0 | K16: 0
A17: Electrical Infrastructure | C17: =SUM(C18:C26) -> 0 | D17: 0 | E17: 0 | F17: 0 | G17: 0 | H17: 0 | I17: 0 | K17: =SUM(K18:K26) -> 0
A18: Power Plants | C18: 0 | D18: 0 | E18: 0 | F18: 0 | G18: 0 | H18: 0 | I18: 0 | K18: 0
A19: HV Substations | C19: 0 | D19: 0 | E19: 0 | F19: 0 | G19: 0 | H19: 0 | I19: 0 | K19: 0
A20: HV Switching Station | C20: 0 | D20: 0 | E20: 0 | F20: 0 | G20: 0 | H20: 0 | I20: 0 | K20: 0
A21: HV Transmission Conductors | C21: 0 | D21: 0 | E21: 0 | F21: 0 | G21: 0 | H21: 0 | I21: 0 | K21: 0
A22: MV Substations | C22: 0 | D22: 0 | E22: 0 | F22: 0 | G22: 0 | H22: 0 | I22: 0 | K22: 0
A23: MV Switching Stations | C23: 0 | D23: 0 | E23: 0 | F23: 0 | G23: 0 | H23: 0 | I23: 0 | K23: 0
A24: MV Networks | C24: 0 | D24: 0 | E24: 0 | F24: 0 | G24: 0 | H24: 0 | I24: 0 | K24: 0
A25: LV Networks | C25: 0 | D25: 0 | E25: 0 | F25: 0 | G25: 0 | H25: 0 | I25: 0 | K25: 0
A26: Capital Spares | C26: 0 | D26: 0 | E26: 0 | F26: 0 | G26: 0 | H26: 0 | I26: 0 | K26: 0
A27: Water Supply Infrastructure | C27: =SUM(C28:C37) -> 0 | D27: 0 | E27: 0 | F27: 0 | G27: 0 | H27: 0 | I27: 0 | K27: =SUM(K28:K37) -> 0
A28: Dams and Weirs | C28: 0 | D28: 0 | E28: 0 | F28: 0 | G28: 0 | H28: 0 | I28: 0 | K28: 0
A29: Boreholes | C29: 0 | D29: 0 | E29: 0 | F29: 0 | G29: 0 | H29: 0 | I29: 0 | K29: 0
A30: Reservoirs | C30: 0 | D30: 0 | E30: 0 | F30: 0 | G30: 0 | H30: 0 | I30: 0 | K30: 0
A31: Pump Stations | C31: 0 | D31: 0 | E31: 0 | F31: 0 | G31: 0 | H31: 0 | I31: 0 | K31: 0
A32: Water Treatment Works | C32: 0 | D32: 0 | E32: 0 | F32: 0 | G32: 0 | H32: 0 | I32: 0 | K32: 0
A33: Bulk Mains | C33: 0 | D33: 0 | E33: 0 | F33: 0 | G33: 0 | H33: 0 | I33: 0 | K33: 0
A34: Distribution | C34: 0 | D34: 0 | E34: 0 | F34: 0 | G34: 0 | H34: 0 | I34: 0 | K34: 0
A35: Distribution Points | C35: 0 | D35: 0 | E35: 0 | F35: 0 | G35: 0 | H35: 0 | I35: 0 | K35: 0
A36: PRV Stations | C36: 0 | D36: 0 | E36: 0 | F36: 0 | G36: 0 | H36: 0 | I36: 0 | K36: 0
A37: Capital Spares | C37: 0 | D37: 0 | E37: 0 | F37: 0 | G37: 0 | H37: 0 | I37: 0 | K37: 0
A38: Sanitation Infrastructure | C38: =SUM(C39:C44) -> 0 | D38: 0 | E38: 0 | F38: 0 | G38: 0 | H38: 0 | I38: 0 | K38: =SUM(K39:K44) -> 0
A39: Pump Station | C39: 0 | D39: 0 | E39: 0 | F39: 0 | G39: 0 | H39: 0 | I39: 0 | K39: 0
A40: Reticulation | C40: 0 | D40: 0 | E40: 0 | F40: 0 | G40: 0 | H40: 0 | I40: 0 | K40: 0
A41: Waste Water Treatment Works | C41: 0 | D41: 0 | E41: 0 | F41: 0 | G41: 0 | H41: 0 | I41: 0 | K41: 0
A42: Outfall Sewers | C42: 0 | D42: 0 | E42: 0 | F42: 0 | G42: 0 | H42: 0 | I42: 0 | K42: 0
A43: Toilet Facilities | C43: 0 | D43: 0 | E43: 0 | F43: 0 | G43: 0 | H43: 0 | I43: 0 | K43: 0
A44: Capital Spares | C44: 0 | D44: 0 | E44: 0 | F44: 0 | G44: 0 | H44: 0 | I44: 0 | K44: 0
A45: Solid Waste Infrastructure | C45: =SUM(C46:C52) -> 0 | D45: 500000 | E45: 0 | F45: 171304.35 | G45: 171304.35 | H45: 0 | I45: -171304.35 | K45: =SUM(K46:K52) -> 0
A46: Landfill Sites | C46: 0 | D46: 0 | E46: 0 | F46: 0 | G46: 0 | H46: 0 | I46: 0 | K46: 0
A47: Waste Transfer Stations | C47: 0 | D47: 0 | E47: 0 | F47: 0 | G47: 0 | H47: 0 | I47: 0 | K47: 0
A48: Waste Processing Facilities | C48: 0 | D48: 500000 | E48: 0 | F48: 171304.35 | G48: 171304.35 | H48: 0 | I48: -171304.35 | K48: 0
A49: Waste Drop-off Points | C49: 0 | D49: 0 | E49: 0 | F49: 0 | G49: 0 | H49: 0 | I49: 0 | K49: 0
A50: Waste Separation Facilities | C50: 0 | D50: 0 | E50: 0 | F50: 0 | G50: 0 | H50: 0 | I50: 0 | K50: 0
A51: Electricity Generation Facilities | C51: 0 | D51: 0 | E51: 0 | F51: 0 | G51: 0 | H51: 0 | I51: 0 | K51: 0
A52: Capital Spares | C52: 0 | D52: 0 | E52: 0 | F52: 0 | G52: 0 | H52: 0 | I52: 0 | K52: 0
A53: Rail Infrastructure | C53: =SUM(C54:C62) -> 0 | D53: 0 | E53: 0 | F53: 0 | G53: 0 | H53: 0 | I53: 0 | K53: =SUM(K54:K62) -> 0
A54: Rail Lines | C54: 0 | D54: 0 | E54: 0 | F54: 0 | G54: 0 | H54: 0 | I54: 0 | K54: 0
A55: Rail Structures | C55: 0 | D55: 0 | E55: 0 | F55: 0 | G55: 0 | H55: 0 | I55: 0 | K55: 0
A56: Rail Furniture | C56: 0 | D56: 0 | E56: 0 | F56: 0 | G56: 0 | H56: 0 | I56: 0 | K56: 0
A57: Drainage Collection | C57: 0 | D57: 0 | E57: 0 | F57: 0 | G57: 0 | H57: 0 | I57: 0 | K57: 0
A58: Storm water Conveyance | C58: 0 | D58: 0 | E58: 0 | F58: 0 | G58: 0 | H58: 0 | I58: 0 | K58: 0
A59: Attenuation | C59: 0 | D59: 0 | E59: 0 | F59: 0 | G59: 0 | H59: 0 | I59: 0 | K59: 0
A60: MV Substations | C60: 0 | D60: 0 | E60: 0 | F60: 0 | G60: 0 | H60: 0 | I60: 0 | K60: 0
A61: LV Networks | C61: 0 | D61: 0 | E61: 0 | F61: 0 | G61: 0 | H61: 0 | I61: 0 | K61: 0
A62: Capital Spares | C62: 0 | D62: 0 | E62: 0 | F62: 0 | G62: 0 | H62: 0 | I62: 0 | K62: 0
A63: Coastal Infrastructure | C63: =SUM(C64:C68) -> 0 | D63: 0 | E63: 0 | F63: 0 | G63: 0 | H63: 0 | I63: 0 | K63: =SUM(K64:K68) -> 0
A64: Sand Pumps | C64: 0 | D64: 0 | E64: 0 | F64: 0 | G64: 0 | H64: 0 | I64: 0 | K64: 0
A65: Piers | C65: 0 | D65: 0 | E65: 0 | F65: 0 | G65: 0 | H65: 0 | I65: 0 | K65: 0
A66: Revetments | C66: 0 | D66: 0 | E66: 0 | F66: 0 | G66: 0 | H66: 0 | I66: 0 | K66: 0
A67: Promenades | C67: 0 | D67: 0 | E67: 0 | F67: 0 | G67: 0 | H67: 0 | I67: 0 | K67: 0
A68: Capital Spares | C68: 0 | D68: 0 | E68: 0 | F68: 0 | G68: 0 | H68: 0 | I68: 0 | K68: 0
A69: Information and Communication Infrastructure | C69: =SUM(C70:C73) -> 0 | D69: 0 | E69: 0 | F69: 0 | G69: 0 | H69: 0 | I69: 0 | K69: =SUM(K70:K73) -> 0
A70: Data Centres | C70: 0 | D70: 0 | E70: 0 | F70: 0 | G70: 0 | H70: 0 | I70: 0 | K70: 0
A71: Core Layers | C71: 0 | D71: 0 | E71: 0 | F71: 0 | G71: 0 | H71: 0 | I71: 0 | K71: 0
A72: Distribution Layers | C72: 0 | D72: 0 | E72: 0 | F72: 0 | G72: 0 | H72: 0 | I72: 0 | K72: 0
A73: Capital Spares | C73: 0 | D73: 0 | E73: 0 | F73: 0 | G73: 0 | H73: 0 | I73: 0 | K73: 0
A75: Community Assets | C75: =+C76+C99 -> 0 | D75: 4067356 | E75: 0 | F75: 0 | G75: 3164283.84 | H75: 0 | I75: -3164283.84 | K75: =+K76+K99 -> 0
A76: Community Facilities | C76: =SUM(C77:C98) -> 0 | D76: 0 | E76: 0 | F76: 0 | G76: 0 | H76: 0 | I76: 0 | K76: =SUM(K77:K98) -> 0
A77: Halls | C77: 0 | D77: 0 | E77: 0 | F77: 0 | G77: 0 | H77: 0 | I77: 0 | K77: 0
A78: Centres | C78: 0 | D78: 0 | E78: 0 | F78: 0 | G78: 0 | H78: 0 | I78: 0 | K78: 0
A79: Crèches | C79: 0 | D79: 0 | E79: 0 | F79: 0 | G79: 0 | H79: 0 | I79: 0 | K79: 0
A80: Clinics/Care Centres | C80: 0 | D80: 0 | E80: 0 | F80: 0 | G80: 0 | H80: 0 | I80: 0 | K80: 0
A81: Fire/Ambulance Stations | C81: 0 | D81: 0 | E81: 0 | F81: 0 | G81: 0 | H81: 0 | I81: 0 | K81: 0
A82: Testing Stations | C82: 0 | D82: 0 | E82: 0 | F82: 0 | G82: 0 | H82: 0 | I82: 0 | K82: 0
A83: Museums | C83: 0 | D83: 0 | E83: 0 | F83: 0 | G83: 0 | H83: 0 | I83: 0 | K83: 0
A84: Galleries | C84: 0 | D84: 0 | E84: 0 | F84: 0 | G84: 0 | H84: 0 | I84: 0 | K84: 0
A85: Theatres | C85: 0 | D85: 0 | E85: 0 | F85: 0 | G85: 0 | H85: 0 | I85: 0 | K85: 0
A86: Libraries | C86: 0 | D86: 0 | E86: 0 | F86: 0 | G86: 0 | H86: 0 | I86: 0 | K86: 0
A87: Cemeteries/Crematoria | C87: 0 | D87: 0 | E87: 0 | F87: 0 | G87: 0 | H87: 0 | I87: 0 | K87: 0
A88: Police | C88: 0 | D88: 0 | E88: 0 | F88: 0 | G88: 0 | H88: 0 | I88: 0 | K88: 0
A89: Purls | C89: 0 | D89: 0 | E89: 0 | F89: 0 | G89: 0 | H89: 0 | I89: 0 | K89: 0
A90: Public Open Space | C90: 0 | D90: 0 | E90: 0 | F90: 0 | G90: 0 | H90: 0 | I90: 0 | K90: 0
A91: Nature Reserves | C91: 0 | D91: 0 | E91: 0 | F91: 0 | G91: 0 | H91: 0 | I91: 0 | K91: 0
A92: Public Ablution Facilities | C92: 0 | D92: 0 | E92: 0 | F92: 0 | G92: 0 | H92: 0 | I92: 0 | K92: 0
A93: Markets | C93: 0 | D93: 0 | E93: 0 | F93: 0 | G93: 0 | H93: 0 | I93: 0 | K93: 0
A94: Stalls | C94: 0 | D94: 0 | E94: 0 | F94: 0 | G94: 0 | H94: 0 | I94: 0 | K94: 0
A95: Abattoirs | C95: 0 | D95: 0 | E95: 0 | F95: 0 | G95: 0 | H95: 0 | I95: 0 | K95: 0
A96: Airports | C96: 0 | D96: 0 | E96: 0 | F96: 0 | G96: 0 | H96: 0 | I96: 0 | K96: 0
A97: Taxi Ranks/Bus Terminals | C97: 0 | D97: 0 | E97: 0 | F97: 0 | G97: 0 | H97: 0 | I97: 0 | K97: 0
A98: Capital Spares | C98: 0 | D98: 0 | E98: 0 | F98: 0 | G98: 0 | H98: 0 | I98: 0 | K98: 0
A99: Sport and Recreation Facilities | C99: =SUM(C100:C102) -> 0 | D99: 4067356 | E99: 0 | F99: 0 | G99: 3164283.84 | H99: 0 | I99: -3164283.84 | K99: =SUM(K100:K102) -> 0
A100: Indoor Facilities | C100: 0 | D100: 0 | E100: 0 | F100: 0 | G100: 0 | H100: 0 | I100: 0 | K100: 0
A101: Outdoor Facilities | C101: 0 | D101: 4067356 | E101: 0 | F101: 0 | G101: 3164283.84 | H101: 0 | I101: =H101-G101 -> -3164283.84 | J101: =IF(I101=0,"",I101/H101) ->  | K101: 0
A102: Capital Spares | C102: 0 | D102: 0 | E102: 0 | F102: 0 | G102: 0 | H102: 0 | I102: 0 | K102: 0
A103: Heritage assets | C103: =SUM(C104:C108) -> 0 | D103: 0 | E103: 0 | F103: 0 | G103: 0 | H103: 0 | I103: 0 | K103: =SUM(K104:K108) -> 0
A104: Monuments | C104: 0 | D104: 0 | E104: 0 | F104: 0 | G104: 0 | H104: 0 | I104: 0 | K104: 0
A105: Historic Buildings | C105: 0 | D105: 0 | E105: 0 | F105: 0 | G105: 0 | H105: 0 | I105: 0 | K105: 0
A106: Works of Art | C106: 0 | D106: 0 | E106: 0 | F106: 0 | G106: 0 | H106: 0 | I106: 0 | K106: 0
A107: Conservation Areas | C107: 0 | D107: 0 | E107: 0 | F107: 0 | G107: 0 | H107: 0 | I107: 0 | K107: 0
A108: Other Heritage | C108: 0 | D108: 0 | E108: 0 | F108: 0 | G108: 0 | H108: 0 | I108: 0 | K108: 0
I109: 0
A110: Investment properties | C110: =+C111+C114 -> 0 | D110: 0 | E110: 0 | F110: 0 | G110: 0 | H110: 0 | I110: 0 | K110: =+K111+K114 -> 0
A111: Revenue Generating | C111: =SUM(C112:C113) -> 0 | D111: 0 | E111: 0 | F111: 0 | G111: 0 | H111: 0 | I111: 0 | K111: =SUM(K112:K113) -> 0
A112: Improved Property | C112: 0 | D112: 0 | E112: 0 | F112: 0 | G112: 0 | H112: 0 | I112: 0 | K112: 0
A113: Unimproved Property | C113: 0 | D113: 0 | E113: 0 | F113: 0 | G113: 0 | H113: 0 | I113: 0 | K113: 0
A114: Non-revenue Generating | C114: =SUM(C115:C116) -> 0 | D114: 0 | E114: 0 | F114: 0 | G114: 0 | H114: 0 | I114: 0 | K114: =SUM(K115:K116) -> 0
A115: Improved Property | C115: 0 | D115: 0 | E115: 0 | F115: 0 | G115: 0 | H115: 0 | I115: 0 | K115: 0
A116: Unimproved Property | C116: 0 | D116: 0 | E116: 0 | F116: 0 | G116: 0 | H116: 0 | I116: =H116-G116 -> 0 | J116: =IF(I116=0,"",I116/H116) ->  | K116: 0
A117: Other assets | C117: =+C118+C130 -> 0 | D117: 0 | E117: 0 | F117: 0 | G117: 0 | H117: 0 | I117: 0 | K117: =+K118+K130 -> 0
A118: Operational Buildings | C118: =SUM(C119:C129) -> 0 | D118: 0 | E118: 0 | F118: 0 | G118: 0 | H118: 0 | I118: 0 | K118: =SUM(K119:K129) -> 0
A119: Municipal Offices | C119: 0 | D119: 0 | E119: 0 | F119: 0 | G119: 0 | H119: 0 | I119: 0 | K119: 0
A120: Pay/Enquiry Points | C120: 0 | D120: 0 | E120: 0 | F120: 0 | G120: 0 | H120: 0 | I120: 0 | K120: 0
A121: Building Plan Offices | C121: 0 | D121: 0 | E121: 0 | F121: 0 | G121: 0 | H121: 0 | I121: 0 | K121: 0
A122: Workshops | C122: 0 | D122: 0 | E122: 0 | F122: 0 | G122: 0 | H122: 0 | I122: 0 | K122: 0
A123: Yards | C123: 0 | D123: 0 | E123: 0 | F123: 0 | G123: 0 | H123: 0 | I123: 0 | K123: 0
A124: Stores | C124: 0 | D124: 0 | E124: 0 | F124: 0 | G124: 0 | H124: 0 | I124: 0 | K124: 0
A125: Laboratories | C125: 0 | D125: 0 | E125: 0 | F125: 0 | G125: 0 | H125: 0 | I125: 0 | K125: 0
A126: Training Centres | C126: 0 | D126: 0 | E126: 0 | F126: 0 | G126: 0 | H126: 0 | I126: 0 | K126: 0
A127: Manufacturing Plant | C127: 0 | D127: 0 | E127: 0 | F127: 0 | G127: 0 | H127: 0 | I127: 0 | K127: 0
A128: Depots | C128: 0 | D128: 0 | E128: 0 | F128: 0 | G128: 0 | H128: 0 | I128: 0 | K128: 0
A129: Capital Spares | C129: 0 | D129: 0 | E129: 0 | F129: 0 | G129: 0 | H129: 0 | I129: 0 | K129: 0
A130: Housing | C130: =SUM(C131:C133) -> 0 | D130: 0 | E130: 0 | F130: 0 | G130: 0 | H130: 0 | I130: 0 | K130: =SUM(K131:K133) -> 0
A131: Staff Housing | C131: 0 | D131: 0 | E131: 0 | F131: 0 | G131: 0 | H131: 0 | I131: 0 | K131: 0
A132: Social Housing | C132: 0 | D132: 0 | E132: 0 | F132: 0 | G132: 0 | H132: 0 | I132: 0 | K132: 0
A133: Capital Spares | C133: 0 | D133: 0 | E133: 0 | F133: 0 | G133: 0 | H133: 0 | I133: 0 | K133: 0
A135: Biological or Cultivated Assets | C135: =SUM(C136:C136) -> 0 | D135: 0 | E135: 0 | F135: 0 | G135: 0 | H135: 0 | I135: =H135-G135 -> 0 | K135: =SUM(K136) -> 0
A136: Biological or Cultivated Assets | C136: 0 | D136: 0 | E136: 0 | F136: 0 | G136: 0 | H136: 0 | I136: =H136-G136 -> 0 | K136: 0
J137: =IF(I137=0,"",I137/H137) -> 
A138: Intangible Assets | C138: =SUM(C139:C140) -> 0 | D138: 0 | E138: 0 | F138: 0 | G138: 0 | H138: 0 | I138: =H138-G138 -> 0 | K138: =SUM(K139:K140) -> 0
A139: Servitudes | C139: 0 | D139: 0 | E139: 0 | F139: 0 | G139: 0 | H139: 0 | I139: 0 | K139: 0
A140: Licences and Rights | C140: =SUM(C141:C146) -> 0 | D140: 0 | E140: 0 | F140: 0 | G140: 0 | H140: 0 | I140: 0 | K140: =SUM(K141:K146) -> 0
A141: Water Rights | C141: 0 | D141: 0 | E141: 0 | F141: 0 | G141: 0 | H141: 0 | I141: 0 | K141: 0
A142: Effluent Licenses | C142: 0 | D142: 0 | E142: 0 | F142: 0 | G142: 0 | H142: 0 | I142: 0 | K142: 0
A143: Solid Waste Licenses | C143: 0 | D143: 0 | E143: 0 | F143: 0 | G143: 0 | H143: 0 | I143: 0 | K143: 0
A144: Computer Software and Applications | C144: 0 | D144: 0 | E144: 0 | F144: 0 | G144: 0 | H144: 0 | I144: 0 | K144: 0
A145: Load Settlement Software Applications | C145: 0 | D145: 0 | E145: 0 | F145: 0 | G145: 0 | H145: 0 | I145: 0 | K145: 0
A146: Unspecified | C146: 0 | D146: 0 | E146: 0 | F146: 0 | G146: 0 | H146: 0 | I146: 0 | K146: 0
A148: Computer Equipment | C148: =SUM(C149:C149) -> 0 | D148: 0 | E148: 0 | F148: 0 | G148: 0 | H148: 0 | I148: =H148-G148 -> 0 | J148: =IF(I148=0,"",I148/H148) ->  | K148: =SUM(K149) -> 0
A149: Computer Equipment | C149: 0 | D149: 0 | E149: 0 | F149: 0 | G149: 0 | H149: 0 | I149: =H149-G149 -> 0 | J149: =IF(I149=0,"",I149/H149) ->  | K149: 0
A151: Furniture and Office Equipment | C151: =SUM(C152:C152) -> 0 | D151: 0 | E151: 0 | F151: 0 | G151: 0 | H151: 0 | I151: =H151-G151 -> 0 | J151: =IF(I151=0,"",I151/H151) ->  | K151: =SUM(K152) -> 0
A152: Furniture and Office Equipment | C152: 0 | D152: 0 | E152: 0 | F152: 0 | G152: 0 | H152: 0 | I152: =H152-G152 -> 0 | J152: =IF(I152=0,"",I152/H152) ->  | K152: 0
J153: =IF(I153=0,"",I153/H153) -> 
A154: Machinery and Equipment | C154: =SUM(C155:C155) -> 0 | D154: 0 | E154: 0 | F154: 0 | G154: 0 | H154: 0 | I154: =H154-G154 -> 0 | J154: =IF(I154=0,"",I154/H154) ->  | K154: =SUM(K155) -> 0
A155: Machinery and Equipment | C155: 0 | D155: 0 | E155: 0 | F155: 0 | G155: 0 | H155: 0 | I155: =H155-G155 -> 0 | J155: =IF(I155=0,"",I155/H155) ->  | K155: 0
A157: Transport Assets | C157: =SUM(C158:C158) -> 0 | D157: 0 | E157: 0 | F157: 0 | G157: 0 | H157: 0 | I157: =H157-G157 -> 0 | J157: =IF(I157=0,"",I157/H157) ->  | K157: =SUM(K158) -> 0
A158: Transport Assets | C158: 0 | D158: 0 | E158: 0 | F158: 0 | G158: 0 | H158: 0 | I158: =H158-G158 -> 0 | J158: =IF(I158=0,"",I158/H158) ->  | K158: 0
A160: Land | C160: =SUM(C161:C161) -> 0 | D160: 0 | E160: 0 | F160: 0 | G160: 0 | H160: 0 | I160: =H160-G160 -> 0 | J160: =IF(I160=0,"",I160/H160) ->  | K160: =SUM(K161) -> 0
A161: Land | C161: 0 | D161: 0 | E161: 0 | F161: 0 | G161: 0 | H161: 0 | I161: =H161-G161 -> 0 | J161: =IF(I161=0,"",I161/H161) ->  | K161: 0
J162: .
A163: Zoo's, Marine and Non-biological Animals | C163: =SUM(C164:C164) -> 0 | D163: 0 | E163: 0 | F163: 0 | G163: 0 | H163: 0 | I163: =H163-G163 -> 0 | J163: =IF(I163=0,"",I163/H163) ->  | K163: =SUM(K164) -> 0
A164: Zoo's, Marine and Non-biological Animals | C164: 0 | D164: 0 | E164: 0 | F164: 0 | G164: 0 | H164: 0 | I164: =H164-G164 -> 0 | J164: =IF(I164=0,"",I164/H164) ->  | K164: 0
J165: =IF(I165=0,"",I165/H165) -> 
A166: Total Capital Expenditure on renewal of existing assets | B166: 1 | C166: =C7+C75+C103+C110+C117+C135+C138+C148+C151+C154+C157+C160+C163 -> 0 | D166: 4567356 | E166: 0 | F166: 171304.35 | G166: 3335588.19 | H166: 0 | I166: =H166-G166 -> -3335588.19 | J166: =IF(I166=0,"",I166/H166) ->  | K166: =K7+K75+K103+K110+K117+K135+K138+K148+K151+K154+K157+K160+K163 -> 0
A168: =head27a -> References
A169: 1. Total Capital Expenditure on new assets (SC13a) plus Total Capital Expenditure on renewal of existing assets (SC13b) plus Total Capital Expenditure on upgrading of existing assets (SC13e) must reconcile to total capital expenditure in Table C5
A171: check balance | C171: =C166+SC13a!C166+SC13e!C166-'C5-Capex'!C40 -> 0 | D171: =D166+SC13a!D166+SC13e!D166-'C5-Capex'!D40 -> 0 | E171: =E166+SC13a!E166+SC13e!E166-'C5-Capex'!E40 -> -47101902 | F171: =F166+SC13a!F166+SC13e!F166-'C5-Capex'!F40 -> 43304.35 | G171: =G166+SC13a!G166+SC13e!G166-'C5-Capex'!G40 -> 43304.35 | H171: =H166+SC13a!H166+SC13e!H166-'C5-Capex'!H40 -> -47101887 | K171: =K166+SC13a!K166+SC13e!K166-'C5-Capex'!K40 -> -47101902

Sheet SC13c
A1: =muni& " - "&S71Sc& " - "&Head57 -> EC136 Emalahleni (Ec) - Supporting Table SC13c Monthly Budget Statement - expenditure on repairs and maintenance by asset class - M12 June
A2: =desc -> Description | B2: =head27 -> Ref | C2: =Head1 -> 2017/18 | D2: =Head2 -> Budget Year 2018/19
C3: =Head5 -> Audited Outcome | D3: =Head6 -> Original Budget | E3: =Head7 -> Adjusted Budget | F3: =Head38 -> Monthly actual | G3: =Head39 -> YearTD actual | H3: =Head40 -> YearTD budget | I3: =Head41 -> YTD variance | J3: =Head41 -> YTD variance | K3: =Head8 -> Full Year Forecast
A4: R thousands | B4: 1 | J4: %
A5: Repairs and maintenance expenditure by Asset Class/Sub-class
A7: Infrastructure | C7: =C8+C13+C17+C27+C38+C45+C53+C63+C69 -> 0 | D7: 2983360 | E7: 0 | F7: 360101.46 | G7: 1303597.45 | H7: 0 | I7: =H7-G7 -> -1303597.45 | J7: =IF(I7=0,"",I7/H7) ->  | K7: =K8+K13+K17+K27+K38+K45+K53+K63+K69 -> 0
A8: Roads Infrastructure | C8: =SUM(C9:C12) -> 0 | D8: 1010700 | E8: 0 | F8: 171600 | G8: 735795.12 | H8: 0 | I8: -735795.12 | K8: =SUM(K9:K12) -> 0
A9: Roads | C9: 0 | D9: 1010700 | E9: 0 | F9: 171600 | G9: 735795.12 | H9: 0 | I9: -735795.12 | K9: 0
A10: Road Structures | C10: 0 | D10: 0 | E10: 0 | F10: 0 | G10: 0 | H10: 0 | I10: 0 | K10: 0
A11: Road Furniture | C11: 0 | D11: 0 | E11: 0 | F11: 0 | G11: 0 | H11: 0 | I11: 0 | K11: 0
A12: Capital Spares | C12: 0 | D12: 0 | E12: 0 | F12: 0 | G12: 0 | H12: 0 | I12: 0 | K12: 0
A13: Storm water Infrastructure | C13: =SUM(C14:C16) -> 0 | D13: 1402980 | E13: 0 | F13: 0 | G13: 131663.12 | H13: 0 | I13: -131663.12 | K13: =SUM(K14:K16) -> 0
A14: Drainage Collection | C14: 0 | D14: 0 | E14: 0 | F14: 0 | G14: 0 | H14: 0 | I14: 0 | K14: 0
A15: Storm water Conveyance | C15: 0 | D15: 1402980 | E15: 0 | F15: 0 | G15: 131663.12 | H15: 0 | I15: -131663.12 | K15: 0
A16: Attenuation | C16: 0 | D16: 0 | E16: 0 | F16: 0 | G16: 0 | H16: 0 | I16: 0 | K16: 0
A17: Electrical Infrastructure | C17: =SUM(C18:C26) -> 0 | D17: 569680 | E17: 0 | F17: 188501.46 | G17: 436139.21 | H17: 0 | I17: -436139.21 | K17: =SUM(K18:K26) -> 0
A18: Power Plants | C18: 0 | D18: 0 | E18: 0 | F18: 0 | G18: 0 | H18: 0 | I18: 0 | K18: 0
A19: HV Substations | C19: 0 | D19: 0 | E19: 0 | F19: 0 | G19: 0 | H19: 0 | I19: 0 | K19: 0
A20: HV Switching Station | C20: 0 | D20: 0 | E20: 0 | F20: 0 | G20: 0 | H20: 0 | I20: 0 | K20: 0
A21: HV Transmission Conductors | C21: 0 | D21: 0 | E21: 0 | F21: 0 | G21: 0 | H21: 0 | I21: 0 | K21: 0
A22: MV Substations | C22: 0 | D22: 106500 | E22: 0 | F22: 16956.77 | G22: 79477.41 | H22: 0 | I22: -79477.41 | K22: 0
A23: MV Switching Stations | C23: 0 | D23: 0 | E23: 0 | F23: 0 | G23: 0 | H23: 0 | I23: 0 | K23: 0
A24: MV Networks | C24: 0 | D24: 270680 | E24: 0 | F24: 127471.24 | G24: 176199.24 | H24: 0 | I24: -176199.24 | K24: 0
A25: LV Networks | C25: 0 | D25: 192500 | E25: 0 | F25: 44073.45 | G25: 180462.56 | H25: 0 | I25: -180462.56 | K25: 0
A26: Capital Spares | C26: 0 | D26: 0 | E26: 0 | F26: 0 | G26: 0 | H26: 0 | I26: 0 | K26: 0
A27: Water Supply Infrastructure | C27: =SUM(C28:C37) -> 0 | D27: 0 | E27: 0 | F27: 0 | G27: 0 | H27: 0 | I27: 0 | K27: =SUM(K28:K37) -> 0
A28: Dams and Weirs | C28: 0 | D28: 0 | E28: 0 | F28: 0 | G28: 0 | H28: 0 | I28: 0 | K28: 0
A29: Boreholes | C29: 0 | D29: 0 | E29: 0 | F29: 0 | G29: 0 | H29: 0 | I29: 0 | K29: 0
A30: Reservoirs | C30: 0 | D30: 0 | E30: 0 | F30: 0 | G30: 0 | H30: 0 | I30: 0 | K30: 0
A31: Pump Stations | C31: 0 | D31: 0 | E31: 0 | F31: 0 | G31: 0 | H31: 0 | I31: 0 | K31: 0
A32: Water Treatment Works | C32: 0 | D32: 0 | E32: 0 | F32: 0 | G32: 0 | H32: 0 | I32: 0 | K32: 0
A33: Bulk Mains | C33: 0 | D33: 0 | E33: 0 | F33: 0 | G33: 0 | H33: 0 | I33: 0 | K33: 0
A34: Distribution | C34: 0 | D34: 0 | E34: 0 | F34: 0 | G34: 0 | H34: 0 | I34: 0 | K34: 0
A35: Distribution Points | C35: 0 | D35: 0 | E35: 0 | F35: 0 | G35: 0 | H35: 0 | I35: 0 | K35: 0
A36: PRV Stations | C36: 0 | D36: 0 | E36: 0 | F36: 0 | G36: 0 | H36: 0 | I36: 0 | K36: 0
A37: Capital Spares | C37: 0 | D37: 0 | E37: 0 | F37: 0 | G37: 0 | H37: 0 | I37: 0 | K37: 0
A38: Sanitation Infrastructure | C38: =SUM(C39:C44) -> 0 | D38: 0 | E38: 0 | F38: 0 | G38: 0 | H38: 0 | I38: 0 | K38: =SUM(K39:K44) -> 0
A39: Pump Station | C39: 0 | D39: 0 | E39: 0 | F39: 0 | G39: 0 | H39: 0 | I39: 0 | K39: 0
A40: Reticulation | C40: 0 | D40: 0 | E40: 0 | F40: 0 | G40: 0 | H40: 0 | I40: 0 | K40: 0
A41: Waste Water Treatment Works | C41: 0 | D41: 0 | E41: 0 | F41: 0 | G41: 0 | H41: 0 | I41: 0 | K41: 0
A42: Outfall Sewers | C42: 0 | D42: 0 | E42: 0 | F42: 0 | G42: 0 | H42: 0 | I42: 0 | K42: 0
A43: Toilet Facilities | C43: 0 | D43: 0 | E43: 0 | F43: 0 | G43: 0 | H43: 0 | I43: 0 | K43: 0
A44: Capital Spares | C44: 0 | D44: 0 | E44: 0 | F44: 0 | G44: 0 | H44: 0 | I44: 0 | K44: 0
A45: Solid Waste Infrastructure | C45: =SUM(C46:C52) -> 0 | D45: 0 | E45: 0 | F45: 0 | G45: 0 | H45: 0 | I45: 0 | K45: =SUM(K46:K52) -> 0
A46: Landfill Sites | C46: 0 | D46: 0 | E46: 0 | F46: 0 | G46: 0 | H46: 0 | I46: 0 | K46: 0
A47: Waste Transfer Stations | C47: 0 | D47: 0 | E47: 0 | F47: 0 | G47: 0 | H47: 0 | I47: 0 | K47: 0
A48: Waste Processing Facilities | C48: 0 | D48: 0 | E48: 0 | F48: 0 | G48: 0 | H48: 0 | I48: 0 | K48: 0
A49: Waste Drop-off Points | C49: 0 | D49: 0 | E49: 0 | F49: 0 | G49: 0 | H49: 0 | I49: 0 | K49: 0
A50: Waste Separation Facilities | C50: 0 | D50: 0 | E50: 0 | F50: 0 | G50: 0 | H50: 0 | I50: 0 | K50: 0
A51: Electricity Generation Facilities | C51: 0 | D51: 0 | E51: 0 | F51: 0 | G51: 0 | H51: 0 | I51: 0 | K51: 0
A52: Capital Spares | C52: 0 | D52: 0 | E52: 0 | F52: 0 | G52: 0 | H52: 0 | I52: 0 | K52: 0
A53: Rail Infrastructure | C53: =SUM(C54:C62) -> 0 | D53: 0 | E53: 0 | F53: 0 | G53: 0 | H53: 0 | I53: 0 | K53: =SUM(K54:K62) -> 0
A54: Rail Lines | C54: 0 | D54: 0 | E54: 0 | F54: 0 | G54: 0 | H54: 0 | I54: 0 | K54: 0
A55: Rail Structures | C55: 0 | D55: 0 | E55: 0 | F55: 0 | G55: 0 | H55: 0 | I55: 0 | K55: 0
A56: Rail Furniture | C56: 0 | D56: 0 | E56: 0 | F56: 0 | G56: 0 | H56: 0 | I56: 0 | K56: 0
A57: Drainage Collection | C57: 0 | D57: 0 | E57: 0 | F57: 0 | G57: 0 | H57: 0 | I57: 0 | K57: 0
A58: Storm water Conveyance | C58: 0 | D58: 0 | E58: 0 | F58: 0 | G58: 0 | H58: 0 | I58: 0 | K58: 0
A59: Attenuation | C59: 0 | D59: 0 | E59: 0 | F59: 0 | G59: 0 | H59: 0 | I59: 0 | K59: 0
A60: MV Substations | C60: 0 | D60: 0 | E60: 0 | F60: 0 | G60: 0 | H60: 0 | I60: 0 | K60: 0
A61: LV Networks | C61: 0 | D61: 0 | E61: 0 | F61: 0 | G61: 0 | H61: 0 | I61: 0 | K61: 0
A62: Capital Spares | C62: 0 | D62: 0 | E62: 0 | F62: 0 | G62: 0 | H62: 0 | I62: 0 | K62: 0
A63: Coastal Infrastructure | C63: =SUM(C64:C68) -> 0 | D63: 0 | E63: 0 | F63: 0 | G63: 0 | H63: 0 | I63: 0 | K63: =SUM(K64:K68) -> 0
A64: Sand Pumps | C64: 0 | D64: 0 | E64: 0 | F64: 0 | G64: 0 | H64: 0 | I64: 0 | K64: 0
A65: Piers | C65: 0 | D65: 0 | E65: 0 | F65: 0 | G65: 0 | H65: 0 | I65: 0 | K65: 0
A66: Revetments | C66: 0 | D66: 0 | E66: 0 | F66: 0 | G66: 0 | H66: 0 | I66: 0 | K66: 0
A67: Promenades | C67: 0 | D67: 0 | E67: 0 | F67: 0 | G67: 0 | H67: 0 | I67: 0 | K67: 0
A68: Capital Spares | C68: 0 | D68: 0 | E68: 0 | F68: 0 | G68: 0 | H68: 0 | I68: 0 | K68: 0
A69: Information and Communication Infrastructure | C69: =SUM(C70:C73) -> 0 | D69: 0 | E69: 0 | F69: 0 | G69: 0 | H69: 0 | I69: 0 | K69: =SUM(K70:K73) -> 0
A70: Data Centres | C70: 0 | D70: 0 | E70: 0 | F70: 0 | G70: 0 | H70: 0 | I70: 0 | K70: 0
A71: Core Layers | C71: 0 | D71: 0 | E71: 0 | F71: 0 | G71: 0 | H71: 0 | I71: 0 | K71: 0
A72: Distribution Layers | C72: 0 | D72: 0 | E72: 0 | F72: 0 | G72: 0 | H72: 0 | I72: 0 | K72: 0
A73: Capital Spares | C73: 0 | D73: 0 | E73: 0 | F73: 0 | G73: 0 | H73: 0 | I73: 0 | K73: 0
A75: Community Assets | C75: =+C76+C99 -> 0 | D75: 3180000 | E75: 0 | F75: 260088.97 | G75: 527061.91 | H75: 0 | I75: -527061.91 | K75: =+K76+K99 -> 0
A76: Community Facilities | C76: =SUM(C77:C98) -> 0 | D76: 3120000 | E76: 0 | F76: 220643.97 | G76: 473861.76 | H76: 0 | I76: -473861.76 | K76: =SUM(K77:K98) -> 0
A77: Halls | C77: 0 | D77: 2430000 | E77: 0 | F77: 70768.48 | G77: 216519.08 | H77: 0 | I77: -216519.08 | K77: 0
A78: Centres | C78: 0 | D78: 0 | E78: 0 | F78: 0 | G78: 0 | H78: 0 | I78: 0 | K78: 0
A79: Crèches | C79: 0 | D79: 0 | E79: 0 | F79: 0 | G79: 0 | H79: 0 | I79: 0 | K79: 0
A80: Clinics/Care Centres | C80: 0 | D80: 0 | E80: 0 | F80: 0 | G80: 0 | H80: 0 | I80: 0 | K80: 0
A81: Fire/Ambulance Stations | C81: 0 | D81: 0 | E81: 0 | F81: 0 | G81: 0 | H81: 0 | I81: 0 | K81: 0
A82: Testing Stations | C82: 0 | D82: 0 | E82: 0 | F82: 0 | G82: 0 | H82: 0 | I82: 0 | K82: 0
A83: Museums | C83: 0 | D83: 0 | E83: 0 | F83: 0 | G83: 0 | H83: 0 | I83: 0 | K83: 0
A84: Galleries | C84: 0 | D84: 0 | E84: 0 | F84: 0 | G84: 0 | H84: 0 | I84: 0 | K84: 0
A85: Theatres | C85: 0 | D85: 0 | E85: 0 | F85: 0 | G85: 0 | H85: 0 | I85: 0 | K85: 0
A86: Libraries | C86: 0 | D86: 0 | E86: 0 | F86: 0 | G86: 0 | H86: 0 | I86: 0 | K86: 0
A87: Cemeteries/Crematoria | C87: 0 | D87: 230000 | E87: 0 | F87: 50600 | G87: 50600 | H87: 0 | I87: -50600 | K87: 0
A88: Police | C88: 0 | D88: 0 | E88: 0 | F88: 0 | G88: 0 | H88: 0 | I88: 0 | K88: 0
A89: Purls | C89: 0 | D89: 160000 | E89: 0 | F89: 70000 | G89: 129967.19 | H89: 0 | I89: -129967.19 | K89: 0
A90: Public Open Space | C90: 0 | D90: 300000 | E90: 0 | F90: 29275.49 | G90: 76775.49 | H90: 0 | I90: -76775.49 | K90: 0
A91: Nature Reserves | C91: 0 | D91: 0 | E91: 0 | F91: 0 | G91: 0 | H91: 0 | I91: 0 | K91: 0
A92: Public Ablution Facilities | C92: 0 | D92: 0 | E92: 0 | F92: 0 | G92: 0 | H92: 0 | I92: 0 | K92: 0
A93: Markets | C93: 0 | D93: 0 | E93: 0 | F93: 0 | G93: 0 | H93: 0 | I93: 0 | K93: 0
A94: Stalls | C94: 0 | D94: 0 | E94: 0 | F94: 0 | G94: 0 | H94: 0 | I94: 0 | K94: 0
A95: Abattoirs | C95: 0 | D95: 0 | E95: 0 | F95: 0 | G95: 0 | H95: 0 | I95: 0 | K95: 0
A96: Airports | C96: 0 | D96: 0 | E96: 0 | F96: 0 | G96: 0 | H96: 0 | I96: 0 | K96: 0
A97: Taxi Ranks/Bus Terminals | C97: 0 | D97: 0 | E97: 0 | F97: 0 | G97: 0 | H97: 0 | I97: 0 | K97: 0
A98: Capital Spares | C98: 0 | D98: 0 | E98: 0 | F98: 0 | G98: 0 | H98: 0 | I98: 0 | K98: 0
A99: Sport and Recreation Facilities | C99: =SUM(C100:C102) -> 0 | D99: 60000 | E99: 0 | F99: 39445 | G99: 53200.15 | H99: 0 | I99: -53200.15 | K99: =SUM(K100:K102) -> 0
A100: Indoor Facilities | C100: 0 | D100: 0 | E100: 0 | F100: 0 | G100: 0 | H100: 0 | I100: 0 | K100: 0
A101: Outdoor Facilities | C101: 0 | D101: 60000 | E101: 0 | F101: 39445 | G101: 53200.15 | H101: 0 | I101: =H101-G101 -> -53200.15 | J101: =IF(I101=0,"",I101/H101) ->  | K101: 0
A102: Capital Spares | C102: 0 | D102: 0 | E102: 0 | F102: 0 | G102: 0 | H102: 0 | I102: 0 | K102: 0
A103: Heritage assets | C103: =SUM(C104:C108) -> 0 | D103: 0 | E103: 0 | F103: 0 | G103: 0 | H103: 0 | I103: 0 | K103: =SUM(K104:K108) -> 0
A104: Monuments | C104: 0 | D104: 0 | E104: 0 | F104: 0 | G104: 0 | H104: 0 | I104: 0 | K104: 0
A105: Historic Buildings | C105: 0 | D105: 0 | E105: 0 | F105: 0 | G105: 0 | H105: 0 | I105: 0 | K105: 0
A106: Works of Art | C106: 0 | D106: 0 | E106: 0 | F106: 0 | G106: 0 | H106: 0 | I106: 0 | K106: 0
A107: Conservation Areas | C107: 0 | D107: 0 | E107: 0 | F107: 0 | G107: 0 | H107: 0 | I107: 0 | K107: 0
A108: Other Heritage | C108: 0 | D108: 0 | E108: 0 | F108: 0 | G108: 0 | H108: 0 | I108: 0 | K108: 0
I109: 0
A110: Investment properties | C110: =+C111+C114 -> 0 | D110: 0 | E110: 0 | F110: 0 | G110: 0 | H110: 0 | I110: 0 | K110: =+K111+K114 -> 0
A111: Revenue Generating | C111: =SUM(C112:C113) -> 0 | D111: 0 | E111: 0 | F111: 0 | G111: 0 | H111: 0 | I111: 0 | K111: =SUM(K112:K113) -> 0
A112: Improved Property | C112: 0 | D112: 0 | E112: 0 | F112: 0 | G112: 0 | H112: 0 | I112: 0 | K112: 0
A113: Unimproved Property | C113: 0 | D113: 0 | E113: 0 | F113: 0 | G113: 0 | H113: 0 | I113: 0 | K113: 0
A114: Non-revenue Generating | C114: =SUM(C115:C116) -> 0 | D114: 0 | E114: 0 | F114: 0 | G114: 0 | H114: 0 | I114: 0 | K114: =SUM(K115:K116) -> 0
A115: Improved Property | C115: 0 | D115: 0 | E115: 0 | F115: 0 | G115: 0 | H115: 0 | I115: 0 | K115: 0
A116: Unimproved Property | C116: 0 | D116: 0 | E116: 0 | F116: 0 | G116: 0 | H116: 0 | I116: =H116-G116 -> 0 | J116: =IF(I116=0,"",I116/H116) ->  | K116: 0
A117: Other assets | C117: =+C118+C130 -> 0 | D117: 480000 | E117: 0 | F117: 1669.3 | G117: 485529.55 | H117: 0 | I117: -485529.55 | K117: =+K118+K130 -> 0
A118: Operational Buildings | C118: =SUM(C119:C129) -> 0 | D118: 480000 | E118: 0 | F118: 1669.3 | G118: 485529.55 | H118: 0 | I118: -485529.55 | K118: =SUM(K119:K129) -> 0
A119: Municipal Offices | C119: 0 | D119: 480000 | E119: 0 | F119: 1669.3 | G119: 485529.55 | H119: 0 | I119: -485529.55 | K119: 0
A120: Pay/Enquiry Points | C120: 0 | D120: 0 | E120: 0 | F120: 0 | G120: 0 | H120: 0 | I120: 0 | K120: 0
A121: Building Plan Offices | C121: 0 | D121: 0 | E121: 0 | F121: 0 | G121: 0 | H121: 0 | I121: 0 | K121: 0
A122: Workshops | C122: 0 | D122: 0 | E122: 0 | F122: 0 | G122: 0 | H122: 0 | I122: 0 | K122: 0
A123: Yards | C123: 0 | D123: 0 | E123: 0 | F123: 0 | G123: 0 | H123: 0 | I123: 0 | K123: 0
A124: Stores | C124: 0 | D124: 0 | E124: 0 | F124: 0 | G124: 0 | H124: 0 | I124: 0 | K124: 0
A125: Laboratories | C125: 0 | D125: 0 | E125: 0 | F125: 0 | G125: 0 | H125: 0 | I125: 0 | K125: 0
A126: Training Centres | C126: 0 | D126: 0 | E126: 0 | F126: 0 | G126: 0 | H126: 0 | I126: 0 | K126: 0
A127: Manufacturing Plant | C127: 0 | D127: 0 | E127: 0 | F127: 0 | G127: 0 | H127: 0 | I127: 0 | K127: 0
A128: Depots | C128: 0 | D128: 0 | E128: 0 | F128: 0 | G128: 0 | H128: 0 | I128: 0 | K128: 0
A129: Capital Spares | C129: 0 | D129: 0 | E129: 0 | F129: 0 | G129: 0 | H129: 0 | I129: 0 | K129: 0
A130: Housing | C130: =SUM(C131:C133) -> 0 | D130: 0 | E130: 0 | F130: 0 | G130: 0 | H130: 0 | I130: 0 | K130: =SUM(K131:K133) -> 0
A131: Staff Housing | C131: 0 | D131: 0 | E131: 0 | F131: 0 | G131: 0 | H131: 0 | I131: 0 | K131: 0
A132: Social Housing | C132: 0 | D132: 0 | E132: 0 | F132: 0 | G132: 0 | H132: 0 | I132: 0 | K132: 0
A133: Capital Spares | I133: 0
A135: Biological or Cultivated Assets | C135: =SUM(C136:C136) -> 0 | D135: 0 | E135: 0 | F135: 0 | G135: 0 | H135: 0 | I135: =H135-G135 -> 0 | K135: =SUM(K136) -> 0
A136: Biological or Cultivated Assets | C136: 0 | D136: 0 | E136: 0 | F136: 0 | G136: 0 | H136: 0 | I136: =H136-G136 -> 0 | K136: 0
J137: =IF(I137=0,"",I137/H137) -> 
A138: Intangible Assets | C138: =SUM(C139:C140) -> 0 | D138: 130000 | E138: 0 | F138: 0 | G138: 69868.95 | H138: 0 | I138: =H138-G138 -> -69868.95 | K138: =SUM(K139:K140) -> 0
A139: Servitudes | C139: 0 | D139: 0 | E139: 0 | F139: 0 | G139: 0 | H139: 0 | I139: 0 | K139: 0
A140: Licences and Rights | C140: =SUM(C141:C146) -> 0 | D140: 130000 | E140: 0 | F140: 0 | G140: 69868.95 | H140: 0 | I140: -69868.95 | K140: =SUM(K141:K146) -> 0
A141: Water Rights | C141: 0 | D141: 0 | E141: 0 | F141: 0 | G141: 0 | H141: 0 | I141: 0 | K141: 0
A142: Effluent Licenses | C142: 0 | D142: 0 | E142: 0 | F142: 0 | G142: 0 | H142: 0 | I142: 0 | K142: 0
A143: Solid Waste Licenses | C143: 0 | D143: 0 | E143: 0 | F143: 0 | G143: 0 | H143: 0 | I143: 0 | K143: 0
A144: Computer Software and Applications | C144: 0 | D144: 130000 | E144: 0 | F144: 0 | G144: 69868.95 | H144: 0 | I144: -69868.95 | K144: 0
A145: Load Settlement Software Applications | C145: 0 | D145: 0 | E145: 0 | F145: 0 | G145: 0 | H145: 0 | I145: 0 | K145: 0
A146: Unspecified | C146: 0 | D146: 0 | E146: 0 | F146: 0 | G146: 0 | H146: 0 | I146: 0 | K146: 0
A148: Computer Equipment | C148: =SUM(C149:C149) -> 0 | D148: 0 | E148: 0 | F148: 0 | G148: 0 | H148: 0 | I148: =H148-G148 -> 0 | J148: =IF(I148=0,"",I148/H148) ->  | K148: =SUM(K149) -> 0
A149: Computer Equipment | C149: 0 | D149: 0 | E149: 0 | F149: 0 | G149: 0 | H149: 0 | I149: =H149-G149 -> 0 | J149: =IF(I149=0,"",I149/H149) ->  | K149: 0
A151: Furniture and Office Equipment | C151: =SUM(C152:C152) -> 0 | D151: 0 | E151: 0 | F151: 0 | G151: 0 | H151: 0 | I151: =H151-G151 -> 0 | J151: =IF(I151=0,"",I151/H151) ->  | K151: =SUM(K152) -> 0
A152: Furniture and Office Equipment | C152: 0 | D152: 0 | E152: 0 | F152: 0 | G152: 0 | H152: 0 | I152: =H152-G152 -> 0 | J152: =IF(I152=0,"",I152/H152) ->  | K152: 0
J153: =IF(I153=0,"",I153/H153) -> 
A154: Machinery and Equipment | C154: =SUM(C155:C155) -> 0 | D154: 246000 | E154: 0 | F154: 74935.81 | G154: 187067.72 | H154: 0 | I154: =H154-G154 -> -187067.72 | J154: =IF(I154=0,"",I154/H154) ->  | K154: =SUM(K155) -> 0
A155: Machinery and Equipment | C155: 0 | D155: 246000 | E155: 0 | F155: 74935.81 | G155: 187067.72 | H155: 0 | I155: =H155-G155 -> -187067.72 | J155: =IF(I155=0,"",I155/H155) ->  | K155: 0
A157: Transport Assets | C157: =SUM(C158:C158) -> 0 | D157: 1243927 | E157: 0 | F157: 164103.74 | G157: 850201.85 | H157: 0 | I157: =H157-G157 -> -850201.85 | J157: =IF(I157=0,"",I157/H157) ->  | K157: =SUM(K158) -> 0
A158: Transport Assets | C158: 0 | D158: 1243927 | E158: 0 | F158: 164103.74 | G158: 850201.85 | H158: 0 | I158: =H158-G158 -> -850201.85 | J158: =IF(I158=0,"",I158/H158) ->  | K158: 0
A160: Land | C160: =SUM(C161:C161) -> 0 | D160: 0 | E160: 0 | F160: 0 | G160: 0 | H160: 0 | I160: =H160-G160 -> 0 | J160: =IF(I160=0,"",I160/H160) ->  | K160: =SUM(K161) -> 0
A161: Land | C161: 0 | D161: 0 | E161: 0 | F161: 0 | G161: 0 | H161: 0 | I161: =H161-G161 -> 0 | J161: =IF(I161=0,"",I161/H161) ->  | K161: 0
A163: Zoo's, Marine and Non-biological Animals | C163: =SUM(C164:C164) -> 0 | D163: 0 | E163: 0 | F163: 0 | G163: 0 | H163: 0 | I163: =H163-G163 -> 0 | J163: =IF(I163=0,"",I163/H163) ->  | K163: =SUM(K164) -> 0
A164: Zoo's, Marine and Non-biological Animals | C164: 0 | D164: 0 | E164: 0 | F164: 0 | G164: 0 | H164: 0 | I164: =H164-G164 -> 0 | J164: =IF(I164=0,"",I164/H164) ->  | K164: 0
J165: =IF(I165=0,"",I165/H165) -> 
A166: Total Repairs and Maintenance Expenditure | B166: 1 | C166: =C7+C75+C103+C110+C117+C135+C138+C148+C151+C154+C157+C160+C163 -> 0 | D166: 8263287 | E166: 0 | F166: 860899.28 | G166: 3423327.43 | H166: 0 | I166: -3423327.43 | K166: =K7+K75+K103+K110+K117+K135+K138+K148+K151+K154+K157+K160+K163 -> 0

Sheet SC13d
A1: =muni& " - "&S71Sd& " - "&Head57 -> EC136 Emalahleni (Ec) - Supporting Table SC13d Monthly Budget Statement - depreciation by asset class - M12 June
A2: =desc -> Description | B2: =head27 -> Ref | C2: =Head1 -> 2017/18 | D2: =Head2 -> Budget Year 2018/19
C3: =Head5 -> Audited Outcome | D3: =Head6 -> Original Budget | E3: =Head7 -> Adjusted Budget | F3: =Head38 -> Monthly actual | G3: =Head39 -> YearTD actual | H3: =Head40 -> YearTD budget | I3: =Head41 -> YTD variance | J3: =Head41 -> YTD variance | K3: =Head8 -> Full Year Forecast
A4: R thousands | B4: 1 | J4: %
A5: Depreciation by Asset Class/Sub-class
A7: Infrastructure | C7: =C8+C13+C17+C27+C38+C45+C53+C63+C69 -> 0 | D7: 21061120 | E7: 0 | F7: 0 | G7: 0 | H7: 0 | I7: =H7-G7 -> 0 | J7: =IF(I7=0,"",I7/H7) ->  | K7: =K8+K13+K17+K27+K38+K45+K53+K63+K69 -> 0
A8: Roads Infrastructure | C8: =SUM(C9:C12) -> 0 | D8: 19865534 | E8: 0 | F8: 0 | G8: 0 | H8: 0 | I8: 0 | K8: =SUM(K9:K12) -> 0
A9: Roads | C9: 0 | D9: 19865534 | E9: 0 | F9: 0 | G9: 0 | H9: 0 | I9: 0 | K9: 0
A10: Road Structures | C10: 0 | D10: 0 | E10: 0 | F10: 0 | G10: 0 | H10: 0 | I10: 0 | K10: 0
A11: Road Furniture | C11: 0 | D11: 0 | E11: 0 | F11: 0 | G11: 0 | H11: 0 | I11: 0 | K11: 0
A12: Capital Spares | C12: 0 | D12: 0 | E12: 0 | F12: 0 | G12: 0 | H12: 0 | I12: 0 | K12: 0
A13: Storm water Infrastructure | C13: =SUM(C14:C16) -> 0 | D13: 548758 | E13: 0 | F13: 0 | G13: 0 | H13: 0 | I13: 0 | K13: =SUM(K14:K16) -> 0
A14: Drainage Collection | C14: 0 | D14: 0 | E14: 0 | F14: 0 | G14: 0 | H14: 0 | I14: 0 | K14: 0
A15: Storm water Conveyance | C15: 0 | D15: 548758 | E15: 0 | F15: 0 | G15: 0 | H15: 0 | I15: 0 | K15: 0
A16: Attenuation | C16: 0 | D16: 0 | E16: 0 | F16: 0 | G16: 0 | H16: 0 | I16: 0 | K16: 0
A17: Electrical Infrastructure | C17: =SUM(C18:C26) -> 0 | D17: 646828 | E17: 0 | F17: 0 | G17: 0 | H17: 0 | I17: 0 | K17: =SUM(K18:K26) -> 0
A18: Power Plants | C18: 0 | D18: 0 | E18: 0 | F18: 0 | G18: 0 | H18: 0 | I18: 0 | K18: 0
A19: HV Substations | C19: 0 | D19: 0 | E19: 0 | F19: 0 | G19: 0 | H19: 0 | I19: 0 | K19: 0
A20: HV Switching Station | C20: 0 | D20: 0 | E20: 0 | F20: 0 | G20: 0 | H20: 0 | I20: 0 | K20: 0
A21: HV Transmission Conductors | C21: 0 | D21: 0 | E21: 0 | F21: 0 | G21: 0 | H21: 0 | I21: 0 | K21: 0
A22: MV Substations | C22: 0 | D22: 0 | E22: 0 | F22: 0 | G22: 0 | H22: 0 | I22: 0 | K22: 0
A23: MV Switching Stations | C23: 0 | D23: 0 | E23: 0 | F23: 0 | G23: 0 | H23: 0 | I23: 0 | K23: 0
A24: MV Networks | C24: 0 | D24: 0 | E24: 0 | F24: 0 | G24: 0 | H24: 0 | I24: 0 | K24: 0
A25: LV Networks | C25: 0 | D25: 646828 | E25: 0 | F25: 0 | G25: 0 | H25: 0 | I25: 0 | K25: 0
A26: Capital Spares | C26: 0 | D26: 0 | E26: 0 | F26: 0 | G26: 0 | H26: 0 | I26: 0 | K26: 0
A27: Water Supply Infrastructure | C27: =SUM(C28:C37) -> 0 | D27: 0 | E27: 0 | F27: 0 | G27: 0 | H27: 0 | I27: 0 | K27: =SUM(K28:K37) -> 0
A28: Dams and Weirs | C28: 0 | D28: 0 | E28: 0 | F28: 0 | G28: 0 | H28: 0 | I28: 0 | K28: 0
A29: Boreholes | C29: 0 | D29: 0 | E29: 0 | F29: 0 | G29: 0 | H29: 0 | I29: 0 | K29: 0
A30: Reservoirs | C30: 0 | D30: 0 | E30: 0 | F30: 0 | G30: 0 | H30: 0 | I30: 0 | K30: 0
A31: Pump Stations | C31: 0 | D31: 0 | E31: 0 | F31: 0 | G31: 0 | H31: 0 | I31: 0 | K31: 0
A32: Water Treatment Works | C32: 0 | D32: 0 | E32: 0 | F32: 0 | G32: 0 | H32: 0 | I32: 0 | K32: 0
A33: Bulk Mains | C33: 0 | D33: 0 | E33: 0 | F33: 0 | G33: 0 | H33: 0 | I33: 0 | K33: 0
A34: Distribution | C34: 0 | D34: 0 | E34: 0 | F34: 0 | G34: 0 | H34: 0 | I34: 0 | K34: 0
A35: Distribution Points | C35: 0 | D35: 0 | E35: 0 | F35: 0 | G35: 0 | H35: 0 | I35: 0 | K35: 0
A36: PRV Stations | C36: 0 | D36: 0 | E36: 0 | F36: 0 | G36: 0 | H36: 0 | I36: 0 | K36: 0
A37: Capital Spares | C37: 0 | D37: 0 | E37: 0 | F37: 0 | G37: 0 | H37: 0 | I37: 0 | K37: 0
A38: Sanitation Infrastructure | C38: =SUM(C39:C44) -> 0 | D38: 0 | E38: 0 | F38: 0 | G38: 0 | H38: 0 | I38: 0 | K38: =SUM(K39:K44) -> 0
A39: Pump Station | C39: 0 | D39: 0 | E39: 0 | F39: 0 | G39: 0 | H39: 0 | I39: 0 | K39: 0
A40: Reticulation | C40: 0 | D40: 0 | E40: 0 | F40: 0 | G40: 0 | H40: 0 | I40: 0 | K40: 0
A41: Waste Water Treatment Works | C41: 0 | D41: 0 | E41: 0 | F41: 0 | G41: 0 | H41: 0 | I41: 0 | K41: 0
A42: Outfall Sewers | C42: 0 | D42: 0 | E42: 0 | F42: 0 | G42: 0 | H42: 0 | I42: 0 | K42: 0
A43: Toilet Facilities | C43: 0 | D43: 0 | E43: 0 | F43: 0 | G43: 0 | H43: 0 | I43: 0 | K43: 0
A44: Capital Spares | C44: 0 | D44: 0 | E44: 0 | F44: 0 | G44: 0 | H44: 0 | I44: 0 | K44: 0
A45: Solid Waste Infrastructure | C45: =SUM(C46:C52) -> 0 | D45: 0 | E45: 0 | F45: 0 | G45: 0 | H45: 0 | I45: 0 | K45: =SUM(K46:K52) -> 0
A46: Landfill Sites | C46: 0 | D46: 0 | E46: 0 | F46: 0 | G46: 0 | H46: 0 | I46: 0 | K46: 0
A47: Waste Transfer Stations | C47: 0 | D47: 0 | E47: 0 | F47: 0 | G47: 0 | H47: 0 | I47: 0 | K47: 0
A48: Waste Processing Facilities | C48: 0 | D48: 0 | E48: 0 | F48: 0 | G48: 0 | H48: 0 | I48: 0 | K48: 0
A49: Waste Drop-off Points | C49: 0 | D49: 0 | E49: 0 | F49: 0 | G49: 0 | H49: 0 | I49: 0 | K49: 0
A50: Waste Separation Facilities | C50: 0 | D50: 0 | E50: 0 | F50: 0 | G50: 0 | H50: 0 | I50: 0 | K50: 0
A51: Electricity Generation Facilities | C51: 0 | D51: 0 | E51: 0 | F51: 0 | G51: 0 | H51: 0 | I51: 0 | K51: 0
A52: Capital Spares | C52: 0 | D52: 0 | E52: 0 | F52: 0 | G52: 0 | H52: 0 | I52: 0 | K52: 0
A53: Rail Infrastructure | C53: =SUM(C54:C62) -> 0 | D53: 0 | E53: 0 | F53: 0 | G53: 0 | H53: 0 | I53: 0 | K53: =SUM(K54:K62) -> 0
A54: Rail Lines | C54: 0 | D54: 0 | E54: 0 | F54: 0 | G54: 0 | H54: 0 | I54: 0 | K54: 0
A55: Rail Structures | C55: 0 | D55: 0 | E55: 0 | F55: 0 | G55: 0 | H55: 0 | I55: 0 | K55: 0
A56: Rail Furniture | C56: 0 | D56: 0 | E56: 0 | F56: 0 | G56: 0 | H56: 0 | I56: 0 | K56: 0
A57: Drainage Collection | C57: 0 | D57: 0 | E57: 0 | F57: 0 | G57: 0 | H57: 0 | I57: 0 | K57: 0
A58: Storm water Conveyance | C58: 0 | D58: 0 | E58: 0 | F58: 0 | G58: 0 | H58: 0 | I58: 0 | K58: 0
A59: Attenuation | C59: 0 | D59: 0 | E59: 0 | F59: 0 | G59: 0 | H59: 0 | I59: 0 | K59: 0
A60: MV Substations | C60: 0 | D60: 0 | E60: 0 | F60: 0 | G60: 0 | H60: 0 | I60: 0 | K60: 0
A61: LV Networks | C61: 0 | D61: 0 | E61: 0 | F61: 0 | G61: 0 | H61: 0 | I61: 0 | K61: 0
A62: Capital Spares | C62: 0 | D62: 0 | E62: 0 | F62: 0 | G62: 0 | H62: 0 | I62: 0 | K62: 0
A63: Coastal Infrastructure | C63: =SUM(C64:C68) -> 0 | D63: 0 | E63: 0 | F63: 0 | G63: 0 | H63: 0 | I63: 0 | K63: =SUM(K64:K68) -> 0
A64: Sand Pumps | C64: 0 | D64: 0 | E64: 0 | F64: 0 | G64: 0 | H64: 0 | I64: 0 | K64: 0
A65: Piers | C65: 0 | D65: 0 | E65: 0 | F65: 0 | G65: 0 | H65: 0 | I65: 0 | K65: 0
A66: Revetments | C66: 0 | D66: 0 | E66: 0 | F66: 0 | G66: 0 | H66: 0 | I66: 0 | K66: 0
A67: Promenades | C67: 0 | D67: 0 | E67: 0 | F67: 0 | G67: 0 | H67: 0 | I67: 0 | K67: 0
A68: Capital Spares | C68: 0 | D68: 0 | E68: 0 | F68: 0 | G68: 0 | H68: 0 | I68: 0 | K68: 0
A69: Information and Communication Infrastructure | C69: =SUM(C70:C73) -> 0 | D69: 0 | E69: 0 | F69: 0 | G69: 0 | H69: 0 | I69: 0 | K69: =SUM(K70:K73) -> 0
A70: Data Centres | C70: 0 | D70: 0 | E70: 0 | F70: 0 | G70: 0 | H70: 0 | I70: 0 | K70: 0
A71: Core Layers | C71: 0 | D71: 0 | E71: 0 | F71: 0 | G71: 0 | H71: 0 | I71: 0 | K71: 0
A72: Distribution Layers | C72: 0 | D72: 0 | E72: 0 | F72: 0 | G72: 0 | H72: 0 | I72: 0 | K72: 0
A73: Capital Spares | C73: 0 | D73: 0 | E73: 0 | F73: 0 | G73: 0 | H73: 0 | I73: 0 | K73: 0
A75: Community Assets | C75: =+C76+C99 -> 0 | D75: 981103 | E75: 0 | F75: 0 | G75: 0 | H75: 0 | I75: 0 | K75: =+K76+K99 -> 0
A76: Community Facilities | C76: =SUM(C77:C98) -> 0 | D76: 981103 | E76: 0 | F76: 0 | G76: 0 | H76: 0 | I76: 0 | K76: =SUM(K77:K98) -> 0
A77: Halls | C77: 0 | D77: 129668 | E77: 0 | F77: 0 | G77: 0 | H77: 0 | I77: 0 | K77: 0
A78: Centres | C78: 0 | D78: 0 | E78: 0 | F78: 0 | G78: 0 | H78: 0 | I78: 0 | K78: 0
A79: Crèches | C79: 0 | D79: 0 | E79: 0 | F79: 0 | G79: 0 | H79: 0 | I79: 0 | K79: 0
A80: Clinics/Care Centres | C80: 0 | D80: 0 | E80: 0 | F80: 0 | G80: 0 | H80: 0 | I80: 0 | K80: 0
A81: Fire/Ambulance Stations | C81: 0 | D81: 0 | E81: 0 | F81: 0 | G81: 0 | H81: 0 | I81: 0 | K81: 0
A82: Testing Stations | C82: 0 | D82: 0 | E82: 0 | F82: 0 | G82: 0 | H82: 0 | I82: 0 | K82: 0
A83: Museums | C83: 0 | D83: 0 | E83: 0 | F83: 0 | G83: 0 | H83: 0 | I83: 0 | K83: 0
A84: Galleries | C84: 0 | D84: 0 | E84: 0 | F84: 0 | G84: 0 | H84: 0 | I84: 0 | K84: 0
A85: Theatres | C85: 0 | D85: 0 | E85: 0 | F85: 0 | G85: 0 | H85: 0 | I85: 0 | K85: 0
A86: Libraries | C86: 0 | D86: 0 | E86: 0 | F86: 0 | G86: 0 | H86: 0 | I86: 0 | K86: 0
A87: Cemeteries/Crematoria | C87: 0 | D87: 120000 | E87: 0 | F87: 0 | G87: 0 | H87: 0 | I87: 0 | K87: 0
A88: Police | C88: 0 | D88: 0 | E88: 0 | F88: 0 | G88: 0 | H88: 0 | I88: 0 | K88: 0
A89: Purls | C89: 0 | D89: 0 | E89: 0 | F89: 0 | G89: 0 | H89: 0 | I89: 0 | K89: 0
A90: Public Open Space | C90: 0 | D90: 731435 | E90: 0 | F90: 0 | G90: 0 | H90: 0 | I90: 0 | K90: 0
A91: Nature Reserves | C91: 0 | D91: 0 | E91: 0 | F91: 0 | G91: 0 | H91: 0 | I91: 0 | K91: 0
A92: Public Ablution Facilities | C92: 0 | D92: 0 | E92: 0 | F92: 0 | G92: 0 | H92: 0 | I92: 0 | K92: 0
A93: Markets | C93: 0 | D93: 0 | E93: 0 | F93: 0 | G93: 0 | H93: 0 | I93: 0 | K93: 0
A94: Stalls | C94: 0 | D94: 0 | E94: 0 | F94: 0 | G94: 0 | H94: 0 | I94: 0 | K94: 0
A95: Abattoirs | C95: 0 | D95: 0 | E95: 0 | F95: 0 | G95: 0 | H95: 0 | I95: 0 | K95: 0
A96: Airports | C96: 0 | D96: 0 | E96: 0 | F96: 0 | G96: 0 | H96: 0 | I96: 0 | K96: 0
A97: Taxi Ranks/Bus Terminals | C97: 0 | D97: 0 | E97: 0 | F97: 0 | G97: 0 | H97: 0 | I97: 0 | K97: 0
A98: Capital Spares | C98: 0 | D98: 0 | E98: 0 | F98: 0 | G98: 0 | H98: 0 | I98: 0 | K98: 0
A99: Sport and Recreation Facilities | C99: =SUM(C100:C102) -> 0 | D99: 0 | E99: 0 | F99: 0 | G99: 0 | H99: 0 | I99: 0 | K99: =SUM(K100:K102) -> 0
A100: Indoor Facilities | C100: 0 | D100: 0 | E100: 0 | F100: 0 | G100: 0 | H100: 0 | I100: 0 | K100: 0
A101: Outdoor Facilities | C101: 0 | D101: 0 | E101: 0 | F101: 0 | G101: 0 | H101: 0 | I101: =H101-G101 -> 0 | J101: =IF(I101=0,"",I101/H101) ->  | K101: 0
A102: Capital Spares | C102: 0 | D102: 0 | E102: 0 | F102: 0 | G102: 0 | H102: 0 | I102: 0 | K102: 0
A103: Heritage assets | C103: =SUM(C104:C108) -> 0 | D103: 0 | E103: 0 | F103: 0 | G103: 0 | H103: 0 | I103: 0 | K103: =SUM(K104:K108) -> 0
A104: Monuments | C104: 0 | D104: 0 | E104: 0 | F104: 0 | G104: 0 | H104: 0 | I104: 0 | K104: 0
A105: Historic Buildings | C105: 0 | D105: 0 | E105: 0 | F105: 0 | G105: 0 | H105: 0 | I105: 0 | K105: 0
A106: Works of Art | C106: 0 | D106: 0 | E106: 0 | F106: 0 | G106: 0 | H106: 0 | I106: 0 | K106: 0
A107: Conservation Areas | C107: 0 | D107: 0 | E107: 0 | F107: 0 | G107: 0 | H107: 0 | I107: 0 | K107: 0
A108: Other Heritage | C108: 0 | D108: 0 | E108: 0 | F108: 0 | G108: 0 | H108: 0 | I108: 0 | K108: 0
I109: 0
A110: Investment properties | C110: =+C111+C114 -> 0 | D110: 390798 | E110: 0 | F110: 0 | G110: 0 | H110: 0 | I110: 0 | K110: =+K111+K114 -> 0
A111: Revenue Generating | C111: =SUM(C112:C113) -> 0 | D111: 390798 | E111: 0 | F111: 0 | G111: 0 | H111: 0 | I111: 0 | K111: =SUM(K112:K113) -> 0
A112: Improved Property | C112: 0 | D112: 390798 | E112: 0 | F112: 0 | G112: 0 | H112: 0 | I112: 0 | K112: 0
A113: Unimproved Property | C113: 0 | D113: 0 | E113: 0 | F113: 0 | G113: 0 | H113: 0 | I113: 0 | K113: 0
A114: Non-revenue Generating | C114: =SUM(C115:C116) -> 0 | D114: 0 | E114: 0 | F114: 0 | G114: 0 | H114: 0 | I114: 0 | K114: =SUM(K115:K116) -> 0
A115: Improved Property | C115: 0 | D115: 0 | E115: 0 | F115: 0 | G115: 0 | H115: 0 | I115: 0 | K115: 0
A116: Unimproved Property | C116: 0 | D116: 0 | E116: 0 | F116: 0 | G116: 0 | H116: 0 | I116: =H116-G116 -> 0 | J116: =IF(I116=0,"",I116/H116) ->  | K116: 0
A117: Other assets | C117: =+C118+C130 -> 0 | D117: 65721 | E117: 0 | F117: 0 | G117: 0 | H117: 0 | I117: 0 | K117: =+K118+K130 -> 0
A118: Operational Buildings | C118: =SUM(C119:C129) -> 0 | D118: 65721 | E118: 0 | F118: 0 | G118: 0 | H118: 0 | I118: 0 | K118: =SUM(K119:K129) -> 0
A119: Municipal Offices | C119: 0 | D119: 0 | E119: 0 | F119: 0 | G119: 0 | H119: 0 | I119: 0 | K119: 0
A120: Pay/Enquiry Points | C120: 0 | D120: 0 | E120: 0 | F120: 0 | G120: 0 | H120: 0 | I120: 0 | K120: 0
A121: Building Plan Offices | C121: 0 | D121: 0 | E121: 0 | F121: 0 | G121: 0 | H121: 0 | I121: 0 | K121: 0
A122: Workshops | C122: 0 | D122: 0 | E122: 0 | F122: 0 | G122: 0 | H122: 0 | I122: 0 | K122: 0
A123: Yards | C123: 0 | D123: 0 | E123: 0 | F123: 0 | G123: 0 | H123: 0 | I123: 0 | K123: 0
A124: Stores | C124: 0 | D124: 0 | E124: 0 | F124: 0 | G124: 0 | H124: 0 | I124: 0 | K124: 0
A125: Laboratories | C125: 0 | D125: 0 | E125: 0 | F125: 0 | G125: 0 | H125: 0 | I125: 0 | K125: 0
A126: Training Centres | C126: 0 | D126: 0 | E126: 0 | F126: 0 | G126: 0 | H126: 0 | I126: 0 | K126: 0
A127: Manufacturing Plant | C127: 0 | D127: 0 | E127: 0 | F127: 0 | G127: 0 | H127: 0 | I127: 0 | K127: 0
A128: Depots | C128: 0 | D128: 0 | E128: 0 | F128: 0 | G128: 0 | H128: 0 | I128: 0 | K128: 0
A129: Capital Spares | C129: 0 | D129: 65721 | E129: 0 | F129: 0 | G129: 0 | H129: 0 | I129: 0 | K129: 0
A130: Housing | C130: =SUM(C131:C133) -> 0 | D130: 0 | E130: 0 | F130: 0 | G130: 0 | H130: 0 | I130: 0 | K130: =SUM(K131:K133) -> 0
A131: Staff Housing | C131: 0 | D131: 0 | E131: 0 | F131: 0 | G131: 0 | H131: 0 | I131: 0 | K131: 0
A132: Social Housing | C132: 0 | D132: 0 | E132: 0 | F132: 0 | G132: 0 | H132: 0 | I132: 0 | K132: 0
A133: Capital Spares | C133: 0 | D133: 0 | E133: 0 | F133: 0 | G133: 0 | H133: 0 | I133: 0 | K133: 0
A135: Biological or Cultivated Assets | C135: =SUM(C136:C136) -> 0 | D135: 0 | E135: 0 | F135: 0 | G135: 0 | H135: 0 | I135: =H135-G135 -> 0 | K135: =SUM(K136) -> 0
A136: Biological or Cultivated Assets | C136: 0 | D136: 0 | E136: 0 | F136: 0 | G136: 0 | H136: 0 | I136: =H136-G136 -> 0 | K136: 0
J137: =IF(I137=0,"",I137/H137) -> 
A138: Intangible Assets | C138: =SUM(C139:C140) -> 0 | D138: 100000 | E138: 0 | F138: 0 | G138: 0 | H138: 0 | I138: =H138-G138 -> 0 | K138: =SUM(K139:K140) -> 0
A139: Servitudes | C139: 0 | D139: 0 | E139: 0 | F139: 0 | G139: 0 | H139: 0 | I139: 0 | K139: 0
A140: Licences and Rights | C140: =SUM(C141:C146) -> 0 | D140: 100000 | E140: 0 | F140: 0 | G140: 0 | H140: 0 | I140: 0 | K140: =SUM(K141:K146) -> 0
A141: Water Rights | C141: 0 | D141: 0 | E141: 0 | F141: 0 | G141: 0 | H141: 0 | I141: 0 | K141: 0
A142: Effluent Licenses | C142: 0 | D142: 0 | E142: 0 | F142: 0 | G142: 0 | H142: 0 | I142: 0 | K142: 0
A143: Solid Waste Licenses | C143: 0 | D143: 0 | E143: 0 | F143: 0 | G143: 0 | H143: 0 | I143: 0 | K143: 0
A144: Computer Software and Applications | C144: 0 | D144: 100000 | E144: 0 | F144: 0 | G144: 0 | H144: 0 | I144: 0 | K144: 0
A145: Load Settlement Software Applications | C145: 0 | D145: 0 | E145: 0 | F145: 0 | G145: 0 | H145: 0 | I145: 0 | K145: 0
A146: Unspecified | C146: 0 | D146: 0 | E146: 0 | F146: 0 | G146: 0 | H146: 0 | I146: 0 | K146: 0
A148: Computer Equipment | C148: =SUM(C149:C149) -> 0 | D148: 32399 | E148: 0 | F148: 0 | G148: 0 | H148: 0 | I148: =H148-G148 -> 0 | J148: =IF(I148=0,"",I148/H148) ->  | K148: =SUM(K149) -> 0
A149: Computer Equipment | C149: 0 | D149: 32399 | E149: 0 | F149: 0 | G149: 0 | H149: 0 | I149: =H149-G149 -> 0 | J149: =IF(I149=0,"",I149/H149) ->  | K149: 0
A151: Furniture and Office Equipment | C151: =SUM(C152:C152) -> 0 | D151: 294280 | E151: 0 | F151: 0 | G151: 0 | H151: 0 | I151: =H151-G151 -> 0 | J151: =IF(I151=0,"",I151/H151) ->  | K151: =SUM(K152) -> 0
A152: Furniture and Office Equipment | C152: 0 | D152: 294280 | E152: 0 | F152: 0 | G152: 0 | H152: 0 | I152: =H152-G152 -> 0 | J152: =IF(I152=0,"",I152/H152) ->  | K152: 0
J153: =IF(I153=0,"",I153/H153) -> 
A154: Machinery and Equipment | C154: =SUM(C155:C155) -> 0 | D154: 5240 | E154: 0 | F154: 0 | G154: 0 | H154: 0 | I154: =H154-G154 -> 0 | J154: =IF(I154=0,"",I154/H154) ->  | K154: =SUM(K155) -> 0
A155: Machinery and Equipment | C155: 0 | D155: 5240 | E155: 0 | F155: 0 | G155: 0 | H155: 0 | I155: =H155-G155 -> 0 | J155: =IF(I155=0,"",I155/H155) ->  | K155: 0
A157: Transport Assets | C157: =SUM(C158:C158) -> 0 | D157: 790370 | E157: 0 | F157: 0 | G157: 0 | H157: 0 | I157: =H157-G157 -> 0 | J157: =IF(I157=0,"",I157/H157) ->  | K157: =SUM(K158) -> 0
A158: Transport Assets | C158: 0 | D158: 790370 | E158: 0 | F158: 0 | G158: 0 | H158: 0 | I158: =H158-G158 -> 0 | J158: =IF(I158=0,"",I158/H158) ->  | K158: 0
A160: Land | C160: =SUM(C161:C161) -> 0 | D160: 0 | E160: 0 | F160: 0 | G160: 0 | H160: 0 | I160: =H160-G160 -> 0 | J160: =IF(I160=0,"",I160/H160) ->  | K160: =SUM(K161) -> 0
A161: Land | C161: 0 | D161: 0 | E161: 0 | F161: 0 | G161: 0 | H161: 0 | I161: =H161-G161 -> 0 | J161: =IF(I161=0,"",I161/H161) ->  | K161: 0
A163: Zoo's, Marine and Non-biological Animals | C163: =SUM(C164:C164) -> 0 | D163: 0 | E163: 0 | F163: 0 | G163: 0 | H163: 0 | I163: =H163-G163 -> 0 | J163: =IF(I163=0,"",I163/H163) ->  | K163: =SUM(K164) -> 0
A164: Zoo's, Marine and Non-biological Animals | C164: 0 | D164: 0 | E164: 0 | F164: 0 | G164: 0 | H164: 0 | I164: =H164-G164 -> 0 | J164: =IF(I164=0,"",I164/H164) ->  | K164: 0
J165: =IF(I165=0,"",I165/H165) -> 
A166: Total Depreciation | B166: 1 | C166: =C7+C75+C103+C110+C117+C135+C138+C148+C151+C154+C157+C160+C163 -> 0 | D166: 23721031 | E166: 0 | F166: 0 | G166: 0 | H166: 0 | I166: 0 | K166: =K7+K75+K103+K110+K117+K135+K138+K148+K151+K154+K157+K160+K163 -> 0

Sheet SC13e
A1: =muni& " - "&S71Se& " - "&Head57 -> EC136 Emalahleni (Ec) - Supporting Table SC13e Monthly Budget Statement - capital expenditure on upgrading of existing assets by asset class - M12 June
A2: =desc -> Description | B2: =head27 -> Ref | C2: =Head1 -> 2017/18 | D2: =Head2 -> Budget Year 2018/19
C3: =Head5 -> Audited Outcome | D3: =Head6 -> Original Budget | E3: =Head7 -> Adjusted Budget | F3: =Head38 -> Monthly actual | G3: =Head39 -> YearTD actual | H3: =Head40 -> YearTD budget | I3: =Head41 -> YTD variance | J3: =Head41 -> YTD variance | K3: =Head8 -> Full Year Forecast
A4: R thousands | B4: 1 | J4: %
A5: Capital expenditure on upgrading of existing assets by Asset Class/Sub-class
A7: Infrastructure | C7: =C8+C13+C17+C27+C38+C45+C53+C63+C69 -> 0 | D7: 8286610 | E7: 0 | F7: 1990144.54 | G7: 5273454.69 | H7: 0 | I7: =H7-G7 -> -5273454.69 | J7: =IF(I7=0,"",I7/H7) ->  | K7: =K8+K13+K17+K27+K38+K45+K53+K63+K69 -> 0
A8: Roads Infrastructure | C8: =SUM(C9:C12) -> 0 | D8: 8286610 | E8: 0 | F8: 1990144.54 | G8: 5273454.69 | H8: 0 | I8: -5273454.69 | K8: =SUM(K9:K12) -> 0
A9: Roads | C9: 0 | D9: 0 | E9: 0 | F9: 0 | G9: 0 | H9: 0 | I9: 0 | K9: 0
A10: Road Structures | C10: 0 | D10: 8286610 | E10: 0 | F10: 1990144.54 | G10: 5273454.69 | H10: 0 | I10: -5273454.69 | K10: 0
A11: Road Furniture | C11: 0 | D11: 0 | E11: 0 | F11: 0 | G11: 0 | H11: 0 | I11: 0 | K11: 0
A12: Capital Spares | C12: 0 | D12: 0 | E12: 0 | F12: 0 | G12: 0 | H12: 0 | I12: 0 | K12: 0
A13: Storm water Infrastructure | C13: =SUM(C14:C16) -> 0 | D13: 0 | E13: 0 | F13: 0 | G13: 0 | H13: 0 | I13: 0 | K13: =SUM(K14:K16) -> 0
A14: Drainage Collection | C14: 0 | D14: 0 | E14: 0 | F14: 0 | G14: 0 | H14: 0 | I14: 0 | K14: 0
A15: Storm water Conveyance | C15: 0 | D15: 0 | E15: 0 | F15: 0 | G15: 0 | H15: 0 | I15: 0 | K15: 0
A16: Attenuation | C16: 0 | D16: 0 | E16: 0 | F16: 0 | G16: 0 | H16: 0 | I16: 0 | K16: 0
A17: Electrical Infrastructure | C17: =SUM(C18:C26) -> 0 | D17: 0 | E17: 0 | F17: 0 | G17: 0 | H17: 0 | I17: 0 | K17: =SUM(K18:K26) -> 0
A18: Power Plants | C18: 0 | D18: 0 | E18: 0 | F18: 0 | G18: 0 | H18: 0 | I18: 0 | K18: 0
A19: HV Substations | C19: 0 | D19: 0 | E19: 0 | F19: 0 | G19: 0 | H19: 0 | I19: 0 | K19: 0
A20: HV Switching Station | C20: 0 | D20: 0 | E20: 0 | F20: 0 | G20: 0 | H20: 0 | I20: 0 | K20: 0
A21: HV Transmission Conductors | C21: 0 | D21: 0 | E21: 0 | F21: 0 | G21: 0 | H21: 0 | I21: 0 | K21: 0
A22: MV Substations | C22: 0 | D22: 0 | E22: 0 | F22: 0 | G22: 0 | H22: 0 | I22: 0 | K22: 0
A23: MV Switching Stations | C23: 0 | D23: 0 | E23: 0 | F23: 0 | G23: 0 | H23: 0 | I23: 0 | K23: 0
A24: MV Networks | C24: 0 | D24: 0 | E24: 0 | F24: 0 | G24: 0 | H24: 0 | I24: 0 | K24: 0
A25: LV Networks | C25: 0 | D25: 0 | E25: 0 | F25: 0 | G25: 0 | H25: 0 | I25: 0 | K25: 0
A26: Capital Spares | C26: 0 | D26: 0 | E26: 0 | F26: 0 | G26: 0 | H26: 0 | I26: 0 | K26: 0
A27: Water Supply Infrastructure | C27: =SUM(C28:C37) -> 0 | D27: 0 | E27: 0 | F27: 0 | G27: 0 | H27: 0 | I27: 0 | K27: =SUM(K28:K37) -> 0
A28: Dams and Weirs | C28: 0 | D28: 0 | E28: 0 | F28: 0 | G28: 0 | H28: 0 | I28: 0 | K28: 0
A29: Boreholes | C29: 0 | D29: 0 | E29: 0 | F29: 0 | G29: 0 | H29: 0 | I29: 0 | K29: 0
A30: Reservoirs | C30: 0 | D30: 0 | E30: 0 | F30: 0 | G30: 0 | H30: 0 | I30: 0 | K30: 0
A31: Pump Stations | C31: 0 | D31: 0 | E31: 0 | F31: 0 | G31: 0 | H31: 0 | I31: 0 | K31: 0
A32: Water Treatment Works | C32: 0 | D32: 0 | E32: 0 | F32: 0 | G32: 0 | H32: 0 | I32: 0 | K32: 0
A33: Bulk Mains | C33: 0 | D33: 0 | E33: 0 | F33: 0 | G33: 0 | H33: 0 | I33: 0 | K33: 0
A34: Distribution | C34: 0 | D34: 0 | E34: 0 | F34: 0 | G34: 0 | H34: 0 | I34: 0 | K34: 0
A35: Distribution Points | C35: 0 | D35: 0 | E35: 0 | F35: 0 | G35: 0 | H35: 0 | I35: 0 | K35: 0
A36: PRV Stations | C36: 0 | D36: 0 | E36: 0 | F36: 0 | G36: 0 | H36: 0 | I36: 0 | K36: 0
A37: Capital Spares | C37: 0 | D37: 0 | E37: 0 | F37: 0 | G37: 0 | H37: 0 | I37: 0 | K37: 0
A38: Sanitation Infrastructure | C38: =SUM(C39:C44) -> 0 | D38: 0 | E38: 0 | F38: 0 | G38: 0 | H38: 0 | I38: 0 | K38: =SUM(K39:K44) -> 0
A39: Pump Station | C39: 0 | D39: 0 | E39: 0 | F39: 0 | G39: 0 | H39: 0 | I39: 0 | K39: 0
A40: Reticulation | C40: 0 | D40: 0 | E40: 0 | F40: 0 | G40: 0 | H40: 0 | I40: 0 | K40: 0
A41: Waste Water Treatment Works | C41: 0 | D41: 0 | E41: 0 | F41: 0 | G41: 0 | H41: 0 | I41: 0 | K41: 0
A42: Outfall Sewers | C42: 0 | D42: 0 | E42: 0 | F42: 0 | G42: 0 | H42: 0 | I42: 0 | K42: 0
A43: Toilet Facilities | C43: 0 | D43: 0 | E43: 0 | F43: 0 | G43: 0 | H43: 0 | I43: 0 | K43: 0
A44: Capital Spares | C44: 0 | D44: 0 | E44: 0 | F44: 0 | G44: 0 | H44: 0 | I44: 0 | K44: 0
A45: Solid Waste Infrastructure | C45: =SUM(C46:C52) -> 0 | D45: 0 | E45: 0 | F45: 0 | G45: 0 | H45: 0 | I45: 0 | K45: =SUM(K46:K52) -> 0
A46: Landfill Sites | C46: 0 | D46: 0 | E46: 0 | F46: 0 | G46: 0 | H46: 0 | I46: 0 | K46: 0
A47: Waste Transfer Stations | C47: 0 | D47: 0 | E47: 0 | F47: 0 | G47: 0 | H47: 0 | I47: 0 | K47: 0
A48: Waste Processing Facilities | C48: 0 | D48: 0 | E48: 0 | F48: 0 | G48: 0 | H48: 0 | I48: 0 | K48: 0
A49: Waste Drop-off Points | C49: 0 | D49: 0 | E49: 0 | F49: 0 | G49: 0 | H49: 0 | I49: 0 | K49: 0
A50: Waste Separation Facilities | C50: 0 | D50: 0 | E50: 0 | F50: 0 | G50: 0 | H50: 0 | I50: 0 | K50: 0
A51: Electricity Generation Facilities | C51: 0 | D51: 0 | E51: 0 | F51: 0 | G51: 0 | H51: 0 | I51: 0 | K51: 0
A52: Capital Spares | C52: 0 | D52: 0 | E52: 0 | F52: 0 | G52: 0 | H52: 0 | I52: 0 | K52: 0
A53: Rail Infrastructure | C53: =SUM(C54:C62) -> 0 | D53: 0 | E53: 0 | F53: 0 | G53: 0 | H53: 0 | I53: 0 | K53: =SUM(K54:K62) -> 0
A54: Rail Lines | C54: 0 | D54: 0 | E54: 0 | F54: 0 | G54: 0 | H54: 0 | I54: 0 | K54: 0
A55: Rail Structures | C55: 0 | D55: 0 | E55: 0 | F55: 0 | G55: 0 | H55: 0 | I55: 0 | K55: 0
A56: Rail Furniture | C56: 0 | D56: 0 | E56: 0 | F56: 0 | G56: 0 | H56: 0 | I56: 0 | K56: 0
A57: Drainage Collection | C57: 0 | D57: 0 | E57: 0 | F57: 0 | G57: 0 | H57: 0 | I57: 0 | K57: 0
A58: Storm water Conveyance | C58: 0 | D58: 0 | E58: 0 | F58: 0 | G58: 0 | H58: 0 | I58: 0 | K58: 0
A59: Attenuation | C59: 0 | D59: 0 | E59: 0 | F59: 0 | G59: 0 | H59: 0 | I59: 0 | K59: 0
A60: MV Substations | C60: 0 | D60: 0 | E60: 0 | F60: 0 | G60: 0 | H60: 0 | I60: 0 | K60: 0
A61: LV Networks | C61: 0 | D61: 0 | E61: 0 | F61: 0 | G61: 0 | H61: 0 | I61: 0 | K61: 0
A62: Capital Spares | C62: 0 | D62: 0 | E62: 0 | F62: 0 | G62: 0 | H62: 0 | I62: 0 | K62: 0
A63: Coastal Infrastructure | C63: =SUM(C64:C68) -> 0 | D63: 0 | E63: 0 | F63: 0 | G63: 0 | H63: 0 | I63: 0 | K63: =SUM(K64:K68) -> 0
A64: Sand Pumps | C64: 0 | D64: 0 | E64: 0 | F64: 0 | G64: 0 | H64: 0 | I64: 0 | K64: 0
A65: Piers | C65: 0 | D65: 0 | E65: 0 | F65: 0 | G65: 0 | H65: 0 | I65: 0 | K65: 0
A66: Revetments | C66: 0 | D66: 0 | E66: 0 | F66: 0 | G66: 0 | H66: 0 | I66: 0 | K66: 0
A67: Promenades | C67: 0 | D67: 0 | E67: 0 | F67: 0 | G67: 0 | H67: 0 | I67: 0 | K67: 0
A68: Capital Spares | C68: 0 | D68: 0 | E68: 0 | F68: 0 | G68: 0 | H68: 0 | I68: 0 | K68: 0
A69: Information and Communication Infrastructure | C69: =SUM(C70:C73) -> 0 | D69: 0 | E69: 0 | F69: 0 | G69: 0 | H69: 0 | I69: 0 | K69: =SUM(K70:K73) -> 0
A70: Data Centres | C70: 0 | D70: 0 | E70: 0 | F70: 0 | G70: 0 | H70: 0 | I70: 0 | K70: 0
A71: Core Layers | C71: 0 | D71: 0 | E71: 0 | F71: 0 | G71: 0 | H71: 0 | I71: 0 | K71: 0
A72: Distribution Layers | C72: 0 | D72: 0 | E72: 0 | F72: 0 | G72: 0 | H72: 0 | I72: 0 | K72: 0
A73: Capital Spares | C73: 0 | D73: 0 | E73: 0 | F73: 0 | G73: 0 | H73: 0 | I73: 0 | K73: 0
A75: Community Assets | C75: =+C76+C99 -> 0 | D75: 11000000 | E75: 0 | F75: 1689723.15 | G75: 8753255.51 | H75: 0 | I75: -8753255.51 | K75: =+K76+K99 -> 0
A76: Community Facilities | C76: =SUM(C77:C98) -> 0 | D76: 0 | E76: 0 | F76: 0 | G76: 0 | H76: 0 | I76: 0 | K76: =SUM(K77:K98) -> 0
A77: Halls | C77: 0 | D77: 0 | E77: 0 | F77: 0 | G77: 0 | H77: 0 | I77: 0 | K77: 0
A78: Centres | C78: 0 | D78: 0 | E78: 0 | F78: 0 | G78: 0 | H78: 0 | I78: 0 | K78: 0
A79: Crèches | C79: 0 | D79: 0 | E79: 0 | F79: 0 | G79: 0 | H79: 0 | I79: 0 | K79: 0
A80: Clinics/Care Centres | C80: 0 | D80: 0 | E80: 0 | F80: 0 | G80: 0 | H80: 0 | I80: 0 | K80: 0
A81: Fire/Ambulance Stations | C81: 0 | D81: 0 | E81: 0 | F81: 0 | G81: 0 | H81: 0 | I81: 0 | K81: 0
A82: Testing Stations | C82: 0 | D82: 0 | E82: 0 | F82: 0 | G82: 0 | H82: 0 | I82: 0 | K82: 0
A83: Museums | C83: 0 | D83: 0 | E83: 0 | F83: 0 | G83: 0 | H83: 0 | I83: 0 | K83: 0
A84: Galleries | C84: 0 | D84: 0 | E84: 0 | F84: 0 | G84: 0 | H84: 0 | I84: 0 | K84: 0
A85: Theatres | C85: 0 | D85: 0 | E85: 0 | F85: 0 | G85: 0 | H85: 0 | I85: 0 | K85: 0
A86: Libraries | C86: 0 | D86: 0 | E86: 0 | F86: 0 | G86: 0 | H86: 0 | I86: 0 | K86: 0
A87: Cemeteries/Crematoria | C87: 0 | D87: 0 | E87: 0 | F87: 0 | G87: 0 | H87: 0 | I87: 0 | K87: 0
A88: Police | C88: 0 | D88: 0 | E88: 0 | F88: 0 | G88: 0 | H88: 0 | I88: 0 | K88: 0
A89: Purls | C89: 0 | D89: 0 | E89: 0 | F89: 0 | G89: 0 | H89: 0 | I89: 0 | K89: 0
A90: Public Open Space | C90: 0 | D90: 0 | E90: 0 | F90: 0 | G90: 0 | H90: 0 | I90: 0 | K90: 0
A91: Nature Reserves | C91: 0 | D91: 0 | E91: 0 | F91: 0 | G91: 0 | H91: 0 | I91: 0 | K91: 0
A92: Public Ablution Facilities | C92: 0 | D92: 0 | E92: 0 | F92: 0 | G92: 0 | H92: 0 | I92: 0 | K92: 0
A93: Markets | C93: 0 | D93: 0 | E93: 0 | F93: 0 | G93: 0 | H93: 0 | I93: 0 | K93: 0
A94: Stalls | C94: 0 | D94: 0 | E94: 0 | F94: 0 | G94: 0 | H94: 0 | I94: 0 | K94: 0
A95: Abattoirs | C95: 0 | D95: 0 | E95: 0 | F95: 0 | G95: 0 | H95: 0 | I95: 0 | K95: 0
A96: Airports | C96: 0 | D96: 0 | E96: 0 | F96: 0 | G96: 0 | H96: 0 | I96: 0 | K96: 0
A97: Taxi Ranks/Bus Terminals | C97: 0 | D97: 0 | E97: 0 | F97: 0 | G97: 0 | H97: 0 | I97: 0 | K97: 0
A98: Capital Spares | C98: 0 | D98: 0 | E98: 0 | F98: 0 | G98: 0 | H98: 0 | I98: 0 | K98: 0
A99: Sport and Recreation Facilities | C99: =SUM(C100:C102) -> 0 | D99: 11000000 | E99: 0 | F99: 1689723.15 | G99: 8753255.51 | H99: 0 | I99: -8753255.51 | K99: =SUM(K100:K102) -> 0
A100: Indoor Facilities | C100: 0 | D100: 0 | E100: 0 | F100: 0 | G100: 0 | H100: 0 | I100: 0 | K100: 0
A101: Outdoor Facilities | C101: 0 | D101: 11000000 | E101: 0 | F101: 1689723.15 | G101: 8753255.51 | H101: 0 | I101: =H101-G101 -> -8753255.51 | J101: =IF(I101=0,"",I101/H101) ->  | K101: 0
A102: Capital Spares | C102: 0 | D102: 0 | E102: 0 | F102: 0 | G102: 0 | H102: 0 | I102: 0 | K102: 0
A103: Heritage assets | C103: =SUM(C104:C108) -> 0 | D103: 0 | E103: 0 | F103: 0 | G103: 0 | H103: 0 | I103: 0 | K103: =SUM(K104:K108) -> 0
A104: Monuments | C104: 0 | D104: 0 | E104: 0 | F104: 0 | G104: 0 | H104: 0 | I104: 0 | K104: 0
A105: Historic Buildings | C105: 0 | D105: 0 | E105: 0 | F105: 0 | G105: 0 | H105: 0 | I105: 0 | K105: 0
A106: Works of Art | C106: 0 | D106: 0 | E106: 0 | F106: 0 | G106: 0 | H106: 0 | I106: 0 | K106: 0
A107: Conservation Areas | C107: 0 | D107: 0 | E107: 0 | F107: 0 | G107: 0 | H107: 0 | I107: 0 | K107: 0
A108: Other Heritage | C108: 0 | D108: 0 | E108: 0 | F108: 0 | G108: 0 | H108: 0 | I108: 0 | K108: 0
I109: 0
A110: Investment properties | C110: =+C111+C114 -> 0 | D110: 0 | E110: 0 | F110: 0 | G110: 0 | H110: 0 | I110: 0 | K110: =+K111+K114 -> 0
A111: Revenue Generating | C111: =SUM(C112:C113) -> 0 | D111: 0 | E111: 0 | F111: 0 | G111: 0 | H111: 0 | I111: 0 | K111: =SUM(K112:K113) -> 0
A112: Improved Property | C112: 0 | D112: 0 | E112: 0 | F112: 0 | G112: 0 | H112: 0 | I112: 0 | K112: 0
A113: Unimproved Property | C113: 0 | D113: 0 | E113: 0 | F113: 0 | G113: 0 | H113: 0 | I113: 0 | K113: 0
A114: Non-revenue Generating | C114: =SUM(C115:C116) -> 0 | D114: 0 | E114: 0 | F114: 0 | G114: 0 | H114: 0 | I114: 0 | K114: =SUM(K115:K116) -> 0
A115: Improved Property | C115: 0 | D115: 0 | E115: 0 | F115: 0 | G115: 0 | H115: 0 | I115: 0 | K115: 0
A116: Unimproved Property | C116: 0 | D116: 0 | E116: 0 | F116: 0 | G116: 0 | H116: 0 | I116: =H116-G116 -> 0 | J116: =IF(I116=0,"",I116/H116) ->  | K116: 0
A117: Other assets | C117: =+C118+C130 -> 0 | D117: 0 | E117: 0 | F117: 0 | G117: 0 | H117: 0 | I117: 0 | K117: =+K118+K130 -> 0
A118: Operational Buildings | C118: =SUM(C119:C129) -> 0 | D118: 0 | E118: 0 | F118: 0 | G118: 0 | H118: 0 | I118: 0 | K118: =SUM(K119:K129) -> 0
A119: Municipal Offices | C119: 0 | D119: 0 | E119: 0 | F119: 0 | G119: 0 | H119: 0 | I119: 0 | K119: 0
A120: Pay/Enquiry Points | C120: 0 | D120: 0 | E120: 0 | F120: 0 | G120: 0 | H120: 0 | I120: 0 | K120: 0
A121: Building Plan Offices | C121: 0 | D121: 0 | E121: 0 | F121: 0 | G121: 0 | H121: 0 | I121: 0 | K121: 0
A122: Workshops | C122: 0 | D122: 0 | E122: 0 | F122: 0 | G122: 0 | H122: 0 | I122: 0 | K122: 0
A123: Yards | C123: 0 | D123: 0 | E123: 0 | F123: 0 | G123: 0 | H123: 0 | I123: 0 | K123: 0
A124: Stores | C124: 0 | D124: 0 | E124: 0 | F124: 0 | G124: 0 | H124: 0 | I124: 0 | K124: 0
A125: Laboratories | C125: 0 | D125: 0 | E125: 0 | F125: 0 | G125: 0 | H125: 0 | I125: 0 | K125: 0
A126: Training Centres | C126: 0 | D126: 0 | E126: 0 | F126: 0 | G126: 0 | H126: 0 | I126: 0 | K126: 0
A127: Manufacturing Plant | C127: 0 | D127: 0 | E127: 0 | F127: 0 | G127: 0 | H127: 0 | I127: 0 | K127: 0
A128: Depots | C128: 0 | D128: 0 | E128: 0 | F128: 0 | G128: 0 | H128: 0 | I128: 0 | K128: 0
A129: Capital Spares | C129: 0 | D129: 0 | E129: 0 | F129: 0 | G129: 0 | H129: 0 | I129: 0 | K129: 0
A130: Housing | C130: =SUM(C131:C133) -> 0 | D130: 0 | E130: 0 | F130: 0 | G130: 0 | H130: 0 | I130: 0 | K130: =SUM(K131:K133) -> 0
A131: Staff Housing | C131: 0 | D131: 0 | E131: 0 | F131: 0 | G131: 0 | H131: 0 | I131: 0 | K131: 0
A132: Social Housing | C132: 0 | D132: 0 | E132: 0 | F132: 0 | G132: 0 | H132: 0 | I132: 0 | K132: 0
A133: Capital Spares | C133: 0 | D133: 0 | E133: 0 | F133: 0 | G133: 0 | H133: 0 | I133: 0 | K133: 0
A135: Biological or Cultivated Assets | C135: =SUM(C136:C136) -> 0 | D135: 0 | E135: 0 | F135: 0 | G135: 0 | H135: 0 | I135: =H135-G135 -> 0 | K135: =SUM(K136) -> 0
A136: Biological or Cultivated Assets | C136: 0 | D136: 0 | E136: 0 | F136: 0 | G136: 0 | H136: 0 | I136: =H136-G136 -> 0 | K136: 0
J137: =IF(I137=0,"",I137/H137) -> 
A138: Intangible Assets | C138: =SUM(C139:C140) -> 0 | D138: 0 | E138: 0 | F138: 0 | G138: 0 | H138: 0 | I138: =H138-G138 -> 0 | K138: =SUM(K139:K140) -> 0
A139: Servitudes | C139: 0 | D139: 0 | E139: 0 | F139: 0 | G139: 0 | H139: 0 | I139: 0 | K139: 0
A140: Licences and Rights | C140: =SUM(C141:C146) -> 0 | D140: 0 | E140: 0 | F140: 0 | G140: 0 | H140: 0 | I140: 0 | K140: =SUM(K141:K146) -> 0
A141: Water Rights | C141: 0 | D141: 0 | E141: 0 | F141: 0 | G141: 0 | H141: 0 | I141: 0 | K141: 0
A142: Effluent Licenses | C142: 0 | D142: 0 | E142: 0 | F142: 0 | G142: 0 | H142: 0 | I142: 0 | K142: 0
A143: Solid Waste Licenses | C143: 0 | D143: 0 | E143: 0 | F143: 0 | G143: 0 | H143: 0 | I143: 0 | K143: 0
A144: Computer Software and Applications | C144: 0 | D144: 0 | E144: 0 | F144: 0 | G144: 0 | H144: 0 | I144: 0 | K144: 0
A145: Load Settlement Software Applications | C145: 0 | D145: 0 | E145: 0 | F145: 0 | G145: 0 | H145: 0 | I145: 0 | K145: 0
A146: Unspecified | C146: 0 | D146: 0 | E146: 0 | F146: 0 | G146: 0 | H146: 0 | I146: 0 | K146: 0
A148: Computer Equipment | C148: =SUM(C149:C149) -> 0 | D148: 0 | E148: 0 | F148: 0 | G148: 0 | H148: 0 | I148: =H148-G148 -> 0 | J148: =IF(I148=0,"",I148/H148) ->  | K148: =SUM(K149) -> 0
A149: Computer Equipment | C149: 0 | D149: 0 | E149: 0 | F149: 0 | G149: 0 | H149: 0 | I149: =H149-G149 -> 0 | J149: =IF(I149=0,"",I149/H149) ->  | K149: 0
A151: Furniture and Office Equipment | C151: =SUM(C152:C152) -> 0 | D151: 0 | E151: 0 | F151: 0 | G151: 0 | H151: 0 | I151: =H151-G151 -> 0 | J151: =IF(I151=0,"",I151/H151) ->  | K151: =SUM(K152) -> 0
A152: Furniture and Office Equipment | C152: 0 | D152: 0 | E152: 0 | F152: 0 | G152: 0 | H152: 0 | I152: =H152-G152 -> 0 | J152: =IF(I152=0,"",I152/H152) ->  | K152: 0
J153: =IF(I153=0,"",I153/H153) -> 
A154: Machinery and Equipment | C154: =SUM(C155:C155) -> 0 | D154: 0 | E154: 0 | F154: 0 | G154: 0 | H154: 0 | I154: =H154-G154 -> 0 | J154: =IF(I154=0,"",I154/H154) ->  | K154: =SUM(K155) -> 0
A155: Machinery and Equipment | C155: 0 | D155: 0 | E155: 0 | F155: 0 | G155: 0 | H155: 0 | I155: =H155-G155 -> 0 | J155: =IF(I155=0,"",I155/H155) ->  | K155: 0
A157: Transport Assets | C157: =SUM(C158:C158) -> 0 | D157: 0 | E157: 0 | F157: 0 | G157: 0 | H157: 0 | I157: =H157-G157 -> 0 | J157: =IF(I157=0,"",I157/H157) ->  | K157: =SUM(K158) -> 0
A158: Transport Assets | C158: 0 | D158: 0 | E158: 0 | F158: 0 | G158: 0 | H158: 0 | I158: =H158-G158 -> 0 | J158: =IF(I158=0,"",I158/H158) ->  | K158: 0
A160: Land | C160: =SUM(C161:C161) -> 0 | D160: 0 | E160: 0 | F160: 0 | G160: 0 | H160: 0 | I160: =H160-G160 -> 0 | J160: =IF(I160=0,"",I160/H160) ->  | K160: =SUM(K161) -> 0
A161: Land | C161: 0 | D161: 0 | E161: 0 | F161: 0 | G161: 0 | H161: 0 | I161: =H161-G161 -> 0 | J161: =IF(I161=0,"",I161/H161) ->  | K161: 0
J162: .
A163: Zoo's, Marine and Non-biological Animals | C163: =SUM(C164:C164) -> 0 | D163: 0 | E163: 0 | F163: 0 | G163: 0 | H163: 0 | I163: =H163-G163 -> 0 | J163: =IF(I163=0,"",I163/H163) ->  | K163: =SUM(K164) -> 0
A164: Zoo's, Marine and Non-biological Animals | C164: 0 | D164: 0 | E164: 0 | F164: 0 | G164: 0 | H164: 0 | I164: =H164-G164 -> 0 | J164: =IF(I164=0,"",I164/H164) ->  | K164: 0
J165: =IF(I165=0,"",I165/H165) -> 
